Workbook

Sheet SOLAI T2D SPA
B2: TIPO SOLAIO
B4: =IF(C2="","",IF(OR(C2="Travetto_singolo",C2="Doppio_travetto"),"Larghezza travetto","Tipo lastre")) -> 
B5: =IF(C2="","",IF(OR(C2="Travetto_singolo",C2="Doppio_travetto"),"Larghezza pignatta","Spessore lastra")) -> 
B6: =IF(C2="","","H alleggerimento") -> 
B7: =IF(C2="","","Spessore soletta") -> 
B8: =IF(C2="","","Peso proprio [daN/mq]") ->  | C8: =IF(OR(C2="",C4="",C5="",C6="",C7=""),"",'CONTROLLO FINALE'!E10) ->  | J8: CARICATO IN RELAZIONE (NUMERO MASSIMO CALCOLI 10)
J9: Caratteristiche | M9: P.P. | N9: G1 | O9: G2 | P9: Q | Q9: Lcal | R9: Momento positivo slu | V9: Momento negativo slu
B10: =IF(C2="","","DATI DI CALCOLO") ->  | J10: Tipo | K10: Int | L10: H | R10: Vincolo | S10: Armatura | T10: Msoll | U10: Mres | V10: Vincolo | W10: Armatura | X10: Msoll | Y10: Mres
B11: =IF(C2="","","G1 [daN/mq]") -> 
B12: =IF(C2="","","G2 [daN/mq]") -> 
B13: =IF(C2="","","Q [daN/mq]") -> 
B14: =IF(C2="","","Lcalcolo [ml]") -> 
B15: =IF(C2="","","Vincolo campata (1/x)") -> 
B16: =IF(C2="","","Vincolo appoggio (1/x)") -> 
B18: =IF(C2="","","RISULTATI DI CALCOLO MOMENTO POSITIVO") -> 
B19: =IF(C2="","","Armatura campata") ->  | C19: =IF(AND(C2<>"",C4<>"",C5<>"",C6<>"",C7<>"",C11<>"",C12<>"",C13<>"",C14<>"",C15<>"",C16<>""),'CONTROLLO FINALE'!K10,"") -> 
B20: =IF(C2="","","Mslu sollecitante / ml [daNm]") ->  | C20: =IF(AND(C2<>"",C4<>"",C5<>"",C6<>"",C7<>"",C11<>"",C12<>"",C13<>"",C14<>"",C15<>"",C16<>""),(C8*1.3+C11*1.3+C12*1.5+C13*1.5)*C14*C14/C15,"") -> 
B21: =IF(C2="","","Mslu resistente / ml [daNm]") ->  | C21: =IF(OR(C2="",C4="",C5="",C6="",C7="",C11="",C12="",C13="",C14="",C15="",C16=""),"",IF('CONTROLLO FINALE'!B13=1,"NON VERIFICATO IN CAMPATA",'CONTROLLO FINALE'!M10)) -> 
B23: =IF(C2="","","RISULTATI DI CALCOLO MOMENTO NEGATIVO") -> 
B24: =IF(C2="","","Armatura appoggi") ->  | C24: ='CONTROLLO FINALE'!O10 -> 
B25: =IF(C2="","","Mslu sollecitante / ml [daNm]") ->  | C25: =IF(AND(C2<>"",C4<>"",C5<>"",C6<>"",C7<>"",C11<>"",C12<>"",C13<>"",C14<>"",C15<>"",C16<>""),(C8*1.3+C11*1.3+C12*1.5+C13*1.5)*C14*C14/C16,"") -> 
B26: =IF(C2="","","Mslu resistente / ml [daNm]") ->  | C26: =IF(OR(C2="",C4="",C5="",C6="",C7="",C11="",C12="",C13="",C14="",C15="",C16=""),"",IF('CONTROLLO FINALE'!B14=1,"NON VERIFICATO AGLI APPOGGI",'CONTROLLO FINALE'!Q10)) -> 

Sheet Dati per tendine (hidden)
A1: Travetto_singolo | B1: Travetto_singolo | C1: Doppio_travetto | D1: Lastre_predalles
A2: Lastre_predalles | B2: Travetto_12 | C2: Travetto_12 | D2: Polistirolo_NOREI
B3: Travetto_14 | C3: Travetto_14 | D3: Polistirolo_REI120
B6: Travetto_12 | C6: Travetto_14 | D6: Polistirolo_NOREI | E6: Polistirolo_REI120 | F6: Laterizio_NOREI | G6: Laterizio_REI120
B7: Pignatta_38 | C7: Pignatta_38 | D7: Spessore_4 | E7: Spessore_4 | F7: Spessore_4 | G7: Spessore_4
B8: Pignatta_48 | C8: Pignatta_48 | D8: Spessore_5 | E8: Spessore_5 | F8: Spessore_5 | G8: Spessore_5
B12: Pignatta_38 | C12: Pignatta_48 | D12: Spessore_4 | E12: Spessore_5
B13: 12 | C13: 12 | D13: 12 | E13: 12
B14: 14 | C14: 14 | D14: 14 | E14: 14
B15: 16 | C15: 16 | D15: 16 | E15: 16
B16: 18 | C16: 18 | D16: 18 | E16: 18
B17: 20 | C17: 20 | D17: 20 | E17: 20
B18: 22 | C18: 25 | D18: 22 | E18: 22
B19: 24 | D19: 24 | E19: 24
B20: 30 | D20: 30 | E20: 30
A29: 4
A30: 5
A32: 1
A33: 2
A34: 3
A35: 4
A36: 5
A37: 6
A38: 7
A39: 8
A40: 9
A41: 10
A46: Travetto singolo interasse 50 (12 + 38)
A47: Travetto singolo interasse 52 (14 + 38)
A48: Travetto singolo interasse 60 (12 + 48)
A49: Travetto singolo interasse 62 (14 + 48)
A50: Doppio travetto interasse 62 (2*12 + 38)
A51: Doppio travetto interasse 66 (2*14 + 38)
A52: Doppio travetto interasse 72 (2*12 + 48)
A53: Doppio travetto interasse 76 (2*14 + 48)
A54: Lastre predalles polistirolo (REI 120)
A55: Lastre predalles polistirolo (NO REI)
A56: Lastre predalles laterizio (REI 120)
A57: Lastre predalles laterizio (NO REI)

Sheet Relazione (hidden)

Sheet Mascherina (hidden)

Sheet ST BLOCCO 42 (hidden)
A1: INTERASSE 50 CM - Larghezza travetto 12 cm - Larghezza blocco 42 | U1: CONTROLLO | W1: GENRALE | AO1: VERIFICA AL TAGLIO
A2: MOMENTO POSITIVO | F2: Armatura standard | M2: Armatura non standard | Q2: Taglio ultimo
F3: 2f5 | G3: 2f5 + 1f8 | H3: 2f5 + 1f10 | I3: 2f5 + 1f12 | J3: 2f5 + 2f10 | K3: 2f5 + 1f10 + 1f12 | L3: 2f5 + 2f12 | M3: 2f5 + 1f12 + 1f14 | N3: 2f5 + 2f14 | O3: 2f5 + 1f14 + 1f16 | P3: 2f5 + 2f16
F4: Lunghezza travetti confezionati disponibili (cm) | M4: Travetti da confezionare su richiesta
F5: 100 | G5: 240 | H5: 380 | I5: 440 | J5: 500 | K5: 600 | L5: 680
F6: 120 | G6: 260 | H6: 400 | I6: 460 | J6: 520 | K6: 620 | L6: 700
F7: 140 | G7: 280 | H7: 420 | I7: 480 | J7: 540 | K7: 640
F8: 160 | G8: 300 | J8: 560 | K8: 660
F9: 180 | G9: 320 | J9: 580 | AB9: 2f5 | AC9: 2f5 + 1f8 | AD9: 2f5 + 1f10 | AE9: 2f5 + 1f12 | AF9: 2f5 + 2f10 | AG9: 2f5 + 1f10 + 1f12 | AH9: 2f5 + 2f12 | AI9: 2f5 + 1f12 + 1f14 | AJ9: 2f5 + 2f14 | AK9: 2f5 + 1f14 + 1f16 | AL9: 2f5 + 2f16
F10: 200 | G10: 340 | AB10: =IF(AND(AB30<800000000,AB30=$AM$30),AB9,"") ->  | AC10: =IF(AND(AC30<800000000,AC30=$AM$30),AC9,"") ->  | AM10: =AB10&AC10&AD10&AE10&AF10&AG10&AH10&AI10&AJ10&AK10&AL10 -> 
F11: 220 | G11: 360
A12: Altezza pignatta | B12: Spessore soletta | C12: Altezza solaio | D12: Peso solaio | E12: Volume cls getto in opera (l/mq) | F12: Momenti ultimi riferiti ad una striscia di solaio larga 1,00 metro | U12: =IF(AND('SOLAI T2D SPA'!C2="Travetto_singolo",'SOLAI T2D SPA'!C4="Travetto_12",'SOLAI T2D SPA'!C5="Pignatta_38"),1,0) -> 0 | W12: Altezza pignatta | X12: Spessore soletta | Y12: Altezza solaio | Z12: Peso solaio | AB12: Momenti ultimi riferiti ad una striscia di solaio larga 1,00 metro
A13: [cm] | B13: [cm] | C13: [cm] | D13: [daN/mq] | E13: [l/mq] | F13: [daNm] | G13: [daNm] | H13: [daNm] | I13: [daNm] | J13: [daNm] | K13: [daNm] | L13: [daNm] | M13: [daNm] | N13: [daNm] | O13: [daNm] | P13: [daNm] | Q13: [daN] | W13: [cm] | X13: [cm] | Y13: [cm] | Z13: [daN/mq] | AB13: [daNm] | AC13: [daNm] | AD13: [daNm] | AE13: [daNm] | AF13: [daNm] | AG13: [daNm] | AH13: [daNm] | AI13: [daNm] | AJ13: [daNm] | AK13: [daNm] | AL13: [daNm]
A14: 12 | B14: 4 | C14: =A14+B14 -> 16 | D14: 214 | E14: 60.76 | F14: 427.06 | G14: 962.22 | H14: 1256.68 | I14: 1610.78 | J14: 2051.88 | K14: 2390.38 | L14: 2722.78 | M14: 3106.76 | N14: 3481.8 | O14: 3902.64 | P14: 4312 | Q14: 1522 | W14: =IF(AND($U$12=1,'SOLAI T2D SPA'!$C$6='ST BLOCCO 42'!A14),'ST BLOCCO 42'!A14,10000000000) -> 10000000000 | X14: =IF(W14=10000000000,10000000000,IF('SOLAI T2D SPA'!$C$7='ST BLOCCO 42'!B14,'ST BLOCCO 42'!B14,10000000000)) -> 10000000000 | Y14: =W14+X14 -> 20000000000 | Z14: =IF(Y14>100000,10000000000,D14) -> 10000000000 | AB14: =IF($X$14=10000000000,10000000000,IF('SOLAI T2D SPA'!$C$20<='ST BLOCCO 42'!F14,'ST BLOCCO 42'!F14,10000000000)) -> 10000000000 | AC14: =IF($X$14=10000000000,10000000000,IF('SOLAI T2D SPA'!$C$20<='ST BLOCCO 42'!G14,'ST BLOCCO 42'!G14,10000000000)) -> 10000000000 | AD14: =IF($X$14=10000000000,10000000000,IF('SOLAI T2D SPA'!$C$20<='ST BLOCCO 42'!H14,'ST BLOCCO 42'!H14,10000000000)) -> 10000000000 | AE14: =IF($X$14=10000000000,10000000000,IF('SOLAI T2D SPA'!$C$20<='ST BLOCCO 42'!I14,'ST BLOCCO 42'!I14,10000000000)) -> 10000000000 | AF14: =IF($X$14=10000000000,10000000000,IF('SOLAI T2D SPA'!$C$20<='ST BLOCCO 42'!J14,'ST BLOCCO 42'!J14,10000000000)) -> 10000000000 | AG14: =IF($X$14=10000000000,10000000000,IF('SOLAI T2D SPA'!$C$20<='ST BLOCCO 42'!K14,'ST BLOCCO 42'!K14,10000000000)) -> 10000000000 | AH14: =IF($X$14=10000000000,10000000000,IF('SOLAI T2D SPA'!$C$20<='ST BLOCCO 42'!L14,'ST BLOCCO 42'!L14,10000000000)) -> 10000000000 | AI14: =IF($X$14=10000000000,10000000000,IF('SOLAI T2D SPA'!$C$20<='ST BLOCCO 42'!M14,'ST BLOCCO 42'!M14,10000000000)) -> 10000000000 | AJ14: =IF($X$14=10000000000,10000000000,IF('SOLAI T2D SPA'!$C$20<='ST BLOCCO 42'!N14,'ST BLOCCO 42'!N14,10000000000)) -> 10000000000 | AK14: =IF($X$14=10000000000,10000000000,IF('SOLAI T2D SPA'!$C$20<='ST BLOCCO 42'!O14,'ST BLOCCO 42'!O14,10000000000)) -> 10000000000 | AL14: =IF($X$14=10000000000,10000000000,IF('SOLAI T2D SPA'!$C$20<='ST BLOCCO 42'!P14,'ST BLOCCO 42'!P14,10000000000)) -> 10000000000 | AO14: =IF(X14=10000000000,10000000000,IF('SOLAI T2D SPA'!$C$7='ST BLOCCO 42'!B14,Q14,10000000000)) -> 10000000000
B15: 5 | C15: =A14+B15 -> 17 | D15: 239 | E15: 70.76 | F15: 458.44 | G15: 1036.46 | H15: 1356.64 | I15: 1742.84 | J15: 2226.74 | K15: 2600.96 | L15: 2969.86 | M15: 3398.3 | N15: 3820.12 | O15: 4297.2 | P15: 4764.54 | Q15: 1630 | X15: =IF(W14=10000000000,10000000000,IF('SOLAI T2D SPA'!$C$7='ST BLOCCO 42'!B15,'ST BLOCCO 42'!B15,10000000000)) -> 10000000000 | Y15: =W14+X15 -> 20000000000 | Z15: =IF(Y15>100000,10000000000,D15) -> 10000000000 | AB15: =IF($X$15=10000000000,10000000000,IF('SOLAI T2D SPA'!$C$20<='ST BLOCCO 42'!F15,'ST BLOCCO 42'!F15,10000000000)) -> 10000000000 | AC15: =IF($X$15=10000000000,10000000000,IF('SOLAI T2D SPA'!$C$20<='ST BLOCCO 42'!G15,'ST BLOCCO 42'!G15,10000000000)) -> 10000000000 | AD15: =IF($X$15=10000000000,10000000000,IF('SOLAI T2D SPA'!$C$20<='ST BLOCCO 42'!H15,'ST BLOCCO 42'!H15,10000000000)) -> 10000000000 | AE15: =IF($X$15=10000000000,10000000000,IF('SOLAI T2D SPA'!$C$20<='ST BLOCCO 42'!I15,'ST BLOCCO 42'!I15,10000000000)) -> 10000000000 | AF15: =IF($X$15=10000000000,10000000000,IF('SOLAI T2D SPA'!$C$20<='ST BLOCCO 42'!J15,'ST BLOCCO 42'!J15,10000000000)) -> 10000000000 | AG15: =IF($X$15=10000000000,10000000000,IF('SOLAI T2D SPA'!$C$20<='ST BLOCCO 42'!K15,'ST BLOCCO 42'!K15,10000000000)) -> 10000000000 | AH15: =IF($X$15=10000000000,10000000000,IF('SOLAI T2D SPA'!$C$20<='ST BLOCCO 42'!L15,'ST BLOCCO 42'!L15,10000000000)) -> 10000000000 | AI15: =IF($X$15=10000000000,10000000000,IF('SOLAI T2D SPA'!$C$20<='ST BLOCCO 42'!M15,'ST BLOCCO 42'!M15,10000000000)) -> 10000000000 | AJ15: =IF($X$15=10000000000,10000000000,IF('SOLAI T2D SPA'!$C$20<='ST BLOCCO 42'!N15,'ST BLOCCO 42'!N15,10000000000)) -> 10000000000 | AK15: =IF($X$15=10000000000,10000000000,IF('SOLAI T2D SPA'!$C$20<='ST BLOCCO 42'!O15,'ST BLOCCO 42'!O15,10000000000)) -> 10000000000 | AL15: =IF($X$15=10000000000,10000000000,IF('SOLAI T2D SPA'!$C$20<='ST BLOCCO 42'!P15,'ST BLOCCO 42'!P15,10000000000)) -> 10000000000 | AO15: =IF(X15=10000000000,10000000000,IF('SOLAI T2D SPA'!$C$7='ST BLOCCO 42'!B15,Q15,10000000000)) -> 10000000000
A16: 14 | B16: 4 | C16: =A16+B16 -> 18 | D16: 224 | E16: 65.16 | F16: 488.34 | G16: 1102.14 | H16: 1440.98 | I16: 1849.38 | J16: 2358.88 | K16: 2751.76 | L16: 3137.96 | M16: 3586.32 | N16: 4024.96 | O16: 4519.14 | P16: 5002.04 | Q16: 1738 | W16: =IF(AND($U$12=1,'SOLAI T2D SPA'!$C$6='ST BLOCCO 42'!A16),'ST BLOCCO 42'!A16,10000000000) -> 10000000000 | X16: =IF(W16=10000000000,10000000000,IF('SOLAI T2D SPA'!$C$7='ST BLOCCO 42'!B16,'ST BLOCCO 42'!B16,10000000000)) -> 10000000000 | Y16: =W16+X16 -> 20000000000 | Z16: 10000000000 | AB16: =IF($X$16=10000000000,10000000000,IF('SOLAI T2D SPA'!$C$20<='ST BLOCCO 42'!F16,'ST BLOCCO 42'!F16,10000000000)) -> 10000000000 | AC16: =IF($X$16=10000000000,10000000000,IF('SOLAI T2D SPA'!$C$20<='ST BLOCCO 42'!G16,'ST BLOCCO 42'!G16,10000000000)) -> 10000000000 | AD16: =IF($X$16=10000000000,10000000000,IF('SOLAI T2D SPA'!$C$20<='ST BLOCCO 42'!H16,'ST BLOCCO 42'!H16,10000000000)) -> 10000000000 | AE16: =IF($X$16=10000000000,10000000000,IF('SOLAI T2D SPA'!$C$20<='ST BLOCCO 42'!I16,'ST BLOCCO 42'!I16,10000000000)) -> 10000000000 | AF16: =IF($X$16=10000000000,10000000000,IF('SOLAI T2D SPA'!$C$20<='ST BLOCCO 42'!J16,'ST BLOCCO 42'!J16,10000000000)) -> 10000000000 | AG16: =IF($X$16=10000000000,10000000000,IF('SOLAI T2D SPA'!$C$20<='ST BLOCCO 42'!K16,'ST BLOCCO 42'!K16,10000000000)) -> 10000000000 | AH16: =IF($X$16=10000000000,10000000000,IF('SOLAI T2D SPA'!$C$20<='ST BLOCCO 42'!L16,'ST BLOCCO 42'!L16,10000000000)) -> 10000000000 | AI16: =IF($X$16=10000000000,10000000000,IF('SOLAI T2D SPA'!$C$20<='ST BLOCCO 42'!M16,'ST BLOCCO 42'!M16,10000000000)) -> 10000000000 | AJ16: =IF($X$16=10000000000,10000000000,IF('SOLAI T2D SPA'!$C$20<='ST BLOCCO 42'!N16,'ST BLOCCO 42'!N16,10000000000)) -> 10000000000 | AK16: =IF($X$16=10000000000,10000000000,IF('SOLAI T2D SPA'!$C$20<='ST BLOCCO 42'!O16,'ST BLOCCO 42'!O16,10000000000)) -> 10000000000 | AL16: =IF($X$16=10000000000,10000000000,IF('SOLAI T2D SPA'!$C$20<='ST BLOCCO 42'!P16,'ST BLOCCO 42'!P16,10000000000)) -> 10000000000 | AO16: =IF(X16=10000000000,10000000000,IF('SOLAI T2D SPA'!$C$7='ST BLOCCO 42'!B16,Q16,10000000000)) -> 10000000000
B17: 5 | C17: =A16+B17 -> 19 | D17: 249 | E17: 75.16 | F17: 519.7 | G17: 1176.34 | H17: 1540.98 | I17: 1981.4 | J17: 2534.22 | K17: 2962.1 | L17: 3385.24 | M17: 3877.94 | N17: 4363.24 | O17: 4914.96 | P17: 5455.88 | Q17: 1848 | X17: =IF(W16=10000000000,10000000000,IF('SOLAI T2D SPA'!$C$7='ST BLOCCO 42'!B17,'ST BLOCCO 42'!B17,10000000000)) -> 10000000000 | Y17: =W16+X17 -> 20000000000 | Z17: 10000000000 | AB17: =IF($X$17=10000000000,10000000000,IF('SOLAI T2D SPA'!$C$20<='ST BLOCCO 42'!F17,'ST BLOCCO 42'!F17,10000000000)) -> 10000000000 | AC17: =IF($X$17=10000000000,10000000000,IF('SOLAI T2D SPA'!$C$20<='ST BLOCCO 42'!G17,'ST BLOCCO 42'!G17,10000000000)) -> 10000000000 | AD17: =IF($X$17=10000000000,10000000000,IF('SOLAI T2D SPA'!$C$20<='ST BLOCCO 42'!H17,'ST BLOCCO 42'!H17,10000000000)) -> 10000000000 | AE17: =IF($X$17=10000000000,10000000000,IF('SOLAI T2D SPA'!$C$20<='ST BLOCCO 42'!I17,'ST BLOCCO 42'!I17,10000000000)) -> 10000000000 | AF17: =IF($X$17=10000000000,10000000000,IF('SOLAI T2D SPA'!$C$20<='ST BLOCCO 42'!J17,'ST BLOCCO 42'!J17,10000000000)) -> 10000000000 | AG17: =IF($X$17=10000000000,10000000000,IF('SOLAI T2D SPA'!$C$20<='ST BLOCCO 42'!K17,'ST BLOCCO 42'!K17,10000000000)) -> 10000000000 | AH17: =IF($X$17=10000000000,10000000000,IF('SOLAI T2D SPA'!$C$20<='ST BLOCCO 42'!L17,'ST BLOCCO 42'!L17,10000000000)) -> 10000000000 | AI17: =IF($X$17=10000000000,10000000000,IF('SOLAI T2D SPA'!$C$20<='ST BLOCCO 42'!M17,'ST BLOCCO 42'!M17,10000000000)) -> 10000000000 | AJ17: =IF($X$17=10000000000,10000000000,IF('SOLAI T2D SPA'!$C$20<='ST BLOCCO 42'!N17,'ST BLOCCO 42'!N17,10000000000)) -> 10000000000 | AK17: =IF($X$17=10000000000,10000000000,IF('SOLAI T2D SPA'!$C$20<='ST BLOCCO 42'!O17,'ST BLOCCO 42'!O17,10000000000)) -> 10000000000 | AL17: =IF($X$17=10000000000,10000000000,IF('SOLAI T2D SPA'!$C$20<='ST BLOCCO 42'!P17,'ST BLOCCO 42'!P17,10000000000)) -> 10000000000 | AO17: =IF(X17=10000000000,10000000000,IF('SOLAI T2D SPA'!$C$7='ST BLOCCO 42'!B17,Q17,10000000000)) -> 10000000000
A18: 16 | B18: 4 | C18: =A18+B18 -> 20 | D18: 245 | E18: 66.44 | F18: 549.7 | G18: 1242.02 | H18: 1625.54 | I18: 2087.6 | J18: 2666.18 | K18: 3112.98 | L18: 3553.9 | M18: 4065.42 | N18: 4567.9 | O18: 5136.06 | P18: 5691.8 | Q18: 1956 | W18: =IF(AND($U$12=1,'SOLAI T2D SPA'!$C$6='ST BLOCCO 42'!A18),'ST BLOCCO 42'!A18,10000000000) -> 10000000000 | X18: =IF(W18=10000000000,10000000000,IF('SOLAI T2D SPA'!$C$7='ST BLOCCO 42'!B18,'ST BLOCCO 42'!B18,10000000000)) -> 10000000000 | Y18: =W18+X18 -> 20000000000 | Z18: 10000000000 | AB18: =IF($X$18=10000000000,10000000000,IF('SOLAI T2D SPA'!$C$20<='ST BLOCCO 42'!F18,'ST BLOCCO 42'!F18,10000000000)) -> 10000000000 | AC18: =IF($X$18=10000000000,10000000000,IF('SOLAI T2D SPA'!$C$20<='ST BLOCCO 42'!G18,'ST BLOCCO 42'!G18,10000000000)) -> 10000000000 | AD18: =IF($X$18=10000000000,10000000000,IF('SOLAI T2D SPA'!$C$20<='ST BLOCCO 42'!H18,'ST BLOCCO 42'!H18,10000000000)) -> 10000000000 | AE18: =IF($X$18=10000000000,10000000000,IF('SOLAI T2D SPA'!$C$20<='ST BLOCCO 42'!I18,'ST BLOCCO 42'!I18,10000000000)) -> 10000000000 | AF18: =IF($X$18=10000000000,10000000000,IF('SOLAI T2D SPA'!$C$20<='ST BLOCCO 42'!J18,'ST BLOCCO 42'!J18,10000000000)) -> 10000000000 | AG18: =IF($X$18=10000000000,10000000000,IF('SOLAI T2D SPA'!$C$20<='ST BLOCCO 42'!K18,'ST BLOCCO 42'!K18,10000000000)) -> 10000000000 | AH18: =IF($X$18=10000000000,10000000000,IF('SOLAI T2D SPA'!$C$20<='ST BLOCCO 42'!L18,'ST BLOCCO 42'!L18,10000000000)) -> 10000000000 | AI18: =IF($X$18=10000000000,10000000000,IF('SOLAI T2D SPA'!$C$20<='ST BLOCCO 42'!M18,'ST BLOCCO 42'!M18,10000000000)) -> 10000000000 | AJ18: =IF($X$18=10000000000,10000000000,IF('SOLAI T2D SPA'!$C$20<='ST BLOCCO 42'!N18,'ST BLOCCO 42'!N18,10000000000)) -> 10000000000 | AK18: =IF($X$18=10000000000,10000000000,IF('SOLAI T2D SPA'!$C$20<='ST BLOCCO 42'!O18,'ST BLOCCO 42'!O18,10000000000)) -> 10000000000 | AL18: =IF($X$18=10000000000,10000000000,IF('SOLAI T2D SPA'!$C$20<='ST BLOCCO 42'!P18,'ST BLOCCO 42'!P18,10000000000)) -> 10000000000 | AO18: =IF(X18=10000000000,10000000000,IF('SOLAI T2D SPA'!$C$7='ST BLOCCO 42'!B18,Q18,10000000000)) -> 10000000000
B19: 5 | C19: =A18+B19 -> 21 | D19: 270 | E19: 76.44 | F19: 580.94 | G19: 1316.24 | H19: 1725.08 | I19: 2220.08 | J19: 2841.42 | K19: 3324.04 | L19: 3800.54 | M19: 4357.52 | N19: 4907.24 | O19: 5531.54 | P19: 6146.08 | Q19: 2064 | X19: =IF(W18=10000000000,10000000000,IF('SOLAI T2D SPA'!$C$7='ST BLOCCO 42'!B19,'ST BLOCCO 42'!B19,10000000000)) -> 10000000000 | Y19: =W18+X19 -> 20000000000 | Z19: 10000000000 | AB19: =IF($X$19=10000000000,10000000000,IF('SOLAI T2D SPA'!$C$20<='ST BLOCCO 42'!F19,'ST BLOCCO 42'!F19,10000000000)) -> 10000000000 | AC19: =IF($X$19=10000000000,10000000000,IF('SOLAI T2D SPA'!$C$20<='ST BLOCCO 42'!G19,'ST BLOCCO 42'!G19,10000000000)) -> 10000000000 | AD19: =IF($X$19=10000000000,10000000000,IF('SOLAI T2D SPA'!$C$20<='ST BLOCCO 42'!H19,'ST BLOCCO 42'!H19,10000000000)) -> 10000000000 | AE19: =IF($X$19=10000000000,10000000000,IF('SOLAI T2D SPA'!$C$20<='ST BLOCCO 42'!I19,'ST BLOCCO 42'!I19,10000000000)) -> 10000000000 | AF19: =IF($X$19=10000000000,10000000000,IF('SOLAI T2D SPA'!$C$20<='ST BLOCCO 42'!J19,'ST BLOCCO 42'!J19,10000000000)) -> 10000000000 | AG19: =IF($X$19=10000000000,10000000000,IF('SOLAI T2D SPA'!$C$20<='ST BLOCCO 42'!K19,'ST BLOCCO 42'!K19,10000000000)) -> 10000000000 | AH19: =IF($X$19=10000000000,10000000000,IF('SOLAI T2D SPA'!$C$20<='ST BLOCCO 42'!L19,'ST BLOCCO 42'!L19,10000000000)) -> 10000000000 | AI19: =IF($X$19=10000000000,10000000000,IF('SOLAI T2D SPA'!$C$20<='ST BLOCCO 42'!M19,'ST BLOCCO 42'!M19,10000000000)) -> 10000000000 | AJ19: =IF($X$19=10000000000,10000000000,IF('SOLAI T2D SPA'!$C$20<='ST BLOCCO 42'!N19,'ST BLOCCO 42'!N19,10000000000)) -> 10000000000 | AK19: =IF($X$19=10000000000,10000000000,IF('SOLAI T2D SPA'!$C$20<='ST BLOCCO 42'!O19,'ST BLOCCO 42'!O19,10000000000)) -> 10000000000 | AL19: =IF($X$19=10000000000,10000000000,IF('SOLAI T2D SPA'!$C$20<='ST BLOCCO 42'!P19,'ST BLOCCO 42'!P19,10000000000)) -> 10000000000 | AO19: =IF(X19=10000000000,10000000000,IF('SOLAI T2D SPA'!$C$7='ST BLOCCO 42'!B19,Q19,10000000000)) -> 10000000000
A20: 18 | B20: 4 | C20: =A20+B20 -> 22 | D20: 259 | E20: 71.88 | F20: 610.96 | G20: 1382.16 | H20: 1809.9 | I20: 2326 | J20: 2973.88 | K20: 3474.52 | L20: 3969.26 | M20: 4544.72 | N20: 5111.08 | O20: 5753.5 | P20: 6383.64 | Q20: 2174 | W20: =IF(AND($U$12=1,'SOLAI T2D SPA'!$C$6='ST BLOCCO 42'!A20),'ST BLOCCO 42'!A20,10000000000) -> 10000000000 | X20: =IF(W20=10000000000,10000000000,IF('SOLAI T2D SPA'!$C$7='ST BLOCCO 42'!B20,'ST BLOCCO 42'!B20,10000000000)) -> 10000000000 | Y20: =W20+X20 -> 20000000000 | Z20: 10000000000 | AB20: =IF($X$20=10000000000,10000000000,IF('SOLAI T2D SPA'!$C$20<='ST BLOCCO 42'!F20,'ST BLOCCO 42'!F20,10000000000)) -> 10000000000 | AC20: =IF($X$20=10000000000,10000000000,IF('SOLAI T2D SPA'!$C$20<='ST BLOCCO 42'!G20,'ST BLOCCO 42'!G20,10000000000)) -> 10000000000 | AD20: =IF($X$20=10000000000,10000000000,IF('SOLAI T2D SPA'!$C$20<='ST BLOCCO 42'!H20,'ST BLOCCO 42'!H20,10000000000)) -> 10000000000 | AE20: =IF($X$20=10000000000,10000000000,IF('SOLAI T2D SPA'!$C$20<='ST BLOCCO 42'!I20,'ST BLOCCO 42'!I20,10000000000)) -> 10000000000 | AF20: =IF($X$20=10000000000,10000000000,IF('SOLAI T2D SPA'!$C$20<='ST BLOCCO 42'!J20,'ST BLOCCO 42'!J20,10000000000)) -> 10000000000 | AG20: =IF($X$20=10000000000,10000000000,IF('SOLAI T2D SPA'!$C$20<='ST BLOCCO 42'!K20,'ST BLOCCO 42'!K20,10000000000)) -> 10000000000 | AH20: =IF($X$20=10000000000,10000000000,IF('SOLAI T2D SPA'!$C$20<='ST BLOCCO 42'!L20,'ST BLOCCO 42'!L20,10000000000)) -> 10000000000 | AI20: =IF($X$20=10000000000,10000000000,IF('SOLAI T2D SPA'!$C$20<='ST BLOCCO 42'!M20,'ST BLOCCO 42'!M20,10000000000)) -> 10000000000 | AJ20: =IF($X$20=10000000000,10000000000,IF('SOLAI T2D SPA'!$C$20<='ST BLOCCO 42'!N20,'ST BLOCCO 42'!N20,10000000000)) -> 10000000000 | AK20: =IF($X$20=10000000000,10000000000,IF('SOLAI T2D SPA'!$C$20<='ST BLOCCO 42'!O20,'ST BLOCCO 42'!O20,10000000000)) -> 10000000000 | AL20: =IF($X$20=10000000000,10000000000,IF('SOLAI T2D SPA'!$C$20<='ST BLOCCO 42'!P20,'ST BLOCCO 42'!P20,10000000000)) -> 10000000000 | AO20: =IF(X20=10000000000,10000000000,IF('SOLAI T2D SPA'!$C$7='ST BLOCCO 42'!B20,Q20,10000000000)) -> 10000000000
B21: 5 | C21: =A20+B21 -> 23 | D21: 284 | E21: 81.88 | F21: 642 | G21: 1456 | H21: 1909 | I21: 2458 | J21: 3149 | K21: 3685 | L21: 4216 | M21: 4837 | N21: 5451 | O21: 6149 | P21: 6837 | Q21: 2242 | X21: =IF(W20=10000000000,10000000000,IF('SOLAI T2D SPA'!$C$7='ST BLOCCO 42'!B21,'ST BLOCCO 42'!B21,10000000000)) -> 10000000000 | Y21: =W20+X21 -> 20000000000 | Z21: 10000000000 | AB21: =IF($X$21=10000000000,10000000000,IF('SOLAI T2D SPA'!$C$20<='ST BLOCCO 42'!F21,'ST BLOCCO 42'!F21,10000000000)) -> 10000000000 | AC21: =IF($X$21=10000000000,10000000000,IF('SOLAI T2D SPA'!$C$20<='ST BLOCCO 42'!G21,'ST BLOCCO 42'!G21,10000000000)) -> 10000000000 | AD21: =IF($X$21=10000000000,10000000000,IF('SOLAI T2D SPA'!$C$20<='ST BLOCCO 42'!H21,'ST BLOCCO 42'!H21,10000000000)) -> 10000000000 | AE21: =IF($X$21=10000000000,10000000000,IF('SOLAI T2D SPA'!$C$20<='ST BLOCCO 42'!I21,'ST BLOCCO 42'!I21,10000000000)) -> 10000000000 | AF21: =IF($X$21=10000000000,10000000000,IF('SOLAI T2D SPA'!$C$20<='ST BLOCCO 42'!J21,'ST BLOCCO 42'!J21,10000000000)) -> 10000000000 | AG21: =IF($X$21=10000000000,10000000000,IF('SOLAI T2D SPA'!$C$20<='ST BLOCCO 42'!K21,'ST BLOCCO 42'!K21,10000000000)) -> 10000000000 | AH21: =IF($X$21=10000000000,10000000000,IF('SOLAI T2D SPA'!$C$20<='ST BLOCCO 42'!L21,'ST BLOCCO 42'!L21,10000000000)) -> 10000000000 | AI21: =IF($X$21=10000000000,10000000000,IF('SOLAI T2D SPA'!$C$20<='ST BLOCCO 42'!M21,'ST BLOCCO 42'!M21,10000000000)) -> 10000000000 | AJ21: =IF($X$21=10000000000,10000000000,IF('SOLAI T2D SPA'!$C$20<='ST BLOCCO 42'!N21,'ST BLOCCO 42'!N21,10000000000)) -> 10000000000 | AK21: =IF($X$21=10000000000,10000000000,IF('SOLAI T2D SPA'!$C$20<='ST BLOCCO 42'!O21,'ST BLOCCO 42'!O21,10000000000)) -> 10000000000 | AL21: =IF($X$21=10000000000,10000000000,IF('SOLAI T2D SPA'!$C$20<='ST BLOCCO 42'!P21,'ST BLOCCO 42'!P21,10000000000)) -> 10000000000 | AO21: =IF(X21=10000000000,10000000000,IF('SOLAI T2D SPA'!$C$7='ST BLOCCO 42'!B21,Q21,10000000000)) -> 10000000000
A22: 20 | B22: 4 | C22: =A22+B22 -> 24 | D22: 274 | E22: 76.28 | F22: 672.22 | G22: 1522 | H22: 1994.02 | I22: 2564.58 | J22: 3280.98 | K22: 3836.28 | L22: 4384.92 | M22: 5024.54 | N22: 5654.58 | O22: 6370.44 | P22: 7073.94 | Q22: 2308 | W22: =IF(AND($U$12=1,'SOLAI T2D SPA'!$C$6='ST BLOCCO 42'!A22),'ST BLOCCO 42'!A22,10000000000) -> 10000000000 | X22: =IF(W22=10000000000,10000000000,IF('SOLAI T2D SPA'!$C$7='ST BLOCCO 42'!B22,'ST BLOCCO 42'!B22,10000000000)) -> 10000000000 | Y22: =W22+X22 -> 20000000000 | Z22: 10000000000 | AB22: =IF($X$22=10000000000,10000000000,IF('SOLAI T2D SPA'!$C$20<='ST BLOCCO 42'!F22,'ST BLOCCO 42'!F22,10000000000)) -> 10000000000 | AC22: =IF($X$22=10000000000,10000000000,IF('SOLAI T2D SPA'!$C$20<='ST BLOCCO 42'!G22,'ST BLOCCO 42'!G22,10000000000)) -> 10000000000 | AD22: =IF($X$22=10000000000,10000000000,IF('SOLAI T2D SPA'!$C$20<='ST BLOCCO 42'!H22,'ST BLOCCO 42'!H22,10000000000)) -> 10000000000 | AE22: =IF($X$22=10000000000,10000000000,IF('SOLAI T2D SPA'!$C$20<='ST BLOCCO 42'!I22,'ST BLOCCO 42'!I22,10000000000)) -> 10000000000 | AF22: =IF($X$22=10000000000,10000000000,IF('SOLAI T2D SPA'!$C$20<='ST BLOCCO 42'!J22,'ST BLOCCO 42'!J22,10000000000)) -> 10000000000 | AG22: =IF($X$22=10000000000,10000000000,IF('SOLAI T2D SPA'!$C$20<='ST BLOCCO 42'!K22,'ST BLOCCO 42'!K22,10000000000)) -> 10000000000 | AH22: =IF($X$22=10000000000,10000000000,IF('SOLAI T2D SPA'!$C$20<='ST BLOCCO 42'!L22,'ST BLOCCO 42'!L22,10000000000)) -> 10000000000 | AI22: =IF($X$22=10000000000,10000000000,IF('SOLAI T2D SPA'!$C$20<='ST BLOCCO 42'!M22,'ST BLOCCO 42'!M22,10000000000)) -> 10000000000 | AJ22: =IF($X$22=10000000000,10000000000,IF('SOLAI T2D SPA'!$C$20<='ST BLOCCO 42'!N22,'ST BLOCCO 42'!N22,10000000000)) -> 10000000000 | AK22: =IF($X$22=10000000000,10000000000,IF('SOLAI T2D SPA'!$C$20<='ST BLOCCO 42'!O22,'ST BLOCCO 42'!O22,10000000000)) -> 10000000000 | AL22: =IF($X$22=10000000000,10000000000,IF('SOLAI T2D SPA'!$C$20<='ST BLOCCO 42'!P22,'ST BLOCCO 42'!P22,10000000000)) -> 10000000000 | AO22: =IF(X22=10000000000,10000000000,IF('SOLAI T2D SPA'!$C$7='ST BLOCCO 42'!B22,Q22,10000000000)) -> 10000000000
B23: 5 | C23: =A22+B23 -> 25 | D23: 299 | E23: 86.28 | F23: 703.6 | G23: 1595.96 | H23: 2093.26 | I23: 2696.42 | J23: 3456.18 | K23: 4046.7 | L23: 4631.82 | M23: 5316.46 | N23: 5993.76 | O23: 6766.18 | P23: 7528.1 | Q23: 2374 | X23: =IF(W22=10000000000,10000000000,IF('SOLAI T2D SPA'!$C$7='ST BLOCCO 42'!B23,'ST BLOCCO 42'!B23,10000000000)) -> 10000000000 | Y23: =W22+X23 -> 20000000000 | Z23: 10000000000 | AB23: =IF($X$23=10000000000,10000000000,IF('SOLAI T2D SPA'!$C$20<='ST BLOCCO 42'!F23,'ST BLOCCO 42'!F23,10000000000)) -> 10000000000 | AC23: =IF($X$23=10000000000,10000000000,IF('SOLAI T2D SPA'!$C$20<='ST BLOCCO 42'!G23,'ST BLOCCO 42'!G23,10000000000)) -> 10000000000 | AD23: =IF($X$23=10000000000,10000000000,IF('SOLAI T2D SPA'!$C$20<='ST BLOCCO 42'!H23,'ST BLOCCO 42'!H23,10000000000)) -> 10000000000 | AE23: =IF($X$23=10000000000,10000000000,IF('SOLAI T2D SPA'!$C$20<='ST BLOCCO 42'!I23,'ST BLOCCO 42'!I23,10000000000)) -> 10000000000 | AF23: =IF($X$23=10000000000,10000000000,IF('SOLAI T2D SPA'!$C$20<='ST BLOCCO 42'!J23,'ST BLOCCO 42'!J23,10000000000)) -> 10000000000 | AG23: =IF($X$23=10000000000,10000000000,IF('SOLAI T2D SPA'!$C$20<='ST BLOCCO 42'!K23,'ST BLOCCO 42'!K23,10000000000)) -> 10000000000 | AH23: =IF($X$23=10000000000,10000000000,IF('SOLAI T2D SPA'!$C$20<='ST BLOCCO 42'!L23,'ST BLOCCO 42'!L23,10000000000)) -> 10000000000 | AI23: =IF($X$23=10000000000,10000000000,IF('SOLAI T2D SPA'!$C$20<='ST BLOCCO 42'!M23,'ST BLOCCO 42'!M23,10000000000)) -> 10000000000 | AJ23: =IF($X$23=10000000000,10000000000,IF('SOLAI T2D SPA'!$C$20<='ST BLOCCO 42'!N23,'ST BLOCCO 42'!N23,10000000000)) -> 10000000000 | AK23: =IF($X$23=10000000000,10000000000,IF('SOLAI T2D SPA'!$C$20<='ST BLOCCO 42'!O23,'ST BLOCCO 42'!O23,10000000000)) -> 10000000000 | AL23: =IF($X$23=10000000000,10000000000,IF('SOLAI T2D SPA'!$C$20<='ST BLOCCO 42'!P23,'ST BLOCCO 42'!P23,10000000000)) -> 10000000000 | AO23: =IF(X23=10000000000,10000000000,IF('SOLAI T2D SPA'!$C$7='ST BLOCCO 42'!B23,Q23,10000000000)) -> 10000000000
A24: 22 | B24: 4 | C24: =A24+B24 -> 26 | D24: 290 | E24: 81.72 | F24: 733.52 | G24: 1662.06 | H24: 2178.34 | I24: 2803.28 | J24: 3588.26 | K24: 4197.34 | L24: 4800.26 | M24: 5503.58 | N24: 6198.5 | O24: 6987.98 | P24: 7765.08 | Q24: 2440 | W24: =IF(AND($U$12=1,'SOLAI T2D SPA'!$C$6='ST BLOCCO 42'!A24),'ST BLOCCO 42'!A24,10000000000) -> 10000000000 | X24: =IF(W24=10000000000,10000000000,IF('SOLAI T2D SPA'!$C$7='ST BLOCCO 42'!B24,'ST BLOCCO 42'!B24,10000000000)) -> 10000000000 | Y24: =W24+X24 -> 20000000000 | Z24: 10000000000 | AB24: =IF($X$24=10000000000,10000000000,IF('SOLAI T2D SPA'!$C$20<='ST BLOCCO 42'!F24,'ST BLOCCO 42'!F24,10000000000)) -> 10000000000 | AC24: =IF($X$24=10000000000,10000000000,IF('SOLAI T2D SPA'!$C$20<='ST BLOCCO 42'!G24,'ST BLOCCO 42'!G24,10000000000)) -> 10000000000 | AD24: =IF($X$24=10000000000,10000000000,IF('SOLAI T2D SPA'!$C$20<='ST BLOCCO 42'!H24,'ST BLOCCO 42'!H24,10000000000)) -> 10000000000 | AE24: =IF($X$24=10000000000,10000000000,IF('SOLAI T2D SPA'!$C$20<='ST BLOCCO 42'!I24,'ST BLOCCO 42'!I24,10000000000)) -> 10000000000 | AF24: =IF($X$24=10000000000,10000000000,IF('SOLAI T2D SPA'!$C$20<='ST BLOCCO 42'!J24,'ST BLOCCO 42'!J24,10000000000)) -> 10000000000 | AG24: =IF($X$24=10000000000,10000000000,IF('SOLAI T2D SPA'!$C$20<='ST BLOCCO 42'!K24,'ST BLOCCO 42'!K24,10000000000)) -> 10000000000 | AH24: =IF($X$24=10000000000,10000000000,IF('SOLAI T2D SPA'!$C$20<='ST BLOCCO 42'!L24,'ST BLOCCO 42'!L24,10000000000)) -> 10000000000 | AI24: =IF($X$24=10000000000,10000000000,IF('SOLAI T2D SPA'!$C$20<='ST BLOCCO 42'!M24,'ST BLOCCO 42'!M24,10000000000)) -> 10000000000 | AJ24: =IF($X$24=10000000000,10000000000,IF('SOLAI T2D SPA'!$C$20<='ST BLOCCO 42'!N24,'ST BLOCCO 42'!N24,10000000000)) -> 10000000000 | AK24: =IF($X$24=10000000000,10000000000,IF('SOLAI T2D SPA'!$C$20<='ST BLOCCO 42'!O24,'ST BLOCCO 42'!O24,10000000000)) -> 10000000000 | AL24: =IF($X$24=10000000000,10000000000,IF('SOLAI T2D SPA'!$C$20<='ST BLOCCO 42'!P24,'ST BLOCCO 42'!P24,10000000000)) -> 10000000000 | AO24: =IF(X24=10000000000,10000000000,IF('SOLAI T2D SPA'!$C$7='ST BLOCCO 42'!B24,Q24,10000000000)) -> 10000000000
B25: 5 | C25: =A24+B25 -> 27 | D25: 315 | E25: 91.72 | F25: 764.98 | G25: 1735.82 | H25: 2277.4 | I25: 2934.74 | J25: 3763.4 | K25: 4407.78 | L25: 5047.32 | M25: 5795.9 | N25: 6537.1 | O25: 7382.84 | P25: 8218.8 | Q25: 2504 | X25: =IF(W24=10000000000,10000000000,IF('SOLAI T2D SPA'!$C$7='ST BLOCCO 42'!B25,'ST BLOCCO 42'!B25,10000000000)) -> 10000000000 | Y25: =W24+X25 -> 20000000000 | Z25: 10000000000 | AB25: =IF($X$25=10000000000,10000000000,IF('SOLAI T2D SPA'!$C$20<='ST BLOCCO 42'!F25,'ST BLOCCO 42'!F25,10000000000)) -> 10000000000 | AC25: =IF($X$25=10000000000,10000000000,IF('SOLAI T2D SPA'!$C$20<='ST BLOCCO 42'!G25,'ST BLOCCO 42'!G25,10000000000)) -> 10000000000 | AD25: =IF($X$25=10000000000,10000000000,IF('SOLAI T2D SPA'!$C$20<='ST BLOCCO 42'!H25,'ST BLOCCO 42'!H25,10000000000)) -> 10000000000 | AE25: =IF($X$25=10000000000,10000000000,IF('SOLAI T2D SPA'!$C$20<='ST BLOCCO 42'!I25,'ST BLOCCO 42'!I25,10000000000)) -> 10000000000 | AF25: =IF($X$25=10000000000,10000000000,IF('SOLAI T2D SPA'!$C$20<='ST BLOCCO 42'!J25,'ST BLOCCO 42'!J25,10000000000)) -> 10000000000 | AG25: =IF($X$25=10000000000,10000000000,IF('SOLAI T2D SPA'!$C$20<='ST BLOCCO 42'!K25,'ST BLOCCO 42'!K25,10000000000)) -> 10000000000 | AH25: =IF($X$25=10000000000,10000000000,IF('SOLAI T2D SPA'!$C$20<='ST BLOCCO 42'!L25,'ST BLOCCO 42'!L25,10000000000)) -> 10000000000 | AI25: =IF($X$25=10000000000,10000000000,IF('SOLAI T2D SPA'!$C$20<='ST BLOCCO 42'!M25,'ST BLOCCO 42'!M25,10000000000)) -> 10000000000 | AJ25: =IF($X$25=10000000000,10000000000,IF('SOLAI T2D SPA'!$C$20<='ST BLOCCO 42'!N25,'ST BLOCCO 42'!N25,10000000000)) -> 10000000000 | AK25: =IF($X$25=10000000000,10000000000,IF('SOLAI T2D SPA'!$C$20<='ST BLOCCO 42'!O25,'ST BLOCCO 42'!O25,10000000000)) -> 10000000000 | AL25: =IF($X$25=10000000000,10000000000,IF('SOLAI T2D SPA'!$C$20<='ST BLOCCO 42'!P25,'ST BLOCCO 42'!P25,10000000000)) -> 10000000000 | AO25: =IF(X25=10000000000,10000000000,IF('SOLAI T2D SPA'!$C$7='ST BLOCCO 42'!B25,Q25,10000000000)) -> 10000000000
A26: 24 | B26: 4 | C26: =A26+B26 -> 28 | D26: 306 | E26: 85.08 | F26: 794.84 | G26: 1801.7 | H26: 2362.44 | I26: 3041.66 | J26: 3895.46 | K26: 4559.18 | L26: 5215.76 | M26: 5983.22 | N26: 6741.7 | O26: 7604.66 | P26: 8456.14 | Q26: 2570 | W26: =IF(AND($U$12=1,'SOLAI T2D SPA'!$C$6='ST BLOCCO 42'!A26),'ST BLOCCO 42'!A26,10000000000) -> 10000000000 | X26: =IF(W26=10000000000,10000000000,IF('SOLAI T2D SPA'!$C$7='ST BLOCCO 42'!B26,'ST BLOCCO 42'!B26,10000000000)) -> 10000000000 | Y26: =W26+X26 -> 20000000000 | Z26: 10000000000 | AB26: =IF($X$26=10000000000,10000000000,IF('SOLAI T2D SPA'!$C$20<='ST BLOCCO 42'!F26,'ST BLOCCO 42'!F26,10000000000)) -> 10000000000 | AC26: =IF($X$26=10000000000,10000000000,IF('SOLAI T2D SPA'!$C$20<='ST BLOCCO 42'!G26,'ST BLOCCO 42'!G26,10000000000)) -> 10000000000 | AD26: =IF($X$26=10000000000,10000000000,IF('SOLAI T2D SPA'!$C$20<='ST BLOCCO 42'!H26,'ST BLOCCO 42'!H26,10000000000)) -> 10000000000 | AE26: =IF($X$26=10000000000,10000000000,IF('SOLAI T2D SPA'!$C$20<='ST BLOCCO 42'!I26,'ST BLOCCO 42'!I26,10000000000)) -> 10000000000 | AF26: =IF($X$26=10000000000,10000000000,IF('SOLAI T2D SPA'!$C$20<='ST BLOCCO 42'!J26,'ST BLOCCO 42'!J26,10000000000)) -> 10000000000 | AG26: =IF($X$26=10000000000,10000000000,IF('SOLAI T2D SPA'!$C$20<='ST BLOCCO 42'!K26,'ST BLOCCO 42'!K26,10000000000)) -> 10000000000 | AH26: =IF($X$26=10000000000,10000000000,IF('SOLAI T2D SPA'!$C$20<='ST BLOCCO 42'!L26,'ST BLOCCO 42'!L26,10000000000)) -> 10000000000 | AI26: =IF($X$26=10000000000,10000000000,IF('SOLAI T2D SPA'!$C$20<='ST BLOCCO 42'!M26,'ST BLOCCO 42'!M26,10000000000)) -> 10000000000 | AJ26: =IF($X$26=10000000000,10000000000,IF('SOLAI T2D SPA'!$C$20<='ST BLOCCO 42'!N26,'ST BLOCCO 42'!N26,10000000000)) -> 10000000000 | AK26: =IF($X$26=10000000000,10000000000,IF('SOLAI T2D SPA'!$C$20<='ST BLOCCO 42'!O26,'ST BLOCCO 42'!O26,10000000000)) -> 10000000000 | AL26: =IF($X$26=10000000000,10000000000,IF('SOLAI T2D SPA'!$C$20<='ST BLOCCO 42'!P26,'ST BLOCCO 42'!P26,10000000000)) -> 10000000000 | AO26: =IF(X26=10000000000,10000000000,IF('SOLAI T2D SPA'!$C$7='ST BLOCCO 42'!B26,Q26,10000000000)) -> 10000000000
B27: 5 | C27: =A26+B27 -> 29 | D27: 331 | E27: 95.08 | F27: 826.26 | G27: 1875.56 | H27: 2461.4 | I27: 3172.66 | J27: 4070.58 | K27: 4769.48 | L27: 5462.66 | M27: 6275.52 | N27: 7080.38 | O27: 7999.92 | P27: 8909.7 | Q27: 2634 | X27: =IF(W26=10000000000,10000000000,IF('SOLAI T2D SPA'!$C$7='ST BLOCCO 42'!B27,'ST BLOCCO 42'!B27,10000000000)) -> 10000000000 | Y27: =W26+X27 -> 20000000000 | Z27: 10000000000 | AB27: =IF($X$27=10000000000,10000000000,IF('SOLAI T2D SPA'!$C$20<='ST BLOCCO 42'!F27,'ST BLOCCO 42'!F27,10000000000)) -> 10000000000 | AC27: =IF($X$27=10000000000,10000000000,IF('SOLAI T2D SPA'!$C$20<='ST BLOCCO 42'!G27,'ST BLOCCO 42'!G27,10000000000)) -> 10000000000 | AD27: =IF($X$27=10000000000,10000000000,IF('SOLAI T2D SPA'!$C$20<='ST BLOCCO 42'!H27,'ST BLOCCO 42'!H27,10000000000)) -> 10000000000 | AE27: =IF($X$27=10000000000,10000000000,IF('SOLAI T2D SPA'!$C$20<='ST BLOCCO 42'!I27,'ST BLOCCO 42'!I27,10000000000)) -> 10000000000 | AF27: =IF($X$27=10000000000,10000000000,IF('SOLAI T2D SPA'!$C$20<='ST BLOCCO 42'!J27,'ST BLOCCO 42'!J27,10000000000)) -> 10000000000 | AG27: =IF($X$27=10000000000,10000000000,IF('SOLAI T2D SPA'!$C$20<='ST BLOCCO 42'!K27,'ST BLOCCO 42'!K27,10000000000)) -> 10000000000 | AH27: =IF($X$27=10000000000,10000000000,IF('SOLAI T2D SPA'!$C$20<='ST BLOCCO 42'!L27,'ST BLOCCO 42'!L27,10000000000)) -> 10000000000 | AI27: =IF($X$27=10000000000,10000000000,IF('SOLAI T2D SPA'!$C$20<='ST BLOCCO 42'!M27,'ST BLOCCO 42'!M27,10000000000)) -> 10000000000 | AJ27: =IF($X$27=10000000000,10000000000,IF('SOLAI T2D SPA'!$C$20<='ST BLOCCO 42'!N27,'ST BLOCCO 42'!N27,10000000000)) -> 10000000000 | AK27: =IF($X$27=10000000000,10000000000,IF('SOLAI T2D SPA'!$C$20<='ST BLOCCO 42'!O27,'ST BLOCCO 42'!O27,10000000000)) -> 10000000000 | AL27: =IF($X$27=10000000000,10000000000,IF('SOLAI T2D SPA'!$C$20<='ST BLOCCO 42'!P27,'ST BLOCCO 42'!P27,10000000000)) -> 10000000000 | AO27: =IF(X27=10000000000,10000000000,IF('SOLAI T2D SPA'!$C$7='ST BLOCCO 42'!B27,Q27,10000000000)) -> 10000000000
A28: 30 | B28: 4 | C28: =A28+B28 -> 34 | D28: 350 | E28: 99.32 | F28: 979.06 | G28: 2221.28 | H28: 2914.5 | I28: 3756.24 | J28: 4817.5 | K28: 5643.1 | L28: 6462.02 | M28: 7421.76 | N28: 8371.78 | O28: 9456.04 | P28: 10529 | Q28: 2946 | W28: =IF(AND($U$12=1,'SOLAI T2D SPA'!$C$6='ST BLOCCO 42'!A28),'ST BLOCCO 42'!A28,10000000000) -> 10000000000 | X28: =IF(W28=10000000000,10000000000,IF('SOLAI T2D SPA'!$C$7='ST BLOCCO 42'!B28,'ST BLOCCO 42'!B28,10000000000)) -> 10000000000 | Y28: =W28+X28 -> 20000000000 | Z28: 10000000000 | AB28: =IF($X$28=10000000000,10000000000,IF('SOLAI T2D SPA'!$C$20<='ST BLOCCO 42'!F28,'ST BLOCCO 42'!F28,10000000000)) -> 10000000000 | AC28: =IF($X$28=10000000000,10000000000,IF('SOLAI T2D SPA'!$C$20<='ST BLOCCO 42'!G28,'ST BLOCCO 42'!G28,10000000000)) -> 10000000000 | AD28: =IF($X$28=10000000000,10000000000,IF('SOLAI T2D SPA'!$C$20<='ST BLOCCO 42'!H28,'ST BLOCCO 42'!H28,10000000000)) -> 10000000000 | AE28: =IF($X$28=10000000000,10000000000,IF('SOLAI T2D SPA'!$C$20<='ST BLOCCO 42'!I28,'ST BLOCCO 42'!I28,10000000000)) -> 10000000000 | AF28: =IF($X$28=10000000000,10000000000,IF('SOLAI T2D SPA'!$C$20<='ST BLOCCO 42'!J28,'ST BLOCCO 42'!J28,10000000000)) -> 10000000000 | AG28: =IF($X$28=10000000000,10000000000,IF('SOLAI T2D SPA'!$C$20<='ST BLOCCO 42'!K28,'ST BLOCCO 42'!K28,10000000000)) -> 10000000000 | AH28: =IF($X$28=10000000000,10000000000,IF('SOLAI T2D SPA'!$C$20<='ST BLOCCO 42'!L28,'ST BLOCCO 42'!L28,10000000000)) -> 10000000000 | AI28: =IF($X$28=10000000000,10000000000,IF('SOLAI T2D SPA'!$C$20<='ST BLOCCO 42'!M28,'ST BLOCCO 42'!M28,10000000000)) -> 10000000000 | AJ28: =IF($X$28=10000000000,10000000000,IF('SOLAI T2D SPA'!$C$20<='ST BLOCCO 42'!N28,'ST BLOCCO 42'!N28,10000000000)) -> 10000000000 | AK28: =IF($X$28=10000000000,10000000000,IF('SOLAI T2D SPA'!$C$20<='ST BLOCCO 42'!O28,'ST BLOCCO 42'!O28,10000000000)) -> 10000000000 | AL28: =IF($X$28=10000000000,10000000000,IF('SOLAI T2D SPA'!$C$20<='ST BLOCCO 42'!P28,'ST BLOCCO 42'!P28,10000000000)) -> 10000000000 | AO28: =IF(X28=10000000000,10000000000,IF('SOLAI T2D SPA'!$C$7='ST BLOCCO 42'!B28,Q28,10000000000)) -> 10000000000
B29: 5 | C29: =A28+B29 -> 35 | D29: 375 | E29: 109.32 | F29: 1010.18 | G29: 2294.9 | H29: 3013.32 | I29: 3887.24 | J29: 4991.44 | K29: 5852.98 | L29: 6709.56 | M29: 7713.74 | N29: 8710.52 | O29: 9851.44 | P29: 10982.62 | Q29: 3008 | X29: =IF(W28=10000000000,10000000000,IF('SOLAI T2D SPA'!$C$7='ST BLOCCO 42'!B29,'ST BLOCCO 42'!B29,10000000000)) -> 10000000000 | Y29: =W28+X29 -> 20000000000 | Z29: 10000000000 | AB29: =IF($X$29=10000000000,10000000000,IF('SOLAI T2D SPA'!$C$20<='ST BLOCCO 42'!F29,'ST BLOCCO 42'!F29,10000000000)) -> 10000000000 | AC29: =IF($X$29=10000000000,10000000000,IF('SOLAI T2D SPA'!$C$20<='ST BLOCCO 42'!G29,'ST BLOCCO 42'!G29,10000000000)) -> 10000000000 | AD29: =IF($X$29=10000000000,10000000000,IF('SOLAI T2D SPA'!$C$20<='ST BLOCCO 42'!H29,'ST BLOCCO 42'!H29,10000000000)) -> 10000000000 | AE29: =IF($X$29=10000000000,10000000000,IF('SOLAI T2D SPA'!$C$20<='ST BLOCCO 42'!I29,'ST BLOCCO 42'!I29,10000000000)) -> 10000000000 | AF29: =IF($X$29=10000000000,10000000000,IF('SOLAI T2D SPA'!$C$20<='ST BLOCCO 42'!J29,'ST BLOCCO 42'!J29,10000000000)) -> 10000000000 | AG29: =IF($X$29=10000000000,10000000000,IF('SOLAI T2D SPA'!$C$20<='ST BLOCCO 42'!K29,'ST BLOCCO 42'!K29,10000000000)) -> 10000000000 | AH29: =IF($X$29=10000000000,10000000000,IF('SOLAI T2D SPA'!$C$20<='ST BLOCCO 42'!L29,'ST BLOCCO 42'!L29,10000000000)) -> 10000000000 | AI29: =IF($X$29=10000000000,10000000000,IF('SOLAI T2D SPA'!$C$20<='ST BLOCCO 42'!M29,'ST BLOCCO 42'!M29,10000000000)) -> 10000000000 | AJ29: =IF($X$29=10000000000,10000000000,IF('SOLAI T2D SPA'!$C$20<='ST BLOCCO 42'!N29,'ST BLOCCO 42'!N29,10000000000)) -> 10000000000 | AK29: =IF($X$29=10000000000,10000000000,IF('SOLAI T2D SPA'!$C$20<='ST BLOCCO 42'!O29,'ST BLOCCO 42'!O29,10000000000)) -> 10000000000 | AL29: =IF($X$29=10000000000,10000000000,IF('SOLAI T2D SPA'!$C$20<='ST BLOCCO 42'!P29,'ST BLOCCO 42'!P29,10000000000)) -> 10000000000 | AO29: =IF(X29=10000000000,10000000000,IF('SOLAI T2D SPA'!$C$7='ST BLOCCO 42'!B29,Q29,10000000000)) -> 10000000000
W30: =MIN(W14:W29) -> 10000000000 | X30: =MIN(X14:X29) -> 10000000000 | Y30: 20000000000 | Z30: 10000000000 | AB30: =MIN(AB14:AB29) -> 10000000000 | AC30: =MIN(AC14:AC29) -> 10000000000 | AD30: 10000000000 | AE30: 10000000000 | AF30: 10000000000 | AG30: 10000000000 | AH30: 10000000000 | AI30: 10000000000 | AJ30: 10000000000 | AK30: 10000000000 | AL30: 10000000000 | AM30: =MIN(AB30:AL30) -> 10000000000 | AN30: =IF(AND(U12=1,AM30=10000000000),1,0) -> 0 | AO30: =MIN(AO14:AO29) -> 10000000000
A31: INTERASSE 52 CM - Larghezza travetto 14 cm - Larghezza blocco 42
A32: MOMENTO POSITIVO | F32: Armatura standard | M32: Armatura non standard | Q32: Taglio ultimo
F33: 2f5 | G33: 2f5 + 1f8 | H33: 2f5 + 1f10 | I33: 2f5 + 1f12 | J33: 2f5 + 2f10 | K33: 2f5 + 1f10 + 1f12 | L33: 2f5 + 2f12 | M33: 2f5 + 1f12 + 1f14 | N33: 2f5 + 2f14 | O33: 2f5 + 1f14 + 1f16 | P33: 2f5 + 2f16
F34: Lunghezza travetti confezionati disponibili (cm) | M34: Travetti da confezionare su richiesta
F35: 100 | G35: 140 | H35: 360 | I35: 420 | J35: 480 | K35: 580 | L35: 640
F36: 120 | G36: 160 | H36: 380 | I36: 440 | J36: 500 | K36: 600 | L36: 660
G37: 180 | H37: 400 | I37: 460 | J37: 520 | K37: 620 | L37: 680
G38: 200 | J38: 540 | L38: 700
G39: 220 | J39: 560
G40: 240
G41: 260
G42: 280
G43: 300 | AB43: 2f5 | AC43: 2f5 + 1f8 | AD43: 2f5 + 1f10 | AE43: 2f5 + 1f12 | AF43: 2f5 + 2f10 | AG43: 2f5 + 1f10 + 1f12 | AH43: 2f5 + 2f12 | AI43: 2f5 + 1f12 + 1f14 | AJ43: 2f5 + 2f14 | AK43: 2f5 + 1f14 + 1f16 | AL43: 2f5 + 2f16
G44: 320 | AB44: =IF(AND(AB64<800000000,AB64=$AM$64),AB43,"") ->  | AC44: =IF(AND(AC64<800000000,AC64=$AM$64),AC43,"") ->  | AM44: =AB44&AC44&AD44&AE44&AF44&AG44&AH44&AI44&AJ44&AK44&AL44 -> 
G45: 340
A46: Altezza pignatta | B46: Spessore soletta | C46: Altezza solaio | D46: Peso solaio | E46: Volume cls getto in opera (l/mq) | F46: Momenti ultimi riferiti ad una striscia di solaio larga 1,00 metro | S46: CALCOLO | U46: =IF(AND('SOLAI T2D SPA'!C2="Travetto_singolo",'SOLAI T2D SPA'!C4="Travetto_14",'SOLAI T2D SPA'!C5="Pignatta_38"),1,0) -> 0 | W46: Altezza pignatta | X46: Spessore soletta | Y46: Altezza solaio | Z46: Peso solaio | AB46: Momenti ultimi riferiti ad una striscia di solaio larga 1,00 metro
A47: [cm] | B47: [cm] | C47: [cm] | D47: [daN/mq] | E47: [l/mq] | F47: [daNm] | G47: [daNm] | H47: [daNm] | I47: [daNm] | J47: [daNm] | K47: [daNm] | L47: [daNm] | M47: [daNm] | N47: [daNm] | O47: [daNm] | P47: [daNm] | Q47: [daN] | W47: [cm] | X47: [cm] | Y47: [cm] | Z47: [daN/mq] | AB47: [daNm] | AC47: [daNm] | AD47: [daNm] | AE47: [daNm] | AF47: [daNm] | AG47: [daNm] | AH47: [daNm] | AI47: [daNm] | AJ47: [daNm] | AK47: [daNm] | AL47: [daNm]
A48: 12 | B48: 4 | C48: =A48+B48 -> 16 | D48: 221 | E48: 60.76 | F48: 410.7115385 | G48: 925.9423077 | H48: 1209.75 | I48: 1551.307692 | J48: 1976.615385 | K48: 2303.769231 | L48: 2625.365385 | M48: 2997.076923 | N48: 3359.846154 | O48: 3768.519231 | P48: 4165.038462 | Q48: 1728.846154 | S48: ="MOM52"&A48&B48 -> MOM52124 | W48: =IF(AND($U$46=1,'SOLAI T2D SPA'!$C$6='ST BLOCCO 42'!A48),'ST BLOCCO 42'!A48,10000000000) -> 10000000000 | X48: =IF(W48=10000000000,10000000000,IF('SOLAI T2D SPA'!$C$7='ST BLOCCO 42'!B48,'ST BLOCCO 42'!B48,10000000000)) -> 10000000000 | Y48: =W48+X48 -> 20000000000 | Z48: =IF(Y48>100000,10000000000,D48) -> 10000000000 | AB48: =IF($X$48=10000000000,10000000000,IF('SOLAI T2D SPA'!$C$20<='ST BLOCCO 42'!F48,'ST BLOCCO 42'!F48,10000000000)) -> 10000000000 | AC48: =IF($X$48=10000000000,10000000000,IF('SOLAI T2D SPA'!$C$20<='ST BLOCCO 42'!G48,'ST BLOCCO 42'!G48,10000000000)) -> 10000000000 | AD48: =IF($X$48=10000000000,10000000000,IF('SOLAI T2D SPA'!$C$20<='ST BLOCCO 42'!H48,'ST BLOCCO 42'!H48,10000000000)) -> 10000000000 | AE48: =IF($X$48=10000000000,10000000000,IF('SOLAI T2D SPA'!$C$20<='ST BLOCCO 42'!I48,'ST BLOCCO 42'!I48,10000000000)) -> 10000000000 | AF48: =IF($X$48=10000000000,10000000000,IF('SOLAI T2D SPA'!$C$20<='ST BLOCCO 42'!J48,'ST BLOCCO 42'!J48,10000000000)) -> 10000000000 | AG48: =IF($X$48=10000000000,10000000000,IF('SOLAI T2D SPA'!$C$20<='ST BLOCCO 42'!K48,'ST BLOCCO 42'!K48,10000000000)) -> 10000000000 | AH48: =IF($X$48=10000000000,10000000000,IF('SOLAI T2D SPA'!$C$20<='ST BLOCCO 42'!L48,'ST BLOCCO 42'!L48,10000000000)) -> 10000000000 | AI48: =IF($X$48=10000000000,10000000000,IF('SOLAI T2D SPA'!$C$20<='ST BLOCCO 42'!M48,'ST BLOCCO 42'!M48,10000000000)) -> 10000000000 | AJ48: =IF($X$48=10000000000,10000000000,IF('SOLAI T2D SPA'!$C$20<='ST BLOCCO 42'!N48,'ST BLOCCO 42'!N48,10000000000)) -> 10000000000 | AK48: =IF($X$48=10000000000,10000000000,IF('SOLAI T2D SPA'!$C$20<='ST BLOCCO 42'!O48,'ST BLOCCO 42'!O48,10000000000)) -> 10000000000 | AL48: =IF($X$48=10000000000,10000000000,IF('SOLAI T2D SPA'!$C$20<='ST BLOCCO 42'!P48,'ST BLOCCO 42'!P48,10000000000)) -> 10000000000 | AO48: =IF(X48=10000000000,10000000000,IF('SOLAI T2D SPA'!$C$7='ST BLOCCO 42'!B48,Q48,10000000000)) -> 10000000000
B49: 5 | C49: =A48+B49 -> 17 | D49: 246 | E49: 70.76 | F49: 440.9423077 | G49: 997.1730769 | H49: 1305.480769 | I49: 1677.730769 | J49: 2144.076923 | K49: 2505.057692 | L49: 2861.307692 | M49: 3276.019231 | N49: 3683.5 | O49: 4144.576923 | P49: 4597.442308 | Q49: 1851.923077 | S49: ="MOM52"&A48&B49 -> MOM52125 | X49: =IF(W48=10000000000,10000000000,IF('SOLAI T2D SPA'!$C$7='ST BLOCCO 42'!B49,'ST BLOCCO 42'!B49,10000000000)) -> 10000000000 | Y49: =W48+X49 -> 20000000000 | Z49: =IF(Y49>100000,10000000000,D49) -> 10000000000 | AB49: =IF($X$49=10000000000,10000000000,IF('SOLAI T2D SPA'!$C$20<='ST BLOCCO 42'!F49,'ST BLOCCO 42'!F49,10000000000)) -> 10000000000 | AC49: =IF($X$49=10000000000,10000000000,IF('SOLAI T2D SPA'!$C$20<='ST BLOCCO 42'!G49,'ST BLOCCO 42'!G49,10000000000)) -> 10000000000 | AD49: =IF($X$49=10000000000,10000000000,IF('SOLAI T2D SPA'!$C$20<='ST BLOCCO 42'!H49,'ST BLOCCO 42'!H49,10000000000)) -> 10000000000 | AE49: =IF($X$49=10000000000,10000000000,IF('SOLAI T2D SPA'!$C$20<='ST BLOCCO 42'!I49,'ST BLOCCO 42'!I49,10000000000)) -> 10000000000 | AF49: =IF($X$49=10000000000,10000000000,IF('SOLAI T2D SPA'!$C$20<='ST BLOCCO 42'!J49,'ST BLOCCO 42'!J49,10000000000)) -> 10000000000 | AG49: =IF($X$49=10000000000,10000000000,IF('SOLAI T2D SPA'!$C$20<='ST BLOCCO 42'!K49,'ST BLOCCO 42'!K49,10000000000)) -> 10000000000 | AH49: =IF($X$49=10000000000,10000000000,IF('SOLAI T2D SPA'!$C$20<='ST BLOCCO 42'!L49,'ST BLOCCO 42'!L49,10000000000)) -> 10000000000 | AI49: =IF($X$49=10000000000,10000000000,IF('SOLAI T2D SPA'!$C$20<='ST BLOCCO 42'!M49,'ST BLOCCO 42'!M49,10000000000)) -> 10000000000 | AJ49: =IF($X$49=10000000000,10000000000,IF('SOLAI T2D SPA'!$C$20<='ST BLOCCO 42'!N49,'ST BLOCCO 42'!N49,10000000000)) -> 10000000000 | AK49: =IF($X$49=10000000000,10000000000,IF('SOLAI T2D SPA'!$C$20<='ST BLOCCO 42'!O49,'ST BLOCCO 42'!O49,10000000000)) -> 10000000000 | AL49: =IF($X$49=10000000000,10000000000,IF('SOLAI T2D SPA'!$C$20<='ST BLOCCO 42'!P49,'ST BLOCCO 42'!P49,10000000000)) -> 10000000000 | AO49: =IF(X49=10000000000,10000000000,IF('SOLAI T2D SPA'!$C$7='ST BLOCCO 42'!B49,Q49,10000000000)) -> 10000000000
A50: 14 | B50: 4 | C50: =A50+B50 -> 18 | D50: 232 | E50: 65.16 | F50: 469.6923077 | G50: 1060.711538 | H50: 1387.173077 | I50: 1780.692308 | J50: 2272.384615 | K50: 2651.461538 | L50: 3025.019231 | M50: 3458.115385 | N50: 3882.153846 | O50: 4361.730769 | P50: 4829.019231 | Q50: 1975 | S50: ="MOM52"&A50&B50 -> MOM52144 | W50: =IF(AND($U$46=1,'SOLAI T2D SPA'!$C$6='ST BLOCCO 42'!A50),'ST BLOCCO 42'!A50,10000000000) -> 10000000000 | X50: =IF(W50=10000000000,10000000000,IF('SOLAI T2D SPA'!$C$7='ST BLOCCO 42'!B50,'ST BLOCCO 42'!B50,10000000000)) -> 10000000000 | Y50: =W50+X50 -> 20000000000 | Z50: 10000000000 | AB50: =IF($X$50=10000000000,10000000000,IF('SOLAI T2D SPA'!$C$20<='ST BLOCCO 42'!F50,'ST BLOCCO 42'!F50,10000000000)) -> 10000000000 | AC50: =IF($X$50=10000000000,10000000000,IF('SOLAI T2D SPA'!$C$20<='ST BLOCCO 42'!G50,'ST BLOCCO 42'!G50,10000000000)) -> 10000000000 | AD50: =IF($X$50=10000000000,10000000000,IF('SOLAI T2D SPA'!$C$20<='ST BLOCCO 42'!H50,'ST BLOCCO 42'!H50,10000000000)) -> 10000000000 | AE50: =IF($X$50=10000000000,10000000000,IF('SOLAI T2D SPA'!$C$20<='ST BLOCCO 42'!I50,'ST BLOCCO 42'!I50,10000000000)) -> 10000000000 | AF50: =IF($X$50=10000000000,10000000000,IF('SOLAI T2D SPA'!$C$20<='ST BLOCCO 42'!J50,'ST BLOCCO 42'!J50,10000000000)) -> 10000000000 | AG50: =IF($X$50=10000000000,10000000000,IF('SOLAI T2D SPA'!$C$20<='ST BLOCCO 42'!K50,'ST BLOCCO 42'!K50,10000000000)) -> 10000000000 | AH50: =IF($X$50=10000000000,10000000000,IF('SOLAI T2D SPA'!$C$20<='ST BLOCCO 42'!L50,'ST BLOCCO 42'!L50,10000000000)) -> 10000000000 | AI50: =IF($X$50=10000000000,10000000000,IF('SOLAI T2D SPA'!$C$20<='ST BLOCCO 42'!M50,'ST BLOCCO 42'!M50,10000000000)) -> 10000000000 | AJ50: =IF($X$50=10000000000,10000000000,IF('SOLAI T2D SPA'!$C$20<='ST BLOCCO 42'!N50,'ST BLOCCO 42'!N50,10000000000)) -> 10000000000 | AK50: =IF($X$50=10000000000,10000000000,IF('SOLAI T2D SPA'!$C$20<='ST BLOCCO 42'!O50,'ST BLOCCO 42'!O50,10000000000)) -> 10000000000 | AL50: =IF($X$50=10000000000,10000000000,IF('SOLAI T2D SPA'!$C$20<='ST BLOCCO 42'!P50,'ST BLOCCO 42'!P50,10000000000)) -> 10000000000 | AO50: =IF(X50=10000000000,10000000000,IF('SOLAI T2D SPA'!$C$7='ST BLOCCO 42'!B50,Q50,10000000000)) -> 10000000000
B51: 5 | C51: =A50+B51 -> 19 | D51: 257 | E51: 75.16 | F51: 499.8269231 | G51: 1131.673077 | H51: 1482.788462 | I51: 1906.980769 | J51: 2439.692308 | K51: 2852.865385 | L51: 3260.769231 | M51: 3736.730769 | N51: 4205.269231 | O51: 4738.192308 | P51: 5262.076923 | Q51: 2100 | S51: ="MOM52"&A50&B51 -> MOM52145 | X51: =IF(W50=10000000000,10000000000,IF('SOLAI T2D SPA'!$C$7='ST BLOCCO 42'!B51,'ST BLOCCO 42'!B51,10000000000)) -> 10000000000 | Y51: =W50+X51 -> 20000000000 | Z51: 10000000000 | AB51: =IF($X$51=10000000000,10000000000,IF('SOLAI T2D SPA'!$C$20<='ST BLOCCO 42'!F51,'ST BLOCCO 42'!F51,10000000000)) -> 10000000000 | AC51: =IF($X$51=10000000000,10000000000,IF('SOLAI T2D SPA'!$C$20<='ST BLOCCO 42'!G51,'ST BLOCCO 42'!G51,10000000000)) -> 10000000000 | AD51: =IF($X$51=10000000000,10000000000,IF('SOLAI T2D SPA'!$C$20<='ST BLOCCO 42'!H51,'ST BLOCCO 42'!H51,10000000000)) -> 10000000000 | AE51: =IF($X$51=10000000000,10000000000,IF('SOLAI T2D SPA'!$C$20<='ST BLOCCO 42'!I51,'ST BLOCCO 42'!I51,10000000000)) -> 10000000000 | AF51: =IF($X$51=10000000000,10000000000,IF('SOLAI T2D SPA'!$C$20<='ST BLOCCO 42'!J51,'ST BLOCCO 42'!J51,10000000000)) -> 10000000000 | AG51: =IF($X$51=10000000000,10000000000,IF('SOLAI T2D SPA'!$C$20<='ST BLOCCO 42'!K51,'ST BLOCCO 42'!K51,10000000000)) -> 10000000000 | AH51: =IF($X$51=10000000000,10000000000,IF('SOLAI T2D SPA'!$C$20<='ST BLOCCO 42'!L51,'ST BLOCCO 42'!L51,10000000000)) -> 10000000000 | AI51: =IF($X$51=10000000000,10000000000,IF('SOLAI T2D SPA'!$C$20<='ST BLOCCO 42'!M51,'ST BLOCCO 42'!M51,10000000000)) -> 10000000000 | AJ51: =IF($X$51=10000000000,10000000000,IF('SOLAI T2D SPA'!$C$20<='ST BLOCCO 42'!N51,'ST BLOCCO 42'!N51,10000000000)) -> 10000000000 | AK51: =IF($X$51=10000000000,10000000000,IF('SOLAI T2D SPA'!$C$20<='ST BLOCCO 42'!O51,'ST BLOCCO 42'!O51,10000000000)) -> 10000000000 | AL51: =IF($X$51=10000000000,10000000000,IF('SOLAI T2D SPA'!$C$20<='ST BLOCCO 42'!P51,'ST BLOCCO 42'!P51,10000000000)) -> 10000000000 | AO51: =IF(X51=10000000000,10000000000,IF('SOLAI T2D SPA'!$C$7='ST BLOCCO 42'!B51,Q51,10000000000)) -> 10000000000
A52: 16 | B52: 4 | C52: =A52+B52 -> 20 | D52: 255 | E52: 66.44 | F52: 528.6923077 | G52: 1195.211538 | H52: 1564.5 | I52: 2010.019231 | J52: 2567.865385 | K52: 2998.865385 | L52: 3424.403846 | M52: 3919.153846 | N52: 4404.769231 | O52: 4954.826923 | P52: 5493.5 | Q52: 2223.076923 | S52: ="MOM52"&A52&B52 -> MOM52164 | W52: =IF(AND($U$46=1,'SOLAI T2D SPA'!$C$6='ST BLOCCO 42'!A52),'ST BLOCCO 42'!A52,10000000000) -> 10000000000 | X52: =IF(W52=10000000000,10000000000,IF('SOLAI T2D SPA'!$C$7='ST BLOCCO 42'!B52,'ST BLOCCO 42'!B52,10000000000)) -> 10000000000 | Y52: =W52+X52 -> 20000000000 | Z52: 10000000000 | AB52: =IF($X$52=10000000000,10000000000,IF('SOLAI T2D SPA'!$C$20<='ST BLOCCO 42'!F52,'ST BLOCCO 42'!F52,10000000000)) -> 10000000000 | AC52: =IF($X$52=10000000000,10000000000,IF('SOLAI T2D SPA'!$C$20<='ST BLOCCO 42'!G52,'ST BLOCCO 42'!G52,10000000000)) -> 10000000000 | AD52: =IF($X$52=10000000000,10000000000,IF('SOLAI T2D SPA'!$C$20<='ST BLOCCO 42'!H52,'ST BLOCCO 42'!H52,10000000000)) -> 10000000000 | AE52: =IF($X$52=10000000000,10000000000,IF('SOLAI T2D SPA'!$C$20<='ST BLOCCO 42'!I52,'ST BLOCCO 42'!I52,10000000000)) -> 10000000000 | AF52: =IF($X$52=10000000000,10000000000,IF('SOLAI T2D SPA'!$C$20<='ST BLOCCO 42'!J52,'ST BLOCCO 42'!J52,10000000000)) -> 10000000000 | AG52: =IF($X$52=10000000000,10000000000,IF('SOLAI T2D SPA'!$C$20<='ST BLOCCO 42'!K52,'ST BLOCCO 42'!K52,10000000000)) -> 10000000000 | AH52: =IF($X$52=10000000000,10000000000,IF('SOLAI T2D SPA'!$C$20<='ST BLOCCO 42'!L52,'ST BLOCCO 42'!L52,10000000000)) -> 10000000000 | AI52: =IF($X$52=10000000000,10000000000,IF('SOLAI T2D SPA'!$C$20<='ST BLOCCO 42'!M52,'ST BLOCCO 42'!M52,10000000000)) -> 10000000000 | AJ52: =IF($X$52=10000000000,10000000000,IF('SOLAI T2D SPA'!$C$20<='ST BLOCCO 42'!N52,'ST BLOCCO 42'!N52,10000000000)) -> 10000000000 | AK52: =IF($X$52=10000000000,10000000000,IF('SOLAI T2D SPA'!$C$20<='ST BLOCCO 42'!O52,'ST BLOCCO 42'!O52,10000000000)) -> 10000000000 | AL52: =IF($X$52=10000000000,10000000000,IF('SOLAI T2D SPA'!$C$20<='ST BLOCCO 42'!P52,'ST BLOCCO 42'!P52,10000000000)) -> 10000000000 | AO52: =IF(X52=10000000000,10000000000,IF('SOLAI T2D SPA'!$C$7='ST BLOCCO 42'!B52,Q52,10000000000)) -> 10000000000
B53: 5 | C53: =A52+B53 -> 21 | D53: 280 | E53: 76.44 | F53: 558.7115385 | G53: 1266.326923 | H53: 1659.769231 | I53: 2136.326923 | J53: 2735.423077 | K53: 3200.076923 | L53: 3660.692308 | M53: 4197.903846 | N53: 4728.519231 | O53: 5331.384615 | P53: 5926.307692 | Q53: 2346.153846 | S53: ="MOM52"&A52&B53 -> MOM52165 | X53: =IF(W52=10000000000,10000000000,IF('SOLAI T2D SPA'!$C$7='ST BLOCCO 42'!B53,'ST BLOCCO 42'!B53,10000000000)) -> 10000000000 | Y53: =W52+X53 -> 20000000000 | Z53: 10000000000 | AB53: =IF($X$53=10000000000,10000000000,IF('SOLAI T2D SPA'!$C$20<='ST BLOCCO 42'!F53,'ST BLOCCO 42'!F53,10000000000)) -> 10000000000 | AC53: =IF($X$53=10000000000,10000000000,IF('SOLAI T2D SPA'!$C$20<='ST BLOCCO 42'!G53,'ST BLOCCO 42'!G53,10000000000)) -> 10000000000 | AD53: =IF($X$53=10000000000,10000000000,IF('SOLAI T2D SPA'!$C$20<='ST BLOCCO 42'!H53,'ST BLOCCO 42'!H53,10000000000)) -> 10000000000 | AE53: =IF($X$53=10000000000,10000000000,IF('SOLAI T2D SPA'!$C$20<='ST BLOCCO 42'!I53,'ST BLOCCO 42'!I53,10000000000)) -> 10000000000 | AF53: =IF($X$53=10000000000,10000000000,IF('SOLAI T2D SPA'!$C$20<='ST BLOCCO 42'!J53,'ST BLOCCO 42'!J53,10000000000)) -> 10000000000 | AG53: =IF($X$53=10000000000,10000000000,IF('SOLAI T2D SPA'!$C$20<='ST BLOCCO 42'!K53,'ST BLOCCO 42'!K53,10000000000)) -> 10000000000 | AH53: =IF($X$53=10000000000,10000000000,IF('SOLAI T2D SPA'!$C$20<='ST BLOCCO 42'!L53,'ST BLOCCO 42'!L53,10000000000)) -> 10000000000 | AI53: =IF($X$53=10000000000,10000000000,IF('SOLAI T2D SPA'!$C$20<='ST BLOCCO 42'!M53,'ST BLOCCO 42'!M53,10000000000)) -> 10000000000 | AJ53: =IF($X$53=10000000000,10000000000,IF('SOLAI T2D SPA'!$C$20<='ST BLOCCO 42'!N53,'ST BLOCCO 42'!N53,10000000000)) -> 10000000000 | AK53: =IF($X$53=10000000000,10000000000,IF('SOLAI T2D SPA'!$C$20<='ST BLOCCO 42'!O53,'ST BLOCCO 42'!O53,10000000000)) -> 10000000000 | AL53: =IF($X$53=10000000000,10000000000,IF('SOLAI T2D SPA'!$C$20<='ST BLOCCO 42'!P53,'ST BLOCCO 42'!P53,10000000000)) -> 10000000000 | AO53: =IF(X53=10000000000,10000000000,IF('SOLAI T2D SPA'!$C$7='ST BLOCCO 42'!B53,Q53,10000000000)) -> 10000000000
A54: 18 | B54: 4 | C54: =A54+B54 -> 22 | D54: 270 | E54: 71.88 | F54: 587.6153846 | G54: 1329.634615 | H54: 1741.634615 | I54: 2239.134615 | J54: 2862.980769 | K54: 3346.423077 | L54: 3823.807692 | M54: 4380.192308 | N54: 4927.365385 | O54: 5547.923077 | P54: 6158.25 | Q54: 2469.230769 | S54: ="MOM52"&A54&B54 -> MOM52184 | W54: =IF(AND($U$46=1,'SOLAI T2D SPA'!$C$6='ST BLOCCO 42'!A54),'ST BLOCCO 42'!A54,10000000000) -> 10000000000 | X54: =IF(W54=10000000000,10000000000,IF('SOLAI T2D SPA'!$C$7='ST BLOCCO 42'!B54,'ST BLOCCO 42'!B54,10000000000)) -> 10000000000 | Y54: =W54+X54 -> 20000000000 | Z54: 10000000000 | AB54: =IF($X$54=10000000000,10000000000,IF('SOLAI T2D SPA'!$C$20<='ST BLOCCO 42'!F54,'ST BLOCCO 42'!F54,10000000000)) -> 10000000000 | AC54: =IF($X$54=10000000000,10000000000,IF('SOLAI T2D SPA'!$C$20<='ST BLOCCO 42'!G54,'ST BLOCCO 42'!G54,10000000000)) -> 10000000000 | AD54: =IF($X$54=10000000000,10000000000,IF('SOLAI T2D SPA'!$C$20<='ST BLOCCO 42'!H54,'ST BLOCCO 42'!H54,10000000000)) -> 10000000000 | AE54: =IF($X$54=10000000000,10000000000,IF('SOLAI T2D SPA'!$C$20<='ST BLOCCO 42'!I54,'ST BLOCCO 42'!I54,10000000000)) -> 10000000000 | AF54: =IF($X$54=10000000000,10000000000,IF('SOLAI T2D SPA'!$C$20<='ST BLOCCO 42'!J54,'ST BLOCCO 42'!J54,10000000000)) -> 10000000000 | AG54: =IF($X$54=10000000000,10000000000,IF('SOLAI T2D SPA'!$C$20<='ST BLOCCO 42'!K54,'ST BLOCCO 42'!K54,10000000000)) -> 10000000000 | AH54: =IF($X$54=10000000000,10000000000,IF('SOLAI T2D SPA'!$C$20<='ST BLOCCO 42'!L54,'ST BLOCCO 42'!L54,10000000000)) -> 10000000000 | AI54: =IF($X$54=10000000000,10000000000,IF('SOLAI T2D SPA'!$C$20<='ST BLOCCO 42'!M54,'ST BLOCCO 42'!M54,10000000000)) -> 10000000000 | AJ54: =IF($X$54=10000000000,10000000000,IF('SOLAI T2D SPA'!$C$20<='ST BLOCCO 42'!N54,'ST BLOCCO 42'!N54,10000000000)) -> 10000000000 | AK54: =IF($X$54=10000000000,10000000000,IF('SOLAI T2D SPA'!$C$20<='ST BLOCCO 42'!O54,'ST BLOCCO 42'!O54,10000000000)) -> 10000000000 | AL54: =IF($X$54=10000000000,10000000000,IF('SOLAI T2D SPA'!$C$20<='ST BLOCCO 42'!P54,'ST BLOCCO 42'!P54,10000000000)) -> 10000000000 | AO54: =IF(X54=10000000000,10000000000,IF('SOLAI T2D SPA'!$C$7='ST BLOCCO 42'!B54,Q54,10000000000)) -> 10000000000
B55: 5 | C55: =A54+B55 -> 23 | D55: 295 | E55: 81.88 | F55: 617.6538462 | G55: 1400.653846 | H55: 1836.865385 | I55: 2365.346154 | J55: 3030.673077 | K55: 3547.769231 | L55: 4059.807692 | M55: 4658.596154 | N55: 5250.903846 | O55: 5925.038462 | P55: 6589.980769 | Q55: 2546.153846 | S55: ="MOM52"&A54&B55 -> MOM52185 | X55: =IF(W54=10000000000,10000000000,IF('SOLAI T2D SPA'!$C$7='ST BLOCCO 42'!B55,'ST BLOCCO 42'!B55,10000000000)) -> 10000000000 | Y55: =W54+X55 -> 20000000000 | Z55: 10000000000 | AB55: =IF($X$55=10000000000,10000000000,IF('SOLAI T2D SPA'!$C$20<='ST BLOCCO 42'!F55,'ST BLOCCO 42'!F55,10000000000)) -> 10000000000 | AC55: =IF($X$55=10000000000,10000000000,IF('SOLAI T2D SPA'!$C$20<='ST BLOCCO 42'!G55,'ST BLOCCO 42'!G55,10000000000)) -> 10000000000 | AD55: =IF($X$55=10000000000,10000000000,IF('SOLAI T2D SPA'!$C$20<='ST BLOCCO 42'!H55,'ST BLOCCO 42'!H55,10000000000)) -> 10000000000 | AE55: =IF($X$55=10000000000,10000000000,IF('SOLAI T2D SPA'!$C$20<='ST BLOCCO 42'!I55,'ST BLOCCO 42'!I55,10000000000)) -> 10000000000 | AF55: =IF($X$55=10000000000,10000000000,IF('SOLAI T2D SPA'!$C$20<='ST BLOCCO 42'!J55,'ST BLOCCO 42'!J55,10000000000)) -> 10000000000 | AG55: =IF($X$55=10000000000,10000000000,IF('SOLAI T2D SPA'!$C$20<='ST BLOCCO 42'!K55,'ST BLOCCO 42'!K55,10000000000)) -> 10000000000 | AH55: =IF($X$55=10000000000,10000000000,IF('SOLAI T2D SPA'!$C$20<='ST BLOCCO 42'!L55,'ST BLOCCO 42'!L55,10000000000)) -> 10000000000 | AI55: =IF($X$55=10000000000,10000000000,IF('SOLAI T2D SPA'!$C$20<='ST BLOCCO 42'!M55,'ST BLOCCO 42'!M55,10000000000)) -> 10000000000 | AJ55: =IF($X$55=10000000000,10000000000,IF('SOLAI T2D SPA'!$C$20<='ST BLOCCO 42'!N55,'ST BLOCCO 42'!N55,10000000000)) -> 10000000000 | AK55: =IF($X$55=10000000000,10000000000,IF('SOLAI T2D SPA'!$C$20<='ST BLOCCO 42'!O55,'ST BLOCCO 42'!O55,10000000000)) -> 10000000000 | AL55: =IF($X$55=10000000000,10000000000,IF('SOLAI T2D SPA'!$C$20<='ST BLOCCO 42'!P55,'ST BLOCCO 42'!P55,10000000000)) -> 10000000000 | AO55: =IF(X55=10000000000,10000000000,IF('SOLAI T2D SPA'!$C$7='ST BLOCCO 42'!B55,Q55,10000000000)) -> 10000000000
A56: 20 | B56: 4 | C56: =A56+B56 -> 24 | D56: 286 | E56: 76.28 | F56: 646.5 | G56: 1464.230769 | H56: 1918.634615 | I56: 2468.480769 | J56: 3158.653846 | K56: 3694.038462 | L56: 4223.307692 | M56: 4840.557692 | N56: 5450.038462 | O56: 6141.365385 | P56: 6821.865385 | Q56: 2623.076923 | S56: ="MOM52"&A56&B56 -> MOM52204 | W56: =IF(AND($U$46=1,'SOLAI T2D SPA'!$C$6='ST BLOCCO 42'!A56),'ST BLOCCO 42'!A56,10000000000) -> 10000000000 | X56: =IF(W56=10000000000,10000000000,IF('SOLAI T2D SPA'!$C$7='ST BLOCCO 42'!B56,'ST BLOCCO 42'!B56,10000000000)) -> 10000000000 | Y56: =W56+X56 -> 20000000000 | Z56: 10000000000 | AB56: =IF($X$56=10000000000,10000000000,IF('SOLAI T2D SPA'!$C$20<='ST BLOCCO 42'!F56,'ST BLOCCO 42'!F56,10000000000)) -> 10000000000 | AC56: =IF($X$56=10000000000,10000000000,IF('SOLAI T2D SPA'!$C$20<='ST BLOCCO 42'!G56,'ST BLOCCO 42'!G56,10000000000)) -> 10000000000 | AD56: =IF($X$56=10000000000,10000000000,IF('SOLAI T2D SPA'!$C$20<='ST BLOCCO 42'!H56,'ST BLOCCO 42'!H56,10000000000)) -> 10000000000 | AE56: =IF($X$56=10000000000,10000000000,IF('SOLAI T2D SPA'!$C$20<='ST BLOCCO 42'!I56,'ST BLOCCO 42'!I56,10000000000)) -> 10000000000 | AF56: =IF($X$56=10000000000,10000000000,IF('SOLAI T2D SPA'!$C$20<='ST BLOCCO 42'!J56,'ST BLOCCO 42'!J56,10000000000)) -> 10000000000 | AG56: =IF($X$56=10000000000,10000000000,IF('SOLAI T2D SPA'!$C$20<='ST BLOCCO 42'!K56,'ST BLOCCO 42'!K56,10000000000)) -> 10000000000 | AH56: =IF($X$56=10000000000,10000000000,IF('SOLAI T2D SPA'!$C$20<='ST BLOCCO 42'!L56,'ST BLOCCO 42'!L56,10000000000)) -> 10000000000 | AI56: =IF($X$56=10000000000,10000000000,IF('SOLAI T2D SPA'!$C$20<='ST BLOCCO 42'!M56,'ST BLOCCO 42'!M56,10000000000)) -> 10000000000 | AJ56: =IF($X$56=10000000000,10000000000,IF('SOLAI T2D SPA'!$C$20<='ST BLOCCO 42'!N56,'ST BLOCCO 42'!N56,10000000000)) -> 10000000000 | AK56: =IF($X$56=10000000000,10000000000,IF('SOLAI T2D SPA'!$C$20<='ST BLOCCO 42'!O56,'ST BLOCCO 42'!O56,10000000000)) -> 10000000000 | AL56: =IF($X$56=10000000000,10000000000,IF('SOLAI T2D SPA'!$C$20<='ST BLOCCO 42'!P56,'ST BLOCCO 42'!P56,10000000000)) -> 10000000000 | AO56: =IF(X56=10000000000,10000000000,IF('SOLAI T2D SPA'!$C$7='ST BLOCCO 42'!B56,Q56,10000000000)) -> 10000000000
B57: 5 | C57: =A56+B57 -> 25 | D57: 311 | E57: 86.28 | F57: 676.6153846 | G57: 1535.057692 | H57: 2013.884615 | I57: 2594.538462 | J57: 3326.211538 | K57: 3895.384615 | L57: 4459.480769 | M57: 5119.5 | N57: 5772.903846 | O57: 6518.403846 | P57: 7254.826923 | Q57: 2698.076923 | S57: ="MOM52"&A56&B57 -> MOM52205 | X57: =IF(W56=10000000000,10000000000,IF('SOLAI T2D SPA'!$C$7='ST BLOCCO 42'!B57,'ST BLOCCO 42'!B57,10000000000)) -> 10000000000 | Y57: =W56+X57 -> 20000000000 | Z57: 10000000000 | AB57: =IF($X$57=10000000000,10000000000,IF('SOLAI T2D SPA'!$C$20<='ST BLOCCO 42'!F57,'ST BLOCCO 42'!F57,10000000000)) -> 10000000000 | AC57: =IF($X$57=10000000000,10000000000,IF('SOLAI T2D SPA'!$C$20<='ST BLOCCO 42'!G57,'ST BLOCCO 42'!G57,10000000000)) -> 10000000000 | AD57: =IF($X$57=10000000000,10000000000,IF('SOLAI T2D SPA'!$C$20<='ST BLOCCO 42'!H57,'ST BLOCCO 42'!H57,10000000000)) -> 10000000000 | AE57: =IF($X$57=10000000000,10000000000,IF('SOLAI T2D SPA'!$C$20<='ST BLOCCO 42'!I57,'ST BLOCCO 42'!I57,10000000000)) -> 10000000000 | AF57: =IF($X$57=10000000000,10000000000,IF('SOLAI T2D SPA'!$C$20<='ST BLOCCO 42'!J57,'ST BLOCCO 42'!J57,10000000000)) -> 10000000000 | AG57: =IF($X$57=10000000000,10000000000,IF('SOLAI T2D SPA'!$C$20<='ST BLOCCO 42'!K57,'ST BLOCCO 42'!K57,10000000000)) -> 10000000000 | AH57: =IF($X$57=10000000000,10000000000,IF('SOLAI T2D SPA'!$C$20<='ST BLOCCO 42'!L57,'ST BLOCCO 42'!L57,10000000000)) -> 10000000000 | AI57: =IF($X$57=10000000000,10000000000,IF('SOLAI T2D SPA'!$C$20<='ST BLOCCO 42'!M57,'ST BLOCCO 42'!M57,10000000000)) -> 10000000000 | AJ57: =IF($X$57=10000000000,10000000000,IF('SOLAI T2D SPA'!$C$20<='ST BLOCCO 42'!N57,'ST BLOCCO 42'!N57,10000000000)) -> 10000000000 | AK57: =IF($X$57=10000000000,10000000000,IF('SOLAI T2D SPA'!$C$20<='ST BLOCCO 42'!O57,'ST BLOCCO 42'!O57,10000000000)) -> 10000000000 | AL57: =IF($X$57=10000000000,10000000000,IF('SOLAI T2D SPA'!$C$20<='ST BLOCCO 42'!P57,'ST BLOCCO 42'!P57,10000000000)) -> 10000000000 | AO57: =IF(X57=10000000000,10000000000,IF('SOLAI T2D SPA'!$C$7='ST BLOCCO 42'!B57,Q57,10000000000)) -> 10000000000
A58: 22 | B58: 4 | C58: =A58+B58 -> 26 | D58: 304 | E58: 81.72 | F58: 705.4423077 | G58: 1598.730769 | H58: 2095.653846 | I58: 2697.903846 | J58: 3454.115385 | K58: 4041.75 | L58: 4622.846154 | M58: 5301.980769 | N58: 5972.269231 | O58: 6735.115385 | P58: 7486.596154 | Q58: 2773.076923 | S58: ="MOM52"&A58&B58 -> MOM52224 | W58: =IF(AND($U$46=1,'SOLAI T2D SPA'!$C$6='ST BLOCCO 42'!A58),'ST BLOCCO 42'!A58,10000000000) -> 10000000000 | X58: =IF(W58=10000000000,10000000000,IF('SOLAI T2D SPA'!$C$7='ST BLOCCO 42'!B58,'ST BLOCCO 42'!B58,10000000000)) -> 10000000000 | Y58: =W58+X58 -> 20000000000 | Z58: 10000000000 | AB58: =IF($X$58=10000000000,10000000000,IF('SOLAI T2D SPA'!$C$20<='ST BLOCCO 42'!F58,'ST BLOCCO 42'!F58,10000000000)) -> 10000000000 | AC58: =IF($X$58=10000000000,10000000000,IF('SOLAI T2D SPA'!$C$20<='ST BLOCCO 42'!G58,'ST BLOCCO 42'!G58,10000000000)) -> 10000000000 | AD58: =IF($X$58=10000000000,10000000000,IF('SOLAI T2D SPA'!$C$20<='ST BLOCCO 42'!H58,'ST BLOCCO 42'!H58,10000000000)) -> 10000000000 | AE58: =IF($X$58=10000000000,10000000000,IF('SOLAI T2D SPA'!$C$20<='ST BLOCCO 42'!I58,'ST BLOCCO 42'!I58,10000000000)) -> 10000000000 | AF58: =IF($X$58=10000000000,10000000000,IF('SOLAI T2D SPA'!$C$20<='ST BLOCCO 42'!J58,'ST BLOCCO 42'!J58,10000000000)) -> 10000000000 | AG58: =IF($X$58=10000000000,10000000000,IF('SOLAI T2D SPA'!$C$20<='ST BLOCCO 42'!K58,'ST BLOCCO 42'!K58,10000000000)) -> 10000000000 | AH58: =IF($X$58=10000000000,10000000000,IF('SOLAI T2D SPA'!$C$20<='ST BLOCCO 42'!L58,'ST BLOCCO 42'!L58,10000000000)) -> 10000000000 | AI58: =IF($X$58=10000000000,10000000000,IF('SOLAI T2D SPA'!$C$20<='ST BLOCCO 42'!M58,'ST BLOCCO 42'!M58,10000000000)) -> 10000000000 | AJ58: =IF($X$58=10000000000,10000000000,IF('SOLAI T2D SPA'!$C$20<='ST BLOCCO 42'!N58,'ST BLOCCO 42'!N58,10000000000)) -> 10000000000 | AK58: =IF($X$58=10000000000,10000000000,IF('SOLAI T2D SPA'!$C$20<='ST BLOCCO 42'!O58,'ST BLOCCO 42'!O58,10000000000)) -> 10000000000 | AL58: =IF($X$58=10000000000,10000000000,IF('SOLAI T2D SPA'!$C$20<='ST BLOCCO 42'!P58,'ST BLOCCO 42'!P58,10000000000)) -> 10000000000 | AO58: =IF(X58=10000000000,10000000000,IF('SOLAI T2D SPA'!$C$7='ST BLOCCO 42'!B58,Q58,10000000000)) -> 10000000000
B59: 5 | C59: =A58+B59 -> 27 | D59: 329 | E59: 91.72 | F59: 735.6346154 | G59: 1669.519231 | H59: 2190.942308 | I59: 2823.423077 | J59: 3621.923077 | K59: 4243.019231 | L59: 4858.980769 | M59: 5580.557692 | N59: 6295.557692 | O59: 7111.692308 | P59: 7918.673077 | Q59: 2846.153846 | S59: ="MOM52"&A58&B59 -> MOM52225 | X59: =IF(W58=10000000000,10000000000,IF('SOLAI T2D SPA'!$C$7='ST BLOCCO 42'!B59,'ST BLOCCO 42'!B59,10000000000)) -> 10000000000 | Y59: =W58+X59 -> 20000000000 | Z59: 10000000000 | AB59: =IF($X$59=10000000000,10000000000,IF('SOLAI T2D SPA'!$C$20<='ST BLOCCO 42'!F59,'ST BLOCCO 42'!F59,10000000000)) -> 10000000000 | AC59: =IF($X$59=10000000000,10000000000,IF('SOLAI T2D SPA'!$C$20<='ST BLOCCO 42'!G59,'ST BLOCCO 42'!G59,10000000000)) -> 10000000000 | AD59: =IF($X$59=10000000000,10000000000,IF('SOLAI T2D SPA'!$C$20<='ST BLOCCO 42'!H59,'ST BLOCCO 42'!H59,10000000000)) -> 10000000000 | AE59: =IF($X$59=10000000000,10000000000,IF('SOLAI T2D SPA'!$C$20<='ST BLOCCO 42'!I59,'ST BLOCCO 42'!I59,10000000000)) -> 10000000000 | AF59: =IF($X$59=10000000000,10000000000,IF('SOLAI T2D SPA'!$C$20<='ST BLOCCO 42'!J59,'ST BLOCCO 42'!J59,10000000000)) -> 10000000000 | AG59: =IF($X$59=10000000000,10000000000,IF('SOLAI T2D SPA'!$C$20<='ST BLOCCO 42'!K59,'ST BLOCCO 42'!K59,10000000000)) -> 10000000000 | AH59: =IF($X$59=10000000000,10000000000,IF('SOLAI T2D SPA'!$C$20<='ST BLOCCO 42'!L59,'ST BLOCCO 42'!L59,10000000000)) -> 10000000000 | AI59: =IF($X$59=10000000000,10000000000,IF('SOLAI T2D SPA'!$C$20<='ST BLOCCO 42'!M59,'ST BLOCCO 42'!M59,10000000000)) -> 10000000000 | AJ59: =IF($X$59=10000000000,10000000000,IF('SOLAI T2D SPA'!$C$20<='ST BLOCCO 42'!N59,'ST BLOCCO 42'!N59,10000000000)) -> 10000000000 | AK59: =IF($X$59=10000000000,10000000000,IF('SOLAI T2D SPA'!$C$20<='ST BLOCCO 42'!O59,'ST BLOCCO 42'!O59,10000000000)) -> 10000000000 | AL59: =IF($X$59=10000000000,10000000000,IF('SOLAI T2D SPA'!$C$20<='ST BLOCCO 42'!P59,'ST BLOCCO 42'!P59,10000000000)) -> 10000000000 | AO59: =IF(X59=10000000000,10000000000,IF('SOLAI T2D SPA'!$C$7='ST BLOCCO 42'!B59,Q59,10000000000)) -> 10000000000
A60: 24 | B60: 4 | C60: =A60+B60 -> 28 | D60: 321 | E60: 85.08 | F60: 764.3846154 | G60: 1733.307692 | H60: 2272.884615 | I60: 2927 | J60: 3749.846154 | K60: 4389.211538 | L60: 5022.442308 | M60: 5762.807692 | N60: 6494.884615 | O60: 7328.634615 | P60: 8150.980769 | Q60: 2919.230769 | S60: ="MOM52"&A60&B60 -> MOM52244 | W60: =IF(AND($U$46=1,'SOLAI T2D SPA'!$C$6='ST BLOCCO 42'!A60),'ST BLOCCO 42'!A60,10000000000) -> 10000000000 | X60: =IF(W60=10000000000,10000000000,IF('SOLAI T2D SPA'!$C$7='ST BLOCCO 42'!B60,'ST BLOCCO 42'!B60,10000000000)) -> 10000000000 | Y60: =W60+X60 -> 20000000000 | Z60: 10000000000 | AB60: =IF($X$60=10000000000,10000000000,IF('SOLAI T2D SPA'!$C$20<='ST BLOCCO 42'!F60,'ST BLOCCO 42'!F60,10000000000)) -> 10000000000 | AC60: =IF($X$60=10000000000,10000000000,IF('SOLAI T2D SPA'!$C$20<='ST BLOCCO 42'!G60,'ST BLOCCO 42'!G60,10000000000)) -> 10000000000 | AD60: =IF($X$60=10000000000,10000000000,IF('SOLAI T2D SPA'!$C$20<='ST BLOCCO 42'!H60,'ST BLOCCO 42'!H60,10000000000)) -> 10000000000 | AE60: =IF($X$60=10000000000,10000000000,IF('SOLAI T2D SPA'!$C$20<='ST BLOCCO 42'!I60,'ST BLOCCO 42'!I60,10000000000)) -> 10000000000 | AF60: =IF($X$60=10000000000,10000000000,IF('SOLAI T2D SPA'!$C$20<='ST BLOCCO 42'!J60,'ST BLOCCO 42'!J60,10000000000)) -> 10000000000 | AG60: =IF($X$60=10000000000,10000000000,IF('SOLAI T2D SPA'!$C$20<='ST BLOCCO 42'!K60,'ST BLOCCO 42'!K60,10000000000)) -> 10000000000 | AH60: =IF($X$60=10000000000,10000000000,IF('SOLAI T2D SPA'!$C$20<='ST BLOCCO 42'!L60,'ST BLOCCO 42'!L60,10000000000)) -> 10000000000 | AI60: =IF($X$60=10000000000,10000000000,IF('SOLAI T2D SPA'!$C$20<='ST BLOCCO 42'!M60,'ST BLOCCO 42'!M60,10000000000)) -> 10000000000 | AJ60: =IF($X$60=10000000000,10000000000,IF('SOLAI T2D SPA'!$C$20<='ST BLOCCO 42'!N60,'ST BLOCCO 42'!N60,10000000000)) -> 10000000000 | AK60: =IF($X$60=10000000000,10000000000,IF('SOLAI T2D SPA'!$C$20<='ST BLOCCO 42'!O60,'ST BLOCCO 42'!O60,10000000000)) -> 10000000000 | AL60: =IF($X$60=10000000000,10000000000,IF('SOLAI T2D SPA'!$C$20<='ST BLOCCO 42'!P60,'ST BLOCCO 42'!P60,10000000000)) -> 10000000000 | AO60: =IF(X60=10000000000,10000000000,IF('SOLAI T2D SPA'!$C$7='ST BLOCCO 42'!B60,Q60,10000000000)) -> 10000000000
B61: 5 | C61: =A60+B61 -> 29 | D61: 346 | E61: 95.08 | F61: 794.5961538 | G61: 1804 | H61: 2367.826923 | I61: 3052.538462 | J61: 3917.076923 | K61: 4590.211538 | L61: 5258.269231 | M61: 6041.711538 | N61: 6818 | O61: 7705.25 | P61: 8583.384615 | Q61: 2992.307692 | S61: ="MOM52"&A60&B61 -> MOM52245 | X61: =IF(W60=10000000000,10000000000,IF('SOLAI T2D SPA'!$C$7='ST BLOCCO 42'!B61,'ST BLOCCO 42'!B61,10000000000)) -> 10000000000 | Y61: =W60+X61 -> 20000000000 | Z61: 10000000000 | AB61: =IF($X$61=10000000000,10000000000,IF('SOLAI T2D SPA'!$C$20<='ST BLOCCO 42'!F61,'ST BLOCCO 42'!F61,10000000000)) -> 10000000000 | AC61: =IF($X$61=10000000000,10000000000,IF('SOLAI T2D SPA'!$C$20<='ST BLOCCO 42'!G61,'ST BLOCCO 42'!G61,10000000000)) -> 10000000000 | AD61: =IF($X$61=10000000000,10000000000,IF('SOLAI T2D SPA'!$C$20<='ST BLOCCO 42'!H61,'ST BLOCCO 42'!H61,10000000000)) -> 10000000000 | AE61: =IF($X$61=10000000000,10000000000,IF('SOLAI T2D SPA'!$C$20<='ST BLOCCO 42'!I61,'ST BLOCCO 42'!I61,10000000000)) -> 10000000000 | AF61: =IF($X$61=10000000000,10000000000,IF('SOLAI T2D SPA'!$C$20<='ST BLOCCO 42'!J61,'ST BLOCCO 42'!J61,10000000000)) -> 10000000000 | AG61: =IF($X$61=10000000000,10000000000,IF('SOLAI T2D SPA'!$C$20<='ST BLOCCO 42'!K61,'ST BLOCCO 42'!K61,10000000000)) -> 10000000000 | AH61: =IF($X$61=10000000000,10000000000,IF('SOLAI T2D SPA'!$C$20<='ST BLOCCO 42'!L61,'ST BLOCCO 42'!L61,10000000000)) -> 10000000000 | AI61: =IF($X$61=10000000000,10000000000,IF('SOLAI T2D SPA'!$C$20<='ST BLOCCO 42'!M61,'ST BLOCCO 42'!M61,10000000000)) -> 10000000000 | AJ61: =IF($X$61=10000000000,10000000000,IF('SOLAI T2D SPA'!$C$20<='ST BLOCCO 42'!N61,'ST BLOCCO 42'!N61,10000000000)) -> 10000000000 | AK61: =IF($X$61=10000000000,10000000000,IF('SOLAI T2D SPA'!$C$20<='ST BLOCCO 42'!O61,'ST BLOCCO 42'!O61,10000000000)) -> 10000000000 | AL61: =IF($X$61=10000000000,10000000000,IF('SOLAI T2D SPA'!$C$20<='ST BLOCCO 42'!P61,'ST BLOCCO 42'!P61,10000000000)) -> 10000000000 | AO61: =IF(X61=10000000000,10000000000,IF('SOLAI T2D SPA'!$C$7='ST BLOCCO 42'!B61,Q61,10000000000)) -> 10000000000
A62: 30 | B62: 4 | C62: =A62+B62 -> 34 | D62: 369 | E62: 99.32 | F62: 941.4038462 | G62: 2136.480769 | H62: 2803.653846 | I62: 3613.807692 | J62: 4636.173077 | K62: 5431.596154 | L62: 6221.211538 | M62: 7146.038462 | N62: 8061.788462 | O62: 9108.730769 | P62: 10143.40385 | Q62: 3348.076923 | S62: ="MOM52"&A62&B62 -> MOM52304 | W62: =IF(AND($U$46=1,'SOLAI T2D SPA'!$C$6='ST BLOCCO 42'!A62),'ST BLOCCO 42'!A62,10000000000) -> 10000000000 | X62: =IF(W62=10000000000,10000000000,IF('SOLAI T2D SPA'!$C$7='ST BLOCCO 42'!B62,'ST BLOCCO 42'!B62,10000000000)) -> 10000000000 | Y62: =W62+X62 -> 20000000000 | Z62: 10000000000 | AB62: =IF($X$62=10000000000,10000000000,IF('SOLAI T2D SPA'!$C$20<='ST BLOCCO 42'!F62,'ST BLOCCO 42'!F62,10000000000)) -> 10000000000 | AC62: =IF($X$62=10000000000,10000000000,IF('SOLAI T2D SPA'!$C$20<='ST BLOCCO 42'!G62,'ST BLOCCO 42'!G62,10000000000)) -> 10000000000 | AD62: =IF($X$62=10000000000,10000000000,IF('SOLAI T2D SPA'!$C$20<='ST BLOCCO 42'!H62,'ST BLOCCO 42'!H62,10000000000)) -> 10000000000 | AE62: =IF($X$62=10000000000,10000000000,IF('SOLAI T2D SPA'!$C$20<='ST BLOCCO 42'!I62,'ST BLOCCO 42'!I62,10000000000)) -> 10000000000 | AF62: =IF($X$62=10000000000,10000000000,IF('SOLAI T2D SPA'!$C$20<='ST BLOCCO 42'!J62,'ST BLOCCO 42'!J62,10000000000)) -> 10000000000 | AG62: =IF($X$62=10000000000,10000000000,IF('SOLAI T2D SPA'!$C$20<='ST BLOCCO 42'!K62,'ST BLOCCO 42'!K62,10000000000)) -> 10000000000 | AH62: =IF($X$62=10000000000,10000000000,IF('SOLAI T2D SPA'!$C$20<='ST BLOCCO 42'!L62,'ST BLOCCO 42'!L62,10000000000)) -> 10000000000 | AI62: =IF($X$62=10000000000,10000000000,IF('SOLAI T2D SPA'!$C$20<='ST BLOCCO 42'!M62,'ST BLOCCO 42'!M62,10000000000)) -> 10000000000 | AJ62: =IF($X$62=10000000000,10000000000,IF('SOLAI T2D SPA'!$C$20<='ST BLOCCO 42'!N62,'ST BLOCCO 42'!N62,10000000000)) -> 10000000000 | AK62: =IF($X$62=10000000000,10000000000,IF('SOLAI T2D SPA'!$C$20<='ST BLOCCO 42'!O62,'ST BLOCCO 42'!O62,10000000000)) -> 10000000000 | AL62: =IF($X$62=10000000000,10000000000,IF('SOLAI T2D SPA'!$C$20<='ST BLOCCO 42'!P62,'ST BLOCCO 42'!P62,10000000000)) -> 10000000000 | AO62: =IF(X62=10000000000,10000000000,IF('SOLAI T2D SPA'!$C$7='ST BLOCCO 42'!B62,Q62,10000000000)) -> 10000000000
B63: 5 | C63: =A62+B63 -> 35 | D63: 394 | E63: 109.32 | F63: 971.5 | G63: 2207.057692 | H63: 2898.5 | I63: 3739.346154 | J63: 4802.519231 | K63: 5632.230769 | L63: 6457.057692 | M63: 7424.75 | N63: 8385.038462 | O63: 9485.480769 | P63: 10575.76923 | Q63: 3417.307692 | S63: ="MOM52"&A62&B63 -> MOM52305 | X63: =IF(W62=10000000000,10000000000,IF('SOLAI T2D SPA'!$C$7='ST BLOCCO 42'!B63,'ST BLOCCO 42'!B63,10000000000)) -> 10000000000 | Y63: =W62+X63 -> 20000000000 | Z63: 10000000000 | AB63: =IF($X$63=10000000000,10000000000,IF('SOLAI T2D SPA'!$C$20<='ST BLOCCO 42'!F63,'ST BLOCCO 42'!F63,10000000000)) -> 10000000000 | AC63: =IF($X$63=10000000000,10000000000,IF('SOLAI T2D SPA'!$C$20<='ST BLOCCO 42'!G63,'ST BLOCCO 42'!G63,10000000000)) -> 10000000000 | AD63: =IF($X$63=10000000000,10000000000,IF('SOLAI T2D SPA'!$C$20<='ST BLOCCO 42'!H63,'ST BLOCCO 42'!H63,10000000000)) -> 10000000000 | AE63: =IF($X$63=10000000000,10000000000,IF('SOLAI T2D SPA'!$C$20<='ST BLOCCO 42'!I63,'ST BLOCCO 42'!I63,10000000000)) -> 10000000000 | AF63: =IF($X$63=10000000000,10000000000,IF('SOLAI T2D SPA'!$C$20<='ST BLOCCO 42'!J63,'ST BLOCCO 42'!J63,10000000000)) -> 10000000000 | AG63: =IF($X$63=10000000000,10000000000,IF('SOLAI T2D SPA'!$C$20<='ST BLOCCO 42'!K63,'ST BLOCCO 42'!K63,10000000000)) -> 10000000000 | AH63: =IF($X$63=10000000000,10000000000,IF('SOLAI T2D SPA'!$C$20<='ST BLOCCO 42'!L63,'ST BLOCCO 42'!L63,10000000000)) -> 10000000000 | AI63: =IF($X$63=10000000000,10000000000,IF('SOLAI T2D SPA'!$C$20<='ST BLOCCO 42'!M63,'ST BLOCCO 42'!M63,10000000000)) -> 10000000000 | AJ63: =IF($X$63=10000000000,10000000000,IF('SOLAI T2D SPA'!$C$20<='ST BLOCCO 42'!N63,'ST BLOCCO 42'!N63,10000000000)) -> 10000000000 | AK63: =IF($X$63=10000000000,10000000000,IF('SOLAI T2D SPA'!$C$20<='ST BLOCCO 42'!O63,'ST BLOCCO 42'!O63,10000000000)) -> 10000000000 | AL63: =IF($X$63=10000000000,10000000000,IF('SOLAI T2D SPA'!$C$20<='ST BLOCCO 42'!P63,'ST BLOCCO 42'!P63,10000000000)) -> 10000000000 | AO63: =IF(X63=10000000000,10000000000,IF('SOLAI T2D SPA'!$C$7='ST BLOCCO 42'!B63,Q63,10000000000)) -> 10000000000
W64: =MIN(W48:W63) -> 10000000000 | X64: =MIN(X48:X63) -> 10000000000 | Y64: 20000000000 | Z64: 10000000000 | AB64: =MIN(AB48:AB63) -> 10000000000 | AC64: =MIN(AC48:AC63) -> 10000000000 | AD64: 10000000000 | AE64: 10000000000 | AF64: 10000000000 | AG64: 10000000000 | AH64: 10000000000 | AI64: 10000000000 | AJ64: 10000000000 | AK64: 10000000000 | AL64: 10000000000 | AM64: =MIN(AB64:AL64) -> 10000000000 | AN64: =IF(AND(U46=1,AM64=10000000000),1,0) -> 0 | AO64: =MIN(AO48:AO63) -> 10000000000
W69: =MIN(W64,W30) -> 10000000000 | X69: =MIN(X64,X30) -> 10000000000 | Y69: =MIN(Y64,Y30) -> 20000000000 | Z69: =MIN(Z64,Z30) -> 10000000000 | AM69: =MIN(AM30,AM64) -> 10000000000 | AO69: =MIN(AO30,AO64) -> 10000000000
A83: INTERASSE 50 CM - Larghezza travetto 12 cm - Larghezza blocco 42
A84: MOMENTO NEGATIVO | F84: 1f8 | G84: 1f10 | H84: 1f12 | I84: 2f10 | J84: 1f10 + 1f12 | K84: 2f12 | L84: 1f12 + 1f14 | M84: 2f14 | N84: 1f14 + 1f16 | O84: 2f16 | P84: 1f16 + 1f18 | Q84: 2f18 | W84: MOMENTO NEGATIVO | AB84: 1f8 | AC84: 1f10 | AD84: 1f12 | AE84: 2f10 | AF84: 1f10 + 1f12 | AG84: 2f12 | AH84: 1f12 + 1f14 | AI84: 2f14 | AJ84: 1f14 + 1f16 | AK84: 2f16 | AL84: 1f16 + 1f18 | AM84: 2f18
A85: Altezza pignatta | B85: Spessore soletta | C85: Altezza solaio | D85: Peso solaio | E85: Volume cls getto in opera (l/mq) | F85: Momenti ultimi riferiti ad una striscia di solaio larga 1,00 metro | W85: Altezza pignatta | X85: Spessore soletta | Y85: Altezza solaio | Z85: Peso solaio | AB85: =IF(AND(AB103<800000000,AB103=$AN$103),AB84,"") ->  | AC85: =IF(AND(AC103<800000000,AC103=$AN$103),AC84,"") ->  | AN85: =AB85&AC85&AD85&AE85&AF85&AG85&AH85&AI85&AJ85&AK85&AL85&AM85 -> 
A86: [cm] | B86: [cm] | C86: [cm] | D86: [daN/mq] | E86: [l/mq] | F86: [daNm] | G86: [daNm] | H86: [daNm] | I86: [daNm] | J86: [daNm] | K86: [daNm] | L86: [daNm] | M86: [daNm] | N86: [daNm] | O86: [daNm] | P86: [daNm] | Q86: [daNm] | W86: [cm] | X86: [cm] | Y86: [cm] | Z86: [daN/mq] | AB86: [daNm] | AC86: [daNm] | AD86: [daNm] | AE86: [daNm] | AF86: [daNm] | AG86: [daNm] | AH86: [daNm] | AI86: [daNm] | AJ86: [daNm] | AK86: [daNm] | AL86: [daNm] | AM86: [daNm]
A87: 12 | B87: 4 | C87: =A87+B87 -> 16 | D87: 213.6 | E87: 60.76 | F87: 546.54 | G87: 849.62 | H87: 1215.1 | I87: 1672.26 | J87: 2025.48 | K87: 2373.36 | L87: 2777.36 | M87: 3174.02 | N87: 3622.8 | O87: 4061.02 | P87: 4546.34 | Q87: 5018.26 | W87: =W14 -> 10000000000 | X87: =X14 -> 10000000000 | Y87: =W87+X87 -> 20000000000 | Z87: =Z14 -> 10000000000 | AB87: =IF($X$87=10000000000,10000000000,IF('SOLAI T2D SPA'!$C$25<='ST BLOCCO 42'!F87,'ST BLOCCO 42'!F87,10000000000)) -> 10000000000 | AC87: =IF($X$87=10000000000,10000000000,IF('SOLAI T2D SPA'!$C$25<='ST BLOCCO 42'!G87,'ST BLOCCO 42'!G87,10000000000)) -> 10000000000 | AD87: =IF($X$87=10000000000,10000000000,IF('SOLAI T2D SPA'!$C$25<='ST BLOCCO 42'!H87,'ST BLOCCO 42'!H87,10000000000)) -> 10000000000 | AE87: =IF($X$87=10000000000,10000000000,IF('SOLAI T2D SPA'!$C$25<='ST BLOCCO 42'!I87,'ST BLOCCO 42'!I87,10000000000)) -> 10000000000 | AF87: =IF($X$87=10000000000,10000000000,IF('SOLAI T2D SPA'!$C$25<='ST BLOCCO 42'!J87,'ST BLOCCO 42'!J87,10000000000)) -> 10000000000 | AG87: =IF($X$87=10000000000,10000000000,IF('SOLAI T2D SPA'!$C$25<='ST BLOCCO 42'!K87,'ST BLOCCO 42'!K87,10000000000)) -> 10000000000 | AH87: =IF($X$87=10000000000,10000000000,IF('SOLAI T2D SPA'!$C$25<='ST BLOCCO 42'!L87,'ST BLOCCO 42'!L87,10000000000)) -> 10000000000 | AI87: =IF($X$87=10000000000,10000000000,IF('SOLAI T2D SPA'!$C$25<='ST BLOCCO 42'!M87,'ST BLOCCO 42'!M87,10000000000)) -> 10000000000 | AJ87: =IF($X$87=10000000000,10000000000,IF('SOLAI T2D SPA'!$C$25<='ST BLOCCO 42'!N87,'ST BLOCCO 42'!N87,10000000000)) -> 10000000000 | AK87: =IF($X$87=10000000000,10000000000,IF('SOLAI T2D SPA'!$C$25<='ST BLOCCO 42'!O87,'ST BLOCCO 42'!O87,10000000000)) -> 10000000000 | AL87: =IF($X$87=10000000000,10000000000,IF('SOLAI T2D SPA'!$C$25<='ST BLOCCO 42'!P87,'ST BLOCCO 42'!P87,10000000000)) -> 10000000000 | AM87: =IF($X$87=10000000000,10000000000,IF('SOLAI T2D SPA'!$C$25<='ST BLOCCO 42'!Q87,'ST BLOCCO 42'!Q87,10000000000)) -> 10000000000
B88: 5 | C88: =A87+B88 -> 17 | D88: 238.6 | E88: 70.76 | F88: 585.78 | G88: 910.74 | H88: 1303.4 | I88: 1795.24 | J88: 2175.38 | K88: 2550.16 | L88: 2986.2 | M88: 3414.98 | N88: 3900.54 | O88: 4376.34 | P88: 4903 | Q88: 5417.28 | X88: =X15 -> 10000000000 | Y88: =W87+X88 -> 20000000000 | Z88: =Z15 -> 10000000000 | AB88: =IF($X$88=10000000000,10000000000,IF('SOLAI T2D SPA'!$C$25<='ST BLOCCO 42'!F88,'ST BLOCCO 42'!F88,10000000000)) -> 10000000000 | AC88: =IF($X$88=10000000000,10000000000,IF('SOLAI T2D SPA'!$C$25<='ST BLOCCO 42'!G88,'ST BLOCCO 42'!G88,10000000000)) -> 10000000000 | AD88: =IF($X$88=10000000000,10000000000,IF('SOLAI T2D SPA'!$C$25<='ST BLOCCO 42'!H88,'ST BLOCCO 42'!H88,10000000000)) -> 10000000000 | AE88: =IF($X$88=10000000000,10000000000,IF('SOLAI T2D SPA'!$C$25<='ST BLOCCO 42'!I88,'ST BLOCCO 42'!I88,10000000000)) -> 10000000000 | AF88: =IF($X$88=10000000000,10000000000,IF('SOLAI T2D SPA'!$C$25<='ST BLOCCO 42'!J88,'ST BLOCCO 42'!J88,10000000000)) -> 10000000000 | AG88: =IF($X$88=10000000000,10000000000,IF('SOLAI T2D SPA'!$C$25<='ST BLOCCO 42'!K88,'ST BLOCCO 42'!K88,10000000000)) -> 10000000000 | AH88: =IF($X$88=10000000000,10000000000,IF('SOLAI T2D SPA'!$C$25<='ST BLOCCO 42'!L88,'ST BLOCCO 42'!L88,10000000000)) -> 10000000000 | AI88: =IF($X$88=10000000000,10000000000,IF('SOLAI T2D SPA'!$C$25<='ST BLOCCO 42'!M88,'ST BLOCCO 42'!M88,10000000000)) -> 10000000000 | AJ88: =IF($X$88=10000000000,10000000000,IF('SOLAI T2D SPA'!$C$25<='ST BLOCCO 42'!N88,'ST BLOCCO 42'!N88,10000000000)) -> 10000000000 | AK88: =IF($X$88=10000000000,10000000000,IF('SOLAI T2D SPA'!$C$25<='ST BLOCCO 42'!O88,'ST BLOCCO 42'!O88,10000000000)) -> 10000000000 | AL88: =IF($X$88=10000000000,10000000000,IF('SOLAI T2D SPA'!$C$25<='ST BLOCCO 42'!P88,'ST BLOCCO 42'!P88,10000000000)) -> 10000000000 | AM88: =IF($X$88=10000000000,10000000000,IF('SOLAI T2D SPA'!$C$25<='ST BLOCCO 42'!Q88,'ST BLOCCO 42'!Q88,10000000000)) -> 10000000000
A89: 14 | B89: 4 | C89: =A89+B89 -> 18 | D89: 223.6 | E89: 65.16 | F89: 624.98 | G89: 972.26 | H89: 1391.78 | I89: 1918.34 | J89: 2325.54 | K89: 2727.32 | L89: 3195.14 | M89: 3656.36 | N89: 4178.18 | O89: 4691.06 | P89: 5259.4 | Q89: 5815.28 | W89: =W16 -> 10000000000 | X89: 10000000000 | Y89: =W89+X89 -> 20000000000 | Z89: 10000000000 | AB89: =IF($X$89=10000000000,10000000000,IF('SOLAI T2D SPA'!$C$25<='ST BLOCCO 42'!F89,'ST BLOCCO 42'!F89,10000000000)) -> 10000000000 | AC89: =IF($X$89=10000000000,10000000000,IF('SOLAI T2D SPA'!$C$25<='ST BLOCCO 42'!G89,'ST BLOCCO 42'!G89,10000000000)) -> 10000000000 | AD89: =IF($X$89=10000000000,10000000000,IF('SOLAI T2D SPA'!$C$25<='ST BLOCCO 42'!H89,'ST BLOCCO 42'!H89,10000000000)) -> 10000000000 | AE89: =IF($X$89=10000000000,10000000000,IF('SOLAI T2D SPA'!$C$25<='ST BLOCCO 42'!I89,'ST BLOCCO 42'!I89,10000000000)) -> 10000000000 | AF89: =IF($X$89=10000000000,10000000000,IF('SOLAI T2D SPA'!$C$25<='ST BLOCCO 42'!J89,'ST BLOCCO 42'!J89,10000000000)) -> 10000000000 | AG89: =IF($X$89=10000000000,10000000000,IF('SOLAI T2D SPA'!$C$25<='ST BLOCCO 42'!K89,'ST BLOCCO 42'!K89,10000000000)) -> 10000000000 | AH89: =IF($X$89=10000000000,10000000000,IF('SOLAI T2D SPA'!$C$25<='ST BLOCCO 42'!L89,'ST BLOCCO 42'!L89,10000000000)) -> 10000000000 | AI89: =IF($X$89=10000000000,10000000000,IF('SOLAI T2D SPA'!$C$25<='ST BLOCCO 42'!M89,'ST BLOCCO 42'!M89,10000000000)) -> 10000000000 | AJ89: =IF($X$89=10000000000,10000000000,IF('SOLAI T2D SPA'!$C$25<='ST BLOCCO 42'!N89,'ST BLOCCO 42'!N89,10000000000)) -> 10000000000 | AK89: =IF($X$89=10000000000,10000000000,IF('SOLAI T2D SPA'!$C$25<='ST BLOCCO 42'!O89,'ST BLOCCO 42'!O89,10000000000)) -> 10000000000 | AL89: =IF($X$89=10000000000,10000000000,IF('SOLAI T2D SPA'!$C$25<='ST BLOCCO 42'!P89,'ST BLOCCO 42'!P89,10000000000)) -> 10000000000 | AM89: =IF($X$89=10000000000,10000000000,IF('SOLAI T2D SPA'!$C$25<='ST BLOCCO 42'!Q89,'ST BLOCCO 42'!Q89,10000000000)) -> 10000000000
B90: 5 | C90: =A89+B90 -> 19 | D90: 248.6 | E90: 75.16 | F90: 664.28 | G90: 1033.64 | H90: 1480.42 | I90: 2040.94 | J90: 2475.3 | K90: 2904.22 | L90: 3404.58 | M90: 3896.98 | N90: 4456.14 | O90: 5005.5 | P90: 5615.86 | Q90: 6213.86 | X90: =X17 -> 10000000000 | Y90: =W89+X90 -> 20000000000 | Z90: 10000000000 | AB90: =IF($X$90=10000000000,10000000000,IF('SOLAI T2D SPA'!$C$25<='ST BLOCCO 42'!F90,'ST BLOCCO 42'!F90,10000000000)) -> 10000000000 | AC90: =IF($X$90=10000000000,10000000000,IF('SOLAI T2D SPA'!$C$25<='ST BLOCCO 42'!G90,'ST BLOCCO 42'!G90,10000000000)) -> 10000000000 | AD90: =IF($X$90=10000000000,10000000000,IF('SOLAI T2D SPA'!$C$25<='ST BLOCCO 42'!H90,'ST BLOCCO 42'!H90,10000000000)) -> 10000000000 | AE90: =IF($X$90=10000000000,10000000000,IF('SOLAI T2D SPA'!$C$25<='ST BLOCCO 42'!I90,'ST BLOCCO 42'!I90,10000000000)) -> 10000000000 | AF90: =IF($X$90=10000000000,10000000000,IF('SOLAI T2D SPA'!$C$25<='ST BLOCCO 42'!J90,'ST BLOCCO 42'!J90,10000000000)) -> 10000000000 | AG90: =IF($X$90=10000000000,10000000000,IF('SOLAI T2D SPA'!$C$25<='ST BLOCCO 42'!K90,'ST BLOCCO 42'!K90,10000000000)) -> 10000000000 | AH90: =IF($X$90=10000000000,10000000000,IF('SOLAI T2D SPA'!$C$25<='ST BLOCCO 42'!L90,'ST BLOCCO 42'!L90,10000000000)) -> 10000000000 | AI90: =IF($X$90=10000000000,10000000000,IF('SOLAI T2D SPA'!$C$25<='ST BLOCCO 42'!M90,'ST BLOCCO 42'!M90,10000000000)) -> 10000000000 | AJ90: =IF($X$90=10000000000,10000000000,IF('SOLAI T2D SPA'!$C$25<='ST BLOCCO 42'!N90,'ST BLOCCO 42'!N90,10000000000)) -> 10000000000 | AK90: =IF($X$90=10000000000,10000000000,IF('SOLAI T2D SPA'!$C$25<='ST BLOCCO 42'!O90,'ST BLOCCO 42'!O90,10000000000)) -> 10000000000 | AL90: =IF($X$90=10000000000,10000000000,IF('SOLAI T2D SPA'!$C$25<='ST BLOCCO 42'!P90,'ST BLOCCO 42'!P90,10000000000)) -> 10000000000 | AM90: =IF($X$90=10000000000,10000000000,IF('SOLAI T2D SPA'!$C$25<='ST BLOCCO 42'!Q90,'ST BLOCCO 42'!Q90,10000000000)) -> 10000000000
A91: 16 | B91: 4 | C91: =A91+B91 -> 20 | D91: 244.8 | E91: 66.44 | F91: 703.4 | G91: 1094.88 | H91: 1568.86 | I91: 2163.98 | J91: 2625.08 | K91: 3081.26 | L91: 3612.98 | M91: 4138.2 | N91: 4734.08 | O91: 5320.18 | P91: 5971.76 | Q91: 6612.28 | W91: =W18 -> 10000000000 | X91: 10000000000 | Y91: =W91+X91 -> 20000000000 | Z91: 10000000000 | AB91: =IF($X$91=10000000000,10000000000,IF('SOLAI T2D SPA'!$C$25<='ST BLOCCO 42'!F91,'ST BLOCCO 42'!F91,10000000000)) -> 10000000000 | AC91: =IF($X$91=10000000000,10000000000,IF('SOLAI T2D SPA'!$C$25<='ST BLOCCO 42'!G91,'ST BLOCCO 42'!G91,10000000000)) -> 10000000000 | AD91: =IF($X$91=10000000000,10000000000,IF('SOLAI T2D SPA'!$C$25<='ST BLOCCO 42'!H91,'ST BLOCCO 42'!H91,10000000000)) -> 10000000000 | AE91: =IF($X$91=10000000000,10000000000,IF('SOLAI T2D SPA'!$C$25<='ST BLOCCO 42'!I91,'ST BLOCCO 42'!I91,10000000000)) -> 10000000000 | AF91: =IF($X$91=10000000000,10000000000,IF('SOLAI T2D SPA'!$C$25<='ST BLOCCO 42'!J91,'ST BLOCCO 42'!J91,10000000000)) -> 10000000000 | AG91: =IF($X$91=10000000000,10000000000,IF('SOLAI T2D SPA'!$C$25<='ST BLOCCO 42'!K91,'ST BLOCCO 42'!K91,10000000000)) -> 10000000000 | AH91: =IF($X$91=10000000000,10000000000,IF('SOLAI T2D SPA'!$C$25<='ST BLOCCO 42'!L91,'ST BLOCCO 42'!L91,10000000000)) -> 10000000000 | AI91: =IF($X$91=10000000000,10000000000,IF('SOLAI T2D SPA'!$C$25<='ST BLOCCO 42'!M91,'ST BLOCCO 42'!M91,10000000000)) -> 10000000000 | AJ91: =IF($X$91=10000000000,10000000000,IF('SOLAI T2D SPA'!$C$25<='ST BLOCCO 42'!N91,'ST BLOCCO 42'!N91,10000000000)) -> 10000000000 | AK91: =IF($X$91=10000000000,10000000000,IF('SOLAI T2D SPA'!$C$25<='ST BLOCCO 42'!O91,'ST BLOCCO 42'!O91,10000000000)) -> 10000000000 | AL91: =IF($X$91=10000000000,10000000000,IF('SOLAI T2D SPA'!$C$25<='ST BLOCCO 42'!P91,'ST BLOCCO 42'!P91,10000000000)) -> 10000000000 | AM91: =IF($X$91=10000000000,10000000000,IF('SOLAI T2D SPA'!$C$25<='ST BLOCCO 42'!Q91,'ST BLOCCO 42'!Q91,10000000000)) -> 10000000000
B92: 5 | C92: =A91+B92 -> 21 | D92: 269.8 | E92: 76.44 | F92: 742.7 | G92: 1156.18 | H92: 1657.12 | I92: 2286.86 | J92: 2775.36 | K92: 3258.32 | L92: 3822.26 | M92: 4378.92 | N92: 5011.72 | O92: 5634.74 | P92: 6329.14 | Q92: 7009.78 | X92: 10000000000 | Y92: =W91+X92 -> 20000000000 | Z92: 10000000000 | AB92: =IF($X$92=10000000000,10000000000,IF('SOLAI T2D SPA'!$C$25<='ST BLOCCO 42'!F92,'ST BLOCCO 42'!F92,10000000000)) -> 10000000000 | AC92: =IF($X$92=10000000000,10000000000,IF('SOLAI T2D SPA'!$C$25<='ST BLOCCO 42'!G92,'ST BLOCCO 42'!G92,10000000000)) -> 10000000000 | AD92: =IF($X$92=10000000000,10000000000,IF('SOLAI T2D SPA'!$C$25<='ST BLOCCO 42'!H92,'ST BLOCCO 42'!H92,10000000000)) -> 10000000000 | AE92: =IF($X$92=10000000000,10000000000,IF('SOLAI T2D SPA'!$C$25<='ST BLOCCO 42'!I92,'ST BLOCCO 42'!I92,10000000000)) -> 10000000000 | AF92: =IF($X$92=10000000000,10000000000,IF('SOLAI T2D SPA'!$C$25<='ST BLOCCO 42'!J92,'ST BLOCCO 42'!J92,10000000000)) -> 10000000000 | AG92: =IF($X$92=10000000000,10000000000,IF('SOLAI T2D SPA'!$C$25<='ST BLOCCO 42'!K92,'ST BLOCCO 42'!K92,10000000000)) -> 10000000000 | AH92: =IF($X$92=10000000000,10000000000,IF('SOLAI T2D SPA'!$C$25<='ST BLOCCO 42'!L92,'ST BLOCCO 42'!L92,10000000000)) -> 10000000000 | AI92: =IF($X$92=10000000000,10000000000,IF('SOLAI T2D SPA'!$C$25<='ST BLOCCO 42'!M92,'ST BLOCCO 42'!M92,10000000000)) -> 10000000000 | AJ92: =IF($X$92=10000000000,10000000000,IF('SOLAI T2D SPA'!$C$25<='ST BLOCCO 42'!N92,'ST BLOCCO 42'!N92,10000000000)) -> 10000000000 | AK92: =IF($X$92=10000000000,10000000000,IF('SOLAI T2D SPA'!$C$25<='ST BLOCCO 42'!O92,'ST BLOCCO 42'!O92,10000000000)) -> 10000000000 | AL92: =IF($X$92=10000000000,10000000000,IF('SOLAI T2D SPA'!$C$25<='ST BLOCCO 42'!P92,'ST BLOCCO 42'!P92,10000000000)) -> 10000000000 | AM92: =IF($X$92=10000000000,10000000000,IF('SOLAI T2D SPA'!$C$25<='ST BLOCCO 42'!Q92,'ST BLOCCO 42'!Q92,10000000000)) -> 10000000000
A93: 18 | B93: 4 | C93: =A93+B93 -> 22 | D93: 258.8 | E93: 71.88 | F93: 781.82 | G93: 1217.56 | H93: 1745.5 | I93: 2410.12 | J93: 2925.5 | K93: 3435.34 | L93: 4031.62 | M93: 4619.84 | N93: 5289.78 | O93: 5950 | P93: 6684.96 | Q93: 7408.96 | W93: =W20 -> 10000000000 | X93: 10000000000 | Y93: =W93+X93 -> 20000000000 | Z93: 10000000000 | AB93: =IF($X$93=10000000000,10000000000,IF('SOLAI T2D SPA'!$C$25<='ST BLOCCO 42'!F93,'ST BLOCCO 42'!F93,10000000000)) -> 10000000000 | AC93: =IF($X$93=10000000000,10000000000,IF('SOLAI T2D SPA'!$C$25<='ST BLOCCO 42'!G93,'ST BLOCCO 42'!G93,10000000000)) -> 10000000000 | AD93: =IF($X$93=10000000000,10000000000,IF('SOLAI T2D SPA'!$C$25<='ST BLOCCO 42'!H93,'ST BLOCCO 42'!H93,10000000000)) -> 10000000000 | AE93: =IF($X$93=10000000000,10000000000,IF('SOLAI T2D SPA'!$C$25<='ST BLOCCO 42'!I93,'ST BLOCCO 42'!I93,10000000000)) -> 10000000000 | AF93: =IF($X$93=10000000000,10000000000,IF('SOLAI T2D SPA'!$C$25<='ST BLOCCO 42'!J93,'ST BLOCCO 42'!J93,10000000000)) -> 10000000000 | AG93: =IF($X$93=10000000000,10000000000,IF('SOLAI T2D SPA'!$C$25<='ST BLOCCO 42'!K93,'ST BLOCCO 42'!K93,10000000000)) -> 10000000000 | AH93: =IF($X$93=10000000000,10000000000,IF('SOLAI T2D SPA'!$C$25<='ST BLOCCO 42'!L93,'ST BLOCCO 42'!L93,10000000000)) -> 10000000000 | AI93: =IF($X$93=10000000000,10000000000,IF('SOLAI T2D SPA'!$C$25<='ST BLOCCO 42'!M93,'ST BLOCCO 42'!M93,10000000000)) -> 10000000000 | AJ93: =IF($X$93=10000000000,10000000000,IF('SOLAI T2D SPA'!$C$25<='ST BLOCCO 42'!N93,'ST BLOCCO 42'!N93,10000000000)) -> 10000000000 | AK93: =IF($X$93=10000000000,10000000000,IF('SOLAI T2D SPA'!$C$25<='ST BLOCCO 42'!O93,'ST BLOCCO 42'!O93,10000000000)) -> 10000000000 | AL93: =IF($X$93=10000000000,10000000000,IF('SOLAI T2D SPA'!$C$25<='ST BLOCCO 42'!P93,'ST BLOCCO 42'!P93,10000000000)) -> 10000000000 | AM93: =IF($X$93=10000000000,10000000000,IF('SOLAI T2D SPA'!$C$25<='ST BLOCCO 42'!Q93,'ST BLOCCO 42'!Q93,10000000000)) -> 10000000000
B94: 5 | C94: =A93+B94 -> 23 | D94: 283.8 | E94: 81.88 | F94: 821.14 | G94: 1279.02 | H94: 1833.92 | I94: 2532.78 | J94: 3075.26 | K94: 3612.34 | L94: 4240.3 | M94: 4860.54 | N94: 5567.28 | O94: 6264.24 | P94: 7041.94 | Q94: 7806.48 | X94: 10000000000 | Y94: =W93+X94 -> 20000000000 | Z94: 10000000000 | AB94: =IF($X$94=10000000000,10000000000,IF('SOLAI T2D SPA'!$C$25<='ST BLOCCO 42'!F94,'ST BLOCCO 42'!F94,10000000000)) -> 10000000000 | AC94: =IF($X$94=10000000000,10000000000,IF('SOLAI T2D SPA'!$C$25<='ST BLOCCO 42'!G94,'ST BLOCCO 42'!G94,10000000000)) -> 10000000000 | AD94: =IF($X$94=10000000000,10000000000,IF('SOLAI T2D SPA'!$C$25<='ST BLOCCO 42'!H94,'ST BLOCCO 42'!H94,10000000000)) -> 10000000000 | AE94: =IF($X$94=10000000000,10000000000,IF('SOLAI T2D SPA'!$C$25<='ST BLOCCO 42'!I94,'ST BLOCCO 42'!I94,10000000000)) -> 10000000000 | AF94: =IF($X$94=10000000000,10000000000,IF('SOLAI T2D SPA'!$C$25<='ST BLOCCO 42'!J94,'ST BLOCCO 42'!J94,10000000000)) -> 10000000000 | AG94: =IF($X$94=10000000000,10000000000,IF('SOLAI T2D SPA'!$C$25<='ST BLOCCO 42'!K94,'ST BLOCCO 42'!K94,10000000000)) -> 10000000000 | AH94: =IF($X$94=10000000000,10000000000,IF('SOLAI T2D SPA'!$C$25<='ST BLOCCO 42'!L94,'ST BLOCCO 42'!L94,10000000000)) -> 10000000000 | AI94: =IF($X$94=10000000000,10000000000,IF('SOLAI T2D SPA'!$C$25<='ST BLOCCO 42'!M94,'ST BLOCCO 42'!M94,10000000000)) -> 10000000000 | AJ94: =IF($X$94=10000000000,10000000000,IF('SOLAI T2D SPA'!$C$25<='ST BLOCCO 42'!N94,'ST BLOCCO 42'!N94,10000000000)) -> 10000000000 | AK94: =IF($X$94=10000000000,10000000000,IF('SOLAI T2D SPA'!$C$25<='ST BLOCCO 42'!O94,'ST BLOCCO 42'!O94,10000000000)) -> 10000000000 | AL94: =IF($X$94=10000000000,10000000000,IF('SOLAI T2D SPA'!$C$25<='ST BLOCCO 42'!P94,'ST BLOCCO 42'!P94,10000000000)) -> 10000000000 | AM94: =IF($X$94=10000000000,10000000000,IF('SOLAI T2D SPA'!$C$25<='ST BLOCCO 42'!Q94,'ST BLOCCO 42'!Q94,10000000000)) -> 10000000000
A95: 20 | B95: 4 | C95: =A95+B95 -> 24 | D95: 273.6 | E95: 76.28 | F95: 860.34 | G95: 1340.38 | H95: 1922.34 | I95: 2655.42 | J95: 3225.22 | K95: 3789.3 | L95: 4449 | M95: 5101.4 | N95: 5845.08 | O95: 6579.02 | P95: 7398.36 | Q95: 8205.34 | W95: =W22 -> 10000000000 | X95: 10000000000 | Y95: =W95+X95 -> 20000000000 | Z95: 10000000000 | AB95: =IF($X$95=10000000000,10000000000,IF('SOLAI T2D SPA'!$C$25<='ST BLOCCO 42'!F95,'ST BLOCCO 42'!F95,10000000000)) -> 10000000000 | AC95: =IF($X$95=10000000000,10000000000,IF('SOLAI T2D SPA'!$C$25<='ST BLOCCO 42'!G95,'ST BLOCCO 42'!G95,10000000000)) -> 10000000000 | AD95: =IF($X$95=10000000000,10000000000,IF('SOLAI T2D SPA'!$C$25<='ST BLOCCO 42'!H95,'ST BLOCCO 42'!H95,10000000000)) -> 10000000000 | AE95: =IF($X$95=10000000000,10000000000,IF('SOLAI T2D SPA'!$C$25<='ST BLOCCO 42'!I95,'ST BLOCCO 42'!I95,10000000000)) -> 10000000000 | AF95: =IF($X$95=10000000000,10000000000,IF('SOLAI T2D SPA'!$C$25<='ST BLOCCO 42'!J95,'ST BLOCCO 42'!J95,10000000000)) -> 10000000000 | AG95: =IF($X$95=10000000000,10000000000,IF('SOLAI T2D SPA'!$C$25<='ST BLOCCO 42'!K95,'ST BLOCCO 42'!K95,10000000000)) -> 10000000000 | AH95: =IF($X$95=10000000000,10000000000,IF('SOLAI T2D SPA'!$C$25<='ST BLOCCO 42'!L95,'ST BLOCCO 42'!L95,10000000000)) -> 10000000000 | AI95: =IF($X$95=10000000000,10000000000,IF('SOLAI T2D SPA'!$C$25<='ST BLOCCO 42'!M95,'ST BLOCCO 42'!M95,10000000000)) -> 10000000000 | AJ95: =IF($X$95=10000000000,10000000000,IF('SOLAI T2D SPA'!$C$25<='ST BLOCCO 42'!N95,'ST BLOCCO 42'!N95,10000000000)) -> 10000000000 | AK95: =IF($X$95=10000000000,10000000000,IF('SOLAI T2D SPA'!$C$25<='ST BLOCCO 42'!O95,'ST BLOCCO 42'!O95,10000000000)) -> 10000000000 | AL95: =IF($X$95=10000000000,10000000000,IF('SOLAI T2D SPA'!$C$25<='ST BLOCCO 42'!P95,'ST BLOCCO 42'!P95,10000000000)) -> 10000000000 | AM95: =IF($X$95=10000000000,10000000000,IF('SOLAI T2D SPA'!$C$25<='ST BLOCCO 42'!Q95,'ST BLOCCO 42'!Q95,10000000000)) -> 10000000000
B96: 5 | C96: =A95+B96 -> 25 | D96: 298.6 | E96: 86.28 | F96: 899.58 | G96: 1401.6 | H96: 2010.68 | I96: 2778.32 | J96: 3375.16 | K96: 3966.3 | L96: 4658.3 | M96: 5342.58 | N96: 6122.78 | O96: 6893.86 | P96: 7755.04 | Q96: 8603.9 | X96: 10000000000 | Y96: =W95+X96 -> 20000000000 | Z96: 10000000000 | AB96: =IF($X$96=10000000000,10000000000,IF('SOLAI T2D SPA'!$C$25<='ST BLOCCO 42'!F96,'ST BLOCCO 42'!F96,10000000000)) -> 10000000000 | AC96: =IF($X$96=10000000000,10000000000,IF('SOLAI T2D SPA'!$C$25<='ST BLOCCO 42'!G96,'ST BLOCCO 42'!G96,10000000000)) -> 10000000000 | AD96: =IF($X$96=10000000000,10000000000,IF('SOLAI T2D SPA'!$C$25<='ST BLOCCO 42'!H96,'ST BLOCCO 42'!H96,10000000000)) -> 10000000000 | AE96: =IF($X$96=10000000000,10000000000,IF('SOLAI T2D SPA'!$C$25<='ST BLOCCO 42'!I96,'ST BLOCCO 42'!I96,10000000000)) -> 10000000000 | AF96: =IF($X$96=10000000000,10000000000,IF('SOLAI T2D SPA'!$C$25<='ST BLOCCO 42'!J96,'ST BLOCCO 42'!J96,10000000000)) -> 10000000000 | AG96: =IF($X$96=10000000000,10000000000,IF('SOLAI T2D SPA'!$C$25<='ST BLOCCO 42'!K96,'ST BLOCCO 42'!K96,10000000000)) -> 10000000000 | AH96: =IF($X$96=10000000000,10000000000,IF('SOLAI T2D SPA'!$C$25<='ST BLOCCO 42'!L96,'ST BLOCCO 42'!L96,10000000000)) -> 10000000000 | AI96: =IF($X$96=10000000000,10000000000,IF('SOLAI T2D SPA'!$C$25<='ST BLOCCO 42'!M96,'ST BLOCCO 42'!M96,10000000000)) -> 10000000000 | AJ96: =IF($X$96=10000000000,10000000000,IF('SOLAI T2D SPA'!$C$25<='ST BLOCCO 42'!N96,'ST BLOCCO 42'!N96,10000000000)) -> 10000000000 | AK96: =IF($X$96=10000000000,10000000000,IF('SOLAI T2D SPA'!$C$25<='ST BLOCCO 42'!O96,'ST BLOCCO 42'!O96,10000000000)) -> 10000000000 | AL96: =IF($X$96=10000000000,10000000000,IF('SOLAI T2D SPA'!$C$25<='ST BLOCCO 42'!P96,'ST BLOCCO 42'!P96,10000000000)) -> 10000000000 | AM96: =IF($X$96=10000000000,10000000000,IF('SOLAI T2D SPA'!$C$25<='ST BLOCCO 42'!Q96,'ST BLOCCO 42'!Q96,10000000000)) -> 10000000000
A97: 22 | B97: 4 | C97: =A97+B97 -> 26 | D97: 290 | E97: 81.72 | F97: 938.82 | G97: 1462.88 | H97: 2099.14 | I97: 2901.06 | J97: 3525.04 | K97: 4143.3 | L97: 4867.22 | M97: 5583.42 | N97: 6400.86 | O97: 7208.56 | P97: 8110.96 | Q97: 9001.8 | W97: =W24 -> 10000000000 | X97: 10000000000 | Y97: =W97+X97 -> 20000000000 | Z97: 10000000000 | AB97: =IF($X$97=10000000000,10000000000,IF('SOLAI T2D SPA'!$C$25<='ST BLOCCO 42'!F97,'ST BLOCCO 42'!F97,10000000000)) -> 10000000000 | AC97: =IF($X$97=10000000000,10000000000,IF('SOLAI T2D SPA'!$C$25<='ST BLOCCO 42'!G97,'ST BLOCCO 42'!G97,10000000000)) -> 10000000000 | AD97: =IF($X$97=10000000000,10000000000,IF('SOLAI T2D SPA'!$C$25<='ST BLOCCO 42'!H97,'ST BLOCCO 42'!H97,10000000000)) -> 10000000000 | AE97: =IF($X$97=10000000000,10000000000,IF('SOLAI T2D SPA'!$C$25<='ST BLOCCO 42'!I97,'ST BLOCCO 42'!I97,10000000000)) -> 10000000000 | AF97: =IF($X$97=10000000000,10000000000,IF('SOLAI T2D SPA'!$C$25<='ST BLOCCO 42'!J97,'ST BLOCCO 42'!J97,10000000000)) -> 10000000000 | AG97: =IF($X$97=10000000000,10000000000,IF('SOLAI T2D SPA'!$C$25<='ST BLOCCO 42'!K97,'ST BLOCCO 42'!K97,10000000000)) -> 10000000000 | AH97: =IF($X$97=10000000000,10000000000,IF('SOLAI T2D SPA'!$C$25<='ST BLOCCO 42'!L97,'ST BLOCCO 42'!L97,10000000000)) -> 10000000000 | AI97: =IF($X$97=10000000000,10000000000,IF('SOLAI T2D SPA'!$C$25<='ST BLOCCO 42'!M97,'ST BLOCCO 42'!M97,10000000000)) -> 10000000000 | AJ97: =IF($X$97=10000000000,10000000000,IF('SOLAI T2D SPA'!$C$25<='ST BLOCCO 42'!N97,'ST BLOCCO 42'!N97,10000000000)) -> 10000000000 | AK97: =IF($X$97=10000000000,10000000000,IF('SOLAI T2D SPA'!$C$25<='ST BLOCCO 42'!O97,'ST BLOCCO 42'!O97,10000000000)) -> 10000000000 | AL97: =IF($X$97=10000000000,10000000000,IF('SOLAI T2D SPA'!$C$25<='ST BLOCCO 42'!P97,'ST BLOCCO 42'!P97,10000000000)) -> 10000000000 | AM97: =IF($X$97=10000000000,10000000000,IF('SOLAI T2D SPA'!$C$25<='ST BLOCCO 42'!Q97,'ST BLOCCO 42'!Q97,10000000000)) -> 10000000000
B98: 5 | C98: =A97+B98 -> 27 | D98: 315 | E98: 91.72 | F98: 978.02 | G98: 1524.2 | H98: 2187.44 | I98: 3023.66 | J98: 3675.18 | K98: 4320.62 | L98: 5076.18 | M98: 5824.36 | N98: 6678.56 | O98: 7523 | P98: 8467.54 | Q98: 9399.7 | X98: 10000000000 | Y98: =W97+X98 -> 20000000000 | Z98: 10000000000 | AB98: =IF($X$98=10000000000,10000000000,IF('SOLAI T2D SPA'!$C$25<='ST BLOCCO 42'!F98,'ST BLOCCO 42'!F98,10000000000)) -> 10000000000 | AC98: =IF($X$98=10000000000,10000000000,IF('SOLAI T2D SPA'!$C$25<='ST BLOCCO 42'!G98,'ST BLOCCO 42'!G98,10000000000)) -> 10000000000 | AD98: =IF($X$98=10000000000,10000000000,IF('SOLAI T2D SPA'!$C$25<='ST BLOCCO 42'!H98,'ST BLOCCO 42'!H98,10000000000)) -> 10000000000 | AE98: =IF($X$98=10000000000,10000000000,IF('SOLAI T2D SPA'!$C$25<='ST BLOCCO 42'!I98,'ST BLOCCO 42'!I98,10000000000)) -> 10000000000 | AF98: =IF($X$98=10000000000,10000000000,IF('SOLAI T2D SPA'!$C$25<='ST BLOCCO 42'!J98,'ST BLOCCO 42'!J98,10000000000)) -> 10000000000 | AG98: =IF($X$98=10000000000,10000000000,IF('SOLAI T2D SPA'!$C$25<='ST BLOCCO 42'!K98,'ST BLOCCO 42'!K98,10000000000)) -> 10000000000 | AH98: =IF($X$98=10000000000,10000000000,IF('SOLAI T2D SPA'!$C$25<='ST BLOCCO 42'!L98,'ST BLOCCO 42'!L98,10000000000)) -> 10000000000 | AI98: =IF($X$98=10000000000,10000000000,IF('SOLAI T2D SPA'!$C$25<='ST BLOCCO 42'!M98,'ST BLOCCO 42'!M98,10000000000)) -> 10000000000 | AJ98: =IF($X$98=10000000000,10000000000,IF('SOLAI T2D SPA'!$C$25<='ST BLOCCO 42'!N98,'ST BLOCCO 42'!N98,10000000000)) -> 10000000000 | AK98: =IF($X$98=10000000000,10000000000,IF('SOLAI T2D SPA'!$C$25<='ST BLOCCO 42'!O98,'ST BLOCCO 42'!O98,10000000000)) -> 10000000000 | AL98: =IF($X$98=10000000000,10000000000,IF('SOLAI T2D SPA'!$C$25<='ST BLOCCO 42'!P98,'ST BLOCCO 42'!P98,10000000000)) -> 10000000000 | AM98: =IF($X$98=10000000000,10000000000,IF('SOLAI T2D SPA'!$C$25<='ST BLOCCO 42'!Q98,'ST BLOCCO 42'!Q98,10000000000)) -> 10000000000
A99: 24 | B99: 4 | C99: =A99+B99 -> 28 | D99: 305.6 | E99: 85.08 | F99: 1017.3 | G99: 1585.4 | H99: 2275.54 | I99: 3146.42 | J99: 3825.14 | K99: 4497.5 | L99: 5285.08 | M99: 6065.38 | N99: 6956.44 | O99: 7837.72 | P99: 8824.7 | Q99: 9798.44 | W99: =W26 -> 10000000000 | X99: 10000000000 | Y99: =W99+X99 -> 20000000000 | Z99: 10000000000 | AB99: =IF($X$99=10000000000,10000000000,IF('SOLAI T2D SPA'!$C$25<='ST BLOCCO 42'!F99,'ST BLOCCO 42'!F99,10000000000)) -> 10000000000 | AC99: =IF($X$99=10000000000,10000000000,IF('SOLAI T2D SPA'!$C$25<='ST BLOCCO 42'!G99,'ST BLOCCO 42'!G99,10000000000)) -> 10000000000 | AD99: =IF($X$99=10000000000,10000000000,IF('SOLAI T2D SPA'!$C$25<='ST BLOCCO 42'!H99,'ST BLOCCO 42'!H99,10000000000)) -> 10000000000 | AE99: =IF($X$99=10000000000,10000000000,IF('SOLAI T2D SPA'!$C$25<='ST BLOCCO 42'!I99,'ST BLOCCO 42'!I99,10000000000)) -> 10000000000 | AF99: =IF($X$99=10000000000,10000000000,IF('SOLAI T2D SPA'!$C$25<='ST BLOCCO 42'!J99,'ST BLOCCO 42'!J99,10000000000)) -> 10000000000 | AG99: =IF($X$99=10000000000,10000000000,IF('SOLAI T2D SPA'!$C$25<='ST BLOCCO 42'!K99,'ST BLOCCO 42'!K99,10000000000)) -> 10000000000 | AH99: =IF($X$99=10000000000,10000000000,IF('SOLAI T2D SPA'!$C$25<='ST BLOCCO 42'!L99,'ST BLOCCO 42'!L99,10000000000)) -> 10000000000 | AI99: =IF($X$99=10000000000,10000000000,IF('SOLAI T2D SPA'!$C$25<='ST BLOCCO 42'!M99,'ST BLOCCO 42'!M99,10000000000)) -> 10000000000 | AJ99: =IF($X$99=10000000000,10000000000,IF('SOLAI T2D SPA'!$C$25<='ST BLOCCO 42'!N99,'ST BLOCCO 42'!N99,10000000000)) -> 10000000000 | AK99: =IF($X$99=10000000000,10000000000,IF('SOLAI T2D SPA'!$C$25<='ST BLOCCO 42'!O99,'ST BLOCCO 42'!O99,10000000000)) -> 10000000000 | AL99: =IF($X$99=10000000000,10000000000,IF('SOLAI T2D SPA'!$C$25<='ST BLOCCO 42'!P99,'ST BLOCCO 42'!P99,10000000000)) -> 10000000000 | AM99: =IF($X$99=10000000000,10000000000,IF('SOLAI T2D SPA'!$C$25<='ST BLOCCO 42'!Q99,'ST BLOCCO 42'!Q99,10000000000)) -> 10000000000
B100: 5 | C100: =A99+B100 -> 29 | D100: 330.6 | E100: 95.08 | F100: 1056.54 | G100: 1646.82 | H100: 2364.04 | I100: 3269.32 | J100: 3974.6 | K100: 4674.66 | L100: 5493.9 | M100: 6306.36 | N100: 7234.38 | O100: 8152.64 | P100: 9180.4 | Q100: 10196.74 | X100: 10000000000 | Y100: =W99+X100 -> 20000000000 | Z100: 10000000000 | AB100: =IF($X$100=10000000000,10000000000,IF('SOLAI T2D SPA'!$C$25<='ST BLOCCO 42'!F100,'ST BLOCCO 42'!F100,10000000000)) -> 10000000000 | AC100: =IF($X$100=10000000000,10000000000,IF('SOLAI T2D SPA'!$C$25<='ST BLOCCO 42'!G100,'ST BLOCCO 42'!G100,10000000000)) -> 10000000000 | AD100: =IF($X$100=10000000000,10000000000,IF('SOLAI T2D SPA'!$C$25<='ST BLOCCO 42'!H100,'ST BLOCCO 42'!H100,10000000000)) -> 10000000000 | AE100: =IF($X$100=10000000000,10000000000,IF('SOLAI T2D SPA'!$C$25<='ST BLOCCO 42'!I100,'ST BLOCCO 42'!I100,10000000000)) -> 10000000000 | AF100: =IF($X$100=10000000000,10000000000,IF('SOLAI T2D SPA'!$C$25<='ST BLOCCO 42'!J100,'ST BLOCCO 42'!J100,10000000000)) -> 10000000000 | AG100: =IF($X$100=10000000000,10000000000,IF('SOLAI T2D SPA'!$C$25<='ST BLOCCO 42'!K100,'ST BLOCCO 42'!K100,10000000000)) -> 10000000000 | AH100: =IF($X$100=10000000000,10000000000,IF('SOLAI T2D SPA'!$C$25<='ST BLOCCO 42'!L100,'ST BLOCCO 42'!L100,10000000000)) -> 10000000000 | AI100: =IF($X$100=10000000000,10000000000,IF('SOLAI T2D SPA'!$C$25<='ST BLOCCO 42'!M100,'ST BLOCCO 42'!M100,10000000000)) -> 10000000000 | AJ100: =IF($X$100=10000000000,10000000000,IF('SOLAI T2D SPA'!$C$25<='ST BLOCCO 42'!N100,'ST BLOCCO 42'!N100,10000000000)) -> 10000000000 | AK100: =IF($X$100=10000000000,10000000000,IF('SOLAI T2D SPA'!$C$25<='ST BLOCCO 42'!O100,'ST BLOCCO 42'!O100,10000000000)) -> 10000000000 | AL100: =IF($X$100=10000000000,10000000000,IF('SOLAI T2D SPA'!$C$25<='ST BLOCCO 42'!P100,'ST BLOCCO 42'!P100,10000000000)) -> 10000000000 | AM100: =IF($X$100=10000000000,10000000000,IF('SOLAI T2D SPA'!$C$25<='ST BLOCCO 42'!Q100,'ST BLOCCO 42'!Q100,10000000000)) -> 10000000000
A101: 30 | B101: 4 | C101: =A101+B101 -> 34 | D101: 350 | E101: 99.32 | F101: 1252.76 | G101: 1953.4 | H101: 2805.56 | I101: 3882.82 | J101: 4723.7 | K101: 5559.54 | L101: 6538.84 | M101: 7511.46 | N101: 8623.34 | O101: 9726.3 | P101: 10963.38 | Q101: 12188 | W101: =W28 -> 10000000000 | X101: 10000000000 | Y101: =W101+X101 -> 20000000000 | Z101: 10000000000 | AB101: =IF($X$101=10000000000,10000000000,IF('SOLAI T2D SPA'!$C$25<='ST BLOCCO 42'!F101,'ST BLOCCO 42'!F101,10000000000)) -> 10000000000 | AC101: =IF($X$101=10000000000,10000000000,IF('SOLAI T2D SPA'!$C$25<='ST BLOCCO 42'!G101,'ST BLOCCO 42'!G101,10000000000)) -> 10000000000 | AD101: =IF($X$101=10000000000,10000000000,IF('SOLAI T2D SPA'!$C$25<='ST BLOCCO 42'!H101,'ST BLOCCO 42'!H101,10000000000)) -> 10000000000 | AE101: =IF($X$101=10000000000,10000000000,IF('SOLAI T2D SPA'!$C$25<='ST BLOCCO 42'!I101,'ST BLOCCO 42'!I101,10000000000)) -> 10000000000 | AF101: =IF($X$101=10000000000,10000000000,IF('SOLAI T2D SPA'!$C$25<='ST BLOCCO 42'!J101,'ST BLOCCO 42'!J101,10000000000)) -> 10000000000 | AG101: =IF($X$101=10000000000,10000000000,IF('SOLAI T2D SPA'!$C$25<='ST BLOCCO 42'!K101,'ST BLOCCO 42'!K101,10000000000)) -> 10000000000 | AH101: =IF($X$101=10000000000,10000000000,IF('SOLAI T2D SPA'!$C$25<='ST BLOCCO 42'!L101,'ST BLOCCO 42'!L101,10000000000)) -> 10000000000 | AI101: =IF($X$101=10000000000,10000000000,IF('SOLAI T2D SPA'!$C$25<='ST BLOCCO 42'!M101,'ST BLOCCO 42'!M101,10000000000)) -> 10000000000 | AJ101: =IF($X$101=10000000000,10000000000,IF('SOLAI T2D SPA'!$C$25<='ST BLOCCO 42'!N101,'ST BLOCCO 42'!N101,10000000000)) -> 10000000000 | AK101: =IF($X$101=10000000000,10000000000,IF('SOLAI T2D SPA'!$C$25<='ST BLOCCO 42'!O101,'ST BLOCCO 42'!O101,10000000000)) -> 10000000000 | AL101: =IF($X$101=10000000000,10000000000,IF('SOLAI T2D SPA'!$C$25<='ST BLOCCO 42'!P101,'ST BLOCCO 42'!P101,10000000000)) -> 10000000000 | AM101: =IF($X$101=10000000000,10000000000,IF('SOLAI T2D SPA'!$C$25<='ST BLOCCO 42'!Q101,'ST BLOCCO 42'!Q101,10000000000)) -> 10000000000
B102: 5 | C102: =A101+B102 -> 35 | D102: 375 | E102: 109.32 | F102: 1291.98 | G102: 2014.6 | H102: 2893.86 | I102: 4005.92 | J102: 4873.46 | K102: 5735.74 | L102: 6747.92 | M102: 7751.64 | N102: 8901 | O102: 10040.58 | P102: 11320.04 | Q102: 12585.88 | X102: 10000000000 | Y102: =W101+X102 -> 20000000000 | Z102: 10000000000 | AB102: =IF($X$102=10000000000,10000000000,IF('SOLAI T2D SPA'!$C$25<='ST BLOCCO 42'!F102,'ST BLOCCO 42'!F102,10000000000)) -> 10000000000 | AC102: =IF($X$102=10000000000,10000000000,IF('SOLAI T2D SPA'!$C$25<='ST BLOCCO 42'!G102,'ST BLOCCO 42'!G102,10000000000)) -> 10000000000 | AD102: =IF($X$102=10000000000,10000000000,IF('SOLAI T2D SPA'!$C$25<='ST BLOCCO 42'!H102,'ST BLOCCO 42'!H102,10000000000)) -> 10000000000 | AE102: =IF($X$102=10000000000,10000000000,IF('SOLAI T2D SPA'!$C$25<='ST BLOCCO 42'!I102,'ST BLOCCO 42'!I102,10000000000)) -> 10000000000 | AF102: =IF($X$102=10000000000,10000000000,IF('SOLAI T2D SPA'!$C$25<='ST BLOCCO 42'!J102,'ST BLOCCO 42'!J102,10000000000)) -> 10000000000 | AG102: =IF($X$102=10000000000,10000000000,IF('SOLAI T2D SPA'!$C$25<='ST BLOCCO 42'!K102,'ST BLOCCO 42'!K102,10000000000)) -> 10000000000 | AH102: =IF($X$102=10000000000,10000000000,IF('SOLAI T2D SPA'!$C$25<='ST BLOCCO 42'!L102,'ST BLOCCO 42'!L102,10000000000)) -> 10000000000 | AI102: =IF($X$102=10000000000,10000000000,IF('SOLAI T2D SPA'!$C$25<='ST BLOCCO 42'!M102,'ST BLOCCO 42'!M102,10000000000)) -> 10000000000 | AJ102: =IF($X$102=10000000000,10000000000,IF('SOLAI T2D SPA'!$C$25<='ST BLOCCO 42'!N102,'ST BLOCCO 42'!N102,10000000000)) -> 10000000000 | AK102: =IF($X$102=10000000000,10000000000,IF('SOLAI T2D SPA'!$C$25<='ST BLOCCO 42'!O102,'ST BLOCCO 42'!O102,10000000000)) -> 10000000000 | AL102: =IF($X$102=10000000000,10000000000,IF('SOLAI T2D SPA'!$C$25<='ST BLOCCO 42'!P102,'ST BLOCCO 42'!P102,10000000000)) -> 10000000000 | AM102: =IF($X$102=10000000000,10000000000,IF('SOLAI T2D SPA'!$C$25<='ST BLOCCO 42'!Q102,'ST BLOCCO 42'!Q102,10000000000)) -> 10000000000
W103: =MIN(W87:W102) -> 10000000000 | X103: =MIN(X87:X102) -> 10000000000 | Y103: 20000000000 | Z103: 10000000000 | AB103: =MIN(AB87:AB102) -> 10000000000 | AC103: =MIN(AC87:AC102) -> 10000000000 | AD103: 10000000000 | AE103: 10000000000 | AF103: 10000000000 | AG103: 10000000000 | AH103: 10000000000 | AI103: 10000000000 | AJ103: 10000000000 | AK103: 10000000000 | AL103: 10000000000 | AM103: 10000000000 | AN103: =MIN(AB103:AM103) -> 10000000000 | AO103: =IF(AND(U12=1,AN103=10000000000),1,0) -> 0
A112: INTERASSE 52 CM - Larghezza travetto 14 cm - Larghezza blocco 42
A113: MOMENTO NEGATIVO | F113: 1f8 | G113: 1f10 | H113: 1f12 | I113: 2f10 | J113: 1f10 + 1f12 | K113: 2f12 | L113: 1f12 + 1f14 | M113: 2f14 | N113: 1f14 + 1f16 | O113: 2f16 | P113: 1f16 + 1f18 | Q113: 2f18 | W113: MOMENTO NEGATIVO | AB113: 1f8 | AC113: 1f10 | AD113: 1f12 | AE113: 2f10 | AF113: 1f10 + 1f12 | AG113: 2f12 | AH113: 1f12 + 1f14 | AI113: 2f14 | AJ113: 1f14 + 1f16 | AK113: 2f16 | AL113: 1f16 + 1f18 | AM113: 2f18
A114: Altezza pignatta | B114: Spessore soletta | C114: Altezza solaio | D114: Peso solaio | E114: Volume cls getto in opera (l/mq) | F114: Momenti ultimi riferiti ad una striscia di solaio larga 1,00 metro | W114: Altezza pignatta | X114: Spessore soletta | Y114: Altezza solaio | Z114: Peso solaio | AB114: =IF(AND(AB132<800000000,AB132=$AN$132),AB113,"") ->  | AC114: =IF(AND(AC132<800000000,AC132=$AN$132),AC113,"") ->  | AN114: =AB114&AC114&AD114&AE114&AF114&AG114&AH114&AI114&AJ114&AK114&AL114&AM114 -> 
A115: [cm] | B115: [cm] | C115: [cm] | D115: [daN/mq] | E115: [l/mq] | F115: [daNm] | G115: [daNm] | H115: [daNm] | I115: [daNm] | J115: [daNm] | K115: [daNm] | L115: [daNm] | M115: [daNm] | N115: [daNm] | O115: [daNm] | P115: [daNm] | Q115: [daNm] | W115: [cm] | X115: [cm] | Y115: [cm] | Z115: [daN/mq] | AB115: [daNm] | AC115: [daNm] | AD115: [daNm] | AE115: [daNm] | AF115: [daNm] | AG115: [daNm] | AH115: [daNm] | AI115: [daNm] | AJ115: [daNm] | AK115: [daNm] | AL115: [daNm] | AM115: [daNm]
A116: 12 | B116: 4 | C116: =A116+B116 -> 16 | D116: 221 | E116: 60.76 | F116: 525.6153846 | G116: 817.4615385 | H116: 1169.403846 | I116: 1609.884615 | J116: 1950.307692 | K116: 2286.307692 | L116: 2676.557692 | M116: 3059.884615 | N116: 3493.403846 | O116: 3918.5 | P116: 4389.019231 | Q116: 4847.211538 | W116: =W48 -> 10000000000 | X116: =X48 -> 10000000000 | Y116: =W116+X116 -> 20000000000 | Z116: =Z48 -> 10000000000 | AB116: =IF($X$116=10000000000,10000000000,IF('SOLAI T2D SPA'!$C$25<='ST BLOCCO 42'!F116,'ST BLOCCO 42'!F116,10000000000)) -> 10000000000 | AC116: =IF($X$116=10000000000,10000000000,IF('SOLAI T2D SPA'!$C$25<='ST BLOCCO 42'!G116,'ST BLOCCO 42'!G116,10000000000)) -> 10000000000 | AD116: =IF($X$116=10000000000,10000000000,IF('SOLAI T2D SPA'!$C$25<='ST BLOCCO 42'!H116,'ST BLOCCO 42'!H116,10000000000)) -> 10000000000 | AE116: =IF($X$116=10000000000,10000000000,IF('SOLAI T2D SPA'!$C$25<='ST BLOCCO 42'!I116,'ST BLOCCO 42'!I116,10000000000)) -> 10000000000 | AF116: =IF($X$116=10000000000,10000000000,IF('SOLAI T2D SPA'!$C$25<='ST BLOCCO 42'!J116,'ST BLOCCO 42'!J116,10000000000)) -> 10000000000 | AG116: =IF($X$116=10000000000,10000000000,IF('SOLAI T2D SPA'!$C$25<='ST BLOCCO 42'!K116,'ST BLOCCO 42'!K116,10000000000)) -> 10000000000 | AH116: =IF($X$116=10000000000,10000000000,IF('SOLAI T2D SPA'!$C$25<='ST BLOCCO 42'!L116,'ST BLOCCO 42'!L116,10000000000)) -> 10000000000 | AI116: =IF($X$116=10000000000,10000000000,IF('SOLAI T2D SPA'!$C$25<='ST BLOCCO 42'!M116,'ST BLOCCO 42'!M116,10000000000)) -> 10000000000 | AJ116: =IF($X$116=10000000000,10000000000,IF('SOLAI T2D SPA'!$C$25<='ST BLOCCO 42'!N116,'ST BLOCCO 42'!N116,10000000000)) -> 10000000000 | AK116: =IF($X$116=10000000000,10000000000,IF('SOLAI T2D SPA'!$C$25<='ST BLOCCO 42'!O116,'ST BLOCCO 42'!O116,10000000000)) -> 10000000000 | AL116: =IF($X$116=10000000000,10000000000,IF('SOLAI T2D SPA'!$C$25<='ST BLOCCO 42'!P116,'ST BLOCCO 42'!P116,10000000000)) -> 10000000000 | AM116: =IF($X$116=10000000000,10000000000,IF('SOLAI T2D SPA'!$C$25<='ST BLOCCO 42'!Q116,'ST BLOCCO 42'!Q116,10000000000)) -> 10000000000
B117: 5 | C117: =A116+B117 -> 17 | D117: 246 | E117: 70.76 | F117: 563.3461538 | G117: 876.2115385 | H117: 1254.442308 | I117: 1728.25 | J117: 2094.653846 | K117: 2456.576923 | L117: 2877.134615 | M117: 3291.442308 | N117: 3761.115385 | O117: 4220.903846 | P117: 4731.134615 | Q117: 5230.076923 | X117: =X49 -> 10000000000 | Y117: =W116+X117 -> 20000000000 | Z117: =Z49 -> 10000000000 | AB117: =IF($X$117=10000000000,10000000000,IF('SOLAI T2D SPA'!$C$25<='ST BLOCCO 42'!F117,'ST BLOCCO 42'!F117,10000000000)) -> 10000000000 | AC117: =IF($X$117=10000000000,10000000000,IF('SOLAI T2D SPA'!$C$25<='ST BLOCCO 42'!G117,'ST BLOCCO 42'!G117,10000000000)) -> 10000000000 | AD117: =IF($X$117=10000000000,10000000000,IF('SOLAI T2D SPA'!$C$25<='ST BLOCCO 42'!H117,'ST BLOCCO 42'!H117,10000000000)) -> 10000000000 | AE117: =IF($X$117=10000000000,10000000000,IF('SOLAI T2D SPA'!$C$25<='ST BLOCCO 42'!I117,'ST BLOCCO 42'!I117,10000000000)) -> 10000000000 | AF117: =IF($X$117=10000000000,10000000000,IF('SOLAI T2D SPA'!$C$25<='ST BLOCCO 42'!J117,'ST BLOCCO 42'!J117,10000000000)) -> 10000000000 | AG117: =IF($X$117=10000000000,10000000000,IF('SOLAI T2D SPA'!$C$25<='ST BLOCCO 42'!K117,'ST BLOCCO 42'!K117,10000000000)) -> 10000000000 | AH117: =IF($X$117=10000000000,10000000000,IF('SOLAI T2D SPA'!$C$25<='ST BLOCCO 42'!L117,'ST BLOCCO 42'!L117,10000000000)) -> 10000000000 | AI117: =IF($X$117=10000000000,10000000000,IF('SOLAI T2D SPA'!$C$25<='ST BLOCCO 42'!M117,'ST BLOCCO 42'!M117,10000000000)) -> 10000000000 | AJ117: =IF($X$117=10000000000,10000000000,IF('SOLAI T2D SPA'!$C$25<='ST BLOCCO 42'!N117,'ST BLOCCO 42'!N117,10000000000)) -> 10000000000 | AK117: =IF($X$117=10000000000,10000000000,IF('SOLAI T2D SPA'!$C$25<='ST BLOCCO 42'!O117,'ST BLOCCO 42'!O117,10000000000)) -> 10000000000 | AL117: =IF($X$117=10000000000,10000000000,IF('SOLAI T2D SPA'!$C$25<='ST BLOCCO 42'!P117,'ST BLOCCO 42'!P117,10000000000)) -> 10000000000 | AM117: =IF($X$117=10000000000,10000000000,IF('SOLAI T2D SPA'!$C$25<='ST BLOCCO 42'!Q117,'ST BLOCCO 42'!Q117,10000000000)) -> 10000000000
A118: 14 | B118: 4 | C118: =A118+B118 -> 18 | D118: 232 | E118: 65.16 | F118: 601.1153846 | G118: 936.1538462 | H118: 1339.423077 | I118: 1846.346154 | J118: 2238.692308 | K118: 2626.692308 | L118: 3078.403846 | M118: 3523.288462 | N118: 4027.942308 | O118: 4523.403846 | P118: 5073.807692 | Q118: 5612.961538 | W118: =W50 -> 10000000000 | X118: 10000000000 | Y118: =W118+X118 -> 20000000000 | Z118: 10000000000 | AB118: =IF($X$118=10000000000,10000000000,IF('SOLAI T2D SPA'!$C$25<='ST BLOCCO 42'!F118,'ST BLOCCO 42'!F118,10000000000)) -> 10000000000 | AC118: =IF($X$118=10000000000,10000000000,IF('SOLAI T2D SPA'!$C$25<='ST BLOCCO 42'!G118,'ST BLOCCO 42'!G118,10000000000)) -> 10000000000 | AD118: =IF($X$118=10000000000,10000000000,IF('SOLAI T2D SPA'!$C$25<='ST BLOCCO 42'!H118,'ST BLOCCO 42'!H118,10000000000)) -> 10000000000 | AE118: =IF($X$118=10000000000,10000000000,IF('SOLAI T2D SPA'!$C$25<='ST BLOCCO 42'!I118,'ST BLOCCO 42'!I118,10000000000)) -> 10000000000 | AF118: =IF($X$118=10000000000,10000000000,IF('SOLAI T2D SPA'!$C$25<='ST BLOCCO 42'!J118,'ST BLOCCO 42'!J118,10000000000)) -> 10000000000 | AG118: =IF($X$118=10000000000,10000000000,IF('SOLAI T2D SPA'!$C$25<='ST BLOCCO 42'!K118,'ST BLOCCO 42'!K118,10000000000)) -> 10000000000 | AH118: =IF($X$118=10000000000,10000000000,IF('SOLAI T2D SPA'!$C$25<='ST BLOCCO 42'!L118,'ST BLOCCO 42'!L118,10000000000)) -> 10000000000 | AI118: =IF($X$118=10000000000,10000000000,IF('SOLAI T2D SPA'!$C$25<='ST BLOCCO 42'!M118,'ST BLOCCO 42'!M118,10000000000)) -> 10000000000 | AJ118: =IF($X$118=10000000000,10000000000,IF('SOLAI T2D SPA'!$C$25<='ST BLOCCO 42'!N118,'ST BLOCCO 42'!N118,10000000000)) -> 10000000000 | AK118: =IF($X$118=10000000000,10000000000,IF('SOLAI T2D SPA'!$C$25<='ST BLOCCO 42'!O118,'ST BLOCCO 42'!O118,10000000000)) -> 10000000000 | AL118: =IF($X$118=10000000000,10000000000,IF('SOLAI T2D SPA'!$C$25<='ST BLOCCO 42'!P118,'ST BLOCCO 42'!P118,10000000000)) -> 10000000000 | AM118: =IF($X$118=10000000000,10000000000,IF('SOLAI T2D SPA'!$C$25<='ST BLOCCO 42'!Q118,'ST BLOCCO 42'!Q118,10000000000)) -> 10000000000
B119: 5 | C119: =A118+B119 -> 19 | D119: 257 | E119: 75.16 | F119: 638.8269231 | G119: 994.3846154 | H119: 1424.269231 | I119: 1964.442308 | J119: 2383.461538 | K119: 2796.442308 | L119: 3279.480769 | M119: 3755.115385 | N119: 4294.942308 | O119: 4826.480769 | P119: 5416.423077 | Q119: 5996.173077 | X119: =X51 -> 10000000000 | Y119: =W118+X119 -> 20000000000 | Z119: 10000000000 | AB119: =IF($X$119=10000000000,10000000000,IF('SOLAI T2D SPA'!$C$25<='ST BLOCCO 42'!F119,'ST BLOCCO 42'!F119,10000000000)) -> 10000000000 | AC119: =IF($X$119=10000000000,10000000000,IF('SOLAI T2D SPA'!$C$25<='ST BLOCCO 42'!G119,'ST BLOCCO 42'!G119,10000000000)) -> 10000000000 | AD119: =IF($X$119=10000000000,10000000000,IF('SOLAI T2D SPA'!$C$25<='ST BLOCCO 42'!H119,'ST BLOCCO 42'!H119,10000000000)) -> 10000000000 | AE119: =IF($X$119=10000000000,10000000000,IF('SOLAI T2D SPA'!$C$25<='ST BLOCCO 42'!I119,'ST BLOCCO 42'!I119,10000000000)) -> 10000000000 | AF119: =IF($X$119=10000000000,10000000000,IF('SOLAI T2D SPA'!$C$25<='ST BLOCCO 42'!J119,'ST BLOCCO 42'!J119,10000000000)) -> 10000000000 | AG119: =IF($X$119=10000000000,10000000000,IF('SOLAI T2D SPA'!$C$25<='ST BLOCCO 42'!K119,'ST BLOCCO 42'!K119,10000000000)) -> 10000000000 | AH119: =IF($X$119=10000000000,10000000000,IF('SOLAI T2D SPA'!$C$25<='ST BLOCCO 42'!L119,'ST BLOCCO 42'!L119,10000000000)) -> 10000000000 | AI119: =IF($X$119=10000000000,10000000000,IF('SOLAI T2D SPA'!$C$25<='ST BLOCCO 42'!M119,'ST BLOCCO 42'!M119,10000000000)) -> 10000000000 | AJ119: =IF($X$119=10000000000,10000000000,IF('SOLAI T2D SPA'!$C$25<='ST BLOCCO 42'!N119,'ST BLOCCO 42'!N119,10000000000)) -> 10000000000 | AK119: =IF($X$119=10000000000,10000000000,IF('SOLAI T2D SPA'!$C$25<='ST BLOCCO 42'!O119,'ST BLOCCO 42'!O119,10000000000)) -> 10000000000 | AL119: =IF($X$119=10000000000,10000000000,IF('SOLAI T2D SPA'!$C$25<='ST BLOCCO 42'!P119,'ST BLOCCO 42'!P119,10000000000)) -> 10000000000 | AM119: =IF($X$119=10000000000,10000000000,IF('SOLAI T2D SPA'!$C$25<='ST BLOCCO 42'!Q119,'ST BLOCCO 42'!Q119,10000000000)) -> 10000000000
A120: 16 | B120: 4 | C120: =A120+B120 -> 20 | D120: 255 | E120: 66.44 | F120: 676.6346154 | G120: 1053.230769 | H120: 1509.307692 | I120: 2082.826923 | J120: 2527.653846 | K120: 2966.942308 | L120: 3480.173077 | M120: 3986.673077 | N120: 4561.865385 | O120: 5128.769231 | P120: 5759.596154 | Q120: 6379.115385 | W120: =W52 -> 10000000000 | X120: 10000000000 | Y120: =W120+X120 -> 20000000000 | Z120: 10000000000 | AB120: =IF($X$120=10000000000,10000000000,IF('SOLAI T2D SPA'!$C$25<='ST BLOCCO 42'!F120,'ST BLOCCO 42'!F120,10000000000)) -> 10000000000 | AC120: =IF($X$120=10000000000,10000000000,IF('SOLAI T2D SPA'!$C$25<='ST BLOCCO 42'!G120,'ST BLOCCO 42'!G120,10000000000)) -> 10000000000 | AD120: =IF($X$120=10000000000,10000000000,IF('SOLAI T2D SPA'!$C$25<='ST BLOCCO 42'!H120,'ST BLOCCO 42'!H120,10000000000)) -> 10000000000 | AE120: =IF($X$120=10000000000,10000000000,IF('SOLAI T2D SPA'!$C$25<='ST BLOCCO 42'!I120,'ST BLOCCO 42'!I120,10000000000)) -> 10000000000 | AF120: =IF($X$120=10000000000,10000000000,IF('SOLAI T2D SPA'!$C$25<='ST BLOCCO 42'!J120,'ST BLOCCO 42'!J120,10000000000)) -> 10000000000 | AG120: =IF($X$120=10000000000,10000000000,IF('SOLAI T2D SPA'!$C$25<='ST BLOCCO 42'!K120,'ST BLOCCO 42'!K120,10000000000)) -> 10000000000 | AH120: =IF($X$120=10000000000,10000000000,IF('SOLAI T2D SPA'!$C$25<='ST BLOCCO 42'!L120,'ST BLOCCO 42'!L120,10000000000)) -> 10000000000 | AI120: =IF($X$120=10000000000,10000000000,IF('SOLAI T2D SPA'!$C$25<='ST BLOCCO 42'!M120,'ST BLOCCO 42'!M120,10000000000)) -> 10000000000 | AJ120: =IF($X$120=10000000000,10000000000,IF('SOLAI T2D SPA'!$C$25<='ST BLOCCO 42'!N120,'ST BLOCCO 42'!N120,10000000000)) -> 10000000000 | AK120: =IF($X$120=10000000000,10000000000,IF('SOLAI T2D SPA'!$C$25<='ST BLOCCO 42'!O120,'ST BLOCCO 42'!O120,10000000000)) -> 10000000000 | AL120: =IF($X$120=10000000000,10000000000,IF('SOLAI T2D SPA'!$C$25<='ST BLOCCO 42'!P120,'ST BLOCCO 42'!P120,10000000000)) -> 10000000000 | AM120: =IF($X$120=10000000000,10000000000,IF('SOLAI T2D SPA'!$C$25<='ST BLOCCO 42'!Q120,'ST BLOCCO 42'!Q120,10000000000)) -> 10000000000
B121: 5 | C121: =A120+B121 -> 21 | D121: 280 | E121: 76.44 | F121: 714.3269231 | G121: 1112.173077 | H121: 1594.557692 | I121: 2201.096154 | J121: 2671.730769 | K121: 3137.461538 | L121: 3680.942308 | M121: 4218.557692 | N121: 4829.326923 | O121: 5431.903846 | P121: 6102.923077 | Q121: 6762.5 | X121: 10000000000 | Y121: =W120+X121 -> 20000000000 | Z121: 10000000000 | AB121: =IF($X$121=10000000000,10000000000,IF('SOLAI T2D SPA'!$C$25<='ST BLOCCO 42'!F121,'ST BLOCCO 42'!F121,10000000000)) -> 10000000000 | AC121: =IF($X$121=10000000000,10000000000,IF('SOLAI T2D SPA'!$C$25<='ST BLOCCO 42'!G121,'ST BLOCCO 42'!G121,10000000000)) -> 10000000000 | AD121: =IF($X$121=10000000000,10000000000,IF('SOLAI T2D SPA'!$C$25<='ST BLOCCO 42'!H121,'ST BLOCCO 42'!H121,10000000000)) -> 10000000000 | AE121: =IF($X$121=10000000000,10000000000,IF('SOLAI T2D SPA'!$C$25<='ST BLOCCO 42'!I121,'ST BLOCCO 42'!I121,10000000000)) -> 10000000000 | AF121: =IF($X$121=10000000000,10000000000,IF('SOLAI T2D SPA'!$C$25<='ST BLOCCO 42'!J121,'ST BLOCCO 42'!J121,10000000000)) -> 10000000000 | AG121: =IF($X$121=10000000000,10000000000,IF('SOLAI T2D SPA'!$C$25<='ST BLOCCO 42'!K121,'ST BLOCCO 42'!K121,10000000000)) -> 10000000000 | AH121: =IF($X$121=10000000000,10000000000,IF('SOLAI T2D SPA'!$C$25<='ST BLOCCO 42'!L121,'ST BLOCCO 42'!L121,10000000000)) -> 10000000000 | AI121: =IF($X$121=10000000000,10000000000,IF('SOLAI T2D SPA'!$C$25<='ST BLOCCO 42'!M121,'ST BLOCCO 42'!M121,10000000000)) -> 10000000000 | AJ121: =IF($X$121=10000000000,10000000000,IF('SOLAI T2D SPA'!$C$25<='ST BLOCCO 42'!N121,'ST BLOCCO 42'!N121,10000000000)) -> 10000000000 | AK121: =IF($X$121=10000000000,10000000000,IF('SOLAI T2D SPA'!$C$25<='ST BLOCCO 42'!O121,'ST BLOCCO 42'!O121,10000000000)) -> 10000000000 | AL121: =IF($X$121=10000000000,10000000000,IF('SOLAI T2D SPA'!$C$25<='ST BLOCCO 42'!P121,'ST BLOCCO 42'!P121,10000000000)) -> 10000000000 | AM121: =IF($X$121=10000000000,10000000000,IF('SOLAI T2D SPA'!$C$25<='ST BLOCCO 42'!Q121,'ST BLOCCO 42'!Q121,10000000000)) -> 10000000000
A122: 18 | B122: 4 | C122: =A122+B122 -> 22 | D122: 270 | E122: 71.88 | F122: 751.9423077 | G122: 1171.173077 | H122: 1679.538462 | I122: 2319.326923 | J122: 2815.596154 | K122: 3307.173077 | L122: 3881.730769 | M122: 4449.711538 | N122: 5096.173077 | O122: 5733.461538 | P122: 6445.961538 | Q122: 7144.423077 | W122: =W54 -> 10000000000 | X122: 10000000000 | Y122: =W122+X122 -> 20000000000 | Z122: 10000000000 | AB122: =IF($X$122=10000000000,10000000000,IF('SOLAI T2D SPA'!$C$25<='ST BLOCCO 42'!F122,'ST BLOCCO 42'!F122,10000000000)) -> 10000000000 | AC122: =IF($X$122=10000000000,10000000000,IF('SOLAI T2D SPA'!$C$25<='ST BLOCCO 42'!G122,'ST BLOCCO 42'!G122,10000000000)) -> 10000000000 | AD122: =IF($X$122=10000000000,10000000000,IF('SOLAI T2D SPA'!$C$25<='ST BLOCCO 42'!H122,'ST BLOCCO 42'!H122,10000000000)) -> 10000000000 | AE122: =IF($X$122=10000000000,10000000000,IF('SOLAI T2D SPA'!$C$25<='ST BLOCCO 42'!I122,'ST BLOCCO 42'!I122,10000000000)) -> 10000000000 | AF122: =IF($X$122=10000000000,10000000000,IF('SOLAI T2D SPA'!$C$25<='ST BLOCCO 42'!J122,'ST BLOCCO 42'!J122,10000000000)) -> 10000000000 | AG122: =IF($X$122=10000000000,10000000000,IF('SOLAI T2D SPA'!$C$25<='ST BLOCCO 42'!K122,'ST BLOCCO 42'!K122,10000000000)) -> 10000000000 | AH122: =IF($X$122=10000000000,10000000000,IF('SOLAI T2D SPA'!$C$25<='ST BLOCCO 42'!L122,'ST BLOCCO 42'!L122,10000000000)) -> 10000000000 | AI122: =IF($X$122=10000000000,10000000000,IF('SOLAI T2D SPA'!$C$25<='ST BLOCCO 42'!M122,'ST BLOCCO 42'!M122,10000000000)) -> 10000000000 | AJ122: =IF($X$122=10000000000,10000000000,IF('SOLAI T2D SPA'!$C$25<='ST BLOCCO 42'!N122,'ST BLOCCO 42'!N122,10000000000)) -> 10000000000 | AK122: =IF($X$122=10000000000,10000000000,IF('SOLAI T2D SPA'!$C$25<='ST BLOCCO 42'!O122,'ST BLOCCO 42'!O122,10000000000)) -> 10000000000 | AL122: =IF($X$122=10000000000,10000000000,IF('SOLAI T2D SPA'!$C$25<='ST BLOCCO 42'!P122,'ST BLOCCO 42'!P122,10000000000)) -> 10000000000 | AM122: =IF($X$122=10000000000,10000000000,IF('SOLAI T2D SPA'!$C$25<='ST BLOCCO 42'!Q122,'ST BLOCCO 42'!Q122,10000000000)) -> 10000000000
B123: 5 | C123: =A122+B123 -> 23 | D123: 295 | E123: 81.88 | F123: 789.75 | G123: 1230.153846 | H123: 1764.326923 | I123: 2437.211538 | J123: 2960.076923 | K123: 3477.596154 | L123: 4083.096154 | M123: 4681.538462 | N123: 5363.461538 | O123: 6036.788462 | P123: 6787.903846 | Q123: 7527.673077 | X123: 10000000000 | Y123: =W122+X123 -> 20000000000 | Z123: 10000000000 | AB123: =IF($X$123=10000000000,10000000000,IF('SOLAI T2D SPA'!$C$25<='ST BLOCCO 42'!F123,'ST BLOCCO 42'!F123,10000000000)) -> 10000000000 | AC123: =IF($X$123=10000000000,10000000000,IF('SOLAI T2D SPA'!$C$25<='ST BLOCCO 42'!G123,'ST BLOCCO 42'!G123,10000000000)) -> 10000000000 | AD123: =IF($X$123=10000000000,10000000000,IF('SOLAI T2D SPA'!$C$25<='ST BLOCCO 42'!H123,'ST BLOCCO 42'!H123,10000000000)) -> 10000000000 | AE123: =IF($X$123=10000000000,10000000000,IF('SOLAI T2D SPA'!$C$25<='ST BLOCCO 42'!I123,'ST BLOCCO 42'!I123,10000000000)) -> 10000000000 | AF123: =IF($X$123=10000000000,10000000000,IF('SOLAI T2D SPA'!$C$25<='ST BLOCCO 42'!J123,'ST BLOCCO 42'!J123,10000000000)) -> 10000000000 | AG123: =IF($X$123=10000000000,10000000000,IF('SOLAI T2D SPA'!$C$25<='ST BLOCCO 42'!K123,'ST BLOCCO 42'!K123,10000000000)) -> 10000000000 | AH123: =IF($X$123=10000000000,10000000000,IF('SOLAI T2D SPA'!$C$25<='ST BLOCCO 42'!L123,'ST BLOCCO 42'!L123,10000000000)) -> 10000000000 | AI123: =IF($X$123=10000000000,10000000000,IF('SOLAI T2D SPA'!$C$25<='ST BLOCCO 42'!M123,'ST BLOCCO 42'!M123,10000000000)) -> 10000000000 | AJ123: =IF($X$123=10000000000,10000000000,IF('SOLAI T2D SPA'!$C$25<='ST BLOCCO 42'!N123,'ST BLOCCO 42'!N123,10000000000)) -> 10000000000 | AK123: =IF($X$123=10000000000,10000000000,IF('SOLAI T2D SPA'!$C$25<='ST BLOCCO 42'!O123,'ST BLOCCO 42'!O123,10000000000)) -> 10000000000 | AL123: =IF($X$123=10000000000,10000000000,IF('SOLAI T2D SPA'!$C$25<='ST BLOCCO 42'!P123,'ST BLOCCO 42'!P123,10000000000)) -> 10000000000 | AM123: =IF($X$123=10000000000,10000000000,IF('SOLAI T2D SPA'!$C$25<='ST BLOCCO 42'!Q123,'ST BLOCCO 42'!Q123,10000000000)) -> 10000000000
A124: 20 | B124: 4 | C124: =A124+B124 -> 24 | D124: 286 | E124: 76.28 | F124: 827.4230769 | G124: 1289.134615 | H124: 1849.346154 | I124: 2555.403846 | J124: 3104.019231 | K124: 3647.942308 | L124: 4284.019231 | M124: 4913 | N124: 5631.038462 | O124: 6339.423077 | P124: 7130.634615 | Q124: 7911.269231 | W124: =W56 -> 10000000000 | X124: 10000000000 | Y124: =W124+X124 -> 20000000000 | Z124: 10000000000 | AB124: =IF($X$124=10000000000,10000000000,IF('SOLAI T2D SPA'!$C$25<='ST BLOCCO 42'!F124,'ST BLOCCO 42'!F124,10000000000)) -> 10000000000 | AC124: =IF($X$124=10000000000,10000000000,IF('SOLAI T2D SPA'!$C$25<='ST BLOCCO 42'!G124,'ST BLOCCO 42'!G124,10000000000)) -> 10000000000 | AD124: =IF($X$124=10000000000,10000000000,IF('SOLAI T2D SPA'!$C$25<='ST BLOCCO 42'!H124,'ST BLOCCO 42'!H124,10000000000)) -> 10000000000 | AE124: =IF($X$124=10000000000,10000000000,IF('SOLAI T2D SPA'!$C$25<='ST BLOCCO 42'!I124,'ST BLOCCO 42'!I124,10000000000)) -> 10000000000 | AF124: =IF($X$124=10000000000,10000000000,IF('SOLAI T2D SPA'!$C$25<='ST BLOCCO 42'!J124,'ST BLOCCO 42'!J124,10000000000)) -> 10000000000 | AG124: =IF($X$124=10000000000,10000000000,IF('SOLAI T2D SPA'!$C$25<='ST BLOCCO 42'!K124,'ST BLOCCO 42'!K124,10000000000)) -> 10000000000 | AH124: =IF($X$124=10000000000,10000000000,IF('SOLAI T2D SPA'!$C$25<='ST BLOCCO 42'!L124,'ST BLOCCO 42'!L124,10000000000)) -> 10000000000 | AI124: =IF($X$124=10000000000,10000000000,IF('SOLAI T2D SPA'!$C$25<='ST BLOCCO 42'!M124,'ST BLOCCO 42'!M124,10000000000)) -> 10000000000 | AJ124: =IF($X$124=10000000000,10000000000,IF('SOLAI T2D SPA'!$C$25<='ST BLOCCO 42'!N124,'ST BLOCCO 42'!N124,10000000000)) -> 10000000000 | AK124: =IF($X$124=10000000000,10000000000,IF('SOLAI T2D SPA'!$C$25<='ST BLOCCO 42'!O124,'ST BLOCCO 42'!O124,10000000000)) -> 10000000000 | AL124: =IF($X$124=10000000000,10000000000,IF('SOLAI T2D SPA'!$C$25<='ST BLOCCO 42'!P124,'ST BLOCCO 42'!P124,10000000000)) -> 10000000000 | AM124: =IF($X$124=10000000000,10000000000,IF('SOLAI T2D SPA'!$C$25<='ST BLOCCO 42'!Q124,'ST BLOCCO 42'!Q124,10000000000)) -> 10000000000
B125: 5 | C125: =A124+B125 -> 25 | D125: 311 | E125: 86.28 | F125: 865.1538462 | G125: 1348.153846 | H125: 1934.25 | I125: 2673.288462 | J125: 3248.326923 | K125: 3817.923077 | L125: 4485.057692 | M125: 5144.711538 | N125: 5897.942308 | O125: 6642.057692 | P125: 7473.596154 | Q125: 8293.730769 | X125: 10000000000 | Y125: =W124+X125 -> 20000000000 | Z125: 10000000000 | AB125: =IF($X$125=10000000000,10000000000,IF('SOLAI T2D SPA'!$C$25<='ST BLOCCO 42'!F125,'ST BLOCCO 42'!F125,10000000000)) -> 10000000000 | AC125: =IF($X$125=10000000000,10000000000,IF('SOLAI T2D SPA'!$C$25<='ST BLOCCO 42'!G125,'ST BLOCCO 42'!G125,10000000000)) -> 10000000000 | AD125: =IF($X$125=10000000000,10000000000,IF('SOLAI T2D SPA'!$C$25<='ST BLOCCO 42'!H125,'ST BLOCCO 42'!H125,10000000000)) -> 10000000000 | AE125: =IF($X$125=10000000000,10000000000,IF('SOLAI T2D SPA'!$C$25<='ST BLOCCO 42'!I125,'ST BLOCCO 42'!I125,10000000000)) -> 10000000000 | AF125: =IF($X$125=10000000000,10000000000,IF('SOLAI T2D SPA'!$C$25<='ST BLOCCO 42'!J125,'ST BLOCCO 42'!J125,10000000000)) -> 10000000000 | AG125: =IF($X$125=10000000000,10000000000,IF('SOLAI T2D SPA'!$C$25<='ST BLOCCO 42'!K125,'ST BLOCCO 42'!K125,10000000000)) -> 10000000000 | AH125: =IF($X$125=10000000000,10000000000,IF('SOLAI T2D SPA'!$C$25<='ST BLOCCO 42'!L125,'ST BLOCCO 42'!L125,10000000000)) -> 10000000000 | AI125: =IF($X$125=10000000000,10000000000,IF('SOLAI T2D SPA'!$C$25<='ST BLOCCO 42'!M125,'ST BLOCCO 42'!M125,10000000000)) -> 10000000000 | AJ125: =IF($X$125=10000000000,10000000000,IF('SOLAI T2D SPA'!$C$25<='ST BLOCCO 42'!N125,'ST BLOCCO 42'!N125,10000000000)) -> 10000000000 | AK125: =IF($X$125=10000000000,10000000000,IF('SOLAI T2D SPA'!$C$25<='ST BLOCCO 42'!O125,'ST BLOCCO 42'!O125,10000000000)) -> 10000000000 | AL125: =IF($X$125=10000000000,10000000000,IF('SOLAI T2D SPA'!$C$25<='ST BLOCCO 42'!P125,'ST BLOCCO 42'!P125,10000000000)) -> 10000000000 | AM125: =IF($X$125=10000000000,10000000000,IF('SOLAI T2D SPA'!$C$25<='ST BLOCCO 42'!Q125,'ST BLOCCO 42'!Q125,10000000000)) -> 10000000000
A126: 22 | B126: 4 | C126: =A126+B126 -> 26 | D126: 304 | E126: 81.72 | F126: 902.8846154 | G126: 1407.173077 | H126: 2019.25 | I126: 2791.307692 | J126: 3392.557692 | K126: 3988.307692 | L126: 4685.692308 | M126: 5376.596154 | N126: 6165.134615 | O126: 6944.538462 | P126: 7816.538462 | Q126: 8677.192308 | W126: =W58 -> 10000000000 | X126: 10000000000 | Y126: =W126+X126 -> 20000000000 | Z126: 10000000000 | AB126: =IF($X$126=10000000000,10000000000,IF('SOLAI T2D SPA'!$C$25<='ST BLOCCO 42'!F126,'ST BLOCCO 42'!F126,10000000000)) -> 10000000000 | AC126: =IF($X$126=10000000000,10000000000,IF('SOLAI T2D SPA'!$C$25<='ST BLOCCO 42'!G126,'ST BLOCCO 42'!G126,10000000000)) -> 10000000000 | AD126: =IF($X$126=10000000000,10000000000,IF('SOLAI T2D SPA'!$C$25<='ST BLOCCO 42'!H126,'ST BLOCCO 42'!H126,10000000000)) -> 10000000000 | AE126: =IF($X$126=10000000000,10000000000,IF('SOLAI T2D SPA'!$C$25<='ST BLOCCO 42'!I126,'ST BLOCCO 42'!I126,10000000000)) -> 10000000000 | AF126: =IF($X$126=10000000000,10000000000,IF('SOLAI T2D SPA'!$C$25<='ST BLOCCO 42'!J126,'ST BLOCCO 42'!J126,10000000000)) -> 10000000000 | AG126: =IF($X$126=10000000000,10000000000,IF('SOLAI T2D SPA'!$C$25<='ST BLOCCO 42'!K126,'ST BLOCCO 42'!K126,10000000000)) -> 10000000000 | AH126: =IF($X$126=10000000000,10000000000,IF('SOLAI T2D SPA'!$C$25<='ST BLOCCO 42'!L126,'ST BLOCCO 42'!L126,10000000000)) -> 10000000000 | AI126: =IF($X$126=10000000000,10000000000,IF('SOLAI T2D SPA'!$C$25<='ST BLOCCO 42'!M126,'ST BLOCCO 42'!M126,10000000000)) -> 10000000000 | AJ126: =IF($X$126=10000000000,10000000000,IF('SOLAI T2D SPA'!$C$25<='ST BLOCCO 42'!N126,'ST BLOCCO 42'!N126,10000000000)) -> 10000000000 | AK126: =IF($X$126=10000000000,10000000000,IF('SOLAI T2D SPA'!$C$25<='ST BLOCCO 42'!O126,'ST BLOCCO 42'!O126,10000000000)) -> 10000000000 | AL126: =IF($X$126=10000000000,10000000000,IF('SOLAI T2D SPA'!$C$25<='ST BLOCCO 42'!P126,'ST BLOCCO 42'!P126,10000000000)) -> 10000000000 | AM126: =IF($X$126=10000000000,10000000000,IF('SOLAI T2D SPA'!$C$25<='ST BLOCCO 42'!Q126,'ST BLOCCO 42'!Q126,10000000000)) -> 10000000000
B127: 5 | C127: =A126+B127 -> 27 | D127: 329 | E127: 91.72 | F127: 940.5576923 | G127: 1465.942308 | H127: 2104.134615 | I127: 2909.538462 | J127: 3536.961538 | K127: 4158.653846 | L127: 4886.865385 | M127: 5608.038462 | N127: 6431.923077 | O127: 7246.673077 | P127: 8159.269231 | Q127: 9059.75 | X127: 10000000000 | Y127: =W126+X127 -> 20000000000 | Z127: 10000000000 | AB127: =IF($X$127=10000000000,10000000000,IF('SOLAI T2D SPA'!$C$25<='ST BLOCCO 42'!F127,'ST BLOCCO 42'!F127,10000000000)) -> 10000000000 | AC127: =IF($X$127=10000000000,10000000000,IF('SOLAI T2D SPA'!$C$25<='ST BLOCCO 42'!G127,'ST BLOCCO 42'!G127,10000000000)) -> 10000000000 | AD127: =IF($X$127=10000000000,10000000000,IF('SOLAI T2D SPA'!$C$25<='ST BLOCCO 42'!H127,'ST BLOCCO 42'!H127,10000000000)) -> 10000000000 | AE127: =IF($X$127=10000000000,10000000000,IF('SOLAI T2D SPA'!$C$25<='ST BLOCCO 42'!I127,'ST BLOCCO 42'!I127,10000000000)) -> 10000000000 | AF127: =IF($X$127=10000000000,10000000000,IF('SOLAI T2D SPA'!$C$25<='ST BLOCCO 42'!J127,'ST BLOCCO 42'!J127,10000000000)) -> 10000000000 | AG127: =IF($X$127=10000000000,10000000000,IF('SOLAI T2D SPA'!$C$25<='ST BLOCCO 42'!K127,'ST BLOCCO 42'!K127,10000000000)) -> 10000000000 | AH127: =IF($X$127=10000000000,10000000000,IF('SOLAI T2D SPA'!$C$25<='ST BLOCCO 42'!L127,'ST BLOCCO 42'!L127,10000000000)) -> 10000000000 | AI127: =IF($X$127=10000000000,10000000000,IF('SOLAI T2D SPA'!$C$25<='ST BLOCCO 42'!M127,'ST BLOCCO 42'!M127,10000000000)) -> 10000000000 | AJ127: =IF($X$127=10000000000,10000000000,IF('SOLAI T2D SPA'!$C$25<='ST BLOCCO 42'!N127,'ST BLOCCO 42'!N127,10000000000)) -> 10000000000 | AK127: =IF($X$127=10000000000,10000000000,IF('SOLAI T2D SPA'!$C$25<='ST BLOCCO 42'!O127,'ST BLOCCO 42'!O127,10000000000)) -> 10000000000 | AL127: =IF($X$127=10000000000,10000000000,IF('SOLAI T2D SPA'!$C$25<='ST BLOCCO 42'!P127,'ST BLOCCO 42'!P127,10000000000)) -> 10000000000 | AM127: =IF($X$127=10000000000,10000000000,IF('SOLAI T2D SPA'!$C$25<='ST BLOCCO 42'!Q127,'ST BLOCCO 42'!Q127,10000000000)) -> 10000000000
A128: 24 | B128: 4 | C128: =A128+B128 -> 28 | D128: 321 | E128: 85.08 | F128: 978.3269231 | G128: 1524.961538 | H128: 2189.192308 | I128: 3027.557692 | J128: 3680.846154 | K128: 4328.865385 | L128: 5087.942308 | M128: 5840.076923 | N128: 6699.480769 | O128: 7549.75 | P128: 8502.5 | Q128: 9442.961538 | W128: =W60 -> 10000000000 | X128: 10000000000 | Y128: =W128+X128 -> 20000000000 | Z128: 10000000000 | AB128: =IF($X$128=10000000000,10000000000,IF('SOLAI T2D SPA'!$C$25<='ST BLOCCO 42'!F128,'ST BLOCCO 42'!F128,10000000000)) -> 10000000000 | AC128: =IF($X$128=10000000000,10000000000,IF('SOLAI T2D SPA'!$C$25<='ST BLOCCO 42'!G128,'ST BLOCCO 42'!G128,10000000000)) -> 10000000000 | AD128: =IF($X$128=10000000000,10000000000,IF('SOLAI T2D SPA'!$C$25<='ST BLOCCO 42'!H128,'ST BLOCCO 42'!H128,10000000000)) -> 10000000000 | AE128: =IF($X$128=10000000000,10000000000,IF('SOLAI T2D SPA'!$C$25<='ST BLOCCO 42'!I128,'ST BLOCCO 42'!I128,10000000000)) -> 10000000000 | AF128: =IF($X$128=10000000000,10000000000,IF('SOLAI T2D SPA'!$C$25<='ST BLOCCO 42'!J128,'ST BLOCCO 42'!J128,10000000000)) -> 10000000000 | AG128: =IF($X$128=10000000000,10000000000,IF('SOLAI T2D SPA'!$C$25<='ST BLOCCO 42'!K128,'ST BLOCCO 42'!K128,10000000000)) -> 10000000000 | AH128: =IF($X$128=10000000000,10000000000,IF('SOLAI T2D SPA'!$C$25<='ST BLOCCO 42'!L128,'ST BLOCCO 42'!L128,10000000000)) -> 10000000000 | AI128: =IF($X$128=10000000000,10000000000,IF('SOLAI T2D SPA'!$C$25<='ST BLOCCO 42'!M128,'ST BLOCCO 42'!M128,10000000000)) -> 10000000000 | AJ128: =IF($X$128=10000000000,10000000000,IF('SOLAI T2D SPA'!$C$25<='ST BLOCCO 42'!N128,'ST BLOCCO 42'!N128,10000000000)) -> 10000000000 | AK128: =IF($X$128=10000000000,10000000000,IF('SOLAI T2D SPA'!$C$25<='ST BLOCCO 42'!O128,'ST BLOCCO 42'!O128,10000000000)) -> 10000000000 | AL128: =IF($X$128=10000000000,10000000000,IF('SOLAI T2D SPA'!$C$25<='ST BLOCCO 42'!P128,'ST BLOCCO 42'!P128,10000000000)) -> 10000000000 | AM128: =IF($X$128=10000000000,10000000000,IF('SOLAI T2D SPA'!$C$25<='ST BLOCCO 42'!Q128,'ST BLOCCO 42'!Q128,10000000000)) -> 10000000000
B129: 5 | C129: =A128+B129 -> 29 | D129: 346 | E129: 95.08 | F129: 1016.038462 | G129: 1583.826923 | H129: 2273.980769 | I129: 3145.346154 | J129: 3824.5 | K129: 4498.923077 | L129: 5288.923077 | M129: 6071.461538 | N129: 6966.442308 | O129: 7852.288462 | P129: 8845.173077 | Q129: 9825.730769 | X129: 10000000000 | Y129: =W128+X129 -> 20000000000 | Z129: 10000000000 | AB129: =IF($X$129=10000000000,10000000000,IF('SOLAI T2D SPA'!$C$25<='ST BLOCCO 42'!F129,'ST BLOCCO 42'!F129,10000000000)) -> 10000000000 | AC129: =IF($X$129=10000000000,10000000000,IF('SOLAI T2D SPA'!$C$25<='ST BLOCCO 42'!G129,'ST BLOCCO 42'!G129,10000000000)) -> 10000000000 | AD129: =IF($X$129=10000000000,10000000000,IF('SOLAI T2D SPA'!$C$25<='ST BLOCCO 42'!H129,'ST BLOCCO 42'!H129,10000000000)) -> 10000000000 | AE129: =IF($X$129=10000000000,10000000000,IF('SOLAI T2D SPA'!$C$25<='ST BLOCCO 42'!I129,'ST BLOCCO 42'!I129,10000000000)) -> 10000000000 | AF129: =IF($X$129=10000000000,10000000000,IF('SOLAI T2D SPA'!$C$25<='ST BLOCCO 42'!J129,'ST BLOCCO 42'!J129,10000000000)) -> 10000000000 | AG129: =IF($X$129=10000000000,10000000000,IF('SOLAI T2D SPA'!$C$25<='ST BLOCCO 42'!K129,'ST BLOCCO 42'!K129,10000000000)) -> 10000000000 | AH129: =IF($X$129=10000000000,10000000000,IF('SOLAI T2D SPA'!$C$25<='ST BLOCCO 42'!L129,'ST BLOCCO 42'!L129,10000000000)) -> 10000000000 | AI129: =IF($X$129=10000000000,10000000000,IF('SOLAI T2D SPA'!$C$25<='ST BLOCCO 42'!M129,'ST BLOCCO 42'!M129,10000000000)) -> 10000000000 | AJ129: =IF($X$129=10000000000,10000000000,IF('SOLAI T2D SPA'!$C$25<='ST BLOCCO 42'!N129,'ST BLOCCO 42'!N129,10000000000)) -> 10000000000 | AK129: =IF($X$129=10000000000,10000000000,IF('SOLAI T2D SPA'!$C$25<='ST BLOCCO 42'!O129,'ST BLOCCO 42'!O129,10000000000)) -> 10000000000 | AL129: =IF($X$129=10000000000,10000000000,IF('SOLAI T2D SPA'!$C$25<='ST BLOCCO 42'!P129,'ST BLOCCO 42'!P129,10000000000)) -> 10000000000 | AM129: =IF($X$129=10000000000,10000000000,IF('SOLAI T2D SPA'!$C$25<='ST BLOCCO 42'!Q129,'ST BLOCCO 42'!Q129,10000000000)) -> 10000000000
A130: 30 | B130: 4 | C130: =A130+B130 -> 34 | D130: 369 | E130: 99.32 | F130: 1205 | G130: 1878.557692 | H130: 2698.423077 | I130: 3735.423077 | J130: 4544.711538 | K130: 5349.326923 | L130: 6293.519231 | M130: 7230.115385 | N130: 8302.134615 | O130: 9364.980769 | P130: 10558.40385 | Q130: 11740.55769 | W130: =W62 -> 10000000000 | X130: 10000000000 | Y130: =W130+X130 -> 20000000000 | Z130: 10000000000 | AB130: =IF($X$130=10000000000,10000000000,IF('SOLAI T2D SPA'!$C$25<='ST BLOCCO 42'!F130,'ST BLOCCO 42'!F130,10000000000)) -> 10000000000 | AC130: =IF($X$130=10000000000,10000000000,IF('SOLAI T2D SPA'!$C$25<='ST BLOCCO 42'!G130,'ST BLOCCO 42'!G130,10000000000)) -> 10000000000 | AD130: =IF($X$130=10000000000,10000000000,IF('SOLAI T2D SPA'!$C$25<='ST BLOCCO 42'!H130,'ST BLOCCO 42'!H130,10000000000)) -> 10000000000 | AE130: =IF($X$130=10000000000,10000000000,IF('SOLAI T2D SPA'!$C$25<='ST BLOCCO 42'!I130,'ST BLOCCO 42'!I130,10000000000)) -> 10000000000 | AF130: =IF($X$130=10000000000,10000000000,IF('SOLAI T2D SPA'!$C$25<='ST BLOCCO 42'!J130,'ST BLOCCO 42'!J130,10000000000)) -> 10000000000 | AG130: =IF($X$130=10000000000,10000000000,IF('SOLAI T2D SPA'!$C$25<='ST BLOCCO 42'!K130,'ST BLOCCO 42'!K130,10000000000)) -> 10000000000 | AH130: =IF($X$130=10000000000,10000000000,IF('SOLAI T2D SPA'!$C$25<='ST BLOCCO 42'!L130,'ST BLOCCO 42'!L130,10000000000)) -> 10000000000 | AI130: =IF($X$130=10000000000,10000000000,IF('SOLAI T2D SPA'!$C$25<='ST BLOCCO 42'!M130,'ST BLOCCO 42'!M130,10000000000)) -> 10000000000 | AJ130: =IF($X$130=10000000000,10000000000,IF('SOLAI T2D SPA'!$C$25<='ST BLOCCO 42'!N130,'ST BLOCCO 42'!N130,10000000000)) -> 10000000000 | AK130: =IF($X$130=10000000000,10000000000,IF('SOLAI T2D SPA'!$C$25<='ST BLOCCO 42'!O130,'ST BLOCCO 42'!O130,10000000000)) -> 10000000000 | AL130: =IF($X$130=10000000000,10000000000,IF('SOLAI T2D SPA'!$C$25<='ST BLOCCO 42'!P130,'ST BLOCCO 42'!P130,10000000000)) -> 10000000000 | AM130: =IF($X$130=10000000000,10000000000,IF('SOLAI T2D SPA'!$C$25<='ST BLOCCO 42'!Q130,'ST BLOCCO 42'!Q130,10000000000)) -> 10000000000
B131: 5 | C131: =A130+B131 -> 35 | D131: 394 | E131: 109.32 | F131: 1242.423077 | G131: 1937.615385 | H131: 2783.576923 | I131: 3853.346154 | J131: 4688.903846 | K131: 5519.076923 | L131: 6494.692308 | M131: 7461.326923 | N131: 8569.403846 | O131: 9667.538462 | P131: 10901.88462 | Q131: 12123.80769 | X131: 10000000000 | Y131: =W130+X131 -> 20000000000 | Z131: 10000000000 | AB131: =IF($X$131=10000000000,10000000000,IF('SOLAI T2D SPA'!$C$25<='ST BLOCCO 42'!F131,'ST BLOCCO 42'!F131,10000000000)) -> 10000000000 | AC131: =IF($X$131=10000000000,10000000000,IF('SOLAI T2D SPA'!$C$25<='ST BLOCCO 42'!G131,'ST BLOCCO 42'!G131,10000000000)) -> 10000000000 | AD131: =IF($X$131=10000000000,10000000000,IF('SOLAI T2D SPA'!$C$25<='ST BLOCCO 42'!H131,'ST BLOCCO 42'!H131,10000000000)) -> 10000000000 | AE131: =IF($X$131=10000000000,10000000000,IF('SOLAI T2D SPA'!$C$25<='ST BLOCCO 42'!I131,'ST BLOCCO 42'!I131,10000000000)) -> 10000000000 | AF131: =IF($X$131=10000000000,10000000000,IF('SOLAI T2D SPA'!$C$25<='ST BLOCCO 42'!J131,'ST BLOCCO 42'!J131,10000000000)) -> 10000000000 | AG131: =IF($X$131=10000000000,10000000000,IF('SOLAI T2D SPA'!$C$25<='ST BLOCCO 42'!K131,'ST BLOCCO 42'!K131,10000000000)) -> 10000000000 | AH131: =IF($X$131=10000000000,10000000000,IF('SOLAI T2D SPA'!$C$25<='ST BLOCCO 42'!L131,'ST BLOCCO 42'!L131,10000000000)) -> 10000000000 | AI131: =IF($X$131=10000000000,10000000000,IF('SOLAI T2D SPA'!$C$25<='ST BLOCCO 42'!M131,'ST BLOCCO 42'!M131,10000000000)) -> 10000000000 | AJ131: =IF($X$131=10000000000,10000000000,IF('SOLAI T2D SPA'!$C$25<='ST BLOCCO 42'!N131,'ST BLOCCO 42'!N131,10000000000)) -> 10000000000 | AK131: =IF($X$131=10000000000,10000000000,IF('SOLAI T2D SPA'!$C$25<='ST BLOCCO 42'!O131,'ST BLOCCO 42'!O131,10000000000)) -> 10000000000 | AL131: =IF($X$131=10000000000,10000000000,IF('SOLAI T2D SPA'!$C$25<='ST BLOCCO 42'!P131,'ST BLOCCO 42'!P131,10000000000)) -> 10000000000 | AM131: =IF($X$131=10000000000,10000000000,IF('SOLAI T2D SPA'!$C$25<='ST BLOCCO 42'!Q131,'ST BLOCCO 42'!Q131,10000000000)) -> 10000000000
W132: =MIN(W116:W131) -> 10000000000 | X132: =MIN(X116:X131) -> 10000000000 | Y132: 20000000000 | Z132: 10000000000 | AB132: =MIN(AB116:AB131) -> 10000000000 | AC132: =MIN(AC116:AC131) -> 10000000000 | AD132: 10000000000 | AE132: 10000000000 | AF132: 10000000000 | AG132: 10000000000 | AH132: 10000000000 | AI132: 10000000000 | AJ132: 10000000000 | AK132: 10000000000 | AL132: 10000000000 | AM132: 10000000000 | AN132: =MIN(AB132:AM132) -> 10000000000 | AO132: =IF(AND(U46=1,AN132=10000000000),1,0) -> 0
W134: =MIN(W103,W132) -> 10000000000 | X134: =MIN(X103,X132) -> 10000000000 | Y134: 20000000000 | Z134: 10000000000 | AN134: =MIN(AN103,AN132) -> 10000000000

Sheet ST BLOCCO 52 (hidden)
A1: INTERASSE 60 CM - Larghezza travetto 12 cm - Larghezza blocco 52 | U1: CONTROLLO
A2: MOMENTO POSITIVO | F2: Armatura standard | M2: Armatura non standard | Q2: Taglio ultimo
F3: 2f5 | G3: 2f5 + 1f8 | H3: 2f5 + 1f10 | I3: 2f5 + 1f12 | J3: 2f5 + 2f10 | K3: 2f5 + 1f10 + 1f12 | L3: 2f5 + 2f12 | M3: 2f5 + 1f12 + 1f14 | N3: 2f5 + 2f14 | O3: 2f5 + 1f14 + 1f16 | P3: 2f5 + 2f16
F4: Lunghezza travetti confezionati disponibili (cm) | M4: Travetti da confezionare su richiesta | AB4: 2f5 | AC4: 2f5 + 1f8 | AD4: 2f5 + 1f10 | AE4: 2f5 + 1f12 | AF4: 2f5 + 2f10 | AG4: 2f5 + 1f10 + 1f12 | AH4: 2f5 + 2f12 | AI4: 2f5 + 1f12 + 1f14 | AJ4: 2f5 + 2f14 | AK4: 2f5 + 1f14 + 1f16 | AL4: 2f5 + 2f16
F5: 100 | G5: 240 | H5: 380 | I5: 440 | J5: 500 | K5: 600 | L5: 680
F6: 120 | G6: 260 | H6: 400 | I6: 460 | J6: 520 | K6: 620 | L6: 700
F7: 140 | G7: 280 | H7: 420 | I7: 480 | J7: 540 | K7: 640
F8: 160 | G8: 300 | J8: 560 | K8: 660 | AB8: =IF(AND(AB26=$AM$26,AB26<800000000),AB4,"") ->  | AC8: =IF(AND(AC26=$AM$26,AC26<800000000),AC4,"") ->  | AM8: =AB8&AC8&AD8&AE8&AF8&AG8&AH8&AI8&AJ8&AK8&AL8 -> 
F9: 180 | G9: 320 | J9: 580
F10: 200 | G10: 340
F11: 220 | G11: 360
A12: Altezza pignatta | B12: Spessore soletta | C12: Altezza solaio | D12: Peso solaio | E12: Volume cls getto in opera (l/mq) | F12: Momenti ultimi riferiti ad una striscia di solaio larga 1,00 metro | S12: CALCOLO | U12: =IF(AND('SOLAI T2D SPA'!C2="Travetto_singolo",'SOLAI T2D SPA'!C4="Travetto_12",'SOLAI T2D SPA'!C5="Pignatta_48"),1,0) -> 0
A13: [cm] | B13: [cm] | C13: [cm] | D13: [daN/mq] | E13: [l/mq] | F13: [daNm] | G13: [daNm] | H13: [daNm] | I13: [daNm] | J13: [daNm] | K13: [daNm] | L13: [daNm] | M13: [daNm] | N13: [daNm] | O13: [daNm] | P13: [daNm] | Q13: [daN]
A14: 12 | B14: 4 | C14: =A14+B14 -> 16 | D14: 206 | F14: 356.4 | G14: 804.7333333 | H14: 1052.766667 | I14: 1351.4 | J14: 1724.7 | K14: 2012.6 | L14: 2295.916667 | M14: 2625.366667 | N14: 2947.783333 | O14: 3311.983333 | P14: 3667.9 | Q14: 1268.333333 | S14: ="MOM60"&A14&B14 -> MOM60124 | W14: =IF(AND($U$12=1,'SOLAI T2D SPA'!$C$6=A14),A14,10000000000) -> 10000000000 | X14: =IF(W14=10000000000,10000000000,IF('SOLAI T2D SPA'!$C$7='ST BLOCCO 52'!B14,'ST BLOCCO 52'!B14,10000000000)) -> 10000000000 | Y14: =W14+X14 -> 20000000000 | Z14: =IF(Y14>100000,10000000000,D14) -> 10000000000 | AB14: =IF($X$14=10000000000,10000000000,IF('SOLAI T2D SPA'!$C$20<=F14,F14,10000000000)) -> 10000000000 | AC14: =IF($X$14=10000000000,10000000000,IF('SOLAI T2D SPA'!$C$20<=G14,G14,10000000000)) -> 10000000000 | AD14: =IF($X$14=10000000000,10000000000,IF('SOLAI T2D SPA'!$C$20<=H14,H14,10000000000)) -> 10000000000 | AE14: =IF($X$14=10000000000,10000000000,IF('SOLAI T2D SPA'!$C$20<=I14,I14,10000000000)) -> 10000000000 | AF14: =IF($X$14=10000000000,10000000000,IF('SOLAI T2D SPA'!$C$20<=J14,J14,10000000000)) -> 10000000000 | AG14: =IF($X$14=10000000000,10000000000,IF('SOLAI T2D SPA'!$C$20<=K14,K14,10000000000)) -> 10000000000 | AH14: =IF($X$14=10000000000,10000000000,IF('SOLAI T2D SPA'!$C$20<=L14,L14,10000000000)) -> 10000000000 | AI14: =IF($X$14=10000000000,10000000000,IF('SOLAI T2D SPA'!$C$20<=M14,M14,10000000000)) -> 10000000000 | AJ14: =IF($X$14=10000000000,10000000000,IF('SOLAI T2D SPA'!$C$20<=N14,N14,10000000000)) -> 10000000000 | AK14: =IF($X$14=10000000000,10000000000,IF('SOLAI T2D SPA'!$C$20<=O14,O14,10000000000)) -> 10000000000 | AL14: =IF($X$14=10000000000,10000000000,IF('SOLAI T2D SPA'!$C$20<=P14,P14,10000000000)) -> 10000000000 | AP14: 1268.333333
B15: 5 | C15: =A14+B15 -> 17 | D15: 231 | F15: 382.3666667 | G15: 865.9666667 | H15: 1134.65 | I15: 1459.683333 | J15: 1867.533333 | K15: 2183.85 | L15: 2496.466667 | M15: 2861.316667 | N15: 3220.633333 | O15: 3629.033333 | P15: 4030.916667 | Q15: 1358.333333 | S15: ="MOM60"&A14&B15 -> MOM60125 | X15: =IF(W14=10000000000,10000000000,IF('SOLAI T2D SPA'!$C$7='ST BLOCCO 52'!B15,'ST BLOCCO 52'!B15,10000000000)) -> 10000000000 | Y15: =W14+X15 -> 20000000000 | Z15: =IF(Y15>100000,10000000000,D15) -> 10000000000 | AB15: =IF($X$15=10000000000,10000000000,IF('SOLAI T2D SPA'!$C$20<=F15,F15,10000000000)) -> 10000000000 | AC15: =IF($X$15=10000000000,10000000000,IF('SOLAI T2D SPA'!$C$20<=G15,G15,10000000000)) -> 10000000000 | AD15: =IF($X$15=10000000000,10000000000,IF('SOLAI T2D SPA'!$C$20<=H15,H15,10000000000)) -> 10000000000 | AE15: =IF($X$15=10000000000,10000000000,IF('SOLAI T2D SPA'!$C$20<=I15,I15,10000000000)) -> 10000000000 | AF15: =IF($X$15=10000000000,10000000000,IF('SOLAI T2D SPA'!$C$20<=J15,J15,10000000000)) -> 10000000000 | AG15: =IF($X$15=10000000000,10000000000,IF('SOLAI T2D SPA'!$C$20<=K15,K15,10000000000)) -> 10000000000 | AH15: =IF($X$15=10000000000,10000000000,IF('SOLAI T2D SPA'!$C$20<=L15,L15,10000000000)) -> 10000000000 | AI15: =IF($X$15=10000000000,10000000000,IF('SOLAI T2D SPA'!$C$20<=M15,M15,10000000000)) -> 10000000000 | AJ15: =IF($X$15=10000000000,10000000000,IF('SOLAI T2D SPA'!$C$20<=N15,N15,10000000000)) -> 10000000000 | AK15: =IF($X$15=10000000000,10000000000,IF('SOLAI T2D SPA'!$C$20<=O15,O15,10000000000)) -> 10000000000 | AL15: =IF($X$15=10000000000,10000000000,IF('SOLAI T2D SPA'!$C$20<=P15,P15,10000000000)) -> 10000000000 | AP15: 1358.333333
A16: 14 | B16: 4 | C16: =A16+B16 -> 18 | D16: 219 | F16: 407.3833333 | G16: 921.3333333 | H16: 1206.216667 | I16: 1549.9 | J16: 1980.616667 | K16: 2313.766667 | L16: 2642.433333 | M16: 3025.016667 | N16: 3400.433333 | O16: 3825.983333 | P16: 4243.25 | Q16: 1448.333333 | S16: ="MOM60"&A16&B16 -> MOM60144 | W16: =IF(AND($U$12=1,'SOLAI T2D SPA'!$C$6=A16),A16,10000000000) -> 10000000000 | X16: =IF(W16=10000000000,10000000000,IF('SOLAI T2D SPA'!$C$7='ST BLOCCO 52'!B16,'ST BLOCCO 52'!B16,10000000000)) -> 10000000000 | Y16: =W16+X16 -> 20000000000 | Z16: 10000000000 | AB16: =IF($X$16=10000000000,10000000000,IF('SOLAI T2D SPA'!$C$20<=F16,F16,10000000000)) -> 10000000000 | AC16: =IF($X$16=10000000000,10000000000,IF('SOLAI T2D SPA'!$C$20<=G16,G16,10000000000)) -> 10000000000 | AD16: =IF($X$16=10000000000,10000000000,IF('SOLAI T2D SPA'!$C$20<=H16,H16,10000000000)) -> 10000000000 | AE16: =IF($X$16=10000000000,10000000000,IF('SOLAI T2D SPA'!$C$20<=I16,I16,10000000000)) -> 10000000000 | AF16: =IF($X$16=10000000000,10000000000,IF('SOLAI T2D SPA'!$C$20<=J16,J16,10000000000)) -> 10000000000 | AG16: =IF($X$16=10000000000,10000000000,IF('SOLAI T2D SPA'!$C$20<=K16,K16,10000000000)) -> 10000000000 | AH16: =IF($X$16=10000000000,10000000000,IF('SOLAI T2D SPA'!$C$20<=L16,L16,10000000000)) -> 10000000000 | AI16: =IF($X$16=10000000000,10000000000,IF('SOLAI T2D SPA'!$C$20<=M16,M16,10000000000)) -> 10000000000 | AJ16: =IF($X$16=10000000000,10000000000,IF('SOLAI T2D SPA'!$C$20<=N16,N16,10000000000)) -> 10000000000 | AK16: =IF($X$16=10000000000,10000000000,IF('SOLAI T2D SPA'!$C$20<=O16,O16,10000000000)) -> 10000000000 | AL16: =IF($X$16=10000000000,10000000000,IF('SOLAI T2D SPA'!$C$20<=P16,P16,10000000000)) -> 10000000000 | AP16: 1448.333333
B17: 5 | C17: =A16+B17 -> 19 | D17: 244 | F17: 433.5166667 | G17: 982.45 | H17: 1288.15 | I17: 1658.133333 | J17: 2123.633333 | K17: 2484.95 | L17: 2842.516667 | M17: 3260.766667 | N17: 3673.533333 | O17: 4143.883333 | P17: 4606.183333 | Q17: 1540 | S17: ="MOM60"&A16&B17 -> MOM60145 | X17: =IF(W16=10000000000,10000000000,IF('SOLAI T2D SPA'!$C$7='ST BLOCCO 52'!B17,'ST BLOCCO 52'!B17,10000000000)) -> 10000000000 | Y17: =W16+X17 -> 20000000000 | Z17: 10000000000 | AB17: =IF($X$17=10000000000,10000000000,IF('SOLAI T2D SPA'!$C$20<=F17,F17,10000000000)) -> 10000000000 | AC17: =IF($X$17=10000000000,10000000000,IF('SOLAI T2D SPA'!$C$20<=G17,G17,10000000000)) -> 10000000000 | AD17: =IF($X$17=10000000000,10000000000,IF('SOLAI T2D SPA'!$C$20<=H17,H17,10000000000)) -> 10000000000 | AE17: =IF($X$17=10000000000,10000000000,IF('SOLAI T2D SPA'!$C$20<=I17,I17,10000000000)) -> 10000000000 | AF17: =IF($X$17=10000000000,10000000000,IF('SOLAI T2D SPA'!$C$20<=J17,J17,10000000000)) -> 10000000000 | AG17: =IF($X$17=10000000000,10000000000,IF('SOLAI T2D SPA'!$C$20<=K17,K17,10000000000)) -> 10000000000 | AH17: =IF($X$17=10000000000,10000000000,IF('SOLAI T2D SPA'!$C$20<=L17,L17,10000000000)) -> 10000000000 | AI17: =IF($X$17=10000000000,10000000000,IF('SOLAI T2D SPA'!$C$20<=M17,M17,10000000000)) -> 10000000000 | AJ17: =IF($X$17=10000000000,10000000000,IF('SOLAI T2D SPA'!$C$20<=N17,N17,10000000000)) -> 10000000000 | AK17: =IF($X$17=10000000000,10000000000,IF('SOLAI T2D SPA'!$C$20<=O17,O17,10000000000)) -> 10000000000 | AL17: =IF($X$17=10000000000,10000000000,IF('SOLAI T2D SPA'!$C$20<=P17,P17,10000000000)) -> 10000000000 | AP17: 1540
A18: 16 | B18: 4 | C18: =A18+B18 -> 20 | D18: 233 | F18: 458.5 | G18: 1037.966667 | H18: 1359.8 | I18: 1748.783333 | J18: 2236.7 | K18: 2615.133333 | L18: 2988.65 | M18: 3424.416667 | N18: 3853.766667 | O18: 4340.083333 | P18: 4819.033333 | Q18: 1630 | S18: ="MOM60"&A18&B18 -> MOM60164 | W18: =IF(AND($U$12=1,'SOLAI T2D SPA'!$C$6=A18),A18,10000000000) -> 10000000000 | X18: =IF(W18=10000000000,10000000000,IF('SOLAI T2D SPA'!$C$7='ST BLOCCO 52'!B18,'ST BLOCCO 52'!B18,10000000000)) -> 10000000000 | Y18: =W18+X18 -> 20000000000 | Z18: 10000000000 | AB18: =IF($X$18=10000000000,10000000000,IF('SOLAI T2D SPA'!$C$20<=F18,F18,10000000000)) -> 10000000000 | AC18: =IF($X$18=10000000000,10000000000,IF('SOLAI T2D SPA'!$C$20<=G18,G18,10000000000)) -> 10000000000 | AD18: =IF($X$18=10000000000,10000000000,IF('SOLAI T2D SPA'!$C$20<=H18,H18,10000000000)) -> 10000000000 | AE18: =IF($X$18=10000000000,10000000000,IF('SOLAI T2D SPA'!$C$20<=I18,I18,10000000000)) -> 10000000000 | AF18: =IF($X$18=10000000000,10000000000,IF('SOLAI T2D SPA'!$C$20<=J18,J18,10000000000)) -> 10000000000 | AG18: =IF($X$18=10000000000,10000000000,IF('SOLAI T2D SPA'!$C$20<=K18,K18,10000000000)) -> 10000000000 | AH18: =IF($X$18=10000000000,10000000000,IF('SOLAI T2D SPA'!$C$20<=L18,L18,10000000000)) -> 10000000000 | AI18: =IF($X$18=10000000000,10000000000,IF('SOLAI T2D SPA'!$C$20<=M18,M18,10000000000)) -> 10000000000 | AJ18: =IF($X$18=10000000000,10000000000,IF('SOLAI T2D SPA'!$C$20<=N18,N18,10000000000)) -> 10000000000 | AK18: =IF($X$18=10000000000,10000000000,IF('SOLAI T2D SPA'!$C$20<=O18,O18,10000000000)) -> 10000000000 | AL18: =IF($X$18=10000000000,10000000000,IF('SOLAI T2D SPA'!$C$20<=P18,P18,10000000000)) -> 10000000000 | AP18: 1630
B19: 5 | C19: =A18+B19 -> 21 | D19: 258 | F19: 484.5666667 | G19: 1099.066667 | H19: 1441.583333 | I19: 1856.883333 | J19: 2379.55 | K19: 2786.15 | L19: 3189.116667 | M19: 3660.683333 | N19: 4126.933333 | O19: 4657.5 | P19: 5182.766667 | Q19: 1720 | S19: ="MOM60"&A18&B19 -> MOM60165 | X19: =IF(W18=10000000000,10000000000,IF('SOLAI T2D SPA'!$C$7='ST BLOCCO 52'!B19,'ST BLOCCO 52'!B19,10000000000)) -> 10000000000 | Y19: =W18+X19 -> 20000000000 | Z19: 10000000000 | AB19: =IF($X$19=10000000000,10000000000,IF('SOLAI T2D SPA'!$C$20<=F19,F19,10000000000)) -> 10000000000 | AC19: =IF($X$19=10000000000,10000000000,IF('SOLAI T2D SPA'!$C$20<=G19,G19,10000000000)) -> 10000000000 | AD19: =IF($X$19=10000000000,10000000000,IF('SOLAI T2D SPA'!$C$20<=H19,H19,10000000000)) -> 10000000000 | AE19: =IF($X$19=10000000000,10000000000,IF('SOLAI T2D SPA'!$C$20<=I19,I19,10000000000)) -> 10000000000 | AF19: =IF($X$19=10000000000,10000000000,IF('SOLAI T2D SPA'!$C$20<=J19,J19,10000000000)) -> 10000000000 | AG19: =IF($X$19=10000000000,10000000000,IF('SOLAI T2D SPA'!$C$20<=K19,K19,10000000000)) -> 10000000000 | AH19: =IF($X$19=10000000000,10000000000,IF('SOLAI T2D SPA'!$C$20<=L19,L19,10000000000)) -> 10000000000 | AI19: =IF($X$19=10000000000,10000000000,IF('SOLAI T2D SPA'!$C$20<=M19,M19,10000000000)) -> 10000000000 | AJ19: =IF($X$19=10000000000,10000000000,IF('SOLAI T2D SPA'!$C$20<=N19,N19,10000000000)) -> 10000000000 | AK19: =IF($X$19=10000000000,10000000000,IF('SOLAI T2D SPA'!$C$20<=O19,O19,10000000000)) -> 10000000000 | AL19: =IF($X$19=10000000000,10000000000,IF('SOLAI T2D SPA'!$C$20<=P19,P19,10000000000)) -> 10000000000 | AP19: 1720
A20: 18 | B20: 4 | C20: =A20+B20 -> 22 | D20: 246 | F20: 509.5833333 | G20: 1154.5 | H20: 1513.466667 | I20: 1947.7 | J20: 2492.666667 | K20: 2916.283333 | L20: 3335.016667 | M20: 3823.8 | N20: 4306.116667 | O20: 4855.016667 | P20: 5394.6 | Q20: 1811.666667 | S20: ="MOM60"&A20&B20 -> MOM60184 | W20: =IF(AND($U$12=1,'SOLAI T2D SPA'!$C$6=A20),A20,10000000000) -> 10000000000 | X20: =IF(W20=10000000000,10000000000,IF('SOLAI T2D SPA'!$C$7='ST BLOCCO 52'!B20,'ST BLOCCO 52'!B20,10000000000)) -> 10000000000 | Y20: =W20+X20 -> 20000000000 | Z20: 10000000000 | AB20: =IF($X$20=10000000000,10000000000,IF('SOLAI T2D SPA'!$C$20<=F20,F20,10000000000)) -> 10000000000 | AC20: =IF($X$20=10000000000,10000000000,IF('SOLAI T2D SPA'!$C$20<=G20,G20,10000000000)) -> 10000000000 | AD20: =IF($X$20=10000000000,10000000000,IF('SOLAI T2D SPA'!$C$20<=H20,H20,10000000000)) -> 10000000000 | AE20: =IF($X$20=10000000000,10000000000,IF('SOLAI T2D SPA'!$C$20<=I20,I20,10000000000)) -> 10000000000 | AF20: =IF($X$20=10000000000,10000000000,IF('SOLAI T2D SPA'!$C$20<=J20,J20,10000000000)) -> 10000000000 | AG20: =IF($X$20=10000000000,10000000000,IF('SOLAI T2D SPA'!$C$20<=K20,K20,10000000000)) -> 10000000000 | AH20: =IF($X$20=10000000000,10000000000,IF('SOLAI T2D SPA'!$C$20<=L20,L20,10000000000)) -> 10000000000 | AI20: =IF($X$20=10000000000,10000000000,IF('SOLAI T2D SPA'!$C$20<=M20,M20,10000000000)) -> 10000000000 | AJ20: =IF($X$20=10000000000,10000000000,IF('SOLAI T2D SPA'!$C$20<=N20,N20,10000000000)) -> 10000000000 | AK20: =IF($X$20=10000000000,10000000000,IF('SOLAI T2D SPA'!$C$20<=O20,O20,10000000000)) -> 10000000000 | AL20: =IF($X$20=10000000000,10000000000,IF('SOLAI T2D SPA'!$C$20<=P20,P20,10000000000)) -> 10000000000 | AP20: 1811.666667
B21: 5 | C21: =A20+B21 -> 23 | D21: 271 | F21: 535.6166667 | G21: 1215.516667 | H21: 1594.916667 | I21: 2055.15 | J21: 2635.833333 | K21: 3087.55 | L21: 3535.266667 | M21: 4059.816667 | N21: 4579.283333 | O21: 5171.983333 | P21: 5757.966667 | Q21: 1868.333333 | S21: ="MOM60"&A20&B21 -> MOM60185 | X21: =IF(W20=10000000000,10000000000,IF('SOLAI T2D SPA'!$C$7='ST BLOCCO 52'!B21,'ST BLOCCO 52'!B21,10000000000)) -> 10000000000 | Y21: =W20+X21 -> 20000000000 | Z21: 10000000000 | AB21: =IF($X$21=10000000000,10000000000,IF('SOLAI T2D SPA'!$C$20<=F21,F21,10000000000)) -> 10000000000 | AC21: =IF($X$21=10000000000,10000000000,IF('SOLAI T2D SPA'!$C$20<=G21,G21,10000000000)) -> 10000000000 | AD21: =IF($X$21=10000000000,10000000000,IF('SOLAI T2D SPA'!$C$20<=H21,H21,10000000000)) -> 10000000000 | AE21: =IF($X$21=10000000000,10000000000,IF('SOLAI T2D SPA'!$C$20<=I21,I21,10000000000)) -> 10000000000 | AF21: =IF($X$21=10000000000,10000000000,IF('SOLAI T2D SPA'!$C$20<=J21,J21,10000000000)) -> 10000000000 | AG21: =IF($X$21=10000000000,10000000000,IF('SOLAI T2D SPA'!$C$20<=K21,K21,10000000000)) -> 10000000000 | AH21: =IF($X$21=10000000000,10000000000,IF('SOLAI T2D SPA'!$C$20<=L21,L21,10000000000)) -> 10000000000 | AI21: =IF($X$21=10000000000,10000000000,IF('SOLAI T2D SPA'!$C$20<=M21,M21,10000000000)) -> 10000000000 | AJ21: =IF($X$21=10000000000,10000000000,IF('SOLAI T2D SPA'!$C$20<=N21,N21,10000000000)) -> 10000000000 | AK21: =IF($X$21=10000000000,10000000000,IF('SOLAI T2D SPA'!$C$20<=O21,O21,10000000000)) -> 10000000000 | AL21: =IF($X$21=10000000000,10000000000,IF('SOLAI T2D SPA'!$C$20<=P21,P21,10000000000)) -> 10000000000 | AP21: 1868.333333
A22: 20 | B22: 4 | C22: =A22+B22 -> 24 | D22: 263 | F22: 560.7166667 | G22: 1271.116667 | H22: 1666.6 | I22: 2146.183333 | J22: 2748.933333 | K22: 3217.45 | L22: 3681.033333 | M22: 4223.316667 | N22: 4759.183333 | O22: 5368.9 | P22: 5970.283333 | Q22: 1923.333333 | S22: ="MOM60"&A22&B22 -> MOM60204 | W22: =IF(AND($U$12=1,'SOLAI T2D SPA'!$C$6=A22),A22,10000000000) -> 10000000000 | X22: =IF(W22=10000000000,10000000000,IF('SOLAI T2D SPA'!$C$7='ST BLOCCO 52'!B22,'ST BLOCCO 52'!B22,10000000000)) -> 10000000000 | Y22: =W22+X22 -> 20000000000 | Z22: 10000000000 | AB22: =IF($X$22=10000000000,10000000000,IF('SOLAI T2D SPA'!$C$20<=F22,F22,10000000000)) -> 10000000000 | AC22: =IF($X$22=10000000000,10000000000,IF('SOLAI T2D SPA'!$C$20<=G22,G22,10000000000)) -> 10000000000 | AD22: =IF($X$22=10000000000,10000000000,IF('SOLAI T2D SPA'!$C$20<=H22,H22,10000000000)) -> 10000000000 | AE22: =IF($X$22=10000000000,10000000000,IF('SOLAI T2D SPA'!$C$20<=I22,I22,10000000000)) -> 10000000000 | AF22: =IF($X$22=10000000000,10000000000,IF('SOLAI T2D SPA'!$C$20<=J22,J22,10000000000)) -> 10000000000 | AG22: =IF($X$22=10000000000,10000000000,IF('SOLAI T2D SPA'!$C$20<=K22,K22,10000000000)) -> 10000000000 | AH22: =IF($X$22=10000000000,10000000000,IF('SOLAI T2D SPA'!$C$20<=L22,L22,10000000000)) -> 10000000000 | AI22: =IF($X$22=10000000000,10000000000,IF('SOLAI T2D SPA'!$C$20<=M22,M22,10000000000)) -> 10000000000 | AJ22: =IF($X$22=10000000000,10000000000,IF('SOLAI T2D SPA'!$C$20<=N22,N22,10000000000)) -> 10000000000 | AK22: =IF($X$22=10000000000,10000000000,IF('SOLAI T2D SPA'!$C$20<=O22,O22,10000000000)) -> 10000000000 | AL22: =IF($X$22=10000000000,10000000000,IF('SOLAI T2D SPA'!$C$20<=P22,P22,10000000000)) -> 10000000000 | AP22: 1923.333333
B23: 5 | C23: =A22+B23 -> 25 | D23: 288 | F23: 586.7 | G23: 1332.083333 | H23: 1748.266667 | I23: 2253.666667 | J23: 2891.7 | K23: 3388.633333 | L23: 3881.65 | M23: 4459.483333 | N23: 5032.316667 | O23: 5686.15 | P23: 6333.883333 | Q23: 1978.333333 | S23: ="MOM60"&A22&B23 -> MOM60205 | X23: =IF(W22=10000000000,10000000000,IF('SOLAI T2D SPA'!$C$7='ST BLOCCO 52'!B23,'ST BLOCCO 52'!B23,10000000000)) -> 10000000000 | Y23: =W22+X23 -> 20000000000 | Z23: 10000000000 | AB23: =IF($X$23=10000000000,10000000000,IF('SOLAI T2D SPA'!$C$20<=F23,F23,10000000000)) -> 10000000000 | AC23: =IF($X$23=10000000000,10000000000,IF('SOLAI T2D SPA'!$C$20<=G23,G23,10000000000)) -> 10000000000 | AD23: =IF($X$23=10000000000,10000000000,IF('SOLAI T2D SPA'!$C$20<=H23,H23,10000000000)) -> 10000000000 | AE23: =IF($X$23=10000000000,10000000000,IF('SOLAI T2D SPA'!$C$20<=I23,I23,10000000000)) -> 10000000000 | AF23: =IF($X$23=10000000000,10000000000,IF('SOLAI T2D SPA'!$C$20<=J23,J23,10000000000)) -> 10000000000 | AG23: =IF($X$23=10000000000,10000000000,IF('SOLAI T2D SPA'!$C$20<=K23,K23,10000000000)) -> 10000000000 | AH23: =IF($X$23=10000000000,10000000000,IF('SOLAI T2D SPA'!$C$20<=L23,L23,10000000000)) -> 10000000000 | AI23: =IF($X$23=10000000000,10000000000,IF('SOLAI T2D SPA'!$C$20<=M23,M23,10000000000)) -> 10000000000 | AJ23: =IF($X$23=10000000000,10000000000,IF('SOLAI T2D SPA'!$C$20<=N23,N23,10000000000)) -> 10000000000 | AK23: =IF($X$23=10000000000,10000000000,IF('SOLAI T2D SPA'!$C$20<=O23,O23,10000000000)) -> 10000000000 | AL23: =IF($X$23=10000000000,10000000000,IF('SOLAI T2D SPA'!$C$20<=P23,P23,10000000000)) -> 10000000000 | AP23: 1978.333333 | AZ23: 1f8 | BA23: 1f10 | BB23: 1f12 | BC23: 2f10 | BD23: 1f10 + 1f12 | BE23: 2f12 | BF23: 1f12 + 1f14 | BG23: 2f14 | BH23: 1f14 + 1f16 | BI23: 2f16 | BJ23: 1f16 + 1f18 | BK23: 2f18
A24: 25 | B24: 4 | C24: =A24+B24 -> 29 | D24: 298 | F24: 688.3833333 | G24: 1562.383333 | H24: 2050.333333 | I24: 2642.433333 | J24: 3389.116667 | K24: 3970.5 | L24: 4547.05 | M24: 5221.983333 | N24: 5891 | O24: 6654.6 | P24: 7409.916667 | Q24: 2195 | S24: ="MOM60"&A24&B24 -> MOM60254 | W24: =IF(AND($U$12=1,'SOLAI T2D SPA'!$C$6=A24),A24,10000000000) -> 10000000000 | X24: =IF(W24=10000000000,10000000000,IF('SOLAI T2D SPA'!$C$7='ST BLOCCO 52'!B24,'ST BLOCCO 52'!B24,10000000000)) -> 10000000000 | Y24: =W24+X24 -> 20000000000 | Z24: 10000000000 | AB24: =IF($X$24=10000000000,10000000000,IF('SOLAI T2D SPA'!$C$20<=F24,F24,10000000000)) -> 10000000000 | AC24: =IF($X$24=10000000000,10000000000,IF('SOLAI T2D SPA'!$C$20<=G24,G24,10000000000)) -> 10000000000 | AD24: =IF($X$24=10000000000,10000000000,IF('SOLAI T2D SPA'!$C$20<=H24,H24,10000000000)) -> 10000000000 | AE24: =IF($X$24=10000000000,10000000000,IF('SOLAI T2D SPA'!$C$20<=I24,I24,10000000000)) -> 10000000000 | AF24: =IF($X$24=10000000000,10000000000,IF('SOLAI T2D SPA'!$C$20<=J24,J24,10000000000)) -> 10000000000 | AG24: =IF($X$24=10000000000,10000000000,IF('SOLAI T2D SPA'!$C$20<=K24,K24,10000000000)) -> 10000000000 | AH24: =IF($X$24=10000000000,10000000000,IF('SOLAI T2D SPA'!$C$20<=L24,L24,10000000000)) -> 10000000000 | AI24: =IF($X$24=10000000000,10000000000,IF('SOLAI T2D SPA'!$C$20<=M24,M24,10000000000)) -> 10000000000 | AJ24: =IF($X$24=10000000000,10000000000,IF('SOLAI T2D SPA'!$C$20<=N24,N24,10000000000)) -> 10000000000 | AK24: =IF($X$24=10000000000,10000000000,IF('SOLAI T2D SPA'!$C$20<=O24,O24,10000000000)) -> 10000000000 | AL24: =IF($X$24=10000000000,10000000000,IF('SOLAI T2D SPA'!$C$20<=P24,P24,10000000000)) -> 10000000000 | AP24: 2195
B25: 5 | C25: =A24+B25 -> 30 | D25: 323 | F25: 714.5166667 | G25: 1623.216667 | H25: 2131.583333 | I25: 2749.833333 | J25: 3531.1 | K25: 4141.166667 | L25: 4747.216667 | M25: 5458.45 | N25: 6164.316667 | O25: 6971.966667 | P25: 7773.1 | Q25: 2246.666667 | S25: ="MOM60"&A24&B25 -> MOM60255 | X25: =IF(W24=10000000000,10000000000,IF('SOLAI T2D SPA'!$C$7='ST BLOCCO 52'!B25,'ST BLOCCO 52'!B25,10000000000)) -> 10000000000 | Y25: =W24+X25 -> 20000000000 | Z25: 10000000000 | AB25: =IF($X$25=10000000000,10000000000,IF('SOLAI T2D SPA'!$C$20<=F25,F25,10000000000)) -> 10000000000 | AC25: =IF($X$25=10000000000,10000000000,IF('SOLAI T2D SPA'!$C$20<=G25,G25,10000000000)) -> 10000000000 | AD25: =IF($X$25=10000000000,10000000000,IF('SOLAI T2D SPA'!$C$20<=H25,H25,10000000000)) -> 10000000000 | AE25: =IF($X$25=10000000000,10000000000,IF('SOLAI T2D SPA'!$C$20<=I25,I25,10000000000)) -> 10000000000 | AF25: =IF($X$25=10000000000,10000000000,IF('SOLAI T2D SPA'!$C$20<=J25,J25,10000000000)) -> 10000000000 | AG25: =IF($X$25=10000000000,10000000000,IF('SOLAI T2D SPA'!$C$20<=K25,K25,10000000000)) -> 10000000000 | AH25: =IF($X$25=10000000000,10000000000,IF('SOLAI T2D SPA'!$C$20<=L25,L25,10000000000)) -> 10000000000 | AI25: =IF($X$25=10000000000,10000000000,IF('SOLAI T2D SPA'!$C$20<=M25,M25,10000000000)) -> 10000000000 | AJ25: =IF($X$25=10000000000,10000000000,IF('SOLAI T2D SPA'!$C$20<=N25,N25,10000000000)) -> 10000000000 | AK25: =IF($X$25=10000000000,10000000000,IF('SOLAI T2D SPA'!$C$20<=O25,O25,10000000000)) -> 10000000000 | AL25: =IF($X$25=10000000000,10000000000,IF('SOLAI T2D SPA'!$C$20<=P25,P25,10000000000)) -> 10000000000 | AP25: 2246.666667 | AZ25: =IF(AND(AZ42<800000000,AZ42=$BL$42),AZ23,"") ->  | BA25: =IF(AND(BA42<800000000,BA42=$BL$42),BA23,"") ->  | BL25: =AZ25&BA25&BB25&BC25&BD25&BE25&BF25&BG25&BH25&BI25&BJ25&BK25 -> 
W26: =MIN(W14:W25) -> 10000000000 | X26: 10000000000 | Y26: 20000000000 | Z26: 10000000000 | AB26: =MIN(AB14:AB25) -> 10000000000 | AC26: =MIN(AC14:AC25) -> 10000000000 | AD26: 10000000000 | AE26: 10000000000 | AF26: 10000000000 | AG26: 10000000000 | AH26: 10000000000 | AI26: 10000000000 | AJ26: 10000000000 | AK26: 10000000000 | AL26: 10000000000 | AM26: =MIN(AB26:AL26) -> 10000000000 | AN26: =IF(AND(U12=1,AM26=10000000000),1,0) -> 0
A27: MOMENTO NEGATIVO | F27: 1f8 | G27: 1f10 | H27: 1f12 | I27: 2f10 | J27: 1f10 + 1f12 | K27: 2f12 | L27: 1f12 + 1f14 | M27: 2f14 | N27: 1f14 + 1f16 | O27: 2f16 | P27: 1f16 + 1f18 | Q27: 2f18
A28: Altezza pignatta | B28: Spessore soletta | C28: Altezza solaio | D28: Peso solaio | E28: Volume cls getto in opera (l/mq) | F28: Momenti ultimi riferiti ad una striscia di solaio larga 1,00 metro
A29: [cm] | B29: [cm] | C29: [cm] | D29: [daN/mq] | E29: [l/mq] | F29: [daNm] | G29: [daNm] | H29: [daNm] | I29: [daNm] | J29: [daNm] | K29: [daNm] | L29: [daNm] | M29: [daNm] | N29: [daNm] | O29: [daNm] | P29: [daNm] | Q29: [daNm] | AU29: [cm] | AV29: [cm] | AW29: [cm] | AX29: [daN/mq] | AZ29: [daNm] | BA29: [daNm] | BB29: [daNm] | BC29: [daNm] | BD29: [daNm] | BE29: [daNm] | BF29: [daNm] | BG29: [daNm] | BH29: [daNm] | BI29: [daNm] | BJ29: [daNm] | BK29: [daNm]
A30: 12 | B30: 4 | C30: =A30+B30 -> 16 | D30: 206 | F30: 456.0666667 | G30: 709.55 | H30: 1016.516667 | I30: 1401.283333 | J30: 1699.3 | K30: 1993.616667 | L30: 2336.7 | M30: 2674.45 | N30: 3057.8 | O30: 3434.65 | P30: 3852.783333 | Q30: 4262.983333 | AU30: =W14 -> 10000000000 | AV30: =X14 -> 10000000000 | AW30: =AU30+AV30 -> 20000000000 | AX30: =Z14 -> 10000000000 | AZ30: =IF($AV$30=10000000000,10000000000,IF('SOLAI T2D SPA'!$C$25<='ST BLOCCO 52'!F30,'ST BLOCCO 52'!F30,10000000000)) -> 10000000000 | BA30: =IF($AV$30=10000000000,10000000000,IF('SOLAI T2D SPA'!$C$25<='ST BLOCCO 52'!G30,'ST BLOCCO 52'!G30,10000000000)) -> 10000000000 | BB30: =IF($AV$30=10000000000,10000000000,IF('SOLAI T2D SPA'!$C$25<='ST BLOCCO 52'!H30,'ST BLOCCO 52'!H30,10000000000)) -> 10000000000 | BC30: =IF($AV$30=10000000000,10000000000,IF('SOLAI T2D SPA'!$C$25<='ST BLOCCO 52'!I30,'ST BLOCCO 52'!I30,10000000000)) -> 10000000000 | BD30: =IF($AV$30=10000000000,10000000000,IF('SOLAI T2D SPA'!$C$25<='ST BLOCCO 52'!J30,'ST BLOCCO 52'!J30,10000000000)) -> 10000000000 | BE30: =IF($AV$30=10000000000,10000000000,IF('SOLAI T2D SPA'!$C$25<='ST BLOCCO 52'!K30,'ST BLOCCO 52'!K30,10000000000)) -> 10000000000 | BF30: =IF($AV$30=10000000000,10000000000,IF('SOLAI T2D SPA'!$C$25<='ST BLOCCO 52'!L30,'ST BLOCCO 52'!L30,10000000000)) -> 10000000000 | BG30: =IF($AV$30=10000000000,10000000000,IF('SOLAI T2D SPA'!$C$25<='ST BLOCCO 52'!M30,'ST BLOCCO 52'!M30,10000000000)) -> 10000000000 | BH30: =IF($AV$30=10000000000,10000000000,IF('SOLAI T2D SPA'!$C$25<='ST BLOCCO 52'!N30,'ST BLOCCO 52'!N30,10000000000)) -> 10000000000 | BI30: =IF($AV$30=10000000000,10000000000,IF('SOLAI T2D SPA'!$C$25<='ST BLOCCO 52'!O30,'ST BLOCCO 52'!O30,10000000000)) -> 10000000000 | BJ30: =IF($AV$30=10000000000,10000000000,IF('SOLAI T2D SPA'!$C$25<='ST BLOCCO 52'!P30,'ST BLOCCO 52'!P30,10000000000)) -> 10000000000 | BK30: =IF($AV$30=10000000000,10000000000,IF('SOLAI T2D SPA'!$C$25<='ST BLOCCO 52'!Q30,'ST BLOCCO 52'!Q30,10000000000)) -> 10000000000
B31: 5 | C31: =A30+B31 -> 17 | D31: 231 | F31: 488.75 | G31: 760.7 | H31: 1089.866667 | I31: 1503.683333 | J31: 1824.266667 | K31: 2141.15 | L31: 2510.733333 | M31: 2875.466667 | N31: 3289.2 | O31: 3697.083333 | P31: 4150.083333 | Q31: 4594.166667 | AV31: =X15 -> 10000000000 | AW31: =AU30+AV31 -> 20000000000 | AX31: =Z15 -> 10000000000 | AZ31: =IF($AV$31=10000000000,10000000000,IF('SOLAI T2D SPA'!$C$25<='ST BLOCCO 52'!F31,'ST BLOCCO 52'!F31,10000000000)) -> 10000000000 | BA31: =IF($AV$31=10000000000,10000000000,IF('SOLAI T2D SPA'!$C$25<='ST BLOCCO 52'!G31,'ST BLOCCO 52'!G31,10000000000)) -> 10000000000 | BB31: =IF($AV$31=10000000000,10000000000,IF('SOLAI T2D SPA'!$C$25<='ST BLOCCO 52'!H31,'ST BLOCCO 52'!H31,10000000000)) -> 10000000000 | BC31: =IF($AV$31=10000000000,10000000000,IF('SOLAI T2D SPA'!$C$25<='ST BLOCCO 52'!I31,'ST BLOCCO 52'!I31,10000000000)) -> 10000000000 | BD31: =IF($AV$31=10000000000,10000000000,IF('SOLAI T2D SPA'!$C$25<='ST BLOCCO 52'!J31,'ST BLOCCO 52'!J31,10000000000)) -> 10000000000 | BE31: =IF($AV$31=10000000000,10000000000,IF('SOLAI T2D SPA'!$C$25<='ST BLOCCO 52'!K31,'ST BLOCCO 52'!K31,10000000000)) -> 10000000000 | BF31: =IF($AV$31=10000000000,10000000000,IF('SOLAI T2D SPA'!$C$25<='ST BLOCCO 52'!L31,'ST BLOCCO 52'!L31,10000000000)) -> 10000000000 | BG31: =IF($AV$31=10000000000,10000000000,IF('SOLAI T2D SPA'!$C$25<='ST BLOCCO 52'!M31,'ST BLOCCO 52'!M31,10000000000)) -> 10000000000 | BH31: =IF($AV$31=10000000000,10000000000,IF('SOLAI T2D SPA'!$C$25<='ST BLOCCO 52'!N31,'ST BLOCCO 52'!N31,10000000000)) -> 10000000000 | BI31: =IF($AV$31=10000000000,10000000000,IF('SOLAI T2D SPA'!$C$25<='ST BLOCCO 52'!O31,'ST BLOCCO 52'!O31,10000000000)) -> 10000000000 | BJ31: =IF($AV$31=10000000000,10000000000,IF('SOLAI T2D SPA'!$C$25<='ST BLOCCO 52'!P31,'ST BLOCCO 52'!P31,10000000000)) -> 10000000000 | BK31: =IF($AV$31=10000000000,10000000000,IF('SOLAI T2D SPA'!$C$25<='ST BLOCCO 52'!Q31,'ST BLOCCO 52'!Q31,10000000000)) -> 10000000000
A32: 14 | B32: 4 | C32: =A32+B32 -> 18 | D32: 219 | F32: 521.4666667 | G32: 811.9 | H32: 1163.783333 | I32: 1606.1 | J32: 1948.9 | K32: 2288.416667 | L32: 2684.633333 | M32: 3076 | N32: 3520.883333 | O32: 3959.316667 | P32: 4447.5 | Q32: 4926.866667 | AC32: =IF(AND(AC26<800000000,AC26=AM26),AC4,"") ->  | AU32: =W16 -> 10000000000 | AV32: 10000000000 | AW32: =AU32+AV32 -> 20000000000 | AX32: 10000000000 | AZ32: =IF($AV$32=10000000000,10000000000,IF('SOLAI T2D SPA'!$C$25<='ST BLOCCO 52'!F32,'ST BLOCCO 52'!F32,10000000000)) -> 10000000000 | BA32: =IF($AV$32=10000000000,10000000000,IF('SOLAI T2D SPA'!$C$25<='ST BLOCCO 52'!G32,'ST BLOCCO 52'!G32,10000000000)) -> 10000000000 | BB32: =IF($AV$32=10000000000,10000000000,IF('SOLAI T2D SPA'!$C$25<='ST BLOCCO 52'!H32,'ST BLOCCO 52'!H32,10000000000)) -> 10000000000 | BC32: =IF($AV$32=10000000000,10000000000,IF('SOLAI T2D SPA'!$C$25<='ST BLOCCO 52'!I32,'ST BLOCCO 52'!I32,10000000000)) -> 10000000000 | BD32: =IF($AV$32=10000000000,10000000000,IF('SOLAI T2D SPA'!$C$25<='ST BLOCCO 52'!J32,'ST BLOCCO 52'!J32,10000000000)) -> 10000000000 | BE32: =IF($AV$32=10000000000,10000000000,IF('SOLAI T2D SPA'!$C$25<='ST BLOCCO 52'!K32,'ST BLOCCO 52'!K32,10000000000)) -> 10000000000 | BF32: =IF($AV$32=10000000000,10000000000,IF('SOLAI T2D SPA'!$C$25<='ST BLOCCO 52'!L32,'ST BLOCCO 52'!L32,10000000000)) -> 10000000000 | BG32: =IF($AV$32=10000000000,10000000000,IF('SOLAI T2D SPA'!$C$25<='ST BLOCCO 52'!M32,'ST BLOCCO 52'!M32,10000000000)) -> 10000000000 | BH32: =IF($AV$32=10000000000,10000000000,IF('SOLAI T2D SPA'!$C$25<='ST BLOCCO 52'!N32,'ST BLOCCO 52'!N32,10000000000)) -> 10000000000 | BI32: =IF($AV$32=10000000000,10000000000,IF('SOLAI T2D SPA'!$C$25<='ST BLOCCO 52'!O32,'ST BLOCCO 52'!O32,10000000000)) -> 10000000000 | BJ32: =IF($AV$32=10000000000,10000000000,IF('SOLAI T2D SPA'!$C$25<='ST BLOCCO 52'!P32,'ST BLOCCO 52'!P32,10000000000)) -> 10000000000 | BK32: =IF($AV$32=10000000000,10000000000,IF('SOLAI T2D SPA'!$C$25<='ST BLOCCO 52'!Q32,'ST BLOCCO 52'!Q32,10000000000)) -> 10000000000
B33: 5 | C33: =A32+B33 -> 19 | D33: 244 | F33: 554.1 | G33: 863 | H33: 1237.216667 | I33: 1708.466667 | J33: 2073.983333 | K33: 2435.783333 | L33: 2858.766667 | M33: 3276.9 | N33: 3752.55 | O33: 4220.816667 | P33: 4744.5 | Q33: 5258.333333 | AV33: =X17 -> 10000000000 | AW33: =AU32+AV33 -> 20000000000 | AX33: 10000000000 | AZ33: =IF($AV$33=10000000000,10000000000,IF('SOLAI T2D SPA'!$C$25<='ST BLOCCO 52'!F33,'ST BLOCCO 52'!F33,10000000000)) -> 10000000000 | BA33: =IF($AV$33=10000000000,10000000000,IF('SOLAI T2D SPA'!$C$25<='ST BLOCCO 52'!G33,'ST BLOCCO 52'!G33,10000000000)) -> 10000000000 | BB33: =IF($AV$33=10000000000,10000000000,IF('SOLAI T2D SPA'!$C$25<='ST BLOCCO 52'!H33,'ST BLOCCO 52'!H33,10000000000)) -> 10000000000 | BC33: =IF($AV$33=10000000000,10000000000,IF('SOLAI T2D SPA'!$C$25<='ST BLOCCO 52'!I33,'ST BLOCCO 52'!I33,10000000000)) -> 10000000000 | BD33: =IF($AV$33=10000000000,10000000000,IF('SOLAI T2D SPA'!$C$25<='ST BLOCCO 52'!J33,'ST BLOCCO 52'!J33,10000000000)) -> 10000000000 | BE33: =IF($AV$33=10000000000,10000000000,IF('SOLAI T2D SPA'!$C$25<='ST BLOCCO 52'!K33,'ST BLOCCO 52'!K33,10000000000)) -> 10000000000 | BF33: =IF($AV$33=10000000000,10000000000,IF('SOLAI T2D SPA'!$C$25<='ST BLOCCO 52'!L33,'ST BLOCCO 52'!L33,10000000000)) -> 10000000000 | BG33: =IF($AV$33=10000000000,10000000000,IF('SOLAI T2D SPA'!$C$25<='ST BLOCCO 52'!M33,'ST BLOCCO 52'!M33,10000000000)) -> 10000000000 | BH33: =IF($AV$33=10000000000,10000000000,IF('SOLAI T2D SPA'!$C$25<='ST BLOCCO 52'!N33,'ST BLOCCO 52'!N33,10000000000)) -> 10000000000 | BI33: =IF($AV$33=10000000000,10000000000,IF('SOLAI T2D SPA'!$C$25<='ST BLOCCO 52'!O33,'ST BLOCCO 52'!O33,10000000000)) -> 10000000000 | BJ33: =IF($AV$33=10000000000,10000000000,IF('SOLAI T2D SPA'!$C$25<='ST BLOCCO 52'!P33,'ST BLOCCO 52'!P33,10000000000)) -> 10000000000 | BK33: =IF($AV$33=10000000000,10000000000,IF('SOLAI T2D SPA'!$C$25<='ST BLOCCO 52'!Q33,'ST BLOCCO 52'!Q33,10000000000)) -> 10000000000
A34: 16 | B34: 4 | C34: =A34+B34 -> 20 | D34: 233 | F34: 586.7666667 | G34: 914.15 | H34: 1310.8 | I34: 1810.566667 | J34: 2199 | K34: 2583.75 | L34: 3033.033333 | M34: 3477.45 | N34: 3983.966667 | O34: 4483.1 | P34: 5041.6 | Q34: 5590.216667 | AU34: =W18 -> 10000000000 | AV34: 10000000000 | AW34: =AU34+AV34 -> 20000000000 | AX34: 10000000000 | AZ34: =IF($AV$34=10000000000,10000000000,IF('SOLAI T2D SPA'!$C$25<='ST BLOCCO 52'!F34,'ST BLOCCO 52'!F34,10000000000)) -> 10000000000 | BA34: =IF($AV$34=10000000000,10000000000,IF('SOLAI T2D SPA'!$C$25<='ST BLOCCO 52'!G34,'ST BLOCCO 52'!G34,10000000000)) -> 10000000000 | BB34: =IF($AV$34=10000000000,10000000000,IF('SOLAI T2D SPA'!$C$25<='ST BLOCCO 52'!H34,'ST BLOCCO 52'!H34,10000000000)) -> 10000000000 | BC34: =IF($AV$34=10000000000,10000000000,IF('SOLAI T2D SPA'!$C$25<='ST BLOCCO 52'!I34,'ST BLOCCO 52'!I34,10000000000)) -> 10000000000 | BD34: =IF($AV$34=10000000000,10000000000,IF('SOLAI T2D SPA'!$C$25<='ST BLOCCO 52'!J34,'ST BLOCCO 52'!J34,10000000000)) -> 10000000000 | BE34: =IF($AV$34=10000000000,10000000000,IF('SOLAI T2D SPA'!$C$25<='ST BLOCCO 52'!K34,'ST BLOCCO 52'!K34,10000000000)) -> 10000000000 | BF34: =IF($AV$34=10000000000,10000000000,IF('SOLAI T2D SPA'!$C$25<='ST BLOCCO 52'!L34,'ST BLOCCO 52'!L34,10000000000)) -> 10000000000 | BG34: =IF($AV$34=10000000000,10000000000,IF('SOLAI T2D SPA'!$C$25<='ST BLOCCO 52'!M34,'ST BLOCCO 52'!M34,10000000000)) -> 10000000000 | BH34: =IF($AV$34=10000000000,10000000000,IF('SOLAI T2D SPA'!$C$25<='ST BLOCCO 52'!N34,'ST BLOCCO 52'!N34,10000000000)) -> 10000000000 | BI34: =IF($AV$34=10000000000,10000000000,IF('SOLAI T2D SPA'!$C$25<='ST BLOCCO 52'!O34,'ST BLOCCO 52'!O34,10000000000)) -> 10000000000 | BJ34: =IF($AV$34=10000000000,10000000000,IF('SOLAI T2D SPA'!$C$25<='ST BLOCCO 52'!P34,'ST BLOCCO 52'!P34,10000000000)) -> 10000000000 | BK34: =IF($AV$34=10000000000,10000000000,IF('SOLAI T2D SPA'!$C$25<='ST BLOCCO 52'!Q34,'ST BLOCCO 52'!Q34,10000000000)) -> 10000000000
B35: 5 | C35: =A34+B35 -> 21 | D35: 258 | F35: 619.4666667 | G35: 965.3333333 | H35: 1384.516667 | I35: 1912.9 | J35: 2323.883333 | K35: 2731.05 | L35: 3207.333333 | M35: 3678.066667 | N35: 4215.683333 | O35: 4745.983333 | P35: 5338.466667 | Q35: 5922.1 | AV35: 10000000000 | AW35: =AU34+AV35 -> 20000000000 | AX35: 10000000000 | AZ35: =IF($AV$35=10000000000,10000000000,IF('SOLAI T2D SPA'!$C$25<='ST BLOCCO 52'!F35,'ST BLOCCO 52'!F35,10000000000)) -> 10000000000 | BA35: =IF($AV$35=10000000000,10000000000,IF('SOLAI T2D SPA'!$C$25<='ST BLOCCO 52'!G35,'ST BLOCCO 52'!G35,10000000000)) -> 10000000000 | BB35: =IF($AV$35=10000000000,10000000000,IF('SOLAI T2D SPA'!$C$25<='ST BLOCCO 52'!H35,'ST BLOCCO 52'!H35,10000000000)) -> 10000000000 | BC35: =IF($AV$35=10000000000,10000000000,IF('SOLAI T2D SPA'!$C$25<='ST BLOCCO 52'!I35,'ST BLOCCO 52'!I35,10000000000)) -> 10000000000 | BD35: =IF($AV$35=10000000000,10000000000,IF('SOLAI T2D SPA'!$C$25<='ST BLOCCO 52'!J35,'ST BLOCCO 52'!J35,10000000000)) -> 10000000000 | BE35: =IF($AV$35=10000000000,10000000000,IF('SOLAI T2D SPA'!$C$25<='ST BLOCCO 52'!K35,'ST BLOCCO 52'!K35,10000000000)) -> 10000000000 | BF35: =IF($AV$35=10000000000,10000000000,IF('SOLAI T2D SPA'!$C$25<='ST BLOCCO 52'!L35,'ST BLOCCO 52'!L35,10000000000)) -> 10000000000 | BG35: =IF($AV$35=10000000000,10000000000,IF('SOLAI T2D SPA'!$C$25<='ST BLOCCO 52'!M35,'ST BLOCCO 52'!M35,10000000000)) -> 10000000000 | BH35: =IF($AV$35=10000000000,10000000000,IF('SOLAI T2D SPA'!$C$25<='ST BLOCCO 52'!N35,'ST BLOCCO 52'!N35,10000000000)) -> 10000000000 | BI35: =IF($AV$35=10000000000,10000000000,IF('SOLAI T2D SPA'!$C$25<='ST BLOCCO 52'!O35,'ST BLOCCO 52'!O35,10000000000)) -> 10000000000 | BJ35: =IF($AV$35=10000000000,10000000000,IF('SOLAI T2D SPA'!$C$25<='ST BLOCCO 52'!P35,'ST BLOCCO 52'!P35,10000000000)) -> 10000000000 | BK35: =IF($AV$35=10000000000,10000000000,IF('SOLAI T2D SPA'!$C$25<='ST BLOCCO 52'!Q35,'ST BLOCCO 52'!Q35,10000000000)) -> 10000000000
A36: 18 | B36: 4 | C36: =A36+B36 -> 22 | D36: 246 | F36: 652.1666667 | G36: 1016.483333 | H36: 1458.316667 | I36: 2015.416667 | J36: 2449.1 | K36: 2878.816667 | L36: 3381.583333 | M36: 3879.483333 | N36: 4446.7 | O36: 5008.216667 | P36: 5635.95 | Q36: 6253.566667 | AU36: =W20 -> 10000000000 | AV36: 10000000000 | AW36: =AU36+AV36 -> 20000000000 | AX36: 10000000000 | AZ36: =IF($AV$36=10000000000,10000000000,IF('SOLAI T2D SPA'!$C$25<='ST BLOCCO 52'!F36,'ST BLOCCO 52'!F36,10000000000)) -> 10000000000 | BA36: =IF($AV$36=10000000000,10000000000,IF('SOLAI T2D SPA'!$C$25<='ST BLOCCO 52'!G36,'ST BLOCCO 52'!G36,10000000000)) -> 10000000000 | BB36: =IF($AV$36=10000000000,10000000000,IF('SOLAI T2D SPA'!$C$25<='ST BLOCCO 52'!H36,'ST BLOCCO 52'!H36,10000000000)) -> 10000000000 | BC36: =IF($AV$36=10000000000,10000000000,IF('SOLAI T2D SPA'!$C$25<='ST BLOCCO 52'!I36,'ST BLOCCO 52'!I36,10000000000)) -> 10000000000 | BD36: =IF($AV$36=10000000000,10000000000,IF('SOLAI T2D SPA'!$C$25<='ST BLOCCO 52'!J36,'ST BLOCCO 52'!J36,10000000000)) -> 10000000000 | BE36: =IF($AV$36=10000000000,10000000000,IF('SOLAI T2D SPA'!$C$25<='ST BLOCCO 52'!K36,'ST BLOCCO 52'!K36,10000000000)) -> 10000000000 | BF36: =IF($AV$36=10000000000,10000000000,IF('SOLAI T2D SPA'!$C$25<='ST BLOCCO 52'!L36,'ST BLOCCO 52'!L36,10000000000)) -> 10000000000 | BG36: =IF($AV$36=10000000000,10000000000,IF('SOLAI T2D SPA'!$C$25<='ST BLOCCO 52'!M36,'ST BLOCCO 52'!M36,10000000000)) -> 10000000000 | BH36: =IF($AV$36=10000000000,10000000000,IF('SOLAI T2D SPA'!$C$25<='ST BLOCCO 52'!N36,'ST BLOCCO 52'!N36,10000000000)) -> 10000000000 | BI36: =IF($AV$36=10000000000,10000000000,IF('SOLAI T2D SPA'!$C$25<='ST BLOCCO 52'!O36,'ST BLOCCO 52'!O36,10000000000)) -> 10000000000 | BJ36: =IF($AV$36=10000000000,10000000000,IF('SOLAI T2D SPA'!$C$25<='ST BLOCCO 52'!P36,'ST BLOCCO 52'!P36,10000000000)) -> 10000000000 | BK36: =IF($AV$36=10000000000,10000000000,IF('SOLAI T2D SPA'!$C$25<='ST BLOCCO 52'!Q36,'ST BLOCCO 52'!Q36,10000000000)) -> 10000000000
B37: 5 | C37: =A36+B37 -> 23 | D37: 271 | F37: 684.9166667 | G37: 1067.433333 | H37: 1531.816667 | I37: 2117.783333 | J37: 2573.933333 | K37: 3026.166667 | L37: 3555.466667 | M37: 4079.9 | N37: 4678.35 | O37: 5270.316667 | P37: 5932.25 | Q37: 6586 | AV37: 10000000000 | AW37: =AU36+AV37 -> 20000000000 | AX37: 10000000000 | AZ37: =IF($AV$37=10000000000,10000000000,IF('SOLAI T2D SPA'!$C$25<='ST BLOCCO 52'!F37,'ST BLOCCO 52'!F37,10000000000)) -> 10000000000 | BA37: =IF($AV$37=10000000000,10000000000,IF('SOLAI T2D SPA'!$C$25<='ST BLOCCO 52'!G37,'ST BLOCCO 52'!G37,10000000000)) -> 10000000000 | BB37: =IF($AV$37=10000000000,10000000000,IF('SOLAI T2D SPA'!$C$25<='ST BLOCCO 52'!H37,'ST BLOCCO 52'!H37,10000000000)) -> 10000000000 | BC37: =IF($AV$37=10000000000,10000000000,IF('SOLAI T2D SPA'!$C$25<='ST BLOCCO 52'!I37,'ST BLOCCO 52'!I37,10000000000)) -> 10000000000 | BD37: =IF($AV$37=10000000000,10000000000,IF('SOLAI T2D SPA'!$C$25<='ST BLOCCO 52'!J37,'ST BLOCCO 52'!J37,10000000000)) -> 10000000000 | BE37: =IF($AV$37=10000000000,10000000000,IF('SOLAI T2D SPA'!$C$25<='ST BLOCCO 52'!K37,'ST BLOCCO 52'!K37,10000000000)) -> 10000000000 | BF37: =IF($AV$37=10000000000,10000000000,IF('SOLAI T2D SPA'!$C$25<='ST BLOCCO 52'!L37,'ST BLOCCO 52'!L37,10000000000)) -> 10000000000 | BG37: =IF($AV$37=10000000000,10000000000,IF('SOLAI T2D SPA'!$C$25<='ST BLOCCO 52'!M37,'ST BLOCCO 52'!M37,10000000000)) -> 10000000000 | BH37: =IF($AV$37=10000000000,10000000000,IF('SOLAI T2D SPA'!$C$25<='ST BLOCCO 52'!N37,'ST BLOCCO 52'!N37,10000000000)) -> 10000000000 | BI37: =IF($AV$37=10000000000,10000000000,IF('SOLAI T2D SPA'!$C$25<='ST BLOCCO 52'!O37,'ST BLOCCO 52'!O37,10000000000)) -> 10000000000 | BJ37: =IF($AV$37=10000000000,10000000000,IF('SOLAI T2D SPA'!$C$25<='ST BLOCCO 52'!P37,'ST BLOCCO 52'!P37,10000000000)) -> 10000000000 | BK37: =IF($AV$37=10000000000,10000000000,IF('SOLAI T2D SPA'!$C$25<='ST BLOCCO 52'!Q37,'ST BLOCCO 52'!Q37,10000000000)) -> 10000000000
A38: 20 | B38: 4 | C38: =A38+B38 -> 24 | D38: 263 | F38: 717.6666667 | G38: 1118.5 | H38: 1605.466667 | I38: 2220.166667 | J38: 2698.983333 | K38: 3173.733333 | L38: 3729.633333 | M38: 4280.666667 | N38: 4910.15 | O38: 5532.683333 | P38: 6229.65 | Q38: 6917.766667 | AU38: =W22 -> 10000000000 | AV38: 10000000000 | AW38: =AU38+AV38 -> 20000000000 | AX38: 10000000000 | AZ38: =IF($AV$38=10000000000,10000000000,IF('SOLAI T2D SPA'!$C$25<='ST BLOCCO 52'!F38,'ST BLOCCO 52'!F38,10000000000)) -> 10000000000 | BA38: =IF($AV$38=10000000000,10000000000,IF('SOLAI T2D SPA'!$C$25<='ST BLOCCO 52'!G38,'ST BLOCCO 52'!G38,10000000000)) -> 10000000000 | BB38: =IF($AV$38=10000000000,10000000000,IF('SOLAI T2D SPA'!$C$25<='ST BLOCCO 52'!H38,'ST BLOCCO 52'!H38,10000000000)) -> 10000000000 | BC38: =IF($AV$38=10000000000,10000000000,IF('SOLAI T2D SPA'!$C$25<='ST BLOCCO 52'!I38,'ST BLOCCO 52'!I38,10000000000)) -> 10000000000 | BD38: =IF($AV$38=10000000000,10000000000,IF('SOLAI T2D SPA'!$C$25<='ST BLOCCO 52'!J38,'ST BLOCCO 52'!J38,10000000000)) -> 10000000000 | BE38: =IF($AV$38=10000000000,10000000000,IF('SOLAI T2D SPA'!$C$25<='ST BLOCCO 52'!K38,'ST BLOCCO 52'!K38,10000000000)) -> 10000000000 | BF38: =IF($AV$38=10000000000,10000000000,IF('SOLAI T2D SPA'!$C$25<='ST BLOCCO 52'!L38,'ST BLOCCO 52'!L38,10000000000)) -> 10000000000 | BG38: =IF($AV$38=10000000000,10000000000,IF('SOLAI T2D SPA'!$C$25<='ST BLOCCO 52'!M38,'ST BLOCCO 52'!M38,10000000000)) -> 10000000000 | BH38: =IF($AV$38=10000000000,10000000000,IF('SOLAI T2D SPA'!$C$25<='ST BLOCCO 52'!N38,'ST BLOCCO 52'!N38,10000000000)) -> 10000000000 | BI38: =IF($AV$38=10000000000,10000000000,IF('SOLAI T2D SPA'!$C$25<='ST BLOCCO 52'!O38,'ST BLOCCO 52'!O38,10000000000)) -> 10000000000 | BJ38: =IF($AV$38=10000000000,10000000000,IF('SOLAI T2D SPA'!$C$25<='ST BLOCCO 52'!P38,'ST BLOCCO 52'!P38,10000000000)) -> 10000000000 | BK38: =IF($AV$38=10000000000,10000000000,IF('SOLAI T2D SPA'!$C$25<='ST BLOCCO 52'!Q38,'ST BLOCCO 52'!Q38,10000000000)) -> 10000000000
B39: 5 | C39: =A38+B39 -> 25 | D39: 288 | F39: 750.35 | G39: 1169.483333 | H39: 1679.166667 | I39: 2322.45 | J39: 2823.566667 | K39: 3321.266667 | L39: 3903.833333 | M39: 4481.55 | N39: 5141.733333 | O39: 5794.9 | P39: 6526.35 | Q39: 7249.666667 | AV39: 10000000000 | AW39: =AU38+AV39 -> 20000000000 | AX39: 10000000000 | AZ39: =IF($AV$39=10000000000,10000000000,IF('SOLAI T2D SPA'!$C$25<='ST BLOCCO 52'!F39,'ST BLOCCO 52'!F39,10000000000)) -> 10000000000 | BA39: =IF($AV$39=10000000000,10000000000,IF('SOLAI T2D SPA'!$C$25<='ST BLOCCO 52'!G39,'ST BLOCCO 52'!G39,10000000000)) -> 10000000000 | BB39: =IF($AV$39=10000000000,10000000000,IF('SOLAI T2D SPA'!$C$25<='ST BLOCCO 52'!H39,'ST BLOCCO 52'!H39,10000000000)) -> 10000000000 | BC39: =IF($AV$39=10000000000,10000000000,IF('SOLAI T2D SPA'!$C$25<='ST BLOCCO 52'!I39,'ST BLOCCO 52'!I39,10000000000)) -> 10000000000 | BD39: =IF($AV$39=10000000000,10000000000,IF('SOLAI T2D SPA'!$C$25<='ST BLOCCO 52'!J39,'ST BLOCCO 52'!J39,10000000000)) -> 10000000000 | BE39: =IF($AV$39=10000000000,10000000000,IF('SOLAI T2D SPA'!$C$25<='ST BLOCCO 52'!K39,'ST BLOCCO 52'!K39,10000000000)) -> 10000000000 | BF39: =IF($AV$39=10000000000,10000000000,IF('SOLAI T2D SPA'!$C$25<='ST BLOCCO 52'!L39,'ST BLOCCO 52'!L39,10000000000)) -> 10000000000 | BG39: =IF($AV$39=10000000000,10000000000,IF('SOLAI T2D SPA'!$C$25<='ST BLOCCO 52'!M39,'ST BLOCCO 52'!M39,10000000000)) -> 10000000000 | BH39: =IF($AV$39=10000000000,10000000000,IF('SOLAI T2D SPA'!$C$25<='ST BLOCCO 52'!N39,'ST BLOCCO 52'!N39,10000000000)) -> 10000000000 | BI39: =IF($AV$39=10000000000,10000000000,IF('SOLAI T2D SPA'!$C$25<='ST BLOCCO 52'!O39,'ST BLOCCO 52'!O39,10000000000)) -> 10000000000 | BJ39: =IF($AV$39=10000000000,10000000000,IF('SOLAI T2D SPA'!$C$25<='ST BLOCCO 52'!P39,'ST BLOCCO 52'!P39,10000000000)) -> 10000000000 | BK39: =IF($AV$39=10000000000,10000000000,IF('SOLAI T2D SPA'!$C$25<='ST BLOCCO 52'!Q39,'ST BLOCCO 52'!Q39,10000000000)) -> 10000000000
A40: 25 | B40: 4 | C40: =A40+B40 -> 29 | D40: 298 | F40: 881.05 | G40: 1373.9 | H40: 1973.533333 | I40: 2731.45 | J40: 3323.133333 | K40: 3910.8 | L40: 4600.633333 | M40: 5284.783333 | N40: 6067.333333 | O40: 6843.983333 | P40: 7714.65 | Q40: 8577.283333 | AU40: =W24 -> 10000000000 | AV40: 10000000000 | AW40: =AU40+AV40 -> 20000000000 | AX40: 10000000000 | AZ40: =IF($AV$40=10000000000,10000000000,IF('SOLAI T2D SPA'!$C$25<='ST BLOCCO 52'!F40,'ST BLOCCO 52'!F40,10000000000)) -> 10000000000 | BA40: =IF($AV$40=10000000000,10000000000,IF('SOLAI T2D SPA'!$C$25<='ST BLOCCO 52'!G40,'ST BLOCCO 52'!G40,10000000000)) -> 10000000000 | BB40: =IF($AV$40=10000000000,10000000000,IF('SOLAI T2D SPA'!$C$25<='ST BLOCCO 52'!H40,'ST BLOCCO 52'!H40,10000000000)) -> 10000000000 | BC40: =IF($AV$40=10000000000,10000000000,IF('SOLAI T2D SPA'!$C$25<='ST BLOCCO 52'!I40,'ST BLOCCO 52'!I40,10000000000)) -> 10000000000 | BD40: =IF($AV$40=10000000000,10000000000,IF('SOLAI T2D SPA'!$C$25<='ST BLOCCO 52'!J40,'ST BLOCCO 52'!J40,10000000000)) -> 10000000000 | BE40: =IF($AV$40=10000000000,10000000000,IF('SOLAI T2D SPA'!$C$25<='ST BLOCCO 52'!K40,'ST BLOCCO 52'!K40,10000000000)) -> 10000000000 | BF40: =IF($AV$40=10000000000,10000000000,IF('SOLAI T2D SPA'!$C$25<='ST BLOCCO 52'!L40,'ST BLOCCO 52'!L40,10000000000)) -> 10000000000 | BG40: =IF($AV$40=10000000000,10000000000,IF('SOLAI T2D SPA'!$C$25<='ST BLOCCO 52'!M40,'ST BLOCCO 52'!M40,10000000000)) -> 10000000000 | BH40: =IF($AV$40=10000000000,10000000000,IF('SOLAI T2D SPA'!$C$25<='ST BLOCCO 52'!N40,'ST BLOCCO 52'!N40,10000000000)) -> 10000000000 | BI40: =IF($AV$40=10000000000,10000000000,IF('SOLAI T2D SPA'!$C$25<='ST BLOCCO 52'!O40,'ST BLOCCO 52'!O40,10000000000)) -> 10000000000 | BJ40: =IF($AV$40=10000000000,10000000000,IF('SOLAI T2D SPA'!$C$25<='ST BLOCCO 52'!P40,'ST BLOCCO 52'!P40,10000000000)) -> 10000000000 | BK40: =IF($AV$40=10000000000,10000000000,IF('SOLAI T2D SPA'!$C$25<='ST BLOCCO 52'!Q40,'ST BLOCCO 52'!Q40,10000000000)) -> 10000000000
B41: 5 | C41: =A40+B41 -> 30 | D41: 323 | F41: 913.8166667 | G41: 1424.933333 | H41: 2046.966667 | I41: 2833.816667 | J41: 3447.766667 | K41: 4058 | L41: 4774.816667 | M41: 5485.466667 | N41: 6299.066667 | O41: 7106.166667 | P41: 8011.933333 | Q41: 8909.75 | AV41: 10000000000 | AW41: =AU40+AV41 -> 20000000000 | AX41: 10000000000 | AZ41: =IF($AV$41=10000000000,10000000000,IF('SOLAI T2D SPA'!$C$25<='ST BLOCCO 52'!F41,'ST BLOCCO 52'!F41,10000000000)) -> 10000000000 | BA41: =IF($AV$41=10000000000,10000000000,IF('SOLAI T2D SPA'!$C$25<='ST BLOCCO 52'!G41,'ST BLOCCO 52'!G41,10000000000)) -> 10000000000 | BB41: =IF($AV$41=10000000000,10000000000,IF('SOLAI T2D SPA'!$C$25<='ST BLOCCO 52'!H41,'ST BLOCCO 52'!H41,10000000000)) -> 10000000000 | BC41: =IF($AV$41=10000000000,10000000000,IF('SOLAI T2D SPA'!$C$25<='ST BLOCCO 52'!I41,'ST BLOCCO 52'!I41,10000000000)) -> 10000000000 | BD41: =IF($AV$41=10000000000,10000000000,IF('SOLAI T2D SPA'!$C$25<='ST BLOCCO 52'!J41,'ST BLOCCO 52'!J41,10000000000)) -> 10000000000 | BE41: =IF($AV$41=10000000000,10000000000,IF('SOLAI T2D SPA'!$C$25<='ST BLOCCO 52'!K41,'ST BLOCCO 52'!K41,10000000000)) -> 10000000000 | BF41: =IF($AV$41=10000000000,10000000000,IF('SOLAI T2D SPA'!$C$25<='ST BLOCCO 52'!L41,'ST BLOCCO 52'!L41,10000000000)) -> 10000000000 | BG41: =IF($AV$41=10000000000,10000000000,IF('SOLAI T2D SPA'!$C$25<='ST BLOCCO 52'!M41,'ST BLOCCO 52'!M41,10000000000)) -> 10000000000 | BH41: =IF($AV$41=10000000000,10000000000,IF('SOLAI T2D SPA'!$C$25<='ST BLOCCO 52'!N41,'ST BLOCCO 52'!N41,10000000000)) -> 10000000000 | BI41: =IF($AV$41=10000000000,10000000000,IF('SOLAI T2D SPA'!$C$25<='ST BLOCCO 52'!O41,'ST BLOCCO 52'!O41,10000000000)) -> 10000000000 | BJ41: =IF($AV$41=10000000000,10000000000,IF('SOLAI T2D SPA'!$C$25<='ST BLOCCO 52'!P41,'ST BLOCCO 52'!P41,10000000000)) -> 10000000000 | BK41: =IF($AV$41=10000000000,10000000000,IF('SOLAI T2D SPA'!$C$25<='ST BLOCCO 52'!Q41,'ST BLOCCO 52'!Q41,10000000000)) -> 10000000000
AU42: =MIN(AU30:AU41) -> 10000000000 | AV42: =MIN(AV30:AV41) -> 10000000000 | AW42: =MIN(AW30:AW41) -> 20000000000 | AX42: =MIN(AX30:AX41) -> 10000000000 | AZ42: =MIN(AZ30:AZ41) -> 10000000000 | BA42: =MIN(BA30:BA41) -> 10000000000 | BB42: =MIN(BB30:BB41) -> 10000000000 | BC42: =MIN(BC30:BC41) -> 10000000000 | BD42: =MIN(BD30:BD41) -> 10000000000 | BE42: =MIN(BE30:BE41) -> 10000000000 | BF42: =MIN(BF30:BF41) -> 10000000000 | BG42: =MIN(BG30:BG41) -> 10000000000 | BH42: =MIN(BH30:BH41) -> 10000000000 | BI42: =MIN(BI30:BI41) -> 10000000000 | BJ42: =MIN(BJ30:BJ41) -> 10000000000 | BK42: =MIN(BK30:BK41) -> 10000000000 | BL42: =MIN(AZ42:BK42) -> 10000000000 | BM42: =IF(AND(U12=1,BL42=10000000000),1,0) -> 0
A43: INTERASSE 62 CM - Larghezza travetto 14 cm - Larghezza blocco 52
A44: MOMENTO POSITIVO | F44: Armatura standard | M44: Armatura non standard | Q44: Taglio ultimo
F45: 2f5 | G45: 2f5 + 1f8 | H45: 2f5 + 1f10 | I45: 2f5 + 1f12 | J45: 2f5 + 2f10 | K45: 2f5 + 1f10 + 1f12 | L45: 2f5 + 2f12 | M45: 2f5 + 1f12 + 1f14 | N45: 2f5 + 2f14 | O45: 2f5 + 1f14 + 1f16 | P45: 2f5 + 2f16
F46: Lunghezza travetti confezionati disponibili (cm) | M46: Travetti da confezionare su richiesta | U46: =IF(AND('SOLAI T2D SPA'!C2="Travetto_singolo",'SOLAI T2D SPA'!C4="Travetto_14",'SOLAI T2D SPA'!C5="Pignatta_48"),1,0) -> 0
F47: 100 | G47: 140 | H47: 360 | I47: 420 | J47: 480 | K47: 580 | L47: 640
F48: 120 | G48: 160 | H48: 380 | I48: 440 | J48: 500 | K48: 600 | L48: 660
G49: 180 | H49: 400 | I49: 460 | J49: 520 | K49: 620 | L49: 680 | AB49: 2f5 | AC49: 2f5 + 1f8 | AD49: 2f5 + 1f10 | AE49: 2f5 + 1f12 | AF49: 2f5 + 2f10 | AG49: 2f5 + 1f10 + 1f12 | AH49: 2f5 + 2f12 | AI49: 2f5 + 1f12 + 1f14 | AJ49: 2f5 + 2f14 | AK49: 2f5 + 1f14 + 1f16 | AL49: 2f5 + 2f16
G50: 200 | J50: 540 | L50: 700
G51: 220 | J51: 560
G52: 240
G53: 260 | AB53: =IF(AND(AB72=$AM$72,AB72<800000000),AB49,"") ->  | AC53: =IF(AND(AC72=$AM$72,AC72<800000000),AC49,"") ->  | AM53: =AB53&AC53&AD53&AE53&AF53&AG53&AH53&AI53&AJ53&AK53&AL53 -> 
G54: 280
G55: 300
G56: 320
G57: 340
A58: Altezza pignatta | B58: Spessore soletta | C58: Altezza solaio | D58: Peso solaio | E58: Volume cls getto in opera (l/mq) | F58: Momenti ultimi riferiti ad una striscia di solaio larga 1,00 metro | S58: CALCOLO
A59: [cm] | B59: [cm] | C59: [cm] | D59: [daN/mq] | E59: [l/mq] | F59: [daNm] | G59: [daNm] | H59: [daNm] | I59: [daNm] | J59: [daNm] | K59: [daNm] | L59: [daNm] | M59: [daNm] | N59: [daNm] | O59: [daNm] | P59: [daNm] | Q59: [daN] | W59: [cm] | X59: [cm] | Y59: [cm] | Z59: [daN/mq] | AB59: [daNm] | AC59: [daNm] | AD59: [daNm] | AE59: [daNm] | AF59: [daNm] | AG59: [daNm] | AH59: [daNm] | AI59: [daNm] | AJ59: [daNm] | AK59: [daNm] | AL59: [daNm] | AP59: [daN]
A60: 12 | B60: 4 | C60: =A60+B60 -> 16 | D60: 212 | F60: 345.016129 | G60: 779.2741935 | H60: 1019.548387 | I60: 1309.064516 | J60: 1671.419355 | K60: 1950.83871 | L60: 2226.193548 | M60: 2546.096774 | N60: 2860.064516 | O60: 3214.354839 | P60: 3561.451613 | Q60: 1450 | S60: ="MOM62"&A60&B60 -> MOM62124 | W60: =IF(AND($U$46=1,'SOLAI T2D SPA'!$C$6=A60),A60,10000000000) -> 10000000000 | X60: =IF(W60=10000000000,10000000000,IF('SOLAI T2D SPA'!$C$7='ST BLOCCO 52'!B60,'ST BLOCCO 52'!B60,10000000000)) -> 10000000000 | Y60: =W60+X60 -> 20000000000 | Z60: =IF(Y60>100000,10000000000,D60) -> 10000000000 | AB60: =IF($X$60=10000000000,10000000000,IF('SOLAI T2D SPA'!$C$20<=F60,F60,10000000000)) -> 10000000000 | AC60: =IF($X$60=10000000000,10000000000,IF('SOLAI T2D SPA'!$C$20<=G60,G60,10000000000)) -> 10000000000 | AD60: =IF($X$60=10000000000,10000000000,IF('SOLAI T2D SPA'!$C$20<=H60,H60,10000000000)) -> 10000000000 | AE60: =IF($X$60=10000000000,10000000000,IF('SOLAI T2D SPA'!$C$20<=I60,I60,10000000000)) -> 10000000000 | AF60: =IF($X$60=10000000000,10000000000,IF('SOLAI T2D SPA'!$C$20<=J60,J60,10000000000)) -> 10000000000 | AG60: =IF($X$60=10000000000,10000000000,IF('SOLAI T2D SPA'!$C$20<=K60,K60,10000000000)) -> 10000000000 | AH60: =IF($X$60=10000000000,10000000000,IF('SOLAI T2D SPA'!$C$20<=L60,L60,10000000000)) -> 10000000000 | AI60: =IF($X$60=10000000000,10000000000,IF('SOLAI T2D SPA'!$C$20<=M60,M60,10000000000)) -> 10000000000 | AJ60: =IF($X$60=10000000000,10000000000,IF('SOLAI T2D SPA'!$C$20<=N60,N60,10000000000)) -> 10000000000 | AK60: =IF($X$60=10000000000,10000000000,IF('SOLAI T2D SPA'!$C$20<=O60,O60,10000000000)) -> 10000000000 | AL60: =IF($X$60=10000000000,10000000000,IF('SOLAI T2D SPA'!$C$20<=P60,P60,10000000000)) -> 10000000000 | AP60: 1450
B61: 5 | C61: =A60+B61 -> 17 | D61: 237 | E61: 68 | F61: 370.0806452 | G61: 838.4677419 | H61: 1098.66129 | I61: 1413.677419 | J61: 1809.258065 | K61: 2116.258065 | L61: 2419.225806 | M61: 2773.564516 | N61: 3122.645161 | O61: 3519.387097 | P61: 3910.322581 | Q61: 1553.225806 | S61: ="MOM62"&A60&B61 -> MOM62125 | X61: =IF(W60=10000000000,10000000000,IF('SOLAI T2D SPA'!$C$7='ST BLOCCO 52'!B61,'ST BLOCCO 52'!B61,10000000000)) -> 10000000000 | Y61: =W60+X61 -> 20000000000 | Z61: =IF(Y61>100000,10000000000,D61) -> 10000000000 | AB61: =IF($X$61=10000000000,10000000000,IF('SOLAI T2D SPA'!$C$20<=F61,F61,10000000000)) -> 10000000000 | AC61: =IF($X$61=10000000000,10000000000,IF('SOLAI T2D SPA'!$C$20<=G61,G61,10000000000)) -> 10000000000 | AD61: =IF($X$61=10000000000,10000000000,IF('SOLAI T2D SPA'!$C$20<=H61,H61,10000000000)) -> 10000000000 | AE61: =IF($X$61=10000000000,10000000000,IF('SOLAI T2D SPA'!$C$20<=I61,I61,10000000000)) -> 10000000000 | AF61: =IF($X$61=10000000000,10000000000,IF('SOLAI T2D SPA'!$C$20<=J61,J61,10000000000)) -> 10000000000 | AG61: =IF($X$61=10000000000,10000000000,IF('SOLAI T2D SPA'!$C$20<=K61,K61,10000000000)) -> 10000000000 | AH61: =IF($X$61=10000000000,10000000000,IF('SOLAI T2D SPA'!$C$20<=L61,L61,10000000000)) -> 10000000000 | AI61: =IF($X$61=10000000000,10000000000,IF('SOLAI T2D SPA'!$C$20<=M61,M61,10000000000)) -> 10000000000 | AJ61: =IF($X$61=10000000000,10000000000,IF('SOLAI T2D SPA'!$C$20<=N61,N61,10000000000)) -> 10000000000 | AK61: =IF($X$61=10000000000,10000000000,IF('SOLAI T2D SPA'!$C$20<=O61,O61,10000000000)) -> 10000000000 | AL61: =IF($X$61=10000000000,10000000000,IF('SOLAI T2D SPA'!$C$20<=P61,P61,10000000000)) -> 10000000000 | AP61: 1553.225806
A62: 14 | B62: 4 | C62: =A62+B62 -> 18 | D62: 226 | F62: 394.3387097 | G62: 892.1451613 | H62: 1168.290323 | I62: 1501.354839 | J62: 1919.354839 | K62: 2242.274194 | L62: 2561.564516 | M62: 2933 | N62: 3298.483871 | O62: 3712.274194 | P62: 4118.129032 | Q62: 1656.451613 | S62: ="MOM62"&A62&B62 -> MOM62144 | W62: =IF(AND($U$46=1,'SOLAI T2D SPA'!$C$6=A62),A62,10000000000) -> 10000000000 | X62: =IF(W62=10000000000,10000000000,IF('SOLAI T2D SPA'!$C$7='ST BLOCCO 52'!B62,'ST BLOCCO 52'!B62,10000000000)) -> 10000000000 | Y62: =W62+X62 -> 20000000000 | Z62: 10000000000 | AB62: =IF($X$62=10000000000,10000000000,IF('SOLAI T2D SPA'!$C$20<=F62,F62,10000000000)) -> 10000000000 | AC62: =IF($X$62=10000000000,10000000000,IF('SOLAI T2D SPA'!$C$20<=G62,G62,10000000000)) -> 10000000000 | AD62: =IF($X$62=10000000000,10000000000,IF('SOLAI T2D SPA'!$C$20<=H62,H62,10000000000)) -> 10000000000 | AE62: =IF($X$62=10000000000,10000000000,IF('SOLAI T2D SPA'!$C$20<=I62,I62,10000000000)) -> 10000000000 | AF62: =IF($X$62=10000000000,10000000000,IF('SOLAI T2D SPA'!$C$20<=J62,J62,10000000000)) -> 10000000000 | AG62: =IF($X$62=10000000000,10000000000,IF('SOLAI T2D SPA'!$C$20<=K62,K62,10000000000)) -> 10000000000 | AH62: =IF($X$62=10000000000,10000000000,IF('SOLAI T2D SPA'!$C$20<=L62,L62,10000000000)) -> 10000000000 | AI62: =IF($X$62=10000000000,10000000000,IF('SOLAI T2D SPA'!$C$20<=M62,M62,10000000000)) -> 10000000000 | AJ62: =IF($X$62=10000000000,10000000000,IF('SOLAI T2D SPA'!$C$20<=N62,N62,10000000000)) -> 10000000000 | AK62: =IF($X$62=10000000000,10000000000,IF('SOLAI T2D SPA'!$C$20<=O62,O62,10000000000)) -> 10000000000 | AL62: =IF($X$62=10000000000,10000000000,IF('SOLAI T2D SPA'!$C$20<=P62,P62,10000000000)) -> 10000000000 | AP62: 1656.451613
B63: 5 | C63: =A62+B63 -> 19 | D63: 251 | E63: 74 | F63: 419.5645161 | G63: 951.2903226 | H63: 1247.193548 | I63: 1605.951613 | J63: 2056.903226 | K63: 2407.451613 | L63: 2754.548387 | M63: 3160.064516 | N63: 3560.967742 | O63: 4017 | P63: 4467.306452 | Q63: 1761.290323 | S63: ="MOM62"&A62&B63 -> MOM62145 | X63: =IF(W62=10000000000,10000000000,IF('SOLAI T2D SPA'!$C$7='ST BLOCCO 52'!B63,'ST BLOCCO 52'!B63,10000000000)) -> 10000000000 | Y63: =W62+X63 -> 20000000000 | Z63: 10000000000 | AB63: =IF($X$63=10000000000,10000000000,IF('SOLAI T2D SPA'!$C$20<=F63,F63,10000000000)) -> 10000000000 | AC63: =IF($X$63=10000000000,10000000000,IF('SOLAI T2D SPA'!$C$20<=G63,G63,10000000000)) -> 10000000000 | AD63: =IF($X$63=10000000000,10000000000,IF('SOLAI T2D SPA'!$C$20<=H63,H63,10000000000)) -> 10000000000 | AE63: =IF($X$63=10000000000,10000000000,IF('SOLAI T2D SPA'!$C$20<=I63,I63,10000000000)) -> 10000000000 | AF63: =IF($X$63=10000000000,10000000000,IF('SOLAI T2D SPA'!$C$20<=J63,J63,10000000000)) -> 10000000000 | AG63: =IF($X$63=10000000000,10000000000,IF('SOLAI T2D SPA'!$C$20<=K63,K63,10000000000)) -> 10000000000 | AH63: =IF($X$63=10000000000,10000000000,IF('SOLAI T2D SPA'!$C$20<=L63,L63,10000000000)) -> 10000000000 | AI63: =IF($X$63=10000000000,10000000000,IF('SOLAI T2D SPA'!$C$20<=M63,M63,10000000000)) -> 10000000000 | AJ63: =IF($X$63=10000000000,10000000000,IF('SOLAI T2D SPA'!$C$20<=N63,N63,10000000000)) -> 10000000000 | AK63: =IF($X$63=10000000000,10000000000,IF('SOLAI T2D SPA'!$C$20<=O63,O63,10000000000)) -> 10000000000 | AL63: =IF($X$63=10000000000,10000000000,IF('SOLAI T2D SPA'!$C$20<=P63,P63,10000000000)) -> 10000000000 | AP63: 1761.290323
A64: 16 | B64: 4 | C64: =A64+B64 -> 20 | D64: 242 | F64: 443.7903226 | G64: 1005.016129 | H64: 1316.758065 | I64: 1693.903226 | J64: 2167.064516 | K64: 2533.822581 | L64: 2896.548387 | M64: 3319.516129 | N64: 3736.532258 | O64: 4210.096774 | P64: 4675.758065 | Q64: 1864.516129 | S64: ="MOM62"&A64&B64 -> MOM62164 | W64: =IF(AND($U$46=1,'SOLAI T2D SPA'!$C$6=A64),A64,10000000000) -> 10000000000 | X64: =IF(W64=10000000000,10000000000,IF('SOLAI T2D SPA'!$C$7='ST BLOCCO 52'!B64,'ST BLOCCO 52'!B64,10000000000)) -> 10000000000 | Y64: =W64+X64 -> 20000000000 | Z64: 10000000000 | AB64: =IF($X$64=10000000000,10000000000,IF('SOLAI T2D SPA'!$C$20<=F64,F64,10000000000)) -> 10000000000 | AC64: =IF($X$64=10000000000,10000000000,IF('SOLAI T2D SPA'!$C$20<=G64,G64,10000000000)) -> 10000000000 | AD64: =IF($X$64=10000000000,10000000000,IF('SOLAI T2D SPA'!$C$20<=H64,H64,10000000000)) -> 10000000000 | AE64: =IF($X$64=10000000000,10000000000,IF('SOLAI T2D SPA'!$C$20<=I64,I64,10000000000)) -> 10000000000 | AF64: =IF($X$64=10000000000,10000000000,IF('SOLAI T2D SPA'!$C$20<=J64,J64,10000000000)) -> 10000000000 | AG64: =IF($X$64=10000000000,10000000000,IF('SOLAI T2D SPA'!$C$20<=K64,K64,10000000000)) -> 10000000000 | AH64: =IF($X$64=10000000000,10000000000,IF('SOLAI T2D SPA'!$C$20<=L64,L64,10000000000)) -> 10000000000 | AI64: =IF($X$64=10000000000,10000000000,IF('SOLAI T2D SPA'!$C$20<=M64,M64,10000000000)) -> 10000000000 | AJ64: =IF($X$64=10000000000,10000000000,IF('SOLAI T2D SPA'!$C$20<=N64,N64,10000000000)) -> 10000000000 | AK64: =IF($X$64=10000000000,10000000000,IF('SOLAI T2D SPA'!$C$20<=O64,O64,10000000000)) -> 10000000000 | AL64: =IF($X$64=10000000000,10000000000,IF('SOLAI T2D SPA'!$C$20<=P64,P64,10000000000)) -> 10000000000 | AP64: 1864.516129
B65: 5 | C65: =A64+B65 -> 21 | D65: 267 | E65: 77 | F65: 469.0645161 | G65: 1063.870968 | H65: 1395.677419 | I65: 1798 | J65: 2304.741935 | K65: 2699.306452 | L65: 3089.758065 | M65: 3546.967742 | N65: 3999.548387 | O65: 4514.774194 | P65: 5024.306452 | Q65: 1967.741935 | S65: ="MOM62"&A64&B65 -> MOM62165 | X65: =IF(W64=10000000000,10000000000,IF('SOLAI T2D SPA'!$C$7='ST BLOCCO 52'!B65,'ST BLOCCO 52'!B65,10000000000)) -> 10000000000 | Y65: =W64+X65 -> 20000000000 | Z65: 10000000000 | AB65: =IF($X$65=10000000000,10000000000,IF('SOLAI T2D SPA'!$C$20<=F65,F65,10000000000)) -> 10000000000 | AC65: =IF($X$65=10000000000,10000000000,IF('SOLAI T2D SPA'!$C$20<=G65,G65,10000000000)) -> 10000000000 | AD65: =IF($X$65=10000000000,10000000000,IF('SOLAI T2D SPA'!$C$20<=H65,H65,10000000000)) -> 10000000000 | AE65: =IF($X$65=10000000000,10000000000,IF('SOLAI T2D SPA'!$C$20<=I65,I65,10000000000)) -> 10000000000 | AF65: =IF($X$65=10000000000,10000000000,IF('SOLAI T2D SPA'!$C$20<=J65,J65,10000000000)) -> 10000000000 | AG65: =IF($X$65=10000000000,10000000000,IF('SOLAI T2D SPA'!$C$20<=K65,K65,10000000000)) -> 10000000000 | AH65: =IF($X$65=10000000000,10000000000,IF('SOLAI T2D SPA'!$C$20<=L65,L65,10000000000)) -> 10000000000 | AI65: =IF($X$65=10000000000,10000000000,IF('SOLAI T2D SPA'!$C$20<=M65,M65,10000000000)) -> 10000000000 | AJ65: =IF($X$65=10000000000,10000000000,IF('SOLAI T2D SPA'!$C$20<=N65,N65,10000000000)) -> 10000000000 | AK65: =IF($X$65=10000000000,10000000000,IF('SOLAI T2D SPA'!$C$20<=O65,O65,10000000000)) -> 10000000000 | AL65: =IF($X$65=10000000000,10000000000,IF('SOLAI T2D SPA'!$C$20<=P65,P65,10000000000)) -> 10000000000 | AP65: 1967.741935
A66: 18 | B66: 4 | C66: =A66+B66 -> 22 | D66: 256 | F66: 493.2258065 | G66: 1117.758065 | H66: 1465.080645 | I66: 1886.145161 | J66: 2415 | K66: 2825.645161 | L66: 3231.548387 | M66: 3705.887097 | N66: 4174.209677 | O66: 4707.516129 | P66: 5232.951613 | Q66: 2070.967742 | S66: ="MOM62"&A66&B66 -> MOM62184 | W66: =IF(AND($U$46=1,'SOLAI T2D SPA'!$C$6=A66),A66,10000000000) -> 10000000000 | X66: =IF(W66=10000000000,10000000000,IF('SOLAI T2D SPA'!$C$7='ST BLOCCO 52'!B66,'ST BLOCCO 52'!B66,10000000000)) -> 10000000000 | Y66: =W66+X66 -> 20000000000 | Z66: 10000000000 | AB66: =IF($X$66=10000000000,10000000000,IF('SOLAI T2D SPA'!$C$20<=F66,F66,10000000000)) -> 10000000000 | AC66: =IF($X$66=10000000000,10000000000,IF('SOLAI T2D SPA'!$C$20<=G66,G66,10000000000)) -> 10000000000 | AD66: =IF($X$66=10000000000,10000000000,IF('SOLAI T2D SPA'!$C$20<=H66,H66,10000000000)) -> 10000000000 | AE66: =IF($X$66=10000000000,10000000000,IF('SOLAI T2D SPA'!$C$20<=I66,I66,10000000000)) -> 10000000000 | AF66: =IF($X$66=10000000000,10000000000,IF('SOLAI T2D SPA'!$C$20<=J66,J66,10000000000)) -> 10000000000 | AG66: =IF($X$66=10000000000,10000000000,IF('SOLAI T2D SPA'!$C$20<=K66,K66,10000000000)) -> 10000000000 | AH66: =IF($X$66=10000000000,10000000000,IF('SOLAI T2D SPA'!$C$20<=L66,L66,10000000000)) -> 10000000000 | AI66: =IF($X$66=10000000000,10000000000,IF('SOLAI T2D SPA'!$C$20<=M66,M66,10000000000)) -> 10000000000 | AJ66: =IF($X$66=10000000000,10000000000,IF('SOLAI T2D SPA'!$C$20<=N66,N66,10000000000)) -> 10000000000 | AK66: =IF($X$66=10000000000,10000000000,IF('SOLAI T2D SPA'!$C$20<=O66,O66,10000000000)) -> 10000000000 | AL66: =IF($X$66=10000000000,10000000000,IF('SOLAI T2D SPA'!$C$20<=P66,P66,10000000000)) -> 10000000000 | AP66: 2070.967742
B67: 5 | C67: =A66+B67 -> 23 | D67: 281 | E67: 80 | F67: 518.4516129 | G67: 1176.645161 | H67: 1544.016129 | I67: 1990.080645 | J67: 2552.83871 | K67: 2990.629032 | L67: 3424.693548 | M67: 3933.629032 | N67: 4437.5 | O67: 5013.016129 | P67: 5581.822581 | Q67: 2135.483871 | S67: ="MOM62"&A66&B67 -> MOM62185 | X67: =IF(W66=10000000000,10000000000,IF('SOLAI T2D SPA'!$C$7='ST BLOCCO 52'!B67,'ST BLOCCO 52'!B67,10000000000)) -> 10000000000 | Y67: =W66+X67 -> 20000000000 | Z67: 10000000000 | AB67: =IF($X$67=10000000000,10000000000,IF('SOLAI T2D SPA'!$C$20<=F67,F67,10000000000)) -> 10000000000 | AC67: =IF($X$67=10000000000,10000000000,IF('SOLAI T2D SPA'!$C$20<=G67,G67,10000000000)) -> 10000000000 | AD67: =IF($X$67=10000000000,10000000000,IF('SOLAI T2D SPA'!$C$20<=H67,H67,10000000000)) -> 10000000000 | AE67: =IF($X$67=10000000000,10000000000,IF('SOLAI T2D SPA'!$C$20<=I67,I67,10000000000)) -> 10000000000 | AF67: =IF($X$67=10000000000,10000000000,IF('SOLAI T2D SPA'!$C$20<=J67,J67,10000000000)) -> 10000000000 | AG67: =IF($X$67=10000000000,10000000000,IF('SOLAI T2D SPA'!$C$20<=K67,K67,10000000000)) -> 10000000000 | AH67: =IF($X$67=10000000000,10000000000,IF('SOLAI T2D SPA'!$C$20<=L67,L67,10000000000)) -> 10000000000 | AI67: =IF($X$67=10000000000,10000000000,IF('SOLAI T2D SPA'!$C$20<=M67,M67,10000000000)) -> 10000000000 | AJ67: =IF($X$67=10000000000,10000000000,IF('SOLAI T2D SPA'!$C$20<=N67,N67,10000000000)) -> 10000000000 | AK67: =IF($X$67=10000000000,10000000000,IF('SOLAI T2D SPA'!$C$20<=O67,O67,10000000000)) -> 10000000000 | AL67: =IF($X$67=10000000000,10000000000,IF('SOLAI T2D SPA'!$C$20<=P67,P67,10000000000)) -> 10000000000 | AP67: 2135.483871
A68: 20 | B68: 4 | C68: =A68+B68 -> 24 | D68: 274 | F68: 542.6935484 | G68: 1230.596774 | H68: 1613.677419 | I68: 2078.080645 | J68: 2662.725806 | K68: 3116.774194 | L68: 3566.806452 | M68: 4092.612903 | N68: 4612.887097 | O68: 5205.16129 | P68: 5789.516129 | Q68: 2200 | S68: ="MOM62"&A68&B68 -> MOM62204 | W68: =IF(AND($U$46=1,'SOLAI T2D SPA'!$C$6=A68),A68,10000000000) -> 10000000000 | X68: =IF(W68=10000000000,10000000000,IF('SOLAI T2D SPA'!$C$7='ST BLOCCO 52'!B68,'ST BLOCCO 52'!B68,10000000000)) -> 10000000000 | Y68: =W68+X68 -> 20000000000 | Z68: 10000000000 | AB68: =IF($X$68=10000000000,10000000000,IF('SOLAI T2D SPA'!$C$20<=F68,F68,10000000000)) -> 10000000000 | AC68: =IF($X$68=10000000000,10000000000,IF('SOLAI T2D SPA'!$C$20<=G68,G68,10000000000)) -> 10000000000 | AD68: =IF($X$68=10000000000,10000000000,IF('SOLAI T2D SPA'!$C$20<=H68,H68,10000000000)) -> 10000000000 | AE68: =IF($X$68=10000000000,10000000000,IF('SOLAI T2D SPA'!$C$20<=I68,I68,10000000000)) -> 10000000000 | AF68: =IF($X$68=10000000000,10000000000,IF('SOLAI T2D SPA'!$C$20<=J68,J68,10000000000)) -> 10000000000 | AG68: =IF($X$68=10000000000,10000000000,IF('SOLAI T2D SPA'!$C$20<=K68,K68,10000000000)) -> 10000000000 | AH68: =IF($X$68=10000000000,10000000000,IF('SOLAI T2D SPA'!$C$20<=L68,L68,10000000000)) -> 10000000000 | AI68: =IF($X$68=10000000000,10000000000,IF('SOLAI T2D SPA'!$C$20<=M68,M68,10000000000)) -> 10000000000 | AJ68: =IF($X$68=10000000000,10000000000,IF('SOLAI T2D SPA'!$C$20<=N68,N68,10000000000)) -> 10000000000 | AK68: =IF($X$68=10000000000,10000000000,IF('SOLAI T2D SPA'!$C$20<=O68,O68,10000000000)) -> 10000000000 | AL68: =IF($X$68=10000000000,10000000000,IF('SOLAI T2D SPA'!$C$20<=P68,P68,10000000000)) -> 10000000000 | AP68: 2200
B69: 5 | C69: =A68+B69 -> 25 | D69: 299 | E69: 84 | F69: 567.8870968 | G69: 1289.435484 | H69: 1692.564516 | I69: 2181.935484 | J69: 2800.370968 | K69: 3281.870968 | L69: 3759.83871 | M69: 4319.967742 | N69: 4875.483871 | O69: 5510.129032 | P69: 6138.790323 | Q69: 2262.903226 | S69: ="MOM62"&A68&B69 -> MOM62205 | X69: =IF(W68=10000000000,10000000000,IF('SOLAI T2D SPA'!$C$7='ST BLOCCO 52'!B69,'ST BLOCCO 52'!B69,10000000000)) -> 10000000000 | Y69: =W68+X69 -> 20000000000 | Z69: 10000000000 | AB69: =IF($X$69=10000000000,10000000000,IF('SOLAI T2D SPA'!$C$20<=F69,F69,10000000000)) -> 10000000000 | AC69: =IF($X$69=10000000000,10000000000,IF('SOLAI T2D SPA'!$C$20<=G69,G69,10000000000)) -> 10000000000 | AD69: =IF($X$69=10000000000,10000000000,IF('SOLAI T2D SPA'!$C$20<=H69,H69,10000000000)) -> 10000000000 | AE69: =IF($X$69=10000000000,10000000000,IF('SOLAI T2D SPA'!$C$20<=I69,I69,10000000000)) -> 10000000000 | AF69: =IF($X$69=10000000000,10000000000,IF('SOLAI T2D SPA'!$C$20<=J69,J69,10000000000)) -> 10000000000 | AG69: =IF($X$69=10000000000,10000000000,IF('SOLAI T2D SPA'!$C$20<=K69,K69,10000000000)) -> 10000000000 | AH69: =IF($X$69=10000000000,10000000000,IF('SOLAI T2D SPA'!$C$20<=L69,L69,10000000000)) -> 10000000000 | AI69: =IF($X$69=10000000000,10000000000,IF('SOLAI T2D SPA'!$C$20<=M69,M69,10000000000)) -> 10000000000 | AJ69: =IF($X$69=10000000000,10000000000,IF('SOLAI T2D SPA'!$C$20<=N69,N69,10000000000)) -> 10000000000 | AK69: =IF($X$69=10000000000,10000000000,IF('SOLAI T2D SPA'!$C$20<=O69,O69,10000000000)) -> 10000000000 | AL69: =IF($X$69=10000000000,10000000000,IF('SOLAI T2D SPA'!$C$20<=P69,P69,10000000000)) -> 10000000000 | AP69: 2262.903226 | AZ69: 1f8 | BA69: 1f10 | BB69: 1f12 | BC69: 2f10 | BD69: 1f10 + 1f12 | BE69: 2f12 | BF69: 1f12 + 1f14 | BG69: 2f14 | BH69: 1f14 + 1f16 | BI69: 2f16 | BJ69: 1f16 + 1f18 | BK69: 2f18
A70: 25 | B70: 4 | C70: =A70+B70 -> 29 | D70: 311 | F70: 666.3387097 | G70: 1512.548387 | H70: 1984.790323 | I70: 2558.290323 | J70: 3282.354839 | K70: 3845.483871 | L70: 4404.5 | M70: 5059.290323 | N70: 5708.064516 | O70: 6449.5 | P70: 7182.354839 | Q70: 2509.677419 | S70: ="MOM62"&A70&B70 -> MOM62254 | W70: =IF(AND($U$46=1,'SOLAI T2D SPA'!$C$6=A70),A70,10000000000) -> 10000000000 | X70: =IF(W70=10000000000,10000000000,IF('SOLAI T2D SPA'!$C$7='ST BLOCCO 52'!B70,'ST BLOCCO 52'!B70,10000000000)) -> 10000000000 | Y70: =W70+X70 -> 20000000000 | Z70: 10000000000 | AB70: =IF($X$70=10000000000,10000000000,IF('SOLAI T2D SPA'!$C$20<=F70,F70,10000000000)) -> 10000000000 | AC70: =IF($X$70=10000000000,10000000000,IF('SOLAI T2D SPA'!$C$20<=G70,G70,10000000000)) -> 10000000000 | AD70: =IF($X$70=10000000000,10000000000,IF('SOLAI T2D SPA'!$C$20<=H70,H70,10000000000)) -> 10000000000 | AE70: =IF($X$70=10000000000,10000000000,IF('SOLAI T2D SPA'!$C$20<=I70,I70,10000000000)) -> 10000000000 | AF70: =IF($X$70=10000000000,10000000000,IF('SOLAI T2D SPA'!$C$20<=J70,J70,10000000000)) -> 10000000000 | AG70: =IF($X$70=10000000000,10000000000,IF('SOLAI T2D SPA'!$C$20<=K70,K70,10000000000)) -> 10000000000 | AH70: =IF($X$70=10000000000,10000000000,IF('SOLAI T2D SPA'!$C$20<=L70,L70,10000000000)) -> 10000000000 | AI70: =IF($X$70=10000000000,10000000000,IF('SOLAI T2D SPA'!$C$20<=M70,M70,10000000000)) -> 10000000000 | AJ70: =IF($X$70=10000000000,10000000000,IF('SOLAI T2D SPA'!$C$20<=N70,N70,10000000000)) -> 10000000000 | AK70: =IF($X$70=10000000000,10000000000,IF('SOLAI T2D SPA'!$C$20<=O70,O70,10000000000)) -> 10000000000 | AL70: =IF($X$70=10000000000,10000000000,IF('SOLAI T2D SPA'!$C$20<=P70,P70,10000000000)) -> 10000000000 | AP70: 2509.677419
B71: 5 | C71: =A70+B71 -> 30 | D71: 336 | E71: 96 | F71: 691.516129 | G71: 1571.209677 | H71: 2063.241935 | I71: 2662.193548 | J71: 3419.032258 | K71: 4009.854839 | L71: 4597.709677 | M71: 5286.629032 | N71: 5970.935484 | O71: 6754.774194 | P71: 7531.951613 | Q71: 2569.354839 | S71: ="MOM62"&A70&B71 -> MOM62255 | X71: =IF(W70=10000000000,10000000000,IF('SOLAI T2D SPA'!$C$7='ST BLOCCO 52'!B71,'ST BLOCCO 52'!B71,10000000000)) -> 10000000000 | Y71: =W70+X71 -> 20000000000 | Z71: 10000000000 | AB71: =IF($X$71=10000000000,10000000000,IF('SOLAI T2D SPA'!$C$20<=F71,F71,10000000000)) -> 10000000000 | AC71: =IF($X$71=10000000000,10000000000,IF('SOLAI T2D SPA'!$C$20<=G71,G71,10000000000)) -> 10000000000 | AD71: =IF($X$71=10000000000,10000000000,IF('SOLAI T2D SPA'!$C$20<=H71,H71,10000000000)) -> 10000000000 | AE71: =IF($X$71=10000000000,10000000000,IF('SOLAI T2D SPA'!$C$20<=I71,I71,10000000000)) -> 10000000000 | AF71: =IF($X$71=10000000000,10000000000,IF('SOLAI T2D SPA'!$C$20<=J71,J71,10000000000)) -> 10000000000 | AG71: =IF($X$71=10000000000,10000000000,IF('SOLAI T2D SPA'!$C$20<=K71,K71,10000000000)) -> 10000000000 | AH71: =IF($X$71=10000000000,10000000000,IF('SOLAI T2D SPA'!$C$20<=L71,L71,10000000000)) -> 10000000000 | AI71: =IF($X$71=10000000000,10000000000,IF('SOLAI T2D SPA'!$C$20<=M71,M71,10000000000)) -> 10000000000 | AJ71: =IF($X$71=10000000000,10000000000,IF('SOLAI T2D SPA'!$C$20<=N71,N71,10000000000)) -> 10000000000 | AK71: =IF($X$71=10000000000,10000000000,IF('SOLAI T2D SPA'!$C$20<=O71,O71,10000000000)) -> 10000000000 | AL71: =IF($X$71=10000000000,10000000000,IF('SOLAI T2D SPA'!$C$20<=P71,P71,10000000000)) -> 10000000000 | AP71: 2569.354839 | AZ71: =IF(AND(AZ88<800000000,AZ88=$BL$88),AZ69,"") ->  | BA71: =IF(AND(BA88<800000000,BA88=$BL$88),BA69,"") ->  | BL71: =AZ71&BA71&BB71&BC71&BD71&BE71&BF71&BG71&BH71&BI71&BJ71&BK71 -> 
W72: =MIN(W60:W71) -> 10000000000 | X72: 10000000000 | Y72: 20000000000 | Z72: 10000000000 | AB72: =MIN(AB60:AB71) -> 10000000000 | AC72: =MIN(AC60:AC71) -> 10000000000 | AD72: 10000000000 | AE72: 10000000000 | AF72: 10000000000 | AG72: 10000000000 | AH72: 10000000000 | AI72: 10000000000 | AJ72: 10000000000 | AK72: 10000000000 | AL72: 10000000000 | AM72: =MIN(AB72:AL72) -> 10000000000 | AN72: =IF(AND(U46=1,AM72=10000000000),1,0) -> 0
A74: MOMENTO NEGATIVO | F74: 1f8 | G74: 1f10 | H74: 1f12 | I74: 2f10 | J74: 1f10 + 1f12 | K74: 2f12 | L74: 1f12 + 1f14 | M74: 2f14 | N74: 1f14 + 1f16 | O74: 2f16 | P74: 1f16 + 1f18 | Q74: 2f18
A75: Altezza pignatta | B75: Spessore soletta | C75: Altezza solaio | D75: Peso solaio | E75: Volume cls getto in opera (l/mq) | F75: Momenti ultimi riferiti ad una striscia di solaio larga 1,00 metro | W75: =MIN(W72,W26) -> 10000000000 | X75: =MIN(X72,X26) -> 10000000000 | Y75: 20000000000 | Z75: 10000000000 | AM75: =MIN(AM72,AM26) -> 10000000000 | AU75: Altezza pignatta | AV75: Spessore soletta | AW75: Altezza solaio | AX75: Peso solaio | AZ75: Momenti ultimi riferiti ad una striscia di solaio larga 1,00 metro
A76: 12 | B76: 4 | C76: =A76+B76 -> 16 | D76: 212 | F76: 441.483871 | G76: 687 | H76: 984.1612903 | I76: 1357.112903 | J76: 1646.16129 | K76: 1931.870968 | L76: 2264.870968 | M76: 2592.822581 | N76: 2965.16129 | O76: 3331.741935 | P76: 3738.306452 | Q76: 4137.322581 | AU76: =W60 -> 10000000000 | AV76: 10000000000 | AW76: =AU76+AV76 -> 20000000000 | AX76: =Z60 -> 10000000000 | AZ76: =IF($AV$76=10000000000,10000000000,IF('SOLAI T2D SPA'!$C$25<=F76,F76,10000000000)) -> 10000000000 | BA76: =IF($AV$76=10000000000,10000000000,IF('SOLAI T2D SPA'!$C$25<=G76,G76,10000000000)) -> 10000000000 | BB76: =IF($AV$76=10000000000,10000000000,IF('SOLAI T2D SPA'!$C$25<=H76,H76,10000000000)) -> 10000000000 | BC76: =IF($AV$76=10000000000,10000000000,IF('SOLAI T2D SPA'!$C$25<=I76,I76,10000000000)) -> 10000000000 | BD76: =IF($AV$76=10000000000,10000000000,IF('SOLAI T2D SPA'!$C$25<=J76,J76,10000000000)) -> 10000000000 | BE76: =IF($AV$76=10000000000,10000000000,IF('SOLAI T2D SPA'!$C$25<=K76,K76,10000000000)) -> 10000000000 | BF76: =IF($AV$76=10000000000,10000000000,IF('SOLAI T2D SPA'!$C$25<=L76,L76,10000000000)) -> 10000000000 | BG76: =IF($AV$76=10000000000,10000000000,IF('SOLAI T2D SPA'!$C$25<=M76,M76,10000000000)) -> 10000000000 | BH76: =IF($AV$76=10000000000,10000000000,IF('SOLAI T2D SPA'!$C$25<=N76,N76,10000000000)) -> 10000000000 | BI76: =IF($AV$76=10000000000,10000000000,IF('SOLAI T2D SPA'!$C$25<=O76,O76,10000000000)) -> 10000000000 | BJ76: =IF($AV$76=10000000000,10000000000,IF('SOLAI T2D SPA'!$C$25<=P76,P76,10000000000)) -> 10000000000 | BK76: =IF($AV$76=10000000000,10000000000,IF('SOLAI T2D SPA'!$C$25<=Q76,Q76,10000000000)) -> 10000000000
B77: 5 | C77: =A76+B77 -> 17 | D77: 237 | F77: 473.0967742 | G77: 736.483871 | H77: 1055.370968 | I77: 1456.290323 | J77: 1767.209677 | K77: 2074.419355 | L77: 2432.951613 | M77: 2787.16129 | N77: 3189.548387 | O77: 3585.516129 | P77: 4025.822581 | Q77: 4458.693548 | AV77: =X61 -> 10000000000 | AW77: =AU76+AV77 -> 20000000000 | AX77: =Z61 -> 10000000000 | AZ77: =IF($AV$77=10000000000,10000000000,IF('SOLAI T2D SPA'!$C$25<=F77,F77,10000000000)) -> 10000000000 | BA77: =IF($AV$77=10000000000,10000000000,IF('SOLAI T2D SPA'!$C$25<=G77,G77,10000000000)) -> 10000000000 | BB77: =IF($AV$77=10000000000,10000000000,IF('SOLAI T2D SPA'!$C$25<=H77,H77,10000000000)) -> 10000000000 | BC77: =IF($AV$77=10000000000,10000000000,IF('SOLAI T2D SPA'!$C$25<=I77,I77,10000000000)) -> 10000000000 | BD77: =IF($AV$77=10000000000,10000000000,IF('SOLAI T2D SPA'!$C$25<=J77,J77,10000000000)) -> 10000000000 | BE77: =IF($AV$77=10000000000,10000000000,IF('SOLAI T2D SPA'!$C$25<=K77,K77,10000000000)) -> 10000000000 | BF77: =IF($AV$77=10000000000,10000000000,IF('SOLAI T2D SPA'!$C$25<=L77,L77,10000000000)) -> 10000000000 | BG77: =IF($AV$77=10000000000,10000000000,IF('SOLAI T2D SPA'!$C$25<=M77,M77,10000000000)) -> 10000000000 | BH77: =IF($AV$77=10000000000,10000000000,IF('SOLAI T2D SPA'!$C$25<=N77,N77,10000000000)) -> 10000000000 | BI77: =IF($AV$77=10000000000,10000000000,IF('SOLAI T2D SPA'!$C$25<=O77,O77,10000000000)) -> 10000000000 | BJ77: =IF($AV$77=10000000000,10000000000,IF('SOLAI T2D SPA'!$C$25<=P77,P77,10000000000)) -> 10000000000 | BK77: =IF($AV$77=10000000000,10000000000,IF('SOLAI T2D SPA'!$C$25<=Q77,Q77,10000000000)) -> 10000000000
A78: 14 | B78: 4 | C78: =A78+B78 -> 18 | D78: 226 | F78: 504.6451613 | G78: 786.0322581 | H78: 1126.564516 | I78: 1555.467742 | J78: 1887.887097 | K78: 2217.129032 | L78: 2601.419355 | M78: 2981.483871 | N78: 3413.419355 | O78: 3838.983871 | P78: 4313.354839 | Q78: 4780.451613 | AU78: =W62 -> 10000000000 | AV78: 10000000000 | AW78: =AU78+AV78 -> 20000000000 | AX78: 10000000000 | AZ78: =IF($AV$78=10000000000,10000000000,IF('SOLAI T2D SPA'!$C$25<=F78,F78,10000000000)) -> 10000000000 | BA78: =IF($AV$78=10000000000,10000000000,IF('SOLAI T2D SPA'!$C$25<=G78,G78,10000000000)) -> 10000000000 | BB78: =IF($AV$78=10000000000,10000000000,IF('SOLAI T2D SPA'!$C$25<=H78,H78,10000000000)) -> 10000000000 | BC78: =IF($AV$78=10000000000,10000000000,IF('SOLAI T2D SPA'!$C$25<=I78,I78,10000000000)) -> 10000000000 | BD78: =IF($AV$78=10000000000,10000000000,IF('SOLAI T2D SPA'!$C$25<=J78,J78,10000000000)) -> 10000000000 | BE78: =IF($AV$78=10000000000,10000000000,IF('SOLAI T2D SPA'!$C$25<=K78,K78,10000000000)) -> 10000000000 | BF78: =IF($AV$78=10000000000,10000000000,IF('SOLAI T2D SPA'!$C$25<=L78,L78,10000000000)) -> 10000000000 | BG78: =IF($AV$78=10000000000,10000000000,IF('SOLAI T2D SPA'!$C$25<=M78,M78,10000000000)) -> 10000000000 | BH78: =IF($AV$78=10000000000,10000000000,IF('SOLAI T2D SPA'!$C$25<=N78,N78,10000000000)) -> 10000000000 | BI78: =IF($AV$78=10000000000,10000000000,IF('SOLAI T2D SPA'!$C$25<=O78,O78,10000000000)) -> 10000000000 | BJ78: =IF($AV$78=10000000000,10000000000,IF('SOLAI T2D SPA'!$C$25<=P78,P78,10000000000)) -> 10000000000 | BK78: =IF($AV$78=10000000000,10000000000,IF('SOLAI T2D SPA'!$C$25<=Q78,Q78,10000000000)) -> 10000000000
B79: 5 | C79: =A78+B79 -> 19 | D79: 251 | F79: 536.3387097 | G79: 835.4677419 | H79: 1197.951613 | I79: 1654.274194 | J79: 2009.080645 | K79: 2359.887097 | L79: 2770.177419 | M79: 3175.580645 | N79: 3637.177419 | O79: 4092.548387 | P79: 4601.33871 | Q79: 5100.903226 | AV79: 10000000000 | AW79: =AU78+AV79 -> 20000000000 | AX79: 10000000000 | AZ79: =IF($AV$79=10000000000,10000000000,IF('SOLAI T2D SPA'!$C$25<=F79,F79,10000000000)) -> 10000000000 | BA79: =IF($AV$79=10000000000,10000000000,IF('SOLAI T2D SPA'!$C$25<=G79,G79,10000000000)) -> 10000000000 | BB79: =IF($AV$79=10000000000,10000000000,IF('SOLAI T2D SPA'!$C$25<=H79,H79,10000000000)) -> 10000000000 | BC79: =IF($AV$79=10000000000,10000000000,IF('SOLAI T2D SPA'!$C$25<=I79,I79,10000000000)) -> 10000000000 | BD79: =IF($AV$79=10000000000,10000000000,IF('SOLAI T2D SPA'!$C$25<=J79,J79,10000000000)) -> 10000000000 | BE79: =IF($AV$79=10000000000,10000000000,IF('SOLAI T2D SPA'!$C$25<=K79,K79,10000000000)) -> 10000000000 | BF79: =IF($AV$79=10000000000,10000000000,IF('SOLAI T2D SPA'!$C$25<=L79,L79,10000000000)) -> 10000000000 | BG79: =IF($AV$79=10000000000,10000000000,IF('SOLAI T2D SPA'!$C$25<=M79,M79,10000000000)) -> 10000000000 | BH79: =IF($AV$79=10000000000,10000000000,IF('SOLAI T2D SPA'!$C$25<=N79,N79,10000000000)) -> 10000000000 | BI79: =IF($AV$79=10000000000,10000000000,IF('SOLAI T2D SPA'!$C$25<=O79,O79,10000000000)) -> 10000000000 | BJ79: =IF($AV$79=10000000000,10000000000,IF('SOLAI T2D SPA'!$C$25<=P79,P79,10000000000)) -> 10000000000 | BK79: =IF($AV$79=10000000000,10000000000,IF('SOLAI T2D SPA'!$C$25<=Q79,Q79,10000000000)) -> 10000000000
A80: 16 | B80: 4 | C80: =A80+B80 -> 20 | D80: 242 | F80: 567.9354839 | G80: 884.9516129 | H80: 1269.16129 | I80: 1753.532258 | J80: 2130.129032 | K80: 2502.66129 | L80: 2939.080645 | M80: 3369.903226 | N80: 3861.467742 | O80: 4346.822581 | P80: 4888.403226 | Q80: 5422.790323 | AU80: =W64 -> 10000000000 | AV80: 10000000000 | AW80: =AU80+AV80 -> 20000000000 | AX80: 10000000000 | AZ80: =IF($AV$80=10000000000,10000000000,IF('SOLAI T2D SPA'!$C$25<=F80,F80,10000000000)) -> 10000000000 | BA80: =IF($AV$80=10000000000,10000000000,IF('SOLAI T2D SPA'!$C$25<=G80,G80,10000000000)) -> 10000000000 | BB80: =IF($AV$80=10000000000,10000000000,IF('SOLAI T2D SPA'!$C$25<=H80,H80,10000000000)) -> 10000000000 | BC80: =IF($AV$80=10000000000,10000000000,IF('SOLAI T2D SPA'!$C$25<=I80,I80,10000000000)) -> 10000000000 | BD80: =IF($AV$80=10000000000,10000000000,IF('SOLAI T2D SPA'!$C$25<=J80,J80,10000000000)) -> 10000000000 | BE80: =IF($AV$80=10000000000,10000000000,IF('SOLAI T2D SPA'!$C$25<=K80,K80,10000000000)) -> 10000000000 | BF80: =IF($AV$80=10000000000,10000000000,IF('SOLAI T2D SPA'!$C$25<=L80,L80,10000000000)) -> 10000000000 | BG80: =IF($AV$80=10000000000,10000000000,IF('SOLAI T2D SPA'!$C$25<=M80,M80,10000000000)) -> 10000000000 | BH80: =IF($AV$80=10000000000,10000000000,IF('SOLAI T2D SPA'!$C$25<=N80,N80,10000000000)) -> 10000000000 | BI80: =IF($AV$80=10000000000,10000000000,IF('SOLAI T2D SPA'!$C$25<=O80,O80,10000000000)) -> 10000000000 | BJ80: =IF($AV$80=10000000000,10000000000,IF('SOLAI T2D SPA'!$C$25<=P80,P80,10000000000)) -> 10000000000 | BK80: =IF($AV$80=10000000000,10000000000,IF('SOLAI T2D SPA'!$C$25<=Q80,Q80,10000000000)) -> 10000000000
B81: 5 | C81: =A80+B81 -> 21 | D81: 267 | F81: 599.5806452 | G81: 934.3387097 | H81: 1340.483871 | I81: 1852.564516 | J81: 2251.096774 | K81: 2645.354839 | L81: 3107.274194 | M81: 3564.354839 | N81: 4086.048387 | O81: 4600.677419 | P81: 5176.225806 | Q81: 5743.451613 | AV81: 10000000000 | AW81: =AU80+AV81 -> 20000000000 | AX81: 10000000000 | AZ81: =IF($AV$81=10000000000,10000000000,IF('SOLAI T2D SPA'!$C$25<=F81,F81,10000000000)) -> 10000000000 | BA81: =IF($AV$81=10000000000,10000000000,IF('SOLAI T2D SPA'!$C$25<=G81,G81,10000000000)) -> 10000000000 | BB81: =IF($AV$81=10000000000,10000000000,IF('SOLAI T2D SPA'!$C$25<=H81,H81,10000000000)) -> 10000000000 | BC81: =IF($AV$81=10000000000,10000000000,IF('SOLAI T2D SPA'!$C$25<=I81,I81,10000000000)) -> 10000000000 | BD81: =IF($AV$81=10000000000,10000000000,IF('SOLAI T2D SPA'!$C$25<=J81,J81,10000000000)) -> 10000000000 | BE81: =IF($AV$81=10000000000,10000000000,IF('SOLAI T2D SPA'!$C$25<=K81,K81,10000000000)) -> 10000000000 | BF81: =IF($AV$81=10000000000,10000000000,IF('SOLAI T2D SPA'!$C$25<=L81,L81,10000000000)) -> 10000000000 | BG81: =IF($AV$81=10000000000,10000000000,IF('SOLAI T2D SPA'!$C$25<=M81,M81,10000000000)) -> 10000000000 | BH81: =IF($AV$81=10000000000,10000000000,IF('SOLAI T2D SPA'!$C$25<=N81,N81,10000000000)) -> 10000000000 | BI81: =IF($AV$81=10000000000,10000000000,IF('SOLAI T2D SPA'!$C$25<=O81,O81,10000000000)) -> 10000000000 | BJ81: =IF($AV$81=10000000000,10000000000,IF('SOLAI T2D SPA'!$C$25<=P81,P81,10000000000)) -> 10000000000 | BK81: =IF($AV$81=10000000000,10000000000,IF('SOLAI T2D SPA'!$C$25<=Q81,Q81,10000000000)) -> 10000000000
A82: 18 | B82: 4 | C82: =A82+B82 -> 22 | D82: 256 | F82: 631.2258065 | G82: 983.8870968 | H82: 1411.580645 | I82: 1951.306452 | J82: 2371.870968 | K82: 2788.387097 | L82: 3276.112903 | M82: 3758.806452 | N82: 4309.919355 | O82: 4853.854839 | P82: 5463.467742 | Q82: 6064.870968 | AU82: =W66 -> 10000000000 | AV82: 10000000000 | AW82: =AU82+AV82 -> 20000000000 | AX82: 10000000000 | AZ82: =IF($AV$82=10000000000,10000000000,IF('SOLAI T2D SPA'!$C$25<=F82,F82,10000000000)) -> 10000000000 | BA82: =IF($AV$82=10000000000,10000000000,IF('SOLAI T2D SPA'!$C$25<=G82,G82,10000000000)) -> 10000000000 | BB82: =IF($AV$82=10000000000,10000000000,IF('SOLAI T2D SPA'!$C$25<=H82,H82,10000000000)) -> 10000000000 | BC82: =IF($AV$82=10000000000,10000000000,IF('SOLAI T2D SPA'!$C$25<=I82,I82,10000000000)) -> 10000000000 | BD82: =IF($AV$82=10000000000,10000000000,IF('SOLAI T2D SPA'!$C$25<=J82,J82,10000000000)) -> 10000000000 | BE82: =IF($AV$82=10000000000,10000000000,IF('SOLAI T2D SPA'!$C$25<=K82,K82,10000000000)) -> 10000000000 | BF82: =IF($AV$82=10000000000,10000000000,IF('SOLAI T2D SPA'!$C$25<=L82,L82,10000000000)) -> 10000000000 | BG82: =IF($AV$82=10000000000,10000000000,IF('SOLAI T2D SPA'!$C$25<=M82,M82,10000000000)) -> 10000000000 | BH82: =IF($AV$82=10000000000,10000000000,IF('SOLAI T2D SPA'!$C$25<=N82,N82,10000000000)) -> 10000000000 | BI82: =IF($AV$82=10000000000,10000000000,IF('SOLAI T2D SPA'!$C$25<=O82,O82,10000000000)) -> 10000000000 | BJ82: =IF($AV$82=10000000000,10000000000,IF('SOLAI T2D SPA'!$C$25<=P82,P82,10000000000)) -> 10000000000 | BK82: =IF($AV$82=10000000000,10000000000,IF('SOLAI T2D SPA'!$C$25<=Q82,Q82,10000000000)) -> 10000000000
B83: 5 | C83: =A82+B83 -> 23 | D83: 281 | F83: 662.9193548 | G83: 1033.274194 | H83: 1483.016129 | I83: 2050.596774 | J83: 2492.645161 | K83: 2931.129032 | L83: 3444.532258 | M83: 3952.919355 | N83: 4533.967742 | O83: 5107.854839 | P83: 5751.290323 | Q83: 6385.870968 | AV83: 10000000000 | AW83: =AU82+AV83 -> 20000000000 | AX83: 10000000000 | AZ83: =IF($AV$83=10000000000,10000000000,IF('SOLAI T2D SPA'!$C$25<=F83,F83,10000000000)) -> 10000000000 | BA83: =IF($AV$83=10000000000,10000000000,IF('SOLAI T2D SPA'!$C$25<=G83,G83,10000000000)) -> 10000000000 | BB83: =IF($AV$83=10000000000,10000000000,IF('SOLAI T2D SPA'!$C$25<=H83,H83,10000000000)) -> 10000000000 | BC83: =IF($AV$83=10000000000,10000000000,IF('SOLAI T2D SPA'!$C$25<=I83,I83,10000000000)) -> 10000000000 | BD83: =IF($AV$83=10000000000,10000000000,IF('SOLAI T2D SPA'!$C$25<=J83,J83,10000000000)) -> 10000000000 | BE83: =IF($AV$83=10000000000,10000000000,IF('SOLAI T2D SPA'!$C$25<=K83,K83,10000000000)) -> 10000000000 | BF83: =IF($AV$83=10000000000,10000000000,IF('SOLAI T2D SPA'!$C$25<=L83,L83,10000000000)) -> 10000000000 | BG83: =IF($AV$83=10000000000,10000000000,IF('SOLAI T2D SPA'!$C$25<=M83,M83,10000000000)) -> 10000000000 | BH83: =IF($AV$83=10000000000,10000000000,IF('SOLAI T2D SPA'!$C$25<=N83,N83,10000000000)) -> 10000000000 | BI83: =IF($AV$83=10000000000,10000000000,IF('SOLAI T2D SPA'!$C$25<=O83,O83,10000000000)) -> 10000000000 | BJ83: =IF($AV$83=10000000000,10000000000,IF('SOLAI T2D SPA'!$C$25<=P83,P83,10000000000)) -> 10000000000 | BK83: =IF($AV$83=10000000000,10000000000,IF('SOLAI T2D SPA'!$C$25<=Q83,Q83,10000000000)) -> 10000000000
A84: 20 | B84: 4 | C84: =A84+B84 -> 24 | D84: 274 | F84: 694.5483871 | G84: 1082.693548 | H84: 1554.274194 | I84: 2149.451613 | J84: 2613.677419 | K84: 3073.758065 | L84: 3612.83871 | M84: 4147 | N84: 4757.548387 | O84: 5361.564516 | P84: 6038.951613 | Q84: 6707.516129 | AU84: =W68 -> 10000000000 | AV84: 10000000000 | AW84: =AU84+AV84 -> 20000000000 | AX84: 10000000000 | AZ84: =IF($AV$84=10000000000,10000000000,IF('SOLAI T2D SPA'!$C$25<=F84,F84,10000000000)) -> 10000000000 | BA84: =IF($AV$84=10000000000,10000000000,IF('SOLAI T2D SPA'!$C$25<=G84,G84,10000000000)) -> 10000000000 | BB84: =IF($AV$84=10000000000,10000000000,IF('SOLAI T2D SPA'!$C$25<=H84,H84,10000000000)) -> 10000000000 | BC84: =IF($AV$84=10000000000,10000000000,IF('SOLAI T2D SPA'!$C$25<=I84,I84,10000000000)) -> 10000000000 | BD84: =IF($AV$84=10000000000,10000000000,IF('SOLAI T2D SPA'!$C$25<=J84,J84,10000000000)) -> 10000000000 | BE84: =IF($AV$84=10000000000,10000000000,IF('SOLAI T2D SPA'!$C$25<=K84,K84,10000000000)) -> 10000000000 | BF84: =IF($AV$84=10000000000,10000000000,IF('SOLAI T2D SPA'!$C$25<=L84,L84,10000000000)) -> 10000000000 | BG84: =IF($AV$84=10000000000,10000000000,IF('SOLAI T2D SPA'!$C$25<=M84,M84,10000000000)) -> 10000000000 | BH84: =IF($AV$84=10000000000,10000000000,IF('SOLAI T2D SPA'!$C$25<=N84,N84,10000000000)) -> 10000000000 | BI84: =IF($AV$84=10000000000,10000000000,IF('SOLAI T2D SPA'!$C$25<=O84,O84,10000000000)) -> 10000000000 | BJ84: =IF($AV$84=10000000000,10000000000,IF('SOLAI T2D SPA'!$C$25<=P84,P84,10000000000)) -> 10000000000 | BK84: =IF($AV$84=10000000000,10000000000,IF('SOLAI T2D SPA'!$C$25<=Q84,Q84,10000000000)) -> 10000000000
B85: 5 | C85: =A84+B85 -> 25 | D85: 299 | F85: 726.2419355 | G85: 1132.016129 | H85: 1625.451613 | I85: 2248.435484 | J85: 2734.225806 | K85: 3216.612903 | L85: 3781.629032 | M85: 4341.645161 | N85: 4981.951613 | O85: 5615.629032 | P85: 6325.887097 | Q85: 7028.548387 | AV85: 10000000000 | AW85: =AU84+AV85 -> 20000000000 | AX85: 10000000000 | AZ85: =IF($AV$85=10000000000,10000000000,IF('SOLAI T2D SPA'!$C$25<=F85,F85,10000000000)) -> 10000000000 | BA85: =IF($AV$85=10000000000,10000000000,IF('SOLAI T2D SPA'!$C$25<=G85,G85,10000000000)) -> 10000000000 | BB85: =IF($AV$85=10000000000,10000000000,IF('SOLAI T2D SPA'!$C$25<=H85,H85,10000000000)) -> 10000000000 | BC85: =IF($AV$85=10000000000,10000000000,IF('SOLAI T2D SPA'!$C$25<=I85,I85,10000000000)) -> 10000000000 | BD85: =IF($AV$85=10000000000,10000000000,IF('SOLAI T2D SPA'!$C$25<=J85,J85,10000000000)) -> 10000000000 | BE85: =IF($AV$85=10000000000,10000000000,IF('SOLAI T2D SPA'!$C$25<=K85,K85,10000000000)) -> 10000000000 | BF85: =IF($AV$85=10000000000,10000000000,IF('SOLAI T2D SPA'!$C$25<=L85,L85,10000000000)) -> 10000000000 | BG85: =IF($AV$85=10000000000,10000000000,IF('SOLAI T2D SPA'!$C$25<=M85,M85,10000000000)) -> 10000000000 | BH85: =IF($AV$85=10000000000,10000000000,IF('SOLAI T2D SPA'!$C$25<=N85,N85,10000000000)) -> 10000000000 | BI85: =IF($AV$85=10000000000,10000000000,IF('SOLAI T2D SPA'!$C$25<=O85,O85,10000000000)) -> 10000000000 | BJ85: =IF($AV$85=10000000000,10000000000,IF('SOLAI T2D SPA'!$C$25<=P85,P85,10000000000)) -> 10000000000 | BK85: =IF($AV$85=10000000000,10000000000,IF('SOLAI T2D SPA'!$C$25<=Q85,Q85,10000000000)) -> 10000000000
A86: 25 | B86: 4 | C86: =A86+B86 -> 29 | D86: 311 | F86: 852.8225806 | G86: 1329.822581 | H86: 1910.33871 | I86: 2644.370968 | J86: 3217.290323 | K86: 3787.096774 | L86: 4455.612903 | M86: 5118.774194 | N86: 5878.048387 | O86: 6630.822581 | P86: 7476.032258 | Q86: 8312.903226 | AU86: =W70 -> 10000000000 | AV86: 10000000000 | AW86: =AU86+AV86 -> 20000000000 | AX86: 10000000000 | AZ86: =IF($AV$86=10000000000,10000000000,IF('SOLAI T2D SPA'!$C$25<=F86,F86,10000000000)) -> 10000000000 | BA86: =IF($AV$86=10000000000,10000000000,IF('SOLAI T2D SPA'!$C$25<=G86,G86,10000000000)) -> 10000000000 | BB86: =IF($AV$86=10000000000,10000000000,IF('SOLAI T2D SPA'!$C$25<=H86,H86,10000000000)) -> 10000000000 | BC86: =IF($AV$86=10000000000,10000000000,IF('SOLAI T2D SPA'!$C$25<=I86,I86,10000000000)) -> 10000000000 | BD86: =IF($AV$86=10000000000,10000000000,IF('SOLAI T2D SPA'!$C$25<=J86,J86,10000000000)) -> 10000000000 | BE86: =IF($AV$86=10000000000,10000000000,IF('SOLAI T2D SPA'!$C$25<=K86,K86,10000000000)) -> 10000000000 | BF86: =IF($AV$86=10000000000,10000000000,IF('SOLAI T2D SPA'!$C$25<=L86,L86,10000000000)) -> 10000000000 | BG86: =IF($AV$86=10000000000,10000000000,IF('SOLAI T2D SPA'!$C$25<=M86,M86,10000000000)) -> 10000000000 | BH86: =IF($AV$86=10000000000,10000000000,IF('SOLAI T2D SPA'!$C$25<=N86,N86,10000000000)) -> 10000000000 | BI86: =IF($AV$86=10000000000,10000000000,IF('SOLAI T2D SPA'!$C$25<=O86,O86,10000000000)) -> 10000000000 | BJ86: =IF($AV$86=10000000000,10000000000,IF('SOLAI T2D SPA'!$C$25<=P86,P86,10000000000)) -> 10000000000 | BK86: =IF($AV$86=10000000000,10000000000,IF('SOLAI T2D SPA'!$C$25<=Q86,Q86,10000000000)) -> 10000000000
B87: 5 | C87: =A86+B87 -> 30 | D87: 336 | F87: 884.4193548 | G87: 1379.193548 | H87: 1981.387097 | I87: 2743.435484 | J87: 3338.33871 | K87: 3929.516129 | L87: 4624.33871 | M87: 5313.16129 | N87: 6101.870968 | O87: 6884.83871 | P87: 7763.290323 | Q87: 8634.193548 | AV87: 10000000000 | AW87: =AU86+AV87 -> 20000000000 | AX87: 10000000000 | AZ87: =IF($AV$87=10000000000,10000000000,IF('SOLAI T2D SPA'!$C$25<=F87,F87,10000000000)) -> 10000000000 | BA87: =IF($AV$87=10000000000,10000000000,IF('SOLAI T2D SPA'!$C$25<=G87,G87,10000000000)) -> 10000000000 | BB87: =IF($AV$87=10000000000,10000000000,IF('SOLAI T2D SPA'!$C$25<=H87,H87,10000000000)) -> 10000000000 | BC87: =IF($AV$87=10000000000,10000000000,IF('SOLAI T2D SPA'!$C$25<=I87,I87,10000000000)) -> 10000000000 | BD87: =IF($AV$87=10000000000,10000000000,IF('SOLAI T2D SPA'!$C$25<=J87,J87,10000000000)) -> 10000000000 | BE87: =IF($AV$87=10000000000,10000000000,IF('SOLAI T2D SPA'!$C$25<=K87,K87,10000000000)) -> 10000000000 | BF87: =IF($AV$87=10000000000,10000000000,IF('SOLAI T2D SPA'!$C$25<=L87,L87,10000000000)) -> 10000000000 | BG87: =IF($AV$87=10000000000,10000000000,IF('SOLAI T2D SPA'!$C$25<=M87,M87,10000000000)) -> 10000000000 | BH87: =IF($AV$87=10000000000,10000000000,IF('SOLAI T2D SPA'!$C$25<=N87,N87,10000000000)) -> 10000000000 | BI87: =IF($AV$87=10000000000,10000000000,IF('SOLAI T2D SPA'!$C$25<=O87,O87,10000000000)) -> 10000000000 | BJ87: =IF($AV$87=10000000000,10000000000,IF('SOLAI T2D SPA'!$C$25<=P87,P87,10000000000)) -> 10000000000 | BK87: =IF($AV$87=10000000000,10000000000,IF('SOLAI T2D SPA'!$C$25<=Q87,Q87,10000000000)) -> 10000000000
AU88: =MIN(AU76:AU87) -> 10000000000 | AV88: =MIN(AV76:AV87) -> 10000000000 | AW88: 20000000000 | AX88: 10000000000 | AZ88: =MIN(AZ76:AZ87) -> 10000000000 | BA88: =MIN(BA76:BA87) -> 10000000000 | BB88: =MIN(BB76:BB87) -> 10000000000 | BC88: =MIN(BC76:BC87) -> 10000000000 | BD88: =MIN(BD76:BD87) -> 10000000000 | BE88: =MIN(BE76:BE87) -> 10000000000 | BF88: =MIN(BF76:BF87) -> 10000000000 | BG88: =MIN(BG76:BG87) -> 10000000000 | BH88: =MIN(BH76:BH87) -> 10000000000 | BI88: =MIN(BI76:BI87) -> 10000000000 | BJ88: =MIN(BJ76:BJ87) -> 10000000000 | BK88: =MIN(BK76:BK87) -> 10000000000 | BL88: =MIN(AZ88:BK88) -> 10000000000 | BM88: =IF(AND(U46=1,BL88=10000000000),1,0) -> 0
AU91: =MIN(AU88,AU42) -> 10000000000 | AV91: =MIN(AV88,AV42) -> 10000000000 | AW91: 20000000000 | AX91: 10000000000 | BL91: =MIN(BL88,BL42) -> 10000000000

Sheet DT BLOCCO 42 (hidden)

Sheet DT BLOCCO 52 (hidden)

Sheet LP POLISTIROLO (hidden)
AR1: CONTROLLO | BB1: =BB6&"("&BB5&")+"&BC6&"("&BC5&")" -> 1f8(C)+(2*)1f8(L) | BD1: =BD6&"("&BD5&")+"&BE6&"("&BE5&")" -> 1f10(C)+(2*)1f8(L) | BF1: =BF6&"("&BF5&")+"&BG6&"("&BG5&")" -> 1f12(C)+(2*)1f10(L) | BH1: =BH6&"("&BH5&")+"&BI6&"("&BI5&")" -> 2f10(C)+(2*)1f12(L) | BJ1: =BJ6&"("&BJ5&")+"&BK6&"("&BK5&")" -> 2f12(C)+(2*)2f10(L) | BL1: =BL6&"("&BL5&")+"&BM6&"("&BM5&")" -> 2f14(C)+(2*)2f12(L) | BN1: =BN6&"("&BN5&")+"&BO6&"("&BO5&")" -> 2f16(C)+(2*)2f14(L) | BP1: =BP6&"("&BP5&")+"&BQ6&"("&BQ5&")" -> 2f18(C)+(2*)2f16(L) | BR1: =BR6&"("&BR5&")+"&BS6&"("&BS5&")" -> 2f20(C)+(2*)2f18(L)
BB3: =IF(AND(BB42=$BT$42,BB42<800000000),BB1,"") ->  | BD3: =IF(AND(BD42=$BT$42,BD42<800000000),BD1,"") ->  | BF3: =IF(AND(BF42=$BT$42,BF42<800000000),BF1,"") ->  | BH3: =IF(AND(BH42=$BT$42,BH42<800000000),BH1,"") ->  | BJ3: =IF(AND(BJ42=$BT$42,BJ42<800000000),BJ1,"") ->  | BL3: =IF(AND(BL42=$BT$42,BL42<800000000),BL1,"") ->  | BN3: =IF(AND(BN42=$BT$42,BN42<800000000),BN1,"") ->  | BP3: =IF(AND(BP42=$BT$42,BP42<800000000),BP1,"") ->  | BR3: =IF(AND(BR42=$BT$42,BR42<800000000),BR1,"") ->  | BU3: =BB3&BD3&BF3&BH3&BJ3&BL3&BN3&BP3&BR3 -> 
A4: INTERASSE 120 CM - REI 120 - TRALICCIO ESCLUSO DAL CALCOLO
A5: MOMENTO POSITIVO | G5: Armatura | Y5: Taglio ultimo | BB5: C | BC5: L | BD5: C | BE5: L | BF5: C | BG5: L | BH5: C | BI5: L | BJ5: C | BK5: L | BL5: C | BM5: L | BN5: C | BO5: L | BP5: C | BQ5: L | BR5: C | BS5: L
G6: CENTRALE | H6: LATERALE | I6: CENTRALE | J6: LATERALE | K6: CENTRALE | L6: LATERALE | M6: CENTRALE | N6: LATERALE | O6: CENTRALE | P6: LATERALE | Q6: CENTRALE | R6: LATERALE | S6: CENTRALE | T6: LATERALE | U6: CENTRALE | V6: LATERALE | W6: CENTRALE | X6: LATERALE | BB6: 1f8 | BC6: (2*)1f8 | BD6: 1f10 | BE6: (2*)1f8 | BF6: 1f12 | BG6: (2*)1f10 | BH6: 2f10 | BI6: (2*)1f12 | BJ6: 2f12 | BK6: (2*)2f10 | BL6: 2f14 | BM6: (2*)2f12 | BN6: 2f16 | BO6: (2*)2f14 | BP6: 2f18 | BQ6: (2*)2f16 | BR6: 2f20 | BS6: (2*)2f18
G7: 1f8 | H7: (2*)1f8 | I7: 1f10 | J7: (2*)1f8 | K7: 1f12 | L7: (2*)1f10 | M7: 2f10 | N7: (2*)1f12 | O7: 2f12 | P7: (2*)2f10 | Q7: 2f14 | R7: (2*)2f12 | S7: 2f16 | T7: (2*)2f14 | U7: 2f18 | V7: (2*)2f16 | W7: 2f20 | X7: (2*)2f18
A8: Spessore lastra | B8: Altezza polistirolo | C8: Spessore soletta | D8: =IF(OR('LP POLISTIROLO'!AR12=1,'LP POLISTIROLO'!AR90=1),"'LP POLISTIROLO'!'AV129"&"+"&";""") -> FALSE | E8: Peso solaio | F8: Volume cls getto in opera (l/mq) | G8: Momenti ultimi riferiti ad una striscia di solaio larga 1,00 metro | AM8: CALCOLO
A9: [cm] | B9: [cm] | C9: [cm] | D9: [cm] | E9: [daN/mq] | F9: [l/mq] | G9: [daNm] | I9: [daNm] | K9: [daNm] | M9: [daNm] | O9: [daNm] | P9: [daNm] | Q9: [daNm] | R9: [daNm] | S9: [daNm] | T9: [daNm] | U9: [daNm] | V9: [daNm] | W9: [daNm] | X9: [daNm] | Y9: [daN] | AV9: [cm] | AW9: [cm] | AX9: [cm] | AY9: [cm] | AZ9: [daN/mq] | BB9: [daNm] | BD9: [daNm] | BF9: [daNm] | BH9: [daNm] | BJ9: [daNm] | BK9: [daNm] | BL9: [daNm] | BM9: [daNm] | BN9: [daNm] | BO9: [daNm] | BP9: [daNm] | BQ9: [daNm] | BR9: [daNm] | BS9: [daNm] | BV9: [daN]
A10: 4 | B10: 12 | C10: 4 | D10: =A10+B10+C10 -> 20 | E10: =(A10+C10)/100*2500+B10/100*0.4*2500/1.2 -> 300 | G10: - | I10: - | K10: 1378.916667 | M10: 1934.9 | O10: 2687.041667 | Q10: 3699.266667 | S10: 4826.616667 | U10: 6044.166667 | W10: 7270 | Y10: 2964.166667 | AM10: ="MOMLAS"&A10&B10&C10&"REI-P" -> MOMLAS4124REI-P | AU10: Spessore_4 | AV10: =IF(AW10=10000000000,10000000000,IF('SOLAI T2D SPA'!$C$5=AU10,'LP POLISTIROLO'!A10,10000000000)) -> 10000000000 | AW10: =IF(AND($AR$12=1,'SOLAI T2D SPA'!$C$6=B10),B10,10000000000) -> 10000000000 | AX10: =IF(AW10=10000000000,10000000000,IF('SOLAI T2D SPA'!$C$7='LP POLISTIROLO'!C10,'LP POLISTIROLO'!C10,10000000000)) -> 10000000000 | AY10: =AV10+AW10+AX10 -> 30000000000 | AZ10: =IF(AY10>100000,10000000000,E10) -> 10000000000 | BB10: - | BD10: - | BF10: =IF($AZ$10=10000000000,10000000000,IF('SOLAI T2D SPA'!$C$20<=K10,K10,10000000000)) -> 10000000000 | BH10: =IF($AZ$10=10000000000,10000000000,IF('SOLAI T2D SPA'!$C$20<=M10,M10,10000000000)) -> 10000000000 | BJ10: =IF($AZ$10=10000000000,10000000000,IF('SOLAI T2D SPA'!$C$20<=O10,O10,10000000000)) -> 10000000000 | BL10: =IF($AZ$10=10000000000,10000000000,IF('SOLAI T2D SPA'!$C$20<=Q10,Q10,10000000000)) -> 10000000000 | BN10: =IF($AZ$10=10000000000,10000000000,IF('SOLAI T2D SPA'!$C$20<=S10,S10,10000000000)) -> 10000000000 | BP10: =IF($AZ$10=10000000000,10000000000,IF('SOLAI T2D SPA'!$C$20<=U10,U10,10000000000)) -> 10000000000 | BR10: =IF($AZ$10=10000000000,10000000000,IF('SOLAI T2D SPA'!$C$20<=W10,W10,10000000000)) -> 10000000000 | BV10: 2964.166667
C11: 5 | D11: =A10+B10+C11 -> 21 | E11: =(A10+C11)/100*2500+B10/100*0.4*2500/1.2 -> 325 | G11: - | I11: - | K11: 1473.558333 | M11: 2073.975 | O11: 2891.308333 | Q11: 4003 | S11: 5258.341667 | U11: 6633.375 | W11: 8104.166667 | Y11: 3128.333333 | AM11: ="MOMLAS"&A10&B10&C11&"REI-P" -> MOMLAS4125REI-P | AX11: =IF(AW10=10000000000,10000000000,IF('SOLAI T2D SPA'!$C$7='LP POLISTIROLO'!C11,'LP POLISTIROLO'!C11,10000000000)) -> 10000000000 | AY11: =AV10+AW10+AX11 -> 30000000000 | AZ11: =IF(AY11>100000,10000000000,E11) -> 10000000000 | BB11: - | BD11: - | BF11: =IF($AZ$11=10000000000,10000000000,IF('SOLAI T2D SPA'!$C$20<=K11,K11,10000000000)) -> 10000000000 | BH11: =IF($AZ$11=10000000000,10000000000,IF('SOLAI T2D SPA'!$C$20<=M11,M11,10000000000)) -> 10000000000 | BJ11: =IF($AZ$11=10000000000,10000000000,IF('SOLAI T2D SPA'!$C$20<=O11,O11,10000000000)) -> 10000000000 | BL11: =IF($AZ$11=10000000000,10000000000,IF('SOLAI T2D SPA'!$C$20<=Q11,Q11,10000000000)) -> 10000000000 | BN11: =IF($AZ$11=10000000000,10000000000,IF('SOLAI T2D SPA'!$C$20<=S11,S11,10000000000)) -> 10000000000 | BP11: =IF($AZ$11=10000000000,10000000000,IF('SOLAI T2D SPA'!$C$20<=U11,U11,10000000000)) -> 10000000000 | BR11: =IF($AZ$11=10000000000,10000000000,IF('SOLAI T2D SPA'!$C$20<=W11,W11,10000000000)) -> 10000000000 | BV11: 3128.333333
A12: 5 | C12: 4 | D12: =A12+B10+C12 -> 21 | E12: =(A12+C12)/100*2500+B10/100*0.4*2500/1.2 -> 325 | G12: - | I12: - | K12: 1378.916667 | M12: 1934.9 | O12: 2687.041667 | Q12: 3699.266667 | S12: 4826.616667 | U12: 6044.166667 | W12: 7270 | Y12: 3128.333333 | AM12: ="MOMLAS"&A12&B10&C12&"REI-P" -> MOMLAS5124REI-P | AR12: =IF(AND('SOLAI T2D SPA'!C2="Lastre_predalles",'SOLAI T2D SPA'!C4="Polistirolo_REI120"),1,0) -> 0 | AU12: Spessore_5 | AV12: =IF(AW10=10000000000,10000000000,IF('SOLAI T2D SPA'!$C$5=AU12,'LP POLISTIROLO'!A12,10000000000)) -> 10000000000 | AX12: =IF(AW10=10000000000,10000000000,IF('SOLAI T2D SPA'!$C$7='LP POLISTIROLO'!C12,'LP POLISTIROLO'!C12,10000000000)) -> 10000000000 | AY12: =AV12+AW10+AX12 -> 30000000000 | AZ12: 10000000000 | BB12: - | BD12: - | BF12: =IF($AZ$12=10000000000,10000000000,IF('SOLAI T2D SPA'!$C$20<=K12,K12,10000000000)) -> 10000000000 | BH12: =IF($AZ$12=10000000000,10000000000,IF('SOLAI T2D SPA'!$C$20<=M12,M12,10000000000)) -> 10000000000 | BJ12: =IF($AZ$12=10000000000,10000000000,IF('SOLAI T2D SPA'!$C$20<=O12,O12,10000000000)) -> 10000000000 | BL12: =IF($AZ$12=10000000000,10000000000,IF('SOLAI T2D SPA'!$C$20<=Q12,Q12,10000000000)) -> 10000000000 | BN12: =IF($AZ$12=10000000000,10000000000,IF('SOLAI T2D SPA'!$C$20<=S12,S12,10000000000)) -> 10000000000 | BP12: =IF($AZ$12=10000000000,10000000000,IF('SOLAI T2D SPA'!$C$20<=U12,U12,10000000000)) -> 10000000000 | BR12: =IF($AZ$12=10000000000,10000000000,IF('SOLAI T2D SPA'!$C$20<=W12,W12,10000000000)) -> 10000000000 | BV12: 3128.333333
C13: 5 | D13: =A12+B10+C13 -> 22 | E13: =(A12+C13)/100*2500+B10/100*0.4*2500/1.2 -> 350 | G13: - | I13: - | K13: 1473.558333 | M13: 2073.975 | O13: 2891.308333 | Q13: 4003 | S13: 5258.341667 | U13: 6633.375 | W13: 8104.166667 | Y13: 3293.333333 | AM13: ="MOMLAS"&A12&B10&C13&"REI-P" -> MOMLAS5125REI-P | AX13: =IF(AW10=10000000000,10000000000,IF('SOLAI T2D SPA'!$C$7='LP POLISTIROLO'!C13,'LP POLISTIROLO'!C13,10000000000)) -> 10000000000 | AY13: =AV12+AW10+AX13 -> 30000000000 | AZ13: 10000000000 | BB13: - | BD13: - | BF13: =IF($AZ$13=10000000000,10000000000,IF('SOLAI T2D SPA'!$C$20<=K13,K13,10000000000)) -> 10000000000 | BH13: =IF($AZ$13=10000000000,10000000000,IF('SOLAI T2D SPA'!$C$20<=M13,M13,10000000000)) -> 10000000000 | BJ13: =IF($AZ$13=10000000000,10000000000,IF('SOLAI T2D SPA'!$C$20<=O13,O13,10000000000)) -> 10000000000 | BL13: =IF($AZ$13=10000000000,10000000000,IF('SOLAI T2D SPA'!$C$20<=Q13,Q13,10000000000)) -> 10000000000 | BN13: =IF($AZ$13=10000000000,10000000000,IF('SOLAI T2D SPA'!$C$20<=S13,S13,10000000000)) -> 10000000000 | BP13: =IF($AZ$13=10000000000,10000000000,IF('SOLAI T2D SPA'!$C$20<=U13,U13,10000000000)) -> 10000000000 | BR13: =IF($AZ$13=10000000000,10000000000,IF('SOLAI T2D SPA'!$C$20<=W13,W13,10000000000)) -> 10000000000 | BV13: 3293.333333
A14: 4 | B14: 14 | C14: 4 | D14: =A14+B14+C14 -> 22 | E14: =(A14+C14)/100*2500+B14/100*0.4*2500/1.2 -> 316.6666667 | G14: - | I14: - | K14: 1555.191667 | M14: 2185.075 | O14: 3039.141667 | Q14: 4195.333333 | S14: 5489.6 | U14: 6900 | W14: 8343.333333 | Y14: 3293.333333 | AM14: ="MOMLAS"&A14&B14&C14&"REI-P" -> MOMLAS4144REI-P | AU14: Spessore_4 | AV14: =IF(AW14=10000000000,10000000000,IF('SOLAI T2D SPA'!$C$5=AU14,'LP POLISTIROLO'!A14,10000000000)) -> 10000000000 | AW14: =IF(AND($AR$12=1,'SOLAI T2D SPA'!$C$6=B14),B14,10000000000) -> 10000000000 | AX14: =IF(AW14=10000000000,10000000000,IF('SOLAI T2D SPA'!$C$7='LP POLISTIROLO'!C14,'LP POLISTIROLO'!C14,10000000000)) -> 10000000000 | AY14: =AV14+AW14+AX14 -> 30000000000 | AZ14: 10000000000 | BB14: - | BD14: - | BF14: =IF($AZ$14=10000000000,10000000000,IF('SOLAI T2D SPA'!$C$20<=K14,K14,10000000000)) -> 10000000000 | BH14: =IF($AZ$14=10000000000,10000000000,IF('SOLAI T2D SPA'!$C$20<=M14,M14,10000000000)) -> 10000000000 | BJ14: =IF($AZ$14=10000000000,10000000000,IF('SOLAI T2D SPA'!$C$20<=O14,O14,10000000000)) -> 10000000000 | BL14: =IF($AZ$14=10000000000,10000000000,IF('SOLAI T2D SPA'!$C$20<=Q14,Q14,10000000000)) -> 10000000000 | BN14: =IF($AZ$14=10000000000,10000000000,IF('SOLAI T2D SPA'!$C$20<=S14,S14,10000000000)) -> 10000000000 | BP14: =IF($AZ$14=10000000000,10000000000,IF('SOLAI T2D SPA'!$C$20<=U14,U14,10000000000)) -> 10000000000 | BR14: =IF($AZ$14=10000000000,10000000000,IF('SOLAI T2D SPA'!$C$20<=W14,W14,10000000000)) -> 10000000000 | BV14: 3293.333333
C15: 5 | D15: =A14+B14+C15 -> 23 | E15: =(A14+C15)/100*2500+B14/100*0.4*2500/1.2 -> 341.6666667 | G15: - | I15: - | K15: 1649.441667 | M15: 2323.883333 | O15: 3243.833333 | Q15: 4499.05 | S15: 5922.091667 | U15: 7490.116667 | W15: 9178.05 | Y15: 3395.833333 | AM15: ="MOMLAS"&A14&B14&C15&"REI-P" -> MOMLAS4145REI-P | AX15: =IF(AW14=10000000000,10000000000,IF('SOLAI T2D SPA'!$C$7='LP POLISTIROLO'!C15,'LP POLISTIROLO'!C15,10000000000)) -> 10000000000 | AY15: =AV14+AW14+AX15 -> 30000000000 | AZ15: 10000000000 | BB15: - | BD15: - | BF15: =IF($AZ$15=10000000000,10000000000,IF('SOLAI T2D SPA'!$C$20<=K15,K15,10000000000)) -> 10000000000 | BH15: =IF($AZ$15=10000000000,10000000000,IF('SOLAI T2D SPA'!$C$20<=M15,M15,10000000000)) -> 10000000000 | BJ15: =IF($AZ$15=10000000000,10000000000,IF('SOLAI T2D SPA'!$C$20<=O15,O15,10000000000)) -> 10000000000 | BL15: =IF($AZ$15=10000000000,10000000000,IF('SOLAI T2D SPA'!$C$20<=Q15,Q15,10000000000)) -> 10000000000 | BN15: =IF($AZ$15=10000000000,10000000000,IF('SOLAI T2D SPA'!$C$20<=S15,S15,10000000000)) -> 10000000000 | BP15: =IF($AZ$15=10000000000,10000000000,IF('SOLAI T2D SPA'!$C$20<=U15,U15,10000000000)) -> 10000000000 | BR15: =IF($AZ$15=10000000000,10000000000,IF('SOLAI T2D SPA'!$C$20<=W15,W15,10000000000)) -> 10000000000 | BV15: 3395.833333
A16: 5 | C16: 4 | D16: =A16+B14+C16 -> 23 | E16: =(A16+C16)/100*2500+B14/100*0.4*2500/1.2 -> 341.6666667 | G16: - | I16: - | K16: 1555.191667 | M16: 2185.075 | O16: 3039.141667 | Q16: 4195.333333 | S16: 5489.6 | U16: 6900 | W16: 8343.333333 | Y16: 3395.833333 | AM16: ="MOMLAS"&A16&B14&C16&"REI-P" -> MOMLAS5144REI-P | AU16: Spessore_5 | AV16: =IF(AW14=10000000000,10000000000,IF('SOLAI T2D SPA'!$C$5=AU16,'LP POLISTIROLO'!A16,10000000000)) -> 10000000000 | AX16: =IF(AW14=10000000000,10000000000,IF('SOLAI T2D SPA'!$C$7='LP POLISTIROLO'!C16,'LP POLISTIROLO'!C16,10000000000)) -> 10000000000 | AY16: =AV16+AW14+AX16 -> 30000000000 | AZ16: 10000000000 | BB16: - | BD16: - | BF16: =IF($AZ$16=10000000000,10000000000,IF('SOLAI T2D SPA'!$C$20<=K16,K16,10000000000)) -> 10000000000 | BH16: =IF($AZ$16=10000000000,10000000000,IF('SOLAI T2D SPA'!$C$20<=M16,M16,10000000000)) -> 10000000000 | BJ16: =IF($AZ$16=10000000000,10000000000,IF('SOLAI T2D SPA'!$C$20<=O16,O16,10000000000)) -> 10000000000 | BL16: =IF($AZ$16=10000000000,10000000000,IF('SOLAI T2D SPA'!$C$20<=Q16,Q16,10000000000)) -> 10000000000 | BN16: =IF($AZ$16=10000000000,10000000000,IF('SOLAI T2D SPA'!$C$20<=S16,S16,10000000000)) -> 10000000000 | BP16: =IF($AZ$16=10000000000,10000000000,IF('SOLAI T2D SPA'!$C$20<=U16,U16,10000000000)) -> 10000000000 | BR16: =IF($AZ$16=10000000000,10000000000,IF('SOLAI T2D SPA'!$C$20<=W16,W16,10000000000)) -> 10000000000 | BV16: 3395.833333
C17: 5 | D17: =A16+B14+C17 -> 24 | E17: =(A16+C17)/100*2500+B14/100*0.4*2500/1.2 -> 366.6666667 | G17: - | I17: - | K17: 1649.441667 | M17: 2323.883333 | O17: 3243.833333 | Q17: 4499.05 | S17: 5922.091667 | U17: 7490.116667 | W17: 9178.05 | Y17: 3496.666667 | AM17: ="MOMLAS"&A16&B14&C17&"REI-P" -> MOMLAS5145REI-P | AX17: =IF(AW14=10000000000,10000000000,IF('SOLAI T2D SPA'!$C$7='LP POLISTIROLO'!C17,'LP POLISTIROLO'!C17,10000000000)) -> 10000000000 | AY17: =AV16+AW14+AX17 -> 30000000000 | AZ17: 10000000000 | BB17: - | BD17: - | BF17: =IF($AZ$17=10000000000,10000000000,IF('SOLAI T2D SPA'!$C$20<=K17,K17,10000000000)) -> 10000000000 | BH17: =IF($AZ$17=10000000000,10000000000,IF('SOLAI T2D SPA'!$C$20<=M17,M17,10000000000)) -> 10000000000 | BJ17: =IF($AZ$17=10000000000,10000000000,IF('SOLAI T2D SPA'!$C$20<=O17,O17,10000000000)) -> 10000000000 | BL17: =IF($AZ$17=10000000000,10000000000,IF('SOLAI T2D SPA'!$C$20<=Q17,Q17,10000000000)) -> 10000000000 | BN17: =IF($AZ$17=10000000000,10000000000,IF('SOLAI T2D SPA'!$C$20<=S17,S17,10000000000)) -> 10000000000 | BP17: =IF($AZ$17=10000000000,10000000000,IF('SOLAI T2D SPA'!$C$20<=U17,U17,10000000000)) -> 10000000000 | BR17: =IF($AZ$17=10000000000,10000000000,IF('SOLAI T2D SPA'!$C$20<=W17,W17,10000000000)) -> 10000000000 | BV17: 3496.666667
A18: 4 | B18: 16 | C18: 4 | D18: =A18+B18+C18 -> 24 | E18: =(A18+C18)/100*2500+B18/100*0.4*2500/1.2 -> 333.3333333 | G18: - | I18: - | K18: 1730.791667 | M18: 2435.125 | O18: 3391.375 | Q18: 4691.008333 | S18: 6153.875 | U18: 7756.925 | W18: 9417.5 | Y18: 3496.666667 | AM18: ="MOMLAS"&A18&B18&C18&"REI-P" -> MOMLAS4164REI-P | AU18: Spessore_4 | AV18: =IF(AW18=10000000000,10000000000,IF('SOLAI T2D SPA'!$C$5=AU18,'LP POLISTIROLO'!A18,10000000000)) -> 10000000000 | AW18: =IF(AND($AR$12=1,'SOLAI T2D SPA'!$C$6=B18),B18,10000000000) -> 10000000000 | AX18: =IF(AW18=10000000000,10000000000,IF('SOLAI T2D SPA'!$C$7='LP POLISTIROLO'!C18,'LP POLISTIROLO'!C18,10000000000)) -> 10000000000 | AY18: =AV18+AW18+AX18 -> 30000000000 | AZ18: 10000000000 | BB18: - | BD18: - | BF18: =IF($AZ$18=10000000000,10000000000,IF('SOLAI T2D SPA'!$C$20<=K18,K18,10000000000)) -> 10000000000 | BH18: =IF($AZ$18=10000000000,10000000000,IF('SOLAI T2D SPA'!$C$20<=M18,M18,10000000000)) -> 10000000000 | BJ18: =IF($AZ$18=10000000000,10000000000,IF('SOLAI T2D SPA'!$C$20<=O18,O18,10000000000)) -> 10000000000 | BL18: =IF($AZ$18=10000000000,10000000000,IF('SOLAI T2D SPA'!$C$20<=Q18,Q18,10000000000)) -> 10000000000 | BN18: =IF($AZ$18=10000000000,10000000000,IF('SOLAI T2D SPA'!$C$20<=S18,S18,10000000000)) -> 10000000000 | BP18: =IF($AZ$18=10000000000,10000000000,IF('SOLAI T2D SPA'!$C$20<=U18,U18,10000000000)) -> 10000000000 | BR18: =IF($AZ$18=10000000000,10000000000,IF('SOLAI T2D SPA'!$C$20<=W18,W18,10000000000)) -> 10000000000 | BV18: 3496.666667
C19: 5 | D19: =A18+B18+C19 -> 25 | E19: =(A18+C19)/100*2500+B18/100*0.4*2500/1.2 -> 358.3333333 | G19: - | I19: - | K19: 1825.616667 | M19: 2573.933333 | O19: 3596.275 | Q19: 4994.966667 | S19: 6586.008333 | U19: 8346.35 | W19: 10250.89167 | Y19: 3597.5 | AM19: ="MOMLAS"&A18&B18&C19&"REI-P" -> MOMLAS4165REI-P | AX19: =IF(AW18=10000000000,10000000000,IF('SOLAI T2D SPA'!$C$7='LP POLISTIROLO'!C19,'LP POLISTIROLO'!C19,10000000000)) -> 10000000000 | AY19: =AV18+AW18+AX19 -> 30000000000 | AZ19: 10000000000 | BB19: - | BD19: - | BF19: =IF($AZ$19=10000000000,10000000000,IF('SOLAI T2D SPA'!$C$20<=K19,K19,10000000000)) -> 10000000000 | BH19: =IF($AZ$19=10000000000,10000000000,IF('SOLAI T2D SPA'!$C$20<=M19,M19,10000000000)) -> 10000000000 | BJ19: =IF($AZ$19=10000000000,10000000000,IF('SOLAI T2D SPA'!$C$20<=O19,O19,10000000000)) -> 10000000000 | BL19: =IF($AZ$19=10000000000,10000000000,IF('SOLAI T2D SPA'!$C$20<=Q19,Q19,10000000000)) -> 10000000000 | BN19: =IF($AZ$19=10000000000,10000000000,IF('SOLAI T2D SPA'!$C$20<=S19,S19,10000000000)) -> 10000000000 | BP19: =IF($AZ$19=10000000000,10000000000,IF('SOLAI T2D SPA'!$C$20<=U19,U19,10000000000)) -> 10000000000 | BR19: =IF($AZ$19=10000000000,10000000000,IF('SOLAI T2D SPA'!$C$20<=W19,W19,10000000000)) -> 10000000000 | BV19: 3597.5
A20: 5 | C20: 4 | D20: =A20+B18+C20 -> 25 | E20: =(A20+C20)/100*2500+B18/100*0.4*2500/1.2 -> 358.3333333 | G20: - | I20: - | K20: 1730.791667 | M20: 2435.125 | O20: 3391.375 | Q20: 4691.008333 | S20: 6153.875 | U20: 7756.925 | W20: 9417.5 | Y20: 3597.5 | AM20: ="MOMLAS"&A20&B18&C20&"REI-P" -> MOMLAS5164REI-P | AU20: Spessore_5 | AV20: =IF(AW18=10000000000,10000000000,IF('SOLAI T2D SPA'!$C$5=AU20,'LP POLISTIROLO'!A20,10000000000)) -> 10000000000 | AX20: =IF(AW18=10000000000,10000000000,IF('SOLAI T2D SPA'!$C$7='LP POLISTIROLO'!C20,'LP POLISTIROLO'!C20,10000000000)) -> 10000000000 | AY20: =AV20+AW18+AX20 -> 30000000000 | AZ20: 10000000000 | BB20: - | BD20: - | BF20: =IF($AZ$20=10000000000,10000000000,IF('SOLAI T2D SPA'!$C$20<=K20,K20,10000000000)) -> 10000000000 | BH20: =IF($AZ$20=10000000000,10000000000,IF('SOLAI T2D SPA'!$C$20<=M20,M20,10000000000)) -> 10000000000 | BJ20: =IF($AZ$20=10000000000,10000000000,IF('SOLAI T2D SPA'!$C$20<=O20,O20,10000000000)) -> 10000000000 | BL20: =IF($AZ$20=10000000000,10000000000,IF('SOLAI T2D SPA'!$C$20<=Q20,Q20,10000000000)) -> 10000000000 | BN20: =IF($AZ$20=10000000000,10000000000,IF('SOLAI T2D SPA'!$C$20<=S20,S20,10000000000)) -> 10000000000 | BP20: =IF($AZ$20=10000000000,10000000000,IF('SOLAI T2D SPA'!$C$20<=U20,U20,10000000000)) -> 10000000000 | BR20: =IF($AZ$20=10000000000,10000000000,IF('SOLAI T2D SPA'!$C$20<=W20,W20,10000000000)) -> 10000000000 | BV20: 3597.5
C21: 5 | D21: =A20+B18+C21 -> 26 | E21: =(A20+C21)/100*2500+B18/100*0.4*2500/1.2 -> 383.3333333 | G21: - | I21: - | K21: 1825.616667 | M21: 2573.933333 | O21: 3596.275 | Q21: 4994.966667 | S21: 6586.008333 | U21: 8346.35 | W21: 10250.89167 | Y21: 3696.666667 | AM21: ="MOMLAS"&A20&B18&C21&"REI-P" -> MOMLAS5165REI-P | AX21: =IF(AW18=10000000000,10000000000,IF('SOLAI T2D SPA'!$C$7='LP POLISTIROLO'!C21,'LP POLISTIROLO'!C21,10000000000)) -> 10000000000 | AY21: =AV20+AW18+AX21 -> 30000000000 | AZ21: 10000000000 | BB21: - | BD21: - | BF21: =IF($AZ$21=10000000000,10000000000,IF('SOLAI T2D SPA'!$C$20<=K21,K21,10000000000)) -> 10000000000 | BH21: =IF($AZ$21=10000000000,10000000000,IF('SOLAI T2D SPA'!$C$20<=M21,M21,10000000000)) -> 10000000000 | BJ21: =IF($AZ$21=10000000000,10000000000,IF('SOLAI T2D SPA'!$C$20<=O21,O21,10000000000)) -> 10000000000 | BL21: =IF($AZ$21=10000000000,10000000000,IF('SOLAI T2D SPA'!$C$20<=Q21,Q21,10000000000)) -> 10000000000 | BN21: =IF($AZ$21=10000000000,10000000000,IF('SOLAI T2D SPA'!$C$20<=S21,S21,10000000000)) -> 10000000000 | BP21: =IF($AZ$21=10000000000,10000000000,IF('SOLAI T2D SPA'!$C$20<=U21,U21,10000000000)) -> 10000000000 | BR21: =IF($AZ$21=10000000000,10000000000,IF('SOLAI T2D SPA'!$C$20<=W21,W21,10000000000)) -> 10000000000 | BV21: 3696.666667
A22: 4 | B22: 18 | C22: 4 | D22: =A22+B22+C22 -> 26 | E22: =(A22+C22)/100*2500+B22/100*0.4*2500/1.2 -> 350 | G22: - | I22: - | K22: 1906.941667 | M22: 2684.825 | O22: 3744.025 | Q22: 5186.9 | S22: 6817.733333 | U22: 8612.683333 | W22: 10490.83333 | Y22: 3696.666667 | AM22: ="MOMLAS"&A22&B22&C22&"REI-P" -> MOMLAS4184REI-P | AU22: Spessore_4 | AV22: =IF(AW22=10000000000,10000000000,IF('SOLAI T2D SPA'!$C$5=AU22,'LP POLISTIROLO'!A22,10000000000)) -> 10000000000 | AW22: =IF(AND($AR$12=1,'SOLAI T2D SPA'!$C$6=B22),B22,10000000000) -> 10000000000 | AX22: =IF(AW22=10000000000,10000000000,IF('SOLAI T2D SPA'!$C$7='LP POLISTIROLO'!C22,'LP POLISTIROLO'!C22,10000000000)) -> 10000000000 | AY22: =AV22+AW22+AX22 -> 30000000000 | AZ22: 10000000000 | BB22: - | BD22: - | BF22: =IF($AZ$22=10000000000,10000000000,IF('SOLAI T2D SPA'!$C$20<=K22,K22,10000000000)) -> 10000000000 | BH22: =IF($AZ$22=10000000000,10000000000,IF('SOLAI T2D SPA'!$C$20<=M22,M22,10000000000)) -> 10000000000 | BJ22: =IF($AZ$22=10000000000,10000000000,IF('SOLAI T2D SPA'!$C$20<=O22,O22,10000000000)) -> 10000000000 | BL22: =IF($AZ$22=10000000000,10000000000,IF('SOLAI T2D SPA'!$C$20<=Q22,Q22,10000000000)) -> 10000000000 | BN22: =IF($AZ$22=10000000000,10000000000,IF('SOLAI T2D SPA'!$C$20<=S22,S22,10000000000)) -> 10000000000 | BP22: =IF($AZ$22=10000000000,10000000000,IF('SOLAI T2D SPA'!$C$20<=U22,U22,10000000000)) -> 10000000000 | BR22: =IF($AZ$22=10000000000,10000000000,IF('SOLAI T2D SPA'!$C$20<=W22,W22,10000000000)) -> 10000000000 | BV22: 3696.666667
C23: 5 | D23: =A22+B22+C23 -> 27 | E23: =(A22+C23)/100*2500+B22/100*0.4*2500/1.2 -> 375 | G23: - | I23: - | K23: 2001.541667 | M23: 2823.575 | O23: 3948.641667 | Q23: 5490.925 | S23: 7249.658333 | U23: 9203.175 | W23: 11324.925 | Y23: 3795 | AM23: ="MOMLAS"&A22&B22&C23&"REI-P" -> MOMLAS4185REI-P | AX23: =IF(AW22=10000000000,10000000000,IF('SOLAI T2D SPA'!$C$7='LP POLISTIROLO'!C23,'LP POLISTIROLO'!C23,10000000000)) -> 10000000000 | AY23: =AV22+AW22+AX23 -> 30000000000 | AZ23: 10000000000 | BB23: - | BD23: - | BF23: =IF($AZ$23=10000000000,10000000000,IF('SOLAI T2D SPA'!$C$20<=K23,K23,10000000000)) -> 10000000000 | BH23: =IF($AZ$23=10000000000,10000000000,IF('SOLAI T2D SPA'!$C$20<=M23,M23,10000000000)) -> 10000000000 | BJ23: =IF($AZ$23=10000000000,10000000000,IF('SOLAI T2D SPA'!$C$20<=O23,O23,10000000000)) -> 10000000000 | BL23: =IF($AZ$23=10000000000,10000000000,IF('SOLAI T2D SPA'!$C$20<=Q23,Q23,10000000000)) -> 10000000000 | BN23: =IF($AZ$23=10000000000,10000000000,IF('SOLAI T2D SPA'!$C$20<=S23,S23,10000000000)) -> 10000000000 | BP23: =IF($AZ$23=10000000000,10000000000,IF('SOLAI T2D SPA'!$C$20<=U23,U23,10000000000)) -> 10000000000 | BR23: =IF($AZ$23=10000000000,10000000000,IF('SOLAI T2D SPA'!$C$20<=W23,W23,10000000000)) -> 10000000000 | BV23: 3795
A24: 5 | C24: 4 | D24: =A24+B22+C24 -> 27 | E24: =(A24+C24)/100*2500+B22/100*0.4*2500/1.2 -> 375 | G24: - | I24: - | K24: 1906.941667 | M24: 2684.825 | O24: 3744.025 | Q24: 5186.9 | S24: 6817.733333 | U24: 8612.683333 | W24: 10490.83333 | Y24: 3795 | AM24: ="MOMLAS"&A24&B22&C24&"REI-P" -> MOMLAS5184REI-P | AU24: Spessore_5 | AV24: =IF(AW22=10000000000,10000000000,IF('SOLAI T2D SPA'!$C$5=AU24,'LP POLISTIROLO'!A24,10000000000)) -> 10000000000 | AX24: =IF(AW22=10000000000,10000000000,IF('SOLAI T2D SPA'!$C$7='LP POLISTIROLO'!C24,'LP POLISTIROLO'!C24,10000000000)) -> 10000000000 | AY24: =AV24+AW22+AX24 -> 30000000000 | AZ24: 10000000000 | BB24: - | BD24: - | BF24: =IF($AZ$24=10000000000,10000000000,IF('SOLAI T2D SPA'!$C$20<=K24,K24,10000000000)) -> 10000000000 | BH24: =IF($AZ$24=10000000000,10000000000,IF('SOLAI T2D SPA'!$C$20<=M24,M24,10000000000)) -> 10000000000 | BJ24: =IF($AZ$24=10000000000,10000000000,IF('SOLAI T2D SPA'!$C$20<=O24,O24,10000000000)) -> 10000000000 | BL24: =IF($AZ$24=10000000000,10000000000,IF('SOLAI T2D SPA'!$C$20<=Q24,Q24,10000000000)) -> 10000000000 | BN24: =IF($AZ$24=10000000000,10000000000,IF('SOLAI T2D SPA'!$C$20<=S24,S24,10000000000)) -> 10000000000 | BP24: =IF($AZ$24=10000000000,10000000000,IF('SOLAI T2D SPA'!$C$20<=U24,U24,10000000000)) -> 10000000000 | BR24: =IF($AZ$24=10000000000,10000000000,IF('SOLAI T2D SPA'!$C$20<=W24,W24,10000000000)) -> 10000000000 | BV24: 3795
C25: 5 | D25: =A24+B22+C25 -> 28 | E25: =(A24+C25)/100*2500+B22/100*0.4*2500/1.2 -> 400 | G25: - | I25: - | K25: 2001.541667 | M25: 2823.575 | O25: 3948.641667 | Q25: 5490.925 | S25: 7249.658333 | U25: 9203.175 | W25: 11324.925 | Y25: 3892.5 | AM25: ="MOMLAS"&A24&B22&C25&"REI-P" -> MOMLAS5185REI-P | AX25: =IF(AW22=10000000000,10000000000,IF('SOLAI T2D SPA'!$C$7='LP POLISTIROLO'!C25,'LP POLISTIROLO'!C25,10000000000)) -> 10000000000 | AY25: =AV24+AW22+AX25 -> 30000000000 | AZ25: 10000000000 | BB25: - | BD25: - | BF25: =IF($AZ$25=10000000000,10000000000,IF('SOLAI T2D SPA'!$C$20<=K25,K25,10000000000)) -> 10000000000 | BH25: =IF($AZ$25=10000000000,10000000000,IF('SOLAI T2D SPA'!$C$20<=M25,M25,10000000000)) -> 10000000000 | BJ25: =IF($AZ$25=10000000000,10000000000,IF('SOLAI T2D SPA'!$C$20<=O25,O25,10000000000)) -> 10000000000 | BL25: =IF($AZ$25=10000000000,10000000000,IF('SOLAI T2D SPA'!$C$20<=Q25,Q25,10000000000)) -> 10000000000 | BN25: =IF($AZ$25=10000000000,10000000000,IF('SOLAI T2D SPA'!$C$20<=S25,S25,10000000000)) -> 10000000000 | BP25: =IF($AZ$25=10000000000,10000000000,IF('SOLAI T2D SPA'!$C$20<=U25,U25,10000000000)) -> 10000000000 | BR25: =IF($AZ$25=10000000000,10000000000,IF('SOLAI T2D SPA'!$C$20<=W25,W25,10000000000)) -> 10000000000 | BV25: 3892.5
A26: 4 | B26: 20 | C26: 4 | D26: =A26+B26+C26 -> 28 | E26: =(A26+C26)/100*2500+B26/100*0.4*2500/1.2 -> 366.6666667 | G26: - | I26: - | K26: 2082.85 | M26: 2934.675 | O26: 4096.441667 | Q26: 5682.641667 | S26: 7481.266667 | U26: 9469.125 | W26: 11564.16667 | Y26: 3892.5 | AM26: ="MOMLAS"&A26&B26&C26&"REI-P" -> MOMLAS4204REI-P | AU26: Spessore_4 | AV26: =IF(AW26=10000000000,10000000000,IF('SOLAI T2D SPA'!$C$5=AU26,'LP POLISTIROLO'!A26,10000000000)) -> 10000000000 | AW26: =IF(AND($AR$12=1,'SOLAI T2D SPA'!$C$6=B26),B26,10000000000) -> 10000000000 | AX26: =IF(AW26=10000000000,10000000000,IF('SOLAI T2D SPA'!$C$7='LP POLISTIROLO'!C26,'LP POLISTIROLO'!C26,10000000000)) -> 10000000000 | AY26: =AV26+AW26+AX26 -> 30000000000 | AZ26: 10000000000 | BB26: - | BD26: - | BF26: =IF($AZ$26=10000000000,10000000000,IF('SOLAI T2D SPA'!$C$20<=K26,K26,10000000000)) -> 10000000000 | BH26: =IF($AZ$26=10000000000,10000000000,IF('SOLAI T2D SPA'!$C$20<=M26,M26,10000000000)) -> 10000000000 | BJ26: =IF($AZ$26=10000000000,10000000000,IF('SOLAI T2D SPA'!$C$20<=O26,O26,10000000000)) -> 10000000000 | BL26: =IF($AZ$26=10000000000,10000000000,IF('SOLAI T2D SPA'!$C$20<=Q26,Q26,10000000000)) -> 10000000000 | BN26: =IF($AZ$26=10000000000,10000000000,IF('SOLAI T2D SPA'!$C$20<=S26,S26,10000000000)) -> 10000000000 | BP26: =IF($AZ$26=10000000000,10000000000,IF('SOLAI T2D SPA'!$C$20<=U26,U26,10000000000)) -> 10000000000 | BR26: =IF($AZ$26=10000000000,10000000000,IF('SOLAI T2D SPA'!$C$20<=W26,W26,10000000000)) -> 10000000000 | BV26: 3892.5
C27: 5 | D27: =A26+B26+C27 -> 29 | E27: =(A26+C27)/100*2500+B26/100*0.4*2500/1.2 -> 391.6666667 | G27: - | I27: - | K27: 2177.308333 | M27: 3073.366667 | O27: 4301.008333 | Q27: 5986.716667 | S27: 7913.891667 | U27: 10059.05833 | W27: 12398.46667 | Y27: 3989.166667 | AM27: ="MOMLAS"&A26&B26&C27&"REI-P" -> MOMLAS4205REI-P | AX27: =IF(AW26=10000000000,10000000000,IF('SOLAI T2D SPA'!$C$7='LP POLISTIROLO'!C27,'LP POLISTIROLO'!C27,10000000000)) -> 10000000000 | AY27: =AV26+AW26+AX27 -> 30000000000 | AZ27: 10000000000 | BB27: - | BD27: - | BF27: =IF($AZ$27=10000000000,10000000000,IF('SOLAI T2D SPA'!$C$20<=K27,K27,10000000000)) -> 10000000000 | BH27: =IF($AZ$27=10000000000,10000000000,IF('SOLAI T2D SPA'!$C$20<=M27,M27,10000000000)) -> 10000000000 | BJ27: =IF($AZ$27=10000000000,10000000000,IF('SOLAI T2D SPA'!$C$20<=O27,O27,10000000000)) -> 10000000000 | BL27: =IF($AZ$27=10000000000,10000000000,IF('SOLAI T2D SPA'!$C$20<=Q27,Q27,10000000000)) -> 10000000000 | BN27: =IF($AZ$27=10000000000,10000000000,IF('SOLAI T2D SPA'!$C$20<=S27,S27,10000000000)) -> 10000000000 | BP27: =IF($AZ$27=10000000000,10000000000,IF('SOLAI T2D SPA'!$C$20<=U27,U27,10000000000)) -> 10000000000 | BR27: =IF($AZ$27=10000000000,10000000000,IF('SOLAI T2D SPA'!$C$20<=W27,W27,10000000000)) -> 10000000000 | BV27: 3989.166667
A28: 5 | C28: 4 | D28: =A28+B26+C28 -> 29 | E28: =(A28+C28)/100*2500+B26/100*0.4*2500/1.2 -> 391.6666667 | G28: - | I28: - | K28: 2082.85 | M28: 2934.675 | O28: 4096.441667 | Q28: 5682.641667 | S28: 7481.266667 | U28: 9469.125 | W28: 11564.16667 | Y28: 3989.166667 | AM28: ="MOMLAS"&A28&B26&C28&"REI-P" -> MOMLAS5204REI-P | AU28: Spessore_5 | AV28: =IF(AW26=10000000000,10000000000,IF('SOLAI T2D SPA'!$C$5=AU28,'LP POLISTIROLO'!A28,10000000000)) -> 10000000000 | AX28: =IF(AW26=10000000000,10000000000,IF('SOLAI T2D SPA'!$C$7='LP POLISTIROLO'!C28,'LP POLISTIROLO'!C28,10000000000)) -> 10000000000 | AY28: =AV28+AW26+AX28 -> 30000000000 | AZ28: 10000000000 | BB28: - | BD28: - | BF28: =IF($AZ$28=10000000000,10000000000,IF('SOLAI T2D SPA'!$C$20<=K28,K28,10000000000)) -> 10000000000 | BH28: =IF($AZ$28=10000000000,10000000000,IF('SOLAI T2D SPA'!$C$20<=M28,M28,10000000000)) -> 10000000000 | BJ28: =IF($AZ$28=10000000000,10000000000,IF('SOLAI T2D SPA'!$C$20<=O28,O28,10000000000)) -> 10000000000 | BL28: =IF($AZ$28=10000000000,10000000000,IF('SOLAI T2D SPA'!$C$20<=Q28,Q28,10000000000)) -> 10000000000 | BN28: =IF($AZ$28=10000000000,10000000000,IF('SOLAI T2D SPA'!$C$20<=S28,S28,10000000000)) -> 10000000000 | BP28: =IF($AZ$28=10000000000,10000000000,IF('SOLAI T2D SPA'!$C$20<=U28,U28,10000000000)) -> 10000000000 | BR28: =IF($AZ$28=10000000000,10000000000,IF('SOLAI T2D SPA'!$C$20<=W28,W28,10000000000)) -> 10000000000 | BV28: 3989.166667
C29: 5 | D29: =A28+B26+C29 -> 30 | E29: =(A28+C29)/100*2500+B26/100*0.4*2500/1.2 -> 416.6666667 | G29: - | I29: - | K29: 2177.308333 | M29: 3073.366667 | O29: 4301.008333 | Q29: 5986.716667 | S29: 7913.891667 | U29: 10059.05833 | W29: 12398.46667 | Y29: 4085.833333 | AM29: ="MOMLAS"&A28&B26&C29&"REI-P" -> MOMLAS5205REI-P | AX29: =IF(AW26=10000000000,10000000000,IF('SOLAI T2D SPA'!$C$7='LP POLISTIROLO'!C29,'LP POLISTIROLO'!C29,10000000000)) -> 10000000000 | AY29: =AV28+AW26+AX29 -> 30000000000 | AZ29: 10000000000 | BB29: - | BD29: - | BF29: =IF($AZ$29=10000000000,10000000000,IF('SOLAI T2D SPA'!$C$20<=K29,K29,10000000000)) -> 10000000000 | BH29: =IF($AZ$29=10000000000,10000000000,IF('SOLAI T2D SPA'!$C$20<=M29,M29,10000000000)) -> 10000000000 | BJ29: =IF($AZ$29=10000000000,10000000000,IF('SOLAI T2D SPA'!$C$20<=O29,O29,10000000000)) -> 10000000000 | BL29: =IF($AZ$29=10000000000,10000000000,IF('SOLAI T2D SPA'!$C$20<=Q29,Q29,10000000000)) -> 10000000000 | BN29: =IF($AZ$29=10000000000,10000000000,IF('SOLAI T2D SPA'!$C$20<=S29,S29,10000000000)) -> 10000000000 | BP29: =IF($AZ$29=10000000000,10000000000,IF('SOLAI T2D SPA'!$C$20<=U29,U29,10000000000)) -> 10000000000 | BR29: =IF($AZ$29=10000000000,10000000000,IF('SOLAI T2D SPA'!$C$20<=W29,W29,10000000000)) -> 10000000000 | BV29: 4085.833333
A30: 4 | B30: 22 | C30: 4 | D30: =A30+B30+C30 -> 30 | E30: =(A30+C30)/100*2500+B30/100*0.4*2500/1.2 -> 383.3333333 | G30: - | I30: - | K30: 2258.75 | M30: 3184.958333 | O30: 4449.066667 | Q30: 6178.591667 | S30: 8145.183333 | U30: 10325.825 | W30: 12637.5 | Y30: 4085.833333 | AM30: ="MOMLAS"&A30&B30&C30&"REI-P" -> MOMLAS4224REI-P | AU30: Spessore_4 | AV30: =IF(AW30=10000000000,10000000000,IF('SOLAI T2D SPA'!$C$5=AU30,'LP POLISTIROLO'!A30,10000000000)) -> 10000000000 | AW30: =IF(AND($AR$12=1,'SOLAI T2D SPA'!$C$6=B30),B30,10000000000) -> 10000000000 | AX30: =IF(AW30=10000000000,10000000000,IF('SOLAI T2D SPA'!$C$7='LP POLISTIROLO'!C30,'LP POLISTIROLO'!C30,10000000000)) -> 10000000000 | AY30: =AV30+AW30+AX30 -> 30000000000 | AZ30: 10000000000 | BB30: - | BD30: - | BF30: =IF($AZ$30=10000000000,10000000000,IF('SOLAI T2D SPA'!$C$20<=K30,K30,10000000000)) -> 10000000000 | BH30: =IF($AZ$30=10000000000,10000000000,IF('SOLAI T2D SPA'!$C$20<=M30,M30,10000000000)) -> 10000000000 | BJ30: =IF($AZ$30=10000000000,10000000000,IF('SOLAI T2D SPA'!$C$20<=O30,O30,10000000000)) -> 10000000000 | BL30: =IF($AZ$30=10000000000,10000000000,IF('SOLAI T2D SPA'!$C$20<=Q30,Q30,10000000000)) -> 10000000000 | BN30: =IF($AZ$30=10000000000,10000000000,IF('SOLAI T2D SPA'!$C$20<=S30,S30,10000000000)) -> 10000000000 | BP30: =IF($AZ$30=10000000000,10000000000,IF('SOLAI T2D SPA'!$C$20<=U30,U30,10000000000)) -> 10000000000 | BR30: =IF($AZ$30=10000000000,10000000000,IF('SOLAI T2D SPA'!$C$20<=W30,W30,10000000000)) -> 10000000000 | BV30: 4085.833333
C31: 5 | D31: =A30+B30+C31 -> 31 | E31: =(A30+C31)/100*2500+B30/100*0.4*2500/1.2 -> 408.3333333 | G31: - | I31: - | K31: 2353.091667 | M31: 3323.125 | O31: 4653.425 | Q31: 6482.083333 | S31: 8577.275 | U31: 10915.71667 | W31: 13471.66667 | Y31: 4180.833333 | AM31: ="MOMLAS"&A30&B30&C31&"REI-P" -> MOMLAS4225REI-P | AX31: =IF(AW30=10000000000,10000000000,IF('SOLAI T2D SPA'!$C$7='LP POLISTIROLO'!C31,'LP POLISTIROLO'!C31,10000000000)) -> 10000000000 | AY31: =AV30+AW30+AX31 -> 30000000000 | AZ31: 10000000000 | BB31: - | BD31: - | BF31: =IF($AZ$31=10000000000,10000000000,IF('SOLAI T2D SPA'!$C$20<=K31,K31,10000000000)) -> 10000000000 | BH31: =IF($AZ$31=10000000000,10000000000,IF('SOLAI T2D SPA'!$C$20<=M31,M31,10000000000)) -> 10000000000 | BJ31: =IF($AZ$31=10000000000,10000000000,IF('SOLAI T2D SPA'!$C$20<=O31,O31,10000000000)) -> 10000000000 | BL31: =IF($AZ$31=10000000000,10000000000,IF('SOLAI T2D SPA'!$C$20<=Q31,Q31,10000000000)) -> 10000000000 | BN31: =IF($AZ$31=10000000000,10000000000,IF('SOLAI T2D SPA'!$C$20<=S31,S31,10000000000)) -> 10000000000 | BP31: =IF($AZ$31=10000000000,10000000000,IF('SOLAI T2D SPA'!$C$20<=U31,U31,10000000000)) -> 10000000000 | BR31: =IF($AZ$31=10000000000,10000000000,IF('SOLAI T2D SPA'!$C$20<=W31,W31,10000000000)) -> 10000000000 | BV31: 4180.833333
A32: 5 | C32: 4 | D32: =A32+B30+C32 -> 31 | E32: =(A32+C32)/100*2500+B30/100*0.4*2500/1.2 -> 408.3333333 | G32: - | I32: - | K32: 2258.75 | M32: 3184.958333 | O32: 4449.066667 | Q32: 6178.591667 | S32: 8145.183333 | U32: 10325.825 | W32: 12637.5 | Y32: 4180.833333 | AM32: ="MOMLAS"&A32&B30&C32&"REI-P" -> MOMLAS5224REI-P | AU32: Spessore_5 | AV32: =IF(AW30=10000000000,10000000000,IF('SOLAI T2D SPA'!$C$5=AU32,'LP POLISTIROLO'!A32,10000000000)) -> 10000000000 | AX32: =IF(AW30=10000000000,10000000000,IF('SOLAI T2D SPA'!$C$7='LP POLISTIROLO'!C32,'LP POLISTIROLO'!C32,10000000000)) -> 10000000000 | AY32: =AV32+AW30+AX32 -> 30000000000 | AZ32: 10000000000 | BB32: - | BD32: - | BF32: =IF($AZ$32=10000000000,10000000000,IF('SOLAI T2D SPA'!$C$20<=K32,K32,10000000000)) -> 10000000000 | BH32: =IF($AZ$32=10000000000,10000000000,IF('SOLAI T2D SPA'!$C$20<=M32,M32,10000000000)) -> 10000000000 | BJ32: =IF($AZ$32=10000000000,10000000000,IF('SOLAI T2D SPA'!$C$20<=O32,O32,10000000000)) -> 10000000000 | BL32: =IF($AZ$32=10000000000,10000000000,IF('SOLAI T2D SPA'!$C$20<=Q32,Q32,10000000000)) -> 10000000000 | BN32: =IF($AZ$32=10000000000,10000000000,IF('SOLAI T2D SPA'!$C$20<=S32,S32,10000000000)) -> 10000000000 | BP32: =IF($AZ$32=10000000000,10000000000,IF('SOLAI T2D SPA'!$C$20<=U32,U32,10000000000)) -> 10000000000 | BR32: =IF($AZ$32=10000000000,10000000000,IF('SOLAI T2D SPA'!$C$20<=W32,W32,10000000000)) -> 10000000000 | BV32: 4180.833333
C33: 5 | D33: =A32+B30+C33 -> 32 | E33: =(A32+C33)/100*2500+B30/100*0.4*2500/1.2 -> 433.3333333 | G33: - | I33: - | K33: 2353.091667 | M33: 3323.125 | O33: 4653.425 | Q33: 6482.083333 | S33: 8577.275 | U33: 10915.71667 | W33: 13471.66667 | Y33: 4275.833333 | AM33: ="MOMLAS"&A32&B30&C33&"REI-P" -> MOMLAS5225REI-P | AX33: =IF(AW30=10000000000,10000000000,IF('SOLAI T2D SPA'!$C$7='LP POLISTIROLO'!C33,'LP POLISTIROLO'!C33,10000000000)) -> 10000000000 | AY33: =AV32+AW30+AX33 -> 30000000000 | AZ33: 10000000000 | BB33: - | BD33: - | BF33: =IF($AZ$33=10000000000,10000000000,IF('SOLAI T2D SPA'!$C$20<=K33,K33,10000000000)) -> 10000000000 | BH33: =IF($AZ$33=10000000000,10000000000,IF('SOLAI T2D SPA'!$C$20<=M33,M33,10000000000)) -> 10000000000 | BJ33: =IF($AZ$33=10000000000,10000000000,IF('SOLAI T2D SPA'!$C$20<=O33,O33,10000000000)) -> 10000000000 | BL33: =IF($AZ$33=10000000000,10000000000,IF('SOLAI T2D SPA'!$C$20<=Q33,Q33,10000000000)) -> 10000000000 | BN33: =IF($AZ$33=10000000000,10000000000,IF('SOLAI T2D SPA'!$C$20<=S33,S33,10000000000)) -> 10000000000 | BP33: =IF($AZ$33=10000000000,10000000000,IF('SOLAI T2D SPA'!$C$20<=U33,U33,10000000000)) -> 10000000000 | BR33: =IF($AZ$33=10000000000,10000000000,IF('SOLAI T2D SPA'!$C$20<=W33,W33,10000000000)) -> 10000000000 | BV33: 4275.833333
A34: 4 | B34: 24 | C34: 4 | D34: =A34+B34+C34 -> 32 | E34: =(A34+C34)/100*2500+B34/100*0.4*2500/1.2 -> 400 | G34: - | I34: - | K34: 2434.733333 | M34: 3434.333333 | O34: 4801.483333 | Q34: 6674.533333 | S34: 8808.85 | U34: 11181.8 | W34: 13710.83333 | Y34: 4275.833333 | AM34: ="MOMLAS"&A34&B34&C34&"REI-P" -> MOMLAS4244REI-P | AU34: Spessore_4 | AV34: =IF(AW34=10000000000,10000000000,IF('SOLAI T2D SPA'!$C$5=AU34,'LP POLISTIROLO'!A34,10000000000)) -> 10000000000 | AW34: =IF(AND($AR$12=1,'SOLAI T2D SPA'!$C$6=B34),B34,10000000000) -> 10000000000 | AX34: =IF(AW34=10000000000,10000000000,IF('SOLAI T2D SPA'!$C$7='LP POLISTIROLO'!C34,'LP POLISTIROLO'!C34,10000000000)) -> 10000000000 | AY34: =AV34+AW34+AX34 -> 30000000000 | AZ34: 10000000000 | BB34: - | BD34: - | BF34: =IF($AZ$34=10000000000,10000000000,IF('SOLAI T2D SPA'!$C$20<=K34,K34,10000000000)) -> 10000000000 | BH34: =IF($AZ$34=10000000000,10000000000,IF('SOLAI T2D SPA'!$C$20<=M34,M34,10000000000)) -> 10000000000 | BJ34: =IF($AZ$34=10000000000,10000000000,IF('SOLAI T2D SPA'!$C$20<=O34,O34,10000000000)) -> 10000000000 | BL34: =IF($AZ$34=10000000000,10000000000,IF('SOLAI T2D SPA'!$C$20<=Q34,Q34,10000000000)) -> 10000000000 | BN34: =IF($AZ$34=10000000000,10000000000,IF('SOLAI T2D SPA'!$C$20<=S34,S34,10000000000)) -> 10000000000 | BP34: =IF($AZ$34=10000000000,10000000000,IF('SOLAI T2D SPA'!$C$20<=U34,U34,10000000000)) -> 10000000000 | BR34: =IF($AZ$34=10000000000,10000000000,IF('SOLAI T2D SPA'!$C$20<=W34,W34,10000000000)) -> 10000000000 | BV34: 4275.833333
C35: 5 | D35: =A34+B34+C35 -> 33 | E35: =(A34+C35)/100*2500+B34/100*0.4*2500/1.2 -> 425 | G35: - | I35: - | K35: 2528.916667 | M35: 3572.366667 | O35: 5005.608333 | Q35: 6978.641667 | S35: 9241.341667 | U35: 11772.625 | W35: 14546.04167 | Y35: 4370 | AM35: ="MOMLAS"&A34&B34&C35&"REI-P" -> MOMLAS4245REI-P | AX35: =IF(AW34=10000000000,10000000000,IF('SOLAI T2D SPA'!$C$7='LP POLISTIROLO'!C35,'LP POLISTIROLO'!C35,10000000000)) -> 10000000000 | AY35: =AV34+AW34+AX35 -> 30000000000 | AZ35: 10000000000 | BB35: - | BD35: - | BF35: =IF($AZ$35=10000000000,10000000000,IF('SOLAI T2D SPA'!$C$20<=K35,K35,10000000000)) -> 10000000000 | BH35: =IF($AZ$35=10000000000,10000000000,IF('SOLAI T2D SPA'!$C$20<=M35,M35,10000000000)) -> 10000000000 | BJ35: =IF($AZ$35=10000000000,10000000000,IF('SOLAI T2D SPA'!$C$20<=O35,O35,10000000000)) -> 10000000000 | BL35: =IF($AZ$35=10000000000,10000000000,IF('SOLAI T2D SPA'!$C$20<=Q35,Q35,10000000000)) -> 10000000000 | BN35: =IF($AZ$35=10000000000,10000000000,IF('SOLAI T2D SPA'!$C$20<=S35,S35,10000000000)) -> 10000000000 | BP35: =IF($AZ$35=10000000000,10000000000,IF('SOLAI T2D SPA'!$C$20<=U35,U35,10000000000)) -> 10000000000 | BR35: =IF($AZ$35=10000000000,10000000000,IF('SOLAI T2D SPA'!$C$20<=W35,W35,10000000000)) -> 10000000000 | BV35: 4370
A36: 5 | C36: 4 | D36: =A36+B34+C36 -> 33 | E36: =(A36+C36)/100*2500+B34/100*0.4*2500/1.2 -> 425 | G36: - | I36: - | K36: 2434.733333 | M36: 3434.333333 | O36: 4801.483333 | Q36: 6674.533333 | S36: 8808.85 | U36: 11181.8 | W36: 13710.83333 | Y36: 4370 | AM36: ="MOMLAS"&A36&B34&C36&"REI-P" -> MOMLAS5244REI-P | AU36: Spessore_5 | AV36: =IF(AW34=10000000000,10000000000,IF('SOLAI T2D SPA'!$C$5=AU36,'LP POLISTIROLO'!A36,10000000000)) -> 10000000000 | AX36: =IF(AW34=10000000000,10000000000,IF('SOLAI T2D SPA'!$C$7='LP POLISTIROLO'!C36,'LP POLISTIROLO'!C36,10000000000)) -> 10000000000 | AY36: =AV36+AW34+AX36 -> 30000000000 | AZ36: 10000000000 | BB36: - | BD36: - | BF36: =IF($AZ$36=10000000000,10000000000,IF('SOLAI T2D SPA'!$C$20<=K36,K36,10000000000)) -> 10000000000 | BH36: =IF($AZ$36=10000000000,10000000000,IF('SOLAI T2D SPA'!$C$20<=M36,M36,10000000000)) -> 10000000000 | BJ36: =IF($AZ$36=10000000000,10000000000,IF('SOLAI T2D SPA'!$C$20<=O36,O36,10000000000)) -> 10000000000 | BL36: =IF($AZ$36=10000000000,10000000000,IF('SOLAI T2D SPA'!$C$20<=Q36,Q36,10000000000)) -> 10000000000 | BN36: =IF($AZ$36=10000000000,10000000000,IF('SOLAI T2D SPA'!$C$20<=S36,S36,10000000000)) -> 10000000000 | BP36: =IF($AZ$36=10000000000,10000000000,IF('SOLAI T2D SPA'!$C$20<=U36,U36,10000000000)) -> 10000000000 | BR36: =IF($AZ$36=10000000000,10000000000,IF('SOLAI T2D SPA'!$C$20<=W36,W36,10000000000)) -> 10000000000 | BV36: 4370
C37: 5 | D37: =A36+B34+C37 -> 34 | E37: =(A36+C37)/100*2500+B34/100*0.4*2500/1.2 -> 450 | G37: - | I37: - | K37: 2528.916667 | M37: 3572.366667 | O37: 5005.608333 | Q37: 6978.641667 | S37: 9241.341667 | U37: 11772.625 | W37: 14546.04167 | Y37: 4463.333333 | AM37: ="MOMLAS"&A36&B34&C37&"REI-P" -> MOMLAS5245REI-P | AX37: =IF(AW34=10000000000,10000000000,IF('SOLAI T2D SPA'!$C$7='LP POLISTIROLO'!C37,'LP POLISTIROLO'!C37,10000000000)) -> 10000000000 | AY37: =AV36+AW34+AX37 -> 30000000000 | AZ37: 10000000000 | BB37: - | BD37: - | BF37: =IF($AZ$37=10000000000,10000000000,IF('SOLAI T2D SPA'!$C$20<=K37,K37,10000000000)) -> 10000000000 | BH37: =IF($AZ$37=10000000000,10000000000,IF('SOLAI T2D SPA'!$C$20<=M37,M37,10000000000)) -> 10000000000 | BJ37: =IF($AZ$37=10000000000,10000000000,IF('SOLAI T2D SPA'!$C$20<=O37,O37,10000000000)) -> 10000000000 | BL37: =IF($AZ$37=10000000000,10000000000,IF('SOLAI T2D SPA'!$C$20<=Q37,Q37,10000000000)) -> 10000000000 | BN37: =IF($AZ$37=10000000000,10000000000,IF('SOLAI T2D SPA'!$C$20<=S37,S37,10000000000)) -> 10000000000 | BP37: =IF($AZ$37=10000000000,10000000000,IF('SOLAI T2D SPA'!$C$20<=U37,U37,10000000000)) -> 10000000000 | BR37: =IF($AZ$37=10000000000,10000000000,IF('SOLAI T2D SPA'!$C$20<=W37,W37,10000000000)) -> 10000000000 | BV37: 4463.333333
A38: 4 | B38: 30 | C38: 4 | D38: =A38+B38+C38 -> 38 | E38: =(A38+C38)/100*2500+B38/100*0.4*2500/1.2 -> 450 | G38: - | I38: - | K38: 2962.241667 | M38: 4183.241667 | O38: 5858.633333 | Q38: 8161.666667 | S38: 10800.1 | U38: 13750.96667 | W38: 16932.35833 | Y38: 4832.5 | AM38: ="MOMLAS"&A38&B38&C38&"REI-P" -> MOMLAS4304REI-P | AU38: Spessore_4 | AV38: =IF(AW38=10000000000,10000000000,IF('SOLAI T2D SPA'!$C$5=AU38,'LP POLISTIROLO'!A38,10000000000)) -> 10000000000 | AW38: =IF(AND($AR$12=1,'SOLAI T2D SPA'!$C$6=B38),B38,10000000000) -> 10000000000 | AX38: =IF(AW38=10000000000,10000000000,IF('SOLAI T2D SPA'!$C$7='LP POLISTIROLO'!C38,'LP POLISTIROLO'!C38,10000000000)) -> 10000000000 | AY38: =AV38+AW38+AX38 -> 30000000000 | AZ38: 10000000000 | BB38: - | BD38: - | BF38: =IF($AZ$38=10000000000,10000000000,IF('SOLAI T2D SPA'!$C$20<=K38,K38,10000000000)) -> 10000000000 | BH38: =IF($AZ$38=10000000000,10000000000,IF('SOLAI T2D SPA'!$C$20<=M38,M38,10000000000)) -> 10000000000 | BJ38: =IF($AZ$38=10000000000,10000000000,IF('SOLAI T2D SPA'!$C$20<=O38,O38,10000000000)) -> 10000000000 | BL38: =IF($AZ$38=10000000000,10000000000,IF('SOLAI T2D SPA'!$C$20<=Q38,Q38,10000000000)) -> 10000000000 | BN38: =IF($AZ$38=10000000000,10000000000,IF('SOLAI T2D SPA'!$C$20<=S38,S38,10000000000)) -> 10000000000 | BP38: =IF($AZ$38=10000000000,10000000000,IF('SOLAI T2D SPA'!$C$20<=U38,U38,10000000000)) -> 10000000000 | BR38: =IF($AZ$38=10000000000,10000000000,IF('SOLAI T2D SPA'!$C$20<=W38,W38,10000000000)) -> 10000000000 | BV38: 4832.5
C39: 5 | D39: =A38+B38+C39 -> 39 | E39: =(A38+C39)/100*2500+B38/100*0.4*2500/1.2 -> 475 | G39: - | I39: - | K39: 3056.45 | M39: 4321.333333 | O39: 6062.208333 | Q39: 8466.1 | S39: 11233.01667 | U39: 14341.55 | W39: 17766.43333 | Y39: 4923.333333 | AM39: ="MOMLAS"&A38&B38&C39&"REI-P" -> MOMLAS4305REI-P | AX39: =IF(AW38=10000000000,10000000000,IF('SOLAI T2D SPA'!$C$7='LP POLISTIROLO'!C39,'LP POLISTIROLO'!C39,10000000000)) -> 10000000000 | AY39: =AV38+AW38+AX39 -> 30000000000 | AZ39: 10000000000 | BB39: - | BD39: - | BF39: =IF($AZ$39=10000000000,10000000000,IF('SOLAI T2D SPA'!$C$20<=K39,K39,10000000000)) -> 10000000000 | BH39: =IF($AZ$39=10000000000,10000000000,IF('SOLAI T2D SPA'!$C$20<=M39,M39,10000000000)) -> 10000000000 | BJ39: =IF($AZ$39=10000000000,10000000000,IF('SOLAI T2D SPA'!$C$20<=O39,O39,10000000000)) -> 10000000000 | BL39: =IF($AZ$39=10000000000,10000000000,IF('SOLAI T2D SPA'!$C$20<=Q39,Q39,10000000000)) -> 10000000000 | BN39: =IF($AZ$39=10000000000,10000000000,IF('SOLAI T2D SPA'!$C$20<=S39,S39,10000000000)) -> 10000000000 | BP39: =IF($AZ$39=10000000000,10000000000,IF('SOLAI T2D SPA'!$C$20<=U39,U39,10000000000)) -> 10000000000 | BR39: =IF($AZ$39=10000000000,10000000000,IF('SOLAI T2D SPA'!$C$20<=W39,W39,10000000000)) -> 10000000000 | BV39: 4923.333333
A40: 5 | C40: 4 | D40: =A40+B38+C40 -> 39 | E40: =(A40+C40)/100*2500+B38/100*0.4*2500/1.2 -> 475 | G40: - | I40: - | K40: 2962.241667 | M40: 4183.241667 | O40: 5858.633333 | Q40: 8161.666667 | S40: 10800.1 | U40: 13750.96667 | W40: 16932.35833 | Y40: 4923.333333 | AM40: ="MOMLAS"&A40&B38&C40&"REI-P" -> MOMLAS5304REI-P | AU40: Spessore_5 | AV40: =IF(AW38=10000000000,10000000000,IF('SOLAI T2D SPA'!$C$5=AU40,'LP POLISTIROLO'!A40,10000000000)) -> 10000000000 | AX40: =IF(AW38=10000000000,10000000000,IF('SOLAI T2D SPA'!$C$7='LP POLISTIROLO'!C40,'LP POLISTIROLO'!C40,10000000000)) -> 10000000000 | AY40: =AV40+AW38+AX40 -> 30000000000 | AZ40: 10000000000 | BB40: - | BD40: - | BF40: =IF($AZ$40=10000000000,10000000000,IF('SOLAI T2D SPA'!$C$20<=K40,K40,10000000000)) -> 10000000000 | BH40: =IF($AZ$40=10000000000,10000000000,IF('SOLAI T2D SPA'!$C$20<=M40,M40,10000000000)) -> 10000000000 | BJ40: =IF($AZ$40=10000000000,10000000000,IF('SOLAI T2D SPA'!$C$20<=O40,O40,10000000000)) -> 10000000000 | BL40: =IF($AZ$40=10000000000,10000000000,IF('SOLAI T2D SPA'!$C$20<=Q40,Q40,10000000000)) -> 10000000000 | BN40: =IF($AZ$40=10000000000,10000000000,IF('SOLAI T2D SPA'!$C$20<=S40,S40,10000000000)) -> 10000000000 | BP40: =IF($AZ$40=10000000000,10000000000,IF('SOLAI T2D SPA'!$C$20<=U40,U40,10000000000)) -> 10000000000 | BR40: =IF($AZ$40=10000000000,10000000000,IF('SOLAI T2D SPA'!$C$20<=W40,W40,10000000000)) -> 10000000000 | BV40: 4923.333333 | CF40: =IF(AND(CF78=$DJ$78,CF78<800000000),CF43,"") ->  | CH40: =IF(AND(CH78=$DJ$78,CH78<800000000),CH43,"") ->  | CJ40: =IF(AND(CJ78=$DJ$78,CJ78<800000000),CJ43,"") ->  | CL40: =IF(AND(CL78=$DJ$78,CL78<800000000),CL43,"") ->  | CN40: =IF(AND(CN78=$DJ$78,CN78<800000000),CN43,"") ->  | CP40: =IF(AND(CP78=$DJ$78,CP78<800000000),CP43,"") ->  | CR40: =IF(AND(CR78=$DJ$78,CR78<800000000),CR43,"") ->  | CT40: =IF(AND(CT78=$DJ$78,CT78<800000000),CT43,"") ->  | CV40: =IF(AND(CV78=$DJ$78,CV78<800000000),CV43,"") ->  | CX40: =IF(AND(CX78=$DJ$78,CX78<800000000),CX43,"") ->  | CZ40: =IF(AND(CZ78=$DJ$78,CZ78<800000000),CZ43,"") ->  | DB40: =IF(AND(DB78=$DJ$78,DB78<800000000),DB43,"") ->  | DD40: =IF(AND(DD78=$DJ$78,DD78<800000000),DD43,"") ->  | DF40: =IF(AND(DF78=$DJ$78,DF78<800000000),DF43,"") ->  | DH40: =IF(AND(DH78=$DJ$78,DH78<800000000),DH43,"") ->  | DJ40: =CF40&CH40&CJ40&CL40&CN40&CP40&CR40&CT40&CV40&CX40&CZ40&DB40&DD40&DF40&DH40 -> 
C41: 5 | D41: =A40+B38+C41 -> 40 | E41: =(A40+C41)/100*2500+B38/100*0.4*2500/1.2 -> 500 | G41: - | I41: - | K41: 3056.45 | M41: 4321.333333 | O41: 6062.208333 | Q41: 8466.1 | S41: 11233.01667 | U41: 14341.55 | W41: 17766.43333 | Y41: 5014.166667 | AM41: ="MOMLAS"&A40&B38&C41&"REI-P" -> MOMLAS5305REI-P | AX41: =IF(AW38=10000000000,10000000000,IF('SOLAI T2D SPA'!$C$7='LP POLISTIROLO'!C41,'LP POLISTIROLO'!C41,10000000000)) -> 10000000000 | AY41: =AV40+AW38+AX41 -> 30000000000 | AZ41: 10000000000 | BB41: - | BD41: - | BF41: =IF($AZ$41=10000000000,10000000000,IF('SOLAI T2D SPA'!$C$20<=K41,K41,10000000000)) -> 10000000000 | BH41: =IF($AZ$41=10000000000,10000000000,IF('SOLAI T2D SPA'!$C$20<=M41,M41,10000000000)) -> 10000000000 | BJ41: =IF($AZ$41=10000000000,10000000000,IF('SOLAI T2D SPA'!$C$20<=O41,O41,10000000000)) -> 10000000000 | BL41: =IF($AZ$41=10000000000,10000000000,IF('SOLAI T2D SPA'!$C$20<=Q41,Q41,10000000000)) -> 10000000000 | BN41: =IF($AZ$41=10000000000,10000000000,IF('SOLAI T2D SPA'!$C$20<=S41,S41,10000000000)) -> 10000000000 | BP41: =IF($AZ$41=10000000000,10000000000,IF('SOLAI T2D SPA'!$C$20<=U41,U41,10000000000)) -> 10000000000 | BR41: =IF($AZ$41=10000000000,10000000000,IF('SOLAI T2D SPA'!$C$20<=W41,W41,10000000000)) -> 10000000000 | BV41: 5014.166667
AV42: =MIN(AV10:AV41) -> 10000000000 | AW42: =MIN(AW10:AW41) -> 10000000000 | AX42: =MIN(AX10:AX41) -> 10000000000 | AY42: =MIN(AY10:AY41) -> 30000000000 | AZ42: =MIN(AZ10:AZ41) -> 10000000000 | BF42: =MIN(BF10:BG41) -> 10000000000 | BH42: =MIN(BH10:BI41) -> 10000000000 | BJ42: =MIN(BJ10:BK41) -> 10000000000 | BL42: =MIN(BL10:BM41) -> 10000000000 | BN42: =MIN(BN10:BO41) -> 10000000000 | BP42: =MIN(BP10:BQ41) -> 10000000000 | BR42: =MIN(BR10:BS41) -> 10000000000 | BT42: =MIN(BF42:BS42) -> 10000000000 | BU42: =IF(AND(AR12=1,BT42=10000000000),1,0) -> 0
A43: MOMENTO NEGATIVO | G43: 3f8 | I43: 3f10 | K43: 3f12 | M43: 3f8 + 3f10 | O43: 6f10 | Q43: 3f10 + 3f12 | S43: 6f12 | U43: 3f12 + 3f14 | W43: 6f14 | Y43: 3f14 + 3f16 | AA43: 6f16 | AC43: 3f16 + 3f18 | AE43: 6f18 | AG43: 3f18 + 3f20 | AI43: 6f20 | BZ43: MOMENTO NEGATIVO | CF43: 3f8 | CH43: 3f10 | CJ43: 3f12 | CL43: 3f8 + 3f10 | CN43: 6f10 | CP43: 3f10 + 3f12 | CR43: 6f12 | CT43: 3f12 + 3f14 | CV43: 6f14 | CX43: 3f14 + 3f16 | CZ43: 6f16 | DB43: 3f16 + 3f18 | DD43: 6f18 | DF43: 3f18 + 3f20 | DH43: 6f20
A44: Spessore lastra | B44: Altezza polistirolo | C44: Spessore soletta | D44: Altezza solaio | E44: Peso solaio | F44: Volume cls getto in opera (l/mq) | G44: Momenti ultimi riferiti ad una striscia di solaio larga 1,00 metro | BZ44: Spessore lastra | CA44: Altezza polistirolo | CB44: Spessore soletta | CC44: Altezza solaio | CD44: Peso solaio | CF44: Momenti ultimi riferiti ad una striscia di solaio larga 1,00 metro
A45: [cm] | B45: [cm] | C45: [cm] | D45: [cm] | E45: [daN/mq] | F45: [l/mq] | G45: [daNm] | I45: [daNm] | K45: [daNm] | M45: [daNm] | O45: [daNm] | P45: [daNm] | Q45: [daNm] | R45: [daNm] | S45: [daNm] | T45: [daNm] | U45: [daNm] | V45: [daNm] | W45: [daNm] | X45: [daNm] | Y45: [daNm] | Z45: [daNm] | AA45: [daNm] | AB45: [daNm] | AC45: [daNm] | AD45: [daNm] | AE45: [daNm] | AF45: [daNm] | AG45: [daNm] | AH45: [daNm] | AI45: [daNm] | AJ45: [daNm] | BZ45: [cm] | CA45: [cm] | CB45: [cm] | CC45: [cm] | CD45: [daN/mq] | CF45: [daNm] | CH45: [daNm] | CJ45: [daNm] | CL45: [daNm] | CN45: [daNm] | CO45: [daNm] | CP45: [daNm] | CQ45: [daNm] | CR45: [daNm] | CS45: [daNm] | CT45: [daNm] | CU45: [daNm] | CV45: [daNm] | CW45: [daNm] | CX45: [daNm] | CY45: [daNm] | CZ45: [daNm] | DA45: [daNm] | DB45: [daNm] | DC45: [daNm] | DD45: [daNm] | DE45: [daNm] | DF45: [daNm] | DG45: [daNm] | DH45: [daNm] | DI45: [daNm]
A46: 4 | B46: 12 | C46: 4 | D46: =A46+B46+C46 -> 20 | E46: =(A46+C46)/100*2500+B46/100*0.4*2500/1.2 -> 300 | G46: 877.875 | I46: 1364.808333 | K46: 1952.5 | M46: 2216.533333 | O46: 2687.616667 | Q46: 3256.166667 | S46: 3815.841667 | U46: 4466.583333 | W46: 5106.783333 | Y46: 5830.075 | AA46: 6537.875 | AC46: 7321.366667 | AE46: 8085.358333 | AG46: 8913.333333 | AI46: 9719.166667 | BZ46: =AV10 -> 10000000000 | CA46: =AW10 -> 10000000000 | CB46: =AX10 -> 10000000000 | CC46: =BZ46+CA46+CB46 -> 30000000000 | CD46: =(BZ46+CB46)/100*2500+CA46/100*0.4*2500/1.2 -> 5.833333333e+11 | CF46: =IF($AZ$10=10000000000,10000000000,IF('SOLAI T2D SPA'!$C$25<=G46,G46,10000000000)) -> 10000000000 | CH46: =IF($AZ$10=10000000000,10000000000,IF('SOLAI T2D SPA'!$C$25<=I46,I46,10000000000)) -> 10000000000 | CJ46: =IF($AZ$10=10000000000,10000000000,IF('SOLAI T2D SPA'!$C$25<=K46,K46,10000000000)) -> 10000000000 | CL46: =IF($AZ$10=10000000000,10000000000,IF('SOLAI T2D SPA'!$C$25<=M46,M46,10000000000)) -> 10000000000 | CN46: =IF($AZ$10=10000000000,10000000000,IF('SOLAI T2D SPA'!$C$25<=O46,O46,10000000000)) -> 10000000000 | CP46: =IF($AZ$10=10000000000,10000000000,IF('SOLAI T2D SPA'!$C$25<=Q46,Q46,10000000000)) -> 10000000000 | CR46: =IF($AZ$10=10000000000,10000000000,IF('SOLAI T2D SPA'!$C$25<=S46,S46,10000000000)) -> 10000000000 | CT46: =IF($AZ$10=10000000000,10000000000,IF('SOLAI T2D SPA'!$C$25<=U46,U46,10000000000)) -> 10000000000 | CV46: =IF($AZ$10=10000000000,10000000000,IF('SOLAI T2D SPA'!$C$25<=W46,W46,10000000000)) -> 10000000000 | CX46: =IF($AZ$10=10000000000,10000000000,IF('SOLAI T2D SPA'!$C$25<=Y46,Y46,10000000000)) -> 10000000000 | CZ46: =IF($AZ$10=10000000000,10000000000,IF('SOLAI T2D SPA'!$C$25<=AA46,AA46,10000000000)) -> 10000000000 | DB46: =IF($AZ$10=10000000000,10000000000,IF('SOLAI T2D SPA'!$C$25<=AC46,AC46,10000000000)) -> 10000000000 | DD46: =IF($AZ$10=10000000000,10000000000,IF('SOLAI T2D SPA'!$C$25<=AE46,AE46,10000000000)) -> 10000000000 | DF46: =IF($AZ$10=10000000000,10000000000,IF('SOLAI T2D SPA'!$C$25<=AG46,AG46,10000000000)) -> 10000000000 | DH46: =IF($AZ$10=10000000000,10000000000,IF('SOLAI T2D SPA'!$C$25<=AI46,AI46,10000000000)) -> 10000000000
C47: 5 | D47: =A46+B46+C47 -> 21 | E47: =(A46+C47)/100*2500+B46/100*0.4*2500/1.2 -> 325 | G47: 927 | I47: 1441.591667 | K47: 2063.083333 | M47: 2342.416667 | O47: 2841.416667 | Q47: 3443.35 | S47: 4036.933333 | U47: 4728.516667 | W47: 5407.533333 | Y47: 6176.325 | AA47: 6930.908333 | AC47: 7767.041667 | AE47: 8581.95 | AG47: 9470.25 | AI47: 10334.16667 | CB47: =AX11 -> 10000000000 | CC47: =BZ46+CA46+CB47 -> 30000000000 | CD47: =(BZ46+CB47)/100*2500+CA46/100*0.4*2500/1.2 -> 5.833333333e+11 | CF47: =IF($AZ$11=10000000000,10000000000,IF('SOLAI T2D SPA'!$C$25<=G47,G47,10000000000)) -> 10000000000 | CH47: =IF($AZ$11=10000000000,10000000000,IF('SOLAI T2D SPA'!$C$25<=I47,I47,10000000000)) -> 10000000000 | CJ47: =IF($AZ$11=10000000000,10000000000,IF('SOLAI T2D SPA'!$C$25<=K47,K47,10000000000)) -> 10000000000 | CL47: =IF($AZ$11=10000000000,10000000000,IF('SOLAI T2D SPA'!$C$25<=M47,M47,10000000000)) -> 10000000000 | CN47: =IF($AZ$11=10000000000,10000000000,IF('SOLAI T2D SPA'!$C$25<=O47,O47,10000000000)) -> 10000000000 | CP47: =IF($AZ$11=10000000000,10000000000,IF('SOLAI T2D SPA'!$C$25<=Q47,Q47,10000000000)) -> 10000000000 | CR47: =IF($AZ$11=10000000000,10000000000,IF('SOLAI T2D SPA'!$C$25<=S47,S47,10000000000)) -> 10000000000 | CT47: =IF($AZ$11=10000000000,10000000000,IF('SOLAI T2D SPA'!$C$25<=U47,U47,10000000000)) -> 10000000000 | CV47: =IF($AZ$11=10000000000,10000000000,IF('SOLAI T2D SPA'!$C$25<=W47,W47,10000000000)) -> 10000000000 | CX47: =IF($AZ$11=10000000000,10000000000,IF('SOLAI T2D SPA'!$C$25<=Y47,Y47,10000000000)) -> 10000000000 | CZ47: =IF($AZ$11=10000000000,10000000000,IF('SOLAI T2D SPA'!$C$25<=AA47,AA47,10000000000)) -> 10000000000 | DB47: =IF($AZ$11=10000000000,10000000000,IF('SOLAI T2D SPA'!$C$25<=AC47,AC47,10000000000)) -> 10000000000 | DD47: =IF($AZ$11=10000000000,10000000000,IF('SOLAI T2D SPA'!$C$25<=AE47,AE47,10000000000)) -> 10000000000 | DF47: =IF($AZ$11=10000000000,10000000000,IF('SOLAI T2D SPA'!$C$25<=AG47,AG47,10000000000)) -> 10000000000 | DH47: =IF($AZ$11=10000000000,10000000000,IF('SOLAI T2D SPA'!$C$25<=AI47,AI47,10000000000)) -> 10000000000
A48: 5 | C48: 4 | D48: =A48+B46+C48 -> 21 | E48: =(A48+C48)/100*2500+B46/100*0.4*2500/1.2 -> 325 | G48: 927 | I48: 1441.591667 | K48: 2063.083333 | M48: 2342.416667 | O48: 2841.416667 | Q48: 3443.35 | S48: 4036.933333 | U48: 4728.516667 | W48: 5407.533333 | Y48: 6176.325 | AA48: 6930.908333 | AC48: 7767.041667 | AE48: 8581.95 | AG48: 9470.25 | AI48: 10334.16667 | BZ48: =AV12 -> 10000000000 | CB48: 10000000000 | CC48: =BZ48+CA46+CB48 -> 30000000000 | CD48: =(BZ48+CB48)/100*2500+CA46/100*0.4*2500/1.2 -> 5.833333333e+11 | CF48: =IF($AZ$12=10000000000,10000000000,IF('SOLAI T2D SPA'!$C$25<=G48,G48,10000000000)) -> 10000000000 | CH48: =IF($AZ$12=10000000000,10000000000,IF('SOLAI T2D SPA'!$C$25<=I48,I48,10000000000)) -> 10000000000 | CJ48: =IF($AZ$12=10000000000,10000000000,IF('SOLAI T2D SPA'!$C$25<=K48,K48,10000000000)) -> 10000000000 | CL48: =IF($AZ$12=10000000000,10000000000,IF('SOLAI T2D SPA'!$C$25<=M48,M48,10000000000)) -> 10000000000 | CN48: =IF($AZ$12=10000000000,10000000000,IF('SOLAI T2D SPA'!$C$25<=O48,O48,10000000000)) -> 10000000000 | CP48: =IF($AZ$12=10000000000,10000000000,IF('SOLAI T2D SPA'!$C$25<=Q48,Q48,10000000000)) -> 10000000000 | CR48: =IF($AZ$12=10000000000,10000000000,IF('SOLAI T2D SPA'!$C$25<=S48,S48,10000000000)) -> 10000000000 | CT48: =IF($AZ$12=10000000000,10000000000,IF('SOLAI T2D SPA'!$C$25<=U48,U48,10000000000)) -> 10000000000 | CV48: =IF($AZ$12=10000000000,10000000000,IF('SOLAI T2D SPA'!$C$25<=W48,W48,10000000000)) -> 10000000000 | CX48: =IF($AZ$12=10000000000,10000000000,IF('SOLAI T2D SPA'!$C$25<=Y48,Y48,10000000000)) -> 10000000000 | CZ48: =IF($AZ$12=10000000000,10000000000,IF('SOLAI T2D SPA'!$C$25<=AA48,AA48,10000000000)) -> 10000000000 | DB48: =IF($AZ$12=10000000000,10000000000,IF('SOLAI T2D SPA'!$C$25<=AC48,AC48,10000000000)) -> 10000000000 | DD48: =IF($AZ$12=10000000000,10000000000,IF('SOLAI T2D SPA'!$C$25<=AE48,AE48,10000000000)) -> 10000000000 | DF48: =IF($AZ$12=10000000000,10000000000,IF('SOLAI T2D SPA'!$C$25<=AG48,AG48,10000000000)) -> 10000000000 | DH48: =IF($AZ$12=10000000000,10000000000,IF('SOLAI T2D SPA'!$C$25<=AI48,AI48,10000000000)) -> 10000000000
C49: 5 | D49: =A48+B46+C49 -> 22 | E49: =(A48+C49)/100*2500+B46/100*0.4*2500/1.2 -> 350 | G49: 976.0166667 | I49: 1518.175 | K49: 2173.55 | M49: 2468.625 | O49: 2995.125 | Q49: 3631.141667 | S49: 4258.108333 | U49: 4989.775 | W49: 5708.85 | Y49: 6523.508333 | AA49: 7323.95 | AC49: 8211.416667 | AE49: 9079.433333 | AG49: 10026.69167 | AI49: 10949.16667 | CB49: 10000000000 | CC49: =BZ48+CA46+CB49 -> 30000000000 | CD49: =(BZ48+CB49)/100*2500+CA46/100*0.4*2500/1.2 -> 5.833333333e+11 | CF49: =IF($AZ$13=10000000000,10000000000,IF('SOLAI T2D SPA'!$C$25<=G49,G49,10000000000)) -> 10000000000 | CH49: =IF($AZ$13=10000000000,10000000000,IF('SOLAI T2D SPA'!$C$25<=I49,I49,10000000000)) -> 10000000000 | CJ49: =IF($AZ$13=10000000000,10000000000,IF('SOLAI T2D SPA'!$C$25<=K49,K49,10000000000)) -> 10000000000 | CL49: =IF($AZ$13=10000000000,10000000000,IF('SOLAI T2D SPA'!$C$25<=M49,M49,10000000000)) -> 10000000000 | CN49: =IF($AZ$13=10000000000,10000000000,IF('SOLAI T2D SPA'!$C$25<=O49,O49,10000000000)) -> 10000000000 | CP49: =IF($AZ$13=10000000000,10000000000,IF('SOLAI T2D SPA'!$C$25<=Q49,Q49,10000000000)) -> 10000000000 | CR49: =IF($AZ$13=10000000000,10000000000,IF('SOLAI T2D SPA'!$C$25<=S49,S49,10000000000)) -> 10000000000 | CT49: =IF($AZ$13=10000000000,10000000000,IF('SOLAI T2D SPA'!$C$25<=U49,U49,10000000000)) -> 10000000000 | CV49: =IF($AZ$13=10000000000,10000000000,IF('SOLAI T2D SPA'!$C$25<=W49,W49,10000000000)) -> 10000000000 | CX49: =IF($AZ$13=10000000000,10000000000,IF('SOLAI T2D SPA'!$C$25<=Y49,Y49,10000000000)) -> 10000000000 | CZ49: =IF($AZ$13=10000000000,10000000000,IF('SOLAI T2D SPA'!$C$25<=AA49,AA49,10000000000)) -> 10000000000 | DB49: =IF($AZ$13=10000000000,10000000000,IF('SOLAI T2D SPA'!$C$25<=AC49,AC49,10000000000)) -> 10000000000 | DD49: =IF($AZ$13=10000000000,10000000000,IF('SOLAI T2D SPA'!$C$25<=AE49,AE49,10000000000)) -> 10000000000 | DF49: =IF($AZ$13=10000000000,10000000000,IF('SOLAI T2D SPA'!$C$25<=AG49,AG49,10000000000)) -> 10000000000 | DH49: =IF($AZ$13=10000000000,10000000000,IF('SOLAI T2D SPA'!$C$25<=AI49,AI49,10000000000)) -> 10000000000
A50: 4 | B50: 14 | C50: 4 | D50: =A50+B50+C50 -> 22 | E50: =(A50+C50)/100*2500+B50/100*0.4*2500/1.2 -> 316.6666667 | G50: 976.0166667 | I50: 1518.175 | K50: 2173.55 | M50: 2468.625 | O50: 2995.125 | Q50: 3631.141667 | S50: 4258.108333 | U50: 4989.775 | W50: 5708.85 | Y50: 6523.508333 | AA50: 7323.95 | AC50: 8211.416667 | AE50: 9079.433333 | AG50: 10026.69167 | AI50: 10949.16667 | BZ50: =AV14 -> 10000000000 | CA50: =AW14 -> 10000000000 | CB50: 10000000000 | CC50: =BZ50+CA50+CB50 -> 30000000000 | CD50: =(BZ50+CB50)/100*2500+CA50/100*0.4*2500/1.2 -> 5.833333333e+11 | CF50: =IF($AZ$14=10000000000,10000000000,IF('SOLAI T2D SPA'!$C$25<=G50,G50,10000000000)) -> 10000000000 | CH50: =IF($AZ$14=10000000000,10000000000,IF('SOLAI T2D SPA'!$C$25<=I50,I50,10000000000)) -> 10000000000 | CJ50: =IF($AZ$14=10000000000,10000000000,IF('SOLAI T2D SPA'!$C$25<=K50,K50,10000000000)) -> 10000000000 | CL50: =IF($AZ$14=10000000000,10000000000,IF('SOLAI T2D SPA'!$C$25<=M50,M50,10000000000)) -> 10000000000 | CN50: =IF($AZ$14=10000000000,10000000000,IF('SOLAI T2D SPA'!$C$25<=O50,O50,10000000000)) -> 10000000000 | CP50: =IF($AZ$14=10000000000,10000000000,IF('SOLAI T2D SPA'!$C$25<=Q50,Q50,10000000000)) -> 10000000000 | CR50: =IF($AZ$14=10000000000,10000000000,IF('SOLAI T2D SPA'!$C$25<=S50,S50,10000000000)) -> 10000000000 | CT50: =IF($AZ$14=10000000000,10000000000,IF('SOLAI T2D SPA'!$C$25<=U50,U50,10000000000)) -> 10000000000 | CV50: =IF($AZ$14=10000000000,10000000000,IF('SOLAI T2D SPA'!$C$25<=W50,W50,10000000000)) -> 10000000000 | CX50: =IF($AZ$14=10000000000,10000000000,IF('SOLAI T2D SPA'!$C$25<=Y50,Y50,10000000000)) -> 10000000000 | CZ50: =IF($AZ$14=10000000000,10000000000,IF('SOLAI T2D SPA'!$C$25<=AA50,AA50,10000000000)) -> 10000000000 | DB50: =IF($AZ$14=10000000000,10000000000,IF('SOLAI T2D SPA'!$C$25<=AC50,AC50,10000000000)) -> 10000000000 | DD50: =IF($AZ$14=10000000000,10000000000,IF('SOLAI T2D SPA'!$C$25<=AE50,AE50,10000000000)) -> 10000000000 | DF50: =IF($AZ$14=10000000000,10000000000,IF('SOLAI T2D SPA'!$C$25<=AG50,AG50,10000000000)) -> 10000000000 | DH50: =IF($AZ$14=10000000000,10000000000,IF('SOLAI T2D SPA'!$C$25<=AI50,AI50,10000000000)) -> 10000000000
